{"text_format":"1","workbook":"xlsx","n_sheets":4,"sheets":["BSRN_rad1","daily plot_rad1","BSRN_rad2","daily plot_rad2"],"not_rendered":{"charts":39,"images":0,"macros":1,"external_links":0,"defined_names":0,"comments":0,"pivot_tables":0},"unopened":[],"bounds":{"document_bytes":16777216,"sheet_cells":100000,"rows_first":2000,"rows_last":500,"rows_between":2000,"halvings":0,"cell_chars":16384,"cell_head_chars":4096},"cells_cut":0,"cells_raw":0,"read":"whole","date_system":"1900"}

{"sheet":"BSRN_rad1","index":0,"n_rows":14884,"n_cols":38,"rows_kept":14884,"cut":false,"hidden":false,"merged":[[0,29,0,30],[3,29,3,30]]}
["Line ID","Year","Julian Day","Hour/Min","Logger Voltage","Logger Temp","PIR Thermopile","PIR Thermopile standard deviation","PIR Case Temp (mV)","PIR Dome Temp (mV)","NIP mv","NIP mv standard deviation","Eppley PSP mv","Eppley PSP mv STD","Eppley B&W mv","Eppley B&W mv STD","K&Z (Global) mv","K&Z (Global) mv STD","Russian Photometer mv","RTD1 TEMP C","RTD1 r","RTD1 e","RTD1 m","RTD2 TEMP C","RTD2 r","RTD2 e","RTD2 m","Service Switch",null,"Smoothed data with calibration factors  -->",null,"PIR temp case (deg K)","PIR temp dome (deg K)","Calculated PIR thermopile (W/m^2)","Calculated Eppley PSP (W/m^2)","Calculated Eppley B&W PSP (W/m^2)","Calculated K&Z (Global) PSP (W/m^2)","Calculated NIP (W/m^2)"]
[101,2012,290,1200,14.22,-8.92,-0.25539000000000001,4.6000000000000001E-4,50.290999999999997,51.231999999999999,-3.5500000000000002E-3,3.6000000000000002E-4,-3.184E-2,3.6999999999999999E-4,1.09E-3,3.6999999999999999E-4,-8.7299999999999999E-3,3.6000000000000002E-4,1.7099999999999999E-3,-14.629,-5.6332000000000004,912.56,86.114999999999995,-99999,-99999,0,-0.32543,1666.2,null,"PIR cal # (SF)",null,{"$f":"1/((0.0010295+0.0002391*LOG(I2*1000)+0.0000001568*LOG(I2*1000)^3))","v":460.84621505185311},{"$f":"1/((0.0010295+0.0002391*LOG(J2*1000)+0.0000001568*LOG(J2*1000)^3))","v":460.41996965196893},{"$f":"($AE$5*G2)+$AE$6*((1*(AF2^4))+($AE$9*((AF2^4)-(AG2^4))))","v":2509.4046117682483},{"$f":"1000*(M2/$AE$10)","v":-3.634703196347032},{"$f":"1000*(O2/$AE$11)","v":0.125},{"$f":"1000*(Q2/$AE$12)","v":-0.92872340425531907},{"$f":"1000*(K2/$AE$14)","v":-0.44319600499375783}]
[101,2012,290,1201,14.22,-8.91,-0.25383,9.5E-4,50.325000000000003,51.478999999999999,-3.2699999999999999E-3,2.4000000000000001E-4,-3.1669999999999997E-2,2.7999999999999998E-4,8.8999999999999995E-4,2.5000000000000001E-4,-8.8299999999999993E-3,2.5000000000000001E-4,1.74E-3,-14.628,-5.6327999999999996,912.55,86.114999999999995,-99999,-99999,0,-0.29205999999999999,1666.2,null,{"$f":"(1/329.43)*1000","v":3.0355462465470664},null,{"$f":"1/((0.0010295+0.0002391*LOG(I3*1000)+0.0000001568*LOG(I3*1000)^3))","v":460.83066287060552},{"$f":"1/((0.0010295+0.0002391*LOG(J3*1000)+0.0000001568*LOG(J3*1000)^3))","v":460.30950179851993},{"$f":"($AE$5*G3)+$AE$6*((1*(AF3^4))+($AE$9*((AF3^4)-(AG3^4))))","v":2517.5510588140924},{"$f":"1000*(M3/$AE$10)","v":-3.6152968036529676},{"$f":"1000*(O3/$AE$11)","v":0.10206422018348622},{"$f":"1000*(Q3/$AE$12)","v":-0.93936170212765946},{"$f":"1000*(K3/$AE$14)","v":-0.40823970037453183}]
[101,2012,290,1202,14.22,-8.91,-0.25140000000000001,8.0000000000000004E-4,50.408999999999999,51.420999999999999,-2.5300000000000001E-3,3.5E-4,-3.1220000000000001E-2,3.3E-4,9.8999999999999999E-4,3.8000000000000002E-4,-8.9499999999999996E-3,3.3E-4,1.14E-3,-14.628,-5.6327999999999996,912.55,86.114999999999995,-99999,-99999,0,-0.27954000000000001,1666.2,null,"[above] cal units: microvolts/watt/square meter",null,460.79228898054544,460.33538953781641,2512.0870864502826,{"$f":"1000*(M4/$AE$10)","v":-3.56392694063927},{"$f":"1000*(O4/$AE$11)","v":0.1135321100917431},{"$f":"1000*(Q4/$AE$12)","v":-0.9521276595744681},{"$f":"1000*(K4/$AE$14)","v":-0.31585518102372034}]
[101,2012,290,1203,14.22,-8.91,-0.24884999999999999,9.1E-4,50.558,51.372999999999998,-1.5900000000000001E-3,3.4000000000000002E-4,-3.0499999999999999E-2,3.6999999999999999E-4,9.8999999999999999E-4,3.1E-4,-9.1800000000000007E-3,3.3E-4,6.4000000000000005E-4,-14.628,-5.6327999999999996,912.55,86.114999999999995,-99999,-99999,4.1700000000000001E-3,-0.28788000000000002,1666.2,null,"PIR cal # (SF) in W/mV/m^2",329.43,460.72439250779109,460.35683800054636,2503.8929478160203,-3.4817351598173518,0.1135321100917431,-0.97659574468085109,-0.19850187265917604]
[101,2012,290,1204,14.22,-8.91,-0.24731,5.5000000000000003E-4,50.570999999999998,51.331000000000003,-5.0000000000000001E-4,3.1E-4,-2.9389999999999999E-2,4.4000000000000002E-4,8.1999999999999998E-4,2.7999999999999998E-4,-9.7999999999999997E-3,3.5E-4,1.2E-4,-14.593,-5.6189999999999998,912.55,86.126999999999995,-99999,-99999,0,-0.27537,1666.2,null,"sigma",{"$f":"5.6704*(10^(-8))","v":5.6704000000000003E-8},460.71847902252676,460.37562336589855,2502.1909108383916,-3.3550228310502281,9.4036697247706413E-2,-1.0425531914893615,-6.2421972534332085E-2]
[101,2012,290,1205,14.22,-8.91,-0.24686,4.4000000000000002E-4,50.505000000000003,51.417000000000002,-4.2000000000000002E-4,1.8000000000000001E-4,-2.862E-2,3.8999999999999999E-4,9.7000000000000005E-4,3.6999999999999999E-4,-1.0120000000000001E-2,3.3E-4,1.4999999999999999E-4,-14.569000000000001,-5.6098999999999997,912.55,86.135999999999996,-99999,-99999,0,-0.29205999999999999,1666.2,null,"TC","1/((0.0010295+0.0002391*log(TCR*1000)+0.0000001568*log(TCR*1000)^3))",460.74851853048278,460.33717607443378,2508.7707326852128,-3.2671232876712328,0.11123853211009174,-1.0765957446808512,-5.2434456928838954E-2]
[101,2012,290,1206,14.22,-8.91,-0.24723999999999999,4.0000000000000002E-4,50.622,51.466999999999999,-8.1999999999999998E-4,2.7999999999999998E-4,-2.8000000000000001E-2,4.0000000000000002E-4,1.17E-3,2.7999999999999998E-4,-1.0540000000000001E-2,3.1E-4,7.2000000000000005E-4,-14.532999999999999,-5.5961999999999996,912.55,86.147999999999996,-99999,-99999,4.1700000000000001E-3,-0.28788000000000002,1666.2,null,"TD","1/((0.0010295+0.0002391*log(TDR*1000)+0.0000001568*log(TDR*1000)^3))",460.69529598669612,460.3148552683279,2504.8554548998522,-3.1963470319634704,0.13417431192660551,-1.1212765957446809,-0.10237203495630462]
[101,2012,290,1207,14.22,-8.91,-0.24918999999999999,1.0300000000000001E-3,50.555,51.456000000000003,-1.39E-3,4.8999999999999998E-4,-2.775E-2,3.6999999999999999E-4,1.41E-3,3.2000000000000003E-4,-1.0540000000000001E-2,2.1000000000000001E-4,1.24E-3,-14.507999999999999,-5.5865999999999998,912.55,86.156999999999996,-99999,-99999,4.1700000000000001E-3,-0.27537,1666.2,null,"dome correction factor",3.8,460.72575739406886,460.31976381325029,2507.043433812426,{"$f":"1000*(M9/$AE$10)","v":-3.1678082191780823},{"$f":"1000*(O9/$AE$11)","v":0.16169724770642199},{"$f":"1000*(Q9/$AE$12)","v":-1.1212765957446809},{"$f":"1000*(K9/$AE$14)","v":-0.17353308364544318}]
[101,2012,290,1208,14.23,-8.91,-0.25130000000000002,5.0000000000000001E-4,50.689,51.561999999999998,-2.6800000000000001E-3,3.3E-4,-2.81E-2,3.6000000000000002E-4,1.41E-3,3.8999999999999999E-4,-1.0659999999999999E-2,4.0000000000000002E-4,1.91E-3,-14.605,-5.6235999999999997,912.55,86.123000000000005,-99999,-99999,0,-0.28371000000000002,1666.2,null,"PSP Eppley cal # (microVolts/W/m^2)",8.76,460.66487857903388,460.27251090306106,2503.8395233487722,-3.2077625570776256,0.16169724770642199,-1.1340425531914893,-0.33458177278402002]
[101,2012,290,1209,14.22,-8.91,-0.25155,2.0000000000000001E-4,50.655999999999999,51.633000000000003,-3.2000000000000002E-3,2.9E-4,-2.862E-2,4.4999999999999999E-4,1.3600000000000001E-3,2.7E-4,-1.064E-2,3.3E-4,1.8400000000000001E-3,-14.628,-5.6327999999999996,912.55,86.114999999999995,-99999,-99999,0,-0.29622999999999999,1666.2,null,"PSP Eppley B&W cal # (microVolts/W/m^2)",8.7200000000000006,460.67985479621007,460.24091965537519,2508.0059401200087,-3.2671232876712328,0.15596330275229356,-1.1319148936170211,-0.39950062421972538]
[101,2012,290,1210,14.23,-8.91,-0.25119999999999998,3.3E-4,50.76,51.759,-2.98E-3,3.8000000000000002E-4,-2.9059999999999999E-2,2.9E-4,1.41E-3,3.6000000000000002E-4,-1.0319999999999999E-2,3.4000000000000002E-4,1.8799999999999999E-3,-14.628,-5.6327999999999996,912.55,86.114999999999995,-99999,-99999,0,-0.2712,1666.2,null,"PSP K&Z (Global) cal # (microVolts/W/m^2)",9.4,460.6326930895188,460.18497293600734,2507.8021442691706,-3.317351598173516,0.16169724770642199,-1.0978723404255319,-0.37203495630461925]
[101,2012,290,1211,14.22,-8.91,-0.25083,3.1E-4,50.773000000000003,51.8,-2.65E-3,2.4000000000000001E-4,-2.9340000000000001E-2,2.4000000000000001E-4,1.5900000000000001E-3,2.9999999999999997E-4,-1.0240000000000001E-2,3.6000000000000002E-4,1.74E-3,-14.628,-5.6327999999999996,912.55,86.114999999999995,-99999,-99999,8.3400000000000002E-3,-0.27954000000000001,1666.2,null,"Russian cal # (microVolts/W/m^2)",9.1300000000000008,460.62680529722371,460.16680011714465,2508.8238696214808,-3.349315068493151,0.18233944954128442,-1.0893617021276596,-0.33083645443196003]
[101,2012,290,1212,14.23,-8.91,-0.25164999999999998,4.8000000000000001E-4,50.978999999999999,51.738,-2.9499999999999999E-3,3.6999999999999999E-4,-2.9510000000000002E-2,2.9E-4,1.74E-3,3.6999999999999999E-4,-1.0120000000000001E-2,2.4000000000000001E-4,1.8799999999999999E-3,-14.628,-5.6327999999999996,912.55,86.114999999999995,-99999,-99999,4.1700000000000001E-3,-0.29622999999999999,1666.2,null,"NIP (microVolts/W/m^2)",8.01,460.53372557262321,460.19428705408592,2496.3438742006792,-3.3687214611872149,0.19954128440366972,-1.0765957446808512,-0.36828963795255931]
[101,2012,290,1213,14.23,-8.92,-0.25244,2.7E-4,50.875999999999998,51.859000000000002,-3.32E-3,2.3000000000000001E-4,-3.0009999999999998E-2,3.3E-4,1.5100000000000001E-3,2.9E-4,-9.92E-3,3.8000000000000002E-4,1.7899999999999999E-3,-14.64,-5.6372999999999998,912.55,86.111000000000004,-99999,-99999,0,-0.30875000000000002,1666.2,null,null,null,460.5802139846175,460.14067653436678,2505.5304943633901,-3.4257990867579906,0.17316513761467892,-1.0553191489361702,-0.41448189762796511]
[101,2012,290,1214,14.23,-8.93,-0.25229000000000001,3.2000000000000003E-4,50.932000000000002,52.103999999999999,-3.0699999999999998E-3,3.4000000000000002E-4,-3.0130000000000001E-2,3.1E-4,1.4400000000000001E-3,1.4999999999999999E-4,-1.0120000000000001E-2,3.3E-4,1.81E-3,-14.644,-5.6386000000000003,912.56,86.111000000000004,-99999,-99999,0,-0.28371000000000002,1666.2,null,null,null,460.55492599497899,460.03254338219585,2511.9670204360827,-3.439497716894977,0.16513761467889906,-1.0765957446808512,-0.38327091136079899]
[101,2012,290,1215,14.23,-8.93,-0.25190000000000001,3.1E-4,51.012,52.027000000000001,-2.7000000000000001E-3,2.9E-4,-2.9659999999999999E-2,2.9999999999999997E-4,1.34E-3,4.2000000000000002E-4,-1.0290000000000001E-2,2.7E-4,1.7099999999999999E-3,-14.632,-5.6341000000000001,912.56,86.114999999999995,-99999,-99999,0,-0.25868000000000002,1666.2,null,null,null,460.51885292110973,460.06646815284358,2505.4123826323448,-3.3858447488584473,0.1536697247706422,-1.09468085106383,-0.3370786516853933]
[101,2012,290,1216,14.23,-8.93,-0.25226999999999999,5.5000000000000003E-4,51.067,52.085999999999999,-2.1099999999999999E-3,2.7E-4,-2.9409999999999999E-2,3.8999999999999999E-4,1.2600000000000001E-3,4.0000000000000002E-4,-1.051E-2,2.5000000000000001E-4,1.49E-3,-14.645,-5.6391,912.57,86.111000000000004,-99999,-99999,0,-0.32125999999999999,1666.2,null,null,null,460.49408850297806,460.04046894265639,2504.839434946593,-3.3573059360730593,0.14449541284403669,-1.1180851063829789,-0.26342072409488138]
[101,2012,290,1217,14.23,-8.93,-0.25324000000000002,2.9E-4,51.139000000000003,52.037999999999997,-2.8E-3,2.7999999999999998E-4,-2.904E-2,3.6999999999999999E-4,1.4599999999999999E-3,3.6999999999999999E-4,-1.0489999999999999E-2,1.8000000000000001E-4,1.8400000000000001E-3,-14.680999999999999,-5.6532,912.57,86.097999999999999,-99999,-99999,0,-0.28371000000000002,1666.2,null,null,null,460.46171361653256,460.06161840146285,2499.3034707984325,-3.3150684931506849,0.16743119266055043,-1.1159574468085105,-0.3495630461922597]
[101,2012,290,1218,14.23,-8.93,-0.25281999999999999,4.6999999999999999E-4,51.191000000000003,52.155000000000001,-2.5799999999999998E-3,3.4000000000000002E-4,-2.921E-2,3.5E-4,1.41E-3,3.2000000000000003E-4,-1.0370000000000001E-2,3.5E-4,1.66E-3,-14.686,-5.6548999999999996,912.59,86.097999999999999,-99999,-99999,0,-0.30457000000000001,1666.2,null,null,null,460.43836269706088,460.01010385402208,2501.2828043533873,-3.3344748858447488,0.16169724770642199,-1.1031914893617021,-0.32209737827715357]
[101,2012,290,1219,14.23,-8.9499999999999993,-0.25167,4.6000000000000001E-4,51.2,52.237000000000002,-1.8799999999999999E-3,4.8999999999999998E-4,-2.9139999999999999E-2,3.8000000000000002E-4,1.24E-3,3.3E-4,-1.051E-2,3.4000000000000002E-4,1.41E-3,-14.753,-5.6806000000000001,912.57,86.072999999999993,-99999,-99999,8.3400000000000002E-3,-0.28371000000000002,1666.2,null,null,null,460.43432382155038,459.97407479967262,2504.2548893696503,-3.3264840182648405,0.1422018348623853,-1.1180851063829789,-0.23470661672908863]
[101,2012,290,1220,14.23,-8.9600000000000009,-0.25113000000000002,4.2000000000000002E-4,51.292999999999999,52.122999999999998,-1.34E-3,3.2000000000000003E-4,-2.896E-2,3.6000000000000002E-4,1.1900000000000001E-3,4.0000000000000002E-4,-1.042E-2,3.1E-4,1.0399999999999999E-3,-14.670999999999999,-5.6490999999999998,912.58,86.102000000000004,-99999,-99999,4.1700000000000001E-3,-0.3004,1666.2,null,null,null,460.39263411841119,460.02418075581573,2495.7993798567545,-3.3059360730593608,0.13646788990825687,-1.1085106382978722,-0.16729088639201001]
[101,2012,290,1221,14.23,-8.9600000000000009,-0.25008999999999998,3.5E-4,51.271000000000001,52.192999999999998,-4.4999999999999999E-4,3.5E-4,-2.8469999999999999E-2,4.2999999999999999E-4,9.7000000000000005E-4,2.5000000000000001E-4,-1.0789999999999999E-2,2.7E-4,6.7000000000000002E-4,-14.67,-5.6486000000000001,912.57,86.102000000000004,-99999,-99999,4.1700000000000001E-3,-0.27118999999999999,1666.2,null,null,null,460.40248874038764,459.9933997779732,2499.7714912206466,-3.25,0.11123853211009174,-1.1478723404255318,-5.6179775280898882E-2]
[101,2012,290,1222,14.23,-8.9700000000000006,-0.24942,4.6999999999999999E-4,51.363,52.243000000000002,-2.0000000000000002E-5,2.9E-4,-2.7619999999999999E-2,4.6999999999999999E-4,8.7000000000000001E-4,3.1E-4,-1.091E-2,3.1E-4,2.9999999999999997E-4,-14.654999999999999,-5.6432000000000002,912.56,86.106999999999999,-99999,-99999,4.1700000000000001E-3,-0.28371000000000002,1666.2,null,null,null,460.36130918492029,459.97144095262462,2497.4594808394982,-3.1529680365296802,9.9770642201834861E-2,-1.1606382978723404,-2.4968789013732839E-3]
[101,2012,290,1223,14.23,-8.98,-0.24918999999999999,3.3E-4,51.378,52.191000000000003,3.2000000000000003E-4,3.2000000000000003E-4,-2.7E-2,3.6999999999999999E-4,1.07E-3,2.7999999999999998E-4,-1.1259999999999999E-2,3.5E-4,6.4000000000000005E-4,-14.632,-5.6341000000000001,912.56,86.114999999999995,-99999,-99999,8.3400000000000002E-3,-0.30457000000000001,1666.2,null,null,null,460.3546027647709,459.99427860873323,2494.9071734129334,-3.0821917808219177,0.12270642201834861,-1.1978723404255318,3.9950062421972542E-2]
[101,2012,290,1224,14.23,-8.98,-0.24895,3.3E-4,51.424999999999997,52.222000000000001,-2.0000000000000002E-5,3.3E-4,-2.656E-2,2.9E-4,1.2899999999999999E-3,2.4000000000000001E-4,-1.141E-2,2.7E-4,9.2000000000000003E-4,-14.628,-5.6327999999999996,912.55,86.114999999999995,-99999,-99999,4.1700000000000001E-3,-0.27537,1666.2,null,null,null,460.33360315296011,459.98066086286047,2493.8982353625261,-3.0319634703196345,0.14793577981651373,-1.2138297872340424,-2.4968789013732839E-3]
[101,2012,290,1225,14.23,-8.99,-0.24915000000000001,2.7999999999999998E-4,51.478000000000002,52.356999999999999,2.7E-4,4.6000000000000001E-4,-2.6259999999999999E-2,4.0000000000000002E-4,1.2199999999999999E-3,2.9E-4,-1.1610000000000001E-2,2.9E-4,7.9000000000000001E-4,-14.628,-5.6327999999999996,912.55,86.114999999999995,-99999,-99999,0,-0.28371000000000002,1666.2,null,null,null,460.30994786894991,459.9214605244797,2496.2852698010997,-2.9977168949771689,0.13990825688073391,-1.2351063829787232,3.3707865168539332E-2]
[101,2012,290,1226,14.23,-9,-0.24834999999999999,2.7E-4,51.47,52.225000000000001,4.4999999999999999E-4,3.5E-4,-2.596E-2,3.6000000000000002E-4,1.4400000000000001E-3,2.7E-4,-1.1780000000000001E-2,4.0999999999999999E-4,7.9000000000000001E-4,-14.628,-5.6327999999999996,912.55,86.114999999999995,-99999,-99999,8.3400000000000002E-3,-0.28371000000000002,1666.2,null,null,null,460.31351677309328,459.97934348497535,2492.0733236232782,-2.9634703196347036,0.16513761467889906,-1.253191489361702,5.6179775280898882E-2]
[101,2012,290,1227,14.23,-9,-0.24807999999999999,3.6999999999999999E-4,51.46,52.179000000000002,6.8999999999999997E-4,2.4000000000000001E-4,-2.562E-2,3.2000000000000003E-4,1.41E-3,2.4000000000000001E-4,-1.1979999999999999E-2,2.4000000000000001E-4,5.6999999999999998E-4,-14.628,-5.6327999999999996,912.55,86.114999999999995,-99999,-99999,4.1700000000000001E-3,-0.26284999999999997,1666.2,null,null,null,460.31797875524916,459.99955236569912,2490.9407996119817,-2.9246575342465757,0.16169724770642199,-1.2744680851063828,8.6142322097378266E-2]
[101,2012,290,1228,14.23,-9.02,-0.24781,2.4000000000000001E-4,51.502000000000002,52.31,6.2E-4,3.1E-4,-2.5420000000000002E-2,3.1E-4,1.41E-3,2.7999999999999998E-4,-1.2E-2,2.9999999999999997E-4,1.0200000000000001E-3,-14.628,-5.6327999999999996,912.55,86.114999999999995,-99999,-99999,4.1700000000000001E-3,-0.28788000000000002,1666.2,null,null,null,460.29924478954894,459.94205207950205,2493.863493048505,-2.9018264840182653,0.16169724770642199,-1.2765957446808509,7.740324594257178E-2]
[101,2012,290,1229,14.23,-9.02,-0.24829999999999999,4.2000000000000002E-4,51.439,52.281999999999996,7.9000000000000001E-4,3.3E-4,-2.5219999999999999E-2,3.2000000000000003E-4,1.4599999999999999E-3,3.3E-4,-1.1780000000000001E-2,3.1E-4,9.3999999999999997E-4,-14.628,-5.6327999999999996,912.55,86.114999999999995,-99999,-99999,4.1700000000000001E-3,-0.29622999999999999,1666.2,null,null,null,460.32735200072506,459.9543289942302,2495.6571100054057,-2.8789954337899539,0.16743119266055043,-1.253191489361702,9.8626716604244699E-2]
[101,2012,290,1230,14.23,-9.0299999999999994,-0.249,3.3E-4,51.512,52.338000000000001,1.4999999999999999E-4,3.8999999999999999E-4,-2.5340000000000001E-2,4.4000000000000002E-4,1.49E-3,2.7E-4,-1.18E-2,3.6999999999999999E-4,1.41E-3,-14.628,-5.6327999999999996,912.55,86.114999999999995,-99999,-99999,0,-0.27954000000000001,1666.2,null,null,null,460.29478678058763,459.92978233859048,2494.0270616855232,-2.8926940639269407,0.17087155963302753,-1.2553191489361701,1.8726591760299623E-2]
[101,2012,290,1231,14.23,-9.0399999999999991,-0.24939,3.6000000000000002E-4,51.536000000000001,52.3,-1.7000000000000001E-4,3.6000000000000002E-4,-2.5569999999999999E-2,2.9E-4,1.34E-3,2.7999999999999998E-4,-1.153E-2,3.1E-4,1.2899999999999999E-3,-14.641,-5.6378000000000004,912.55,86.111000000000004,-99999,-99999,0,-0.28788000000000002,1666.2,null,null,null,460.28409141393922,459.94643586796178,2491.3664739158216,-2.9189497716894977,0.1536697247706422,-1.2265957446808511,-2.1223470661672912E-2]
[101,2012,290,1232,14.23,-9.0399999999999991,-0.25083,1E-3,51.518999999999998,52.357999999999997,-2.5000000000000001E-4,4.2999999999999999E-4,-2.5669999999999998E-2,4.4000000000000002E-4,1.41E-3,3.2000000000000003E-4,-1.1259999999999999E-2,4.2000000000000002E-4,1.66E-3,-14.631,-5.6336000000000004,912.56,86.114999999999995,-99999,-99999,4.1700000000000001E-3,-0.29622999999999999,1666.2,null,null,null,460.29166673661121,459.92102262561605,2493.8274665401827,-2.9303652968036529,0.16169724770642199,-1.1978723404255318,-3.1210986267166042E-2]
[101,2012,290,1233,14.23,-9.06,-0.25174999999999997,5.1000000000000004E-4,51.564999999999998,52.384,-1.14E-3,4.6999999999999999E-4,-2.581E-2,2.9E-4,1.6900000000000001E-3,3.3E-4,-1.1129999999999999E-2,3.6999999999999999E-4,1.74E-3,-14.702999999999999,-5.6615000000000002,912.56,86.09,-99999,-99999,0,-0.27118999999999999,1666.2,null,null,null,460.27117510063408,459.9096404596657,2492.303244868177,-2.9463470319634704,0.19380733944954129,-1.1840425531914893,-0.14232209737827717]
[101,2012,290,1234,14.23,-9.07,-0.25137999999999999,6.3000000000000003E-4,51.540999999999997,52.508000000000003,-1.9300000000000001E-3,3.8000000000000002E-4,-2.6009999999999998E-2,2.9E-4,1.7099999999999999E-3,2.9E-4,-1.091E-2,3.1E-4,1.8799999999999999E-3,-14.789,-5.6947999999999999,912.57,86.061000000000007,-99999,-99999,0,-0.26284999999999997,1666.2,null,null,null,460.28186389718519,459.85544101862473,2498.1034083247232,-2.9691780821917804,0.19610091743119265,-1.1606382978723404,-0.24094881398252188]
[101,2012,290,1235,14.23,-9.07,-0.25065999999999999,2.9E-4,51.677,52.488999999999997,-7.6999999999999996E-4,6.6E-4,-2.6259999999999999E-2,2.9E-4,1.5399999999999999E-3,2.7E-4,-1.0489999999999999E-2,3.6000000000000002E-4,1.56E-3,-14.696,-5.6585999999999999,912.58,86.093999999999994,-99999,-99999,4.1700000000000001E-3,-0.29205999999999999,1666.2,null,null,null,460.22136578059616,459.86373669902792,2491.2236849051706,-2.9977168949771689,0.17660550458715596,-1.1159574468085105,-9.612983770287141E-2]
[101,2012,290,1236,14.23,-9.09,-0.25108000000000003,2.7E-4,51.680999999999997,52.530999999999999,-3.5E-4,3.5E-4,-2.589E-2,2.9999999999999997E-4,1.49E-3,2.2000000000000001E-4,-1.069E-2,3.6999999999999999E-4,1.6100000000000001E-3,-14.733000000000001,-5.6731999999999996,912.59,86.081000000000003,-99999,-99999,0,-0.3004,1666.2,null,null,null,460.21958905723983,459.84540326367329,2492.4333781582145,-2.9554794520547945,0.17087155963302753,-1.1372340425531915,-4.3695380774032462E-2]
[101,2012,290,1237,14.23,-9.09,-0.25155,4.2999999999999999E-4,51.697000000000003,52.49,-7.2000000000000005E-4,2.9E-4,-2.6040000000000001E-2,3.6999999999999999E-4,1.7899999999999999E-3,2.9E-4,-1.0840000000000001E-2,2.4000000000000001E-4,1.66E-3,-14.778,-5.6901999999999999,912.58,86.064999999999998,-99999,-99999,0,-0.27954000000000001,1666.2,null,null,null,460.21248366521996,459.86330000252678,2490.0245139173799,-2.9726027397260273,0.20527522935779816,-1.1531914893617021,-8.9887640449438214E-2]
[101,2012,290,1238,14.23,-9.11,-0.25203999999999999,3.4000000000000002E-4,51.771000000000001,52.654000000000003,-6.7000000000000002E-4,3.8999999999999999E-4,-2.6089999999999999E-2,3.3E-4,1.74E-3,2.5000000000000001E-4,-1.1039999999999999E-2,3.8000000000000002E-4,1.6900000000000001E-3,-14.789,-5.6947999999999999,912.57,86.061000000000007,-99999,-99999,0,-0.30457000000000001,1666.2,null,null,null,460.17965243546956,459.79180442512302,2492.3707782038664,-2.9783105022831049,0.19954128440366972,-1.1744680851063829,-8.3645443196005004E-2]
[101,2012,290,1239,14.24,-9.11,-0.25236999999999998,4.4999999999999999E-4,51.677,52.685000000000002,-6.2E-4,2.7E-4,-2.6259999999999999E-2,2.9E-4,1.49E-3,3.1E-4,-1.1209999999999999E-2,2.9E-4,1.49E-3,-14.782999999999999,-5.6924000000000001,912.6,86.064999999999998,-99999,-99999,0,-0.29205999999999999,1666.2,null,null,null,460.22136578059616,459.77831734474029,2497.8181677415637,-2.9977168949771689,0.17087155963302753,-1.1925531914893615,-7.740324594257178E-2]
[101,2012,290,1240,14.24,-9.1199999999999992,-0.25172,4.2999999999999999E-4,51.826999999999998,52.750999999999998,-1.4999999999999999E-4,2.7999999999999998E-4,-2.6089999999999999E-2,2.9E-4,1.39E-3,2.9999999999999997E-4,-1.1429999999999999E-2,3.3E-4,1.0399999999999999E-3,-14.78,-5.6910999999999996,912.58,86.064999999999998,-99999,-99999,0,-0.27537,1666.2,null,null,null,460.15484122695563,459.74963175683894,2493.3767949226399,-2.9783105022831049,0.1594036697247706,-1.2159574468085106,-1.8726591760299623E-2]
[101,2012,290,1241,14.24,-9.1300000000000008,-0.25169999999999998,2.9E-4,51.826999999999998,52.65,-5.6999999999999998E-4,2.7999999999999998E-4,-2.5940000000000001E-2,3.5E-4,1.5900000000000001E-3,2.9999999999999997E-4,-1.1650000000000001E-2,2.5000000000000001E-4,1.41E-3,-14.772,-5.6882000000000001,912.6,86.069000000000003,-99999,-99999,8.3400000000000002E-3,-0.28371000000000002,1666.2,null,null,null,460.15484122695563,459.79354532511121,2489.704784893649,-2.9611872146118721,0.18233944954128442,-1.2393617021276597,-7.1161048689138584E-2]
[101,2012,290,1242,14.24,-9.14,-0.25152000000000002,4.2000000000000002E-4,51.856999999999999,52.673999999999999,-7.6999999999999996E-4,3.6999999999999999E-4,-2.5760000000000002E-2,4.0000000000000002E-4,1.5900000000000001E-3,2.5000000000000001E-4,-1.175E-2,3.5E-4,1.2899999999999999E-3,-14.733000000000001,-5.6731999999999996,912.59,86.081000000000003,-99999,-99999,4.1700000000000001E-3,-0.27537,1666.2,null,null,null,460.14156154798854,459.78310209081837,2489.2303718544049,-2.9406392694063932,0.18233944954128442,-1.25,-9.612983770287141E-2]
[101,2012,290,1243,14.24,-9.15,-0.25123000000000001,5.8E-4,51.863999999999997,52.720999999999997,1.4999999999999999E-4,4.2000000000000002E-4,-2.5940000000000001E-2,3.2000000000000003E-4,1.3600000000000001E-3,3.5E-4,-1.158E-2,3.6000000000000002E-4,6.2E-4,-14.717000000000001,-5.6669,912.57,86.085999999999999,-99999,-99999,8.3400000000000002E-3,-0.27954000000000001,1666.2,null,null,null,460.13846416336918,459.76266579930268,2490.7093162837591,-2.9611872146118721,0.15596330275229356,-1.2319148936170212,1.8726591760299623E-2]
[101,2012,290,1244,14.24,-9.16,-0.25244,3.8000000000000002E-4,51.877000000000002,52.792999999999999,-2.0000000000000001E-4,5.1000000000000004E-4,-2.5940000000000001E-2,2.7999999999999998E-4,1.24E-3,2.9E-4,-1.153E-2,3.8000000000000002E-4,1.0399999999999999E-3,-14.75,-5.6798000000000002,912.56,86.072999999999993,-99999,-99999,0,-0.29622999999999999,1666.2,null,null,null,460.13271308863176,459.73139768908345,2492.3195985499542,-2.9611872146118721,0.1422018348623853,-1.2265957446808511,-2.4968789013732836E-2]
[101,2012,290,1245,14.24,-9.18,-0.25207000000000002,3.8000000000000002E-4,51.850999999999999,52.808999999999997,-5.6999999999999998E-4,2.7999999999999998E-4,-2.6159999999999999E-2,2.7E-4,1.17E-3,2.7999999999999998E-4,-1.1209999999999999E-2,3.3E-4,1.2199999999999999E-3,-14.743,-5.6768999999999998,912.58,86.076999999999998,-99999,-99999,4.1700000000000001E-3,-0.27954000000000001,1666.2,null,null,null,460.14421681251326,459.72445554369546,2494.2430252319091,-2.9863013698630136,0.13417431192660551,-1.1925531914893615,-7.1161048689138584E-2]
[101,2012,290,1246,14.24,-9.18,-0.25263999999999998,4.2999999999999999E-4,51.936999999999998,52.756,-3.6999999999999999E-4,3.1E-4,-2.6360000000000001E-2,3.6000000000000002E-4,1.2899999999999999E-3,2.9E-4,-1.106E-2,4.4999999999999999E-4,8.7000000000000001E-4,-14.779,-5.6906999999999996,912.58,86.064999999999998,-99999,-99999,0,-0.29205999999999999,1666.2,null,null,null,460.10619004522675,459.74746020337011,2488.0955804602081,-3.0091324200913245,0.14793577981651373,-1.176595744680851,-4.6192259675405745E-2]
[101,2012,290,1247,14.24,-9.1999999999999993,-0.25248999999999999,2.7E-4,52,52.847999999999999,-5.5000000000000003E-4,3.1E-4,-2.6679999999999999E-2,2.9999999999999997E-4,1.31E-3,2.7999999999999998E-4,-1.074E-2,3.6000000000000002E-4,1.34E-3,-14.753,-5.6806000000000001,912.57,86.072999999999993,-99999,-99999,0,-0.28788000000000002,1666.2,null,null,null,460.07837683685136,459.70754368166257,2488.5386257705659,-3.0456621004566209,0.15022935779816513,-1.1425531914893616,-6.8664169787765295E-2]
[101,2012,290,1248,14.24,-9.1999999999999993,-0.25224000000000002,5.1000000000000004E-4,51.984999999999999,52.877000000000002,-1.7000000000000001E-4,3.2000000000000003E-4,-2.6460000000000001E-2,2.7999999999999998E-4,1.2899999999999999E-3,2.4000000000000001E-4,-1.081E-2,4.6000000000000001E-4,6.4000000000000005E-4,-14.742000000000001,-5.6764999999999999,912.57,86.076999999999998,-99999,-99999,4.1700000000000001E-3,-0.30457000000000001,1666.2,null,null,null,460.08499569041879,459.69497702637744,2490.374979758737,-3.0205479452054798,0.14793577981651373,-1.1499999999999999,-2.1223470661672912E-2]
[101,2012,290,1249,14.24,-9.2200000000000006,-0.25347999999999998,5.5999999999999995E-4,52.018000000000001,52.97,-2.9999999999999997E-4,4.4999999999999999E-4,-2.6210000000000001E-2,3.6000000000000002E-4,1.1199999999999999E-3,3.1E-4,-1.0659999999999999E-2,3.6999999999999999E-4,1.4400000000000001E-3,-14.653,-5.6422999999999996,912.55,86.105999999999995,-99999,-99999,4.1700000000000001E-3,-0.32543,1666.2,null,null,null,460.07043696416736,459.65472776948053,2491.792411700259,-2.9920091324200913,0.12844036697247704,-1.1340425531914893,-3.7453183520599245E-2]
[101,2012,290,1250,14.24,-9.23,-0.25435000000000002,3.2000000000000003E-4,52.106000000000002,52.828000000000003,-1.0200000000000001E-3,3.3E-4,-2.6110000000000001E-2,3.8999999999999999E-4,1.14E-3,3.2000000000000003E-4,-1.0460000000000001E-2,2.7E-4,1.5900000000000001E-3,-14.706,-5.6627999999999998,912.57,86.09,-99999,-99999,0,-0.27537,1666.2,null,null,null,460.03166294893225,459.7162147284389,2482.2476936761154,-2.980593607305936,0.13073394495412843,-1.1127659574468087,-0.12734082397003749]
[101,2012,290,1251,14.24,-9.24,-0.25502000000000002,3.4000000000000002E-4,52.023000000000003,52.996000000000002,-1.24E-3,2.9E-4,-2.606E-2,2.5000000000000001E-4,1.24E-3,2.5000000000000001E-4,-1.0070000000000001E-2,3.2000000000000003E-4,1.49E-3,-14.704000000000001,-5.6619000000000002,912.57,86.09,-99999,-99999,0,-0.25868000000000002,1666.2,null,null,null,460.06823197642206,459.64348908951104,2491.9920198616123,-2.9748858447488584,0.1422018348623853,-1.071276595744681,-0.15480649188514356]
[101,2012,290,1252,14.24,-9.25,-0.25485000000000002,3.6000000000000002E-4,52.078000000000003,52.98,-8.1999999999999998E-4,5.2999999999999998E-4,-2.6110000000000001E-2,2.4000000000000001E-4,1.17E-3,4.2000000000000002E-4,-9.92E-3,2.7E-4,1.2899999999999999E-3,-14.79,-5.6951999999999998,912.58,86.061000000000007,-99999,-99999,0,-0.27537,1666.2,null,null,null,460.04399237407188,459.65040448756832,2488.8995542920538,-2.980593607305936,0.13417431192660551,-1.0553191489361702,-0.10237203495630462]
[101,2012,290,1253,14.24,-9.26,-0.25436999999999999,3.8000000000000002E-4,52.143999999999998,53.043999999999997,2.2000000000000001E-4,4.0000000000000002E-4,-2.5909999999999999E-2,3.8000000000000002E-4,7.6999999999999996E-4,2.5000000000000001E-4,-1.009E-2,2.7999999999999998E-4,5.0000000000000001E-4,-14.744,-5.6773999999999996,912.58,86.076999999999998,-99999,-99999,8.3400000000000002E-3,-0.29205999999999999,1666.2,null,null,null,460.01494172494847,459.62275656570341,2488.2925538081845,-2.9577625570776256,8.830275229357798E-2,-1.073404255319149,2.7465667915106119E-2]
[101,2012,290,1254,14.24,-9.27,-0.25316,5.2999999999999998E-4,52.146000000000001,52.959000000000003,1.39E-3,4.2999999999999999E-4,-2.554E-2,3.6999999999999999E-4,8.7000000000000001E-4,2.7E-4,-1.042E-2,3.5E-4,6.9999999999999994E-5,-14.705,-5.6623999999999999,912.57,86.09,-99999,-99999,4.1700000000000001E-3,-0.3004,1666.2,null,null,null,460.01406202916422,459.65948440903668,2485.5238940153272,-2.9155251141552512,9.9770642201834861E-2,-1.1085106382978722,0.17353308364544318]
[101,2012,290,1255,14.24,-9.2799999999999994,-0.25226999999999999,5.5000000000000003E-4,52.045000000000002,52.973999999999997,1.64E-3,3.2000000000000003E-4,-2.5020000000000001E-2,4.8000000000000001E-4,8.8999999999999995E-4,3.4000000000000002E-4,-1.081E-2,4.2999999999999999E-4,5.0000000000000002E-5,-14.664999999999999,-5.6468999999999996,912.55,86.102000000000004,-99999,-99999,0,-0.30874000000000001,1666.2,null,null,null,460.05853277887235,459.6529983497806,2491.0737495656781,-2.8561643835616439,0.10206422018348622,-1.1499999999999999,0.20474406991260924]
[101,2012,290,1256,14.24,-9.2799999999999994,-0.25157000000000002,3.8000000000000002E-4,52.118000000000002,52.948999999999998,2.63E-3,3.8999999999999999E-4,-2.4279999999999999E-2,4.2999999999999999E-4,1.0200000000000001E-3,2.9E-4,-1.1129999999999999E-2,4.6000000000000001E-4,-2.0000000000000002E-5,-14.64,-5.6372999999999998,912.55,86.111000000000004,-99999,-99999,0,-0.3004,1666.2,null,null,null,460.02638112419135,459.66380956306421,2486.9912766113689,-2.7716894977168951,0.11697247706422018,-1.1840425531914893,0.32833957553058674]
[101,2012,290,1257,14.24,-9.3000000000000007,-0.25198999999999999,3.1E-4,52.13,52.930999999999997,2.7499999999999998E-3,5.9999999999999995E-4,-2.3560000000000001E-2,4.0000000000000002E-4,1.0399999999999999E-3,2.7E-4,-1.158E-2,3.2000000000000003E-4,0,-14.628,-5.6327999999999996,912.55,86.114999999999995,-99999,-99999,8.3400000000000002E-3,-0.28788000000000002,1666.2,null,null,null,460.02110062728707,459.67159708846845,2485.6413364051627,-2.6894977168949774,0.11926605504587154,-1.2319148936170212,0.34332084893882647]
[101,2012,290,1258,14.24,-9.31,-0.25208999999999998,3.8999999999999999E-4,52.167000000000002,52.872,2.0799999999999998E-3,4.6000000000000001E-4,-2.3040000000000001E-2,2.9E-4,1.0399999999999999E-3,3.1E-4,-1.158E-2,3.2000000000000003E-4,4.0000000000000002E-4,-14.628,-5.6327999999999996,912.55,86.114999999999995,-99999,-99999,0,-0.29205999999999999,1666.2,null,null,null,460.004827447249,459.69714315409317,2481.7450044795901,-2.6301369863013697,0.11926605504587154,-1.2319148936170212,0.25967540574282144]
[101,2012,290,1259,14.24,-9.32,-0.25269000000000003,6.2E-4,52.142000000000003,52.816000000000003,9.8999999999999999E-4,2.7E-4,-2.2839999999999999E-2,3.3E-4,1.2199999999999999E-3,3.3E-4,-1.1429999999999999E-2,3.3E-4,9.7000000000000005E-4,-14.628,-5.6327999999999996,912.55,86.114999999999995,-99999,-99999,4.1700000000000001E-3,-0.30457000000000001,1666.2,null,null,null,460.01582145757857,459.72141907725552,2480.6797301406395,-2.6073059360730593,0.13990825688073391,-1.2159574468085106,0.12359550561797752]
[null,null,null,null,null,null,null,null,null,null,null,null,null,null,null,null,null,null,null,null,null,null,null,null,null,null,null,null,null,null,null,{"$f":"1/((0.0010295+0.0002391*LOG(I62*1000)+0.0000001568*LOG(I62*1000)^3))","v":{"$error":"#NUM!"}},{"$f":"1/((0.0010295+0.0002391*LOG(J62*1000)+0.0000001568*LOG(J62*1000)^3))","v":{"$error":"#NUM!"}},{"$f":"($AE$5*G62)+$AE$6*((1*(AF62^4))+($AE$9*((AF62^4)-(AG62^4))))","v":{"$error":"#NUM!"}},{"$f":"1000*(M62/$AE$10)","v":0},{"$f":"1000*(O62/$AE$11)","v":0},{"$f":"1000*(Q62/$AE$12)","v":0},{"$f":"1000*(K62/$AE$14)","v":0}]
[null,null,null,null,null,null,null,null,null,null,null,null,null,null,null,null,null,null,null,null,null,null,null,null,null,null,null,null,null,null,null,{"$error":"#NUM!"},{"$error":"#NUM!"},{"$error":"#NUM!"},0,0,0,0]
[null,null,null,null,null,null,null,null,null,null,null,null,null,null,null,null,null,null,null,null,null,null,null,null,null,null,null,null,null,null,null,{"$error":"#NUM!"},{"$error":"#NUM!"},{"$error":"#NUM!"},0,0,0,0]
[null,null,null,null,null,null,null,null,null,null,null,null,null,null,null,null,null,null,null,null,null,null,null,null,null,null,null,null,null,null,null,{"$error":"#NUM!"},{"$error":"#NUM!"},{"$error":"#NUM!"},0,0,0,0]
[null,null,null,null,null,null,null,null,null,null,null,null,null,null,null,null,null,null,null,null,null,null,null,null,null,null,null,null,null,null,null,{"$error":"#NUM!"},{"$error":"#NUM!"},{"$error":"#NUM!"},0,0,0,0]
[null,null,null,null,null,null,null,null,null,null,null,null,null,null,null,null,null,null,null,null,null,null,null,null,null,null,null,null,null,null,null,{"$error":"#NUM!"},{"$error":"#NUM!"},{"$error":"#NUM!"},0,0,0,0]
[null,null,null,null,null,null,null,null,null,null,null,null,null,null,null,null,null,null,null,null,null,null,null,null,null,null,null,null,null,null,null,{"$error":"#NUM!"},{"$error":"#NUM!"},{"$error":"#NUM!"},0,0,0,0]
[null,null,null,null,null,null,null,null,null,null,null,null,null,null,null,null,null,null,null,null,null,null,null,null,null,null,null,null,null,null,null,{"$error":"#NUM!"},{"$error":"#NUM!"},{"$error":"#NUM!"},0,0,0,0]
[null,null,null,null,null,null,null,null,null,null,null,null,null,null,null,null,null,null,null,null,null,null,null,null,null,null,null,null,null,null,null,{"$error":"#NUM!"},{"$error":"#NUM!"},{"$error":"#NUM!"},0,0,0,0]
[null,null,null,null,null,null,null,null,null,null,null,null,null,null,null,null,null,null,null,null,null,null,null,null,null,null,null,null,null,null,null,{"$error":"#NUM!"},{"$error":"#NUM!"},{"$error":"#NUM!"},0,0,0,0]
[null,null,null,null,null,null,null,null,null,null,null,null,null,null,null,null,null,null,null,null,null,null,null,null,null,null,null,null,null,null,null,{"$error":"#NUM!"},{"$error":"#NUM!"},{"$error":"#NUM!"},0,0,0,0]
[null,null,null,null,null,null,null,null,null,null,null,null,null,null,null,null,null,null,null,null,null,null,null,null,null,null,null,null,null,null,null,{"$error":"#NUM!"},{"$error":"#NUM!"},{"$error":"#NUM!"},0,0,0,0]
[null,null,null,null,null,null,null,null,null,null,null,null,null,null,null,null,null,null,null,null,null,null,null,null,null,null,null,null,null,null,null,{"$error":"#NUM!"},{"$error":"#NUM!"},{"$error":"#NUM!"},0,0,0,0]
[null,null,null,null,null,null,null,null,null,null,null,null,null,null,null,null,null,null,null,null,null,null,null,null,null,null,null,null,null,null,null,{"$error":"#NUM!"},{"$error":"#NUM!"},{"$error":"#NUM!"},0,0,0,0]
[null,null,null,null,null,null,null,null,null,null,null,null,null,null,null,null,null,null,null,null,null,null,null,null,null,null,null,null,null,null,null,{"$error":"#NUM!"},{"$error":"#NUM!"},{"$error":"#NUM!"},0,0,0,0]
[null,null,null,null,null,null,null,null,null,null,null,null,null,null,null,null,null,null,null,null,null,null,null,null,null,null,null,null,null,null,null,{"$error":"#NUM!"},{"$error":"#NUM!"},{"$error":"#NUM!"},0,0,0,0]
[null,null,null,null,null,null,null,null,null,null,null,null,null,null,null,null,null,null,null,null,null,null,null,null,null,null,null,null,null,null,null,{"$error":"#NUM!"},{"$error":"#NUM!"},{"$error":"#NUM!"},0,0,0,0]
[null,null,null,null,null,null,null,null,null,null,null,null,null,null,null,null,null,null,null,null,null,null,null,null,null,null,null,null,null,null,null,{"$error":"#NUM!"},{"$error":"#NUM!"},{"$error":"#NUM!"},0,0,0,0]
[null,null,null,null,null,null,null,null,null,null,null,null,null,null,null,null,null,null,null,null,null,null,null,null,null,null,null,null,null,null,null,{"$error":"#NUM!"},{"$error":"#NUM!"},{"$error":"#NUM!"},0,0,0,0]
[null,null,null,null,null,null,null,null,null,null,null,null,null,null,null,null,null,null,null,null,null,null,null,null,null,null,null,null,null,null,null,{"$error":"#NUM!"},{"$error":"#NUM!"},{"$error":"#NUM!"},0,0,0,0]
[null,null,null,null,null,null,null,null,null,null,null,null,null,null,null,null,null,null,null,null,null,null,null,null,null,null,null,null,null,null,null,{"$error":"#NUM!"},{"$error":"#NUM!"},{"$error":"#NUM!"},0,0,0,0]
[null,null,null,null,null,null,null,null,null,null,null,null,null,null,null,null,null,null,null,null,null,null,null,null,null,null,null,null,null,null,null,{"$error":"#NUM!"},{"$error":"#NUM!"},{"$error":"#NUM!"},0,0,0,0]
[null,null,null,null,null,null,null,null,null,null,null,null,null,null,null,null,null,null,null,null,null,null,null,null,null,null,null,null,null,null,null,{"$error":"#NUM!"},{"$error":"#NUM!"},{"$error":"#NUM!"},0,0,0,0]
[null,null,null,null,null,null,null,null,null,null,null,null,null,null,null,null,null,null,null,null,null,null,null,null,null,null,null,null,null,null,null,{"$error":"#NUM!"},{"$error":"#NUM!"},{"$error":"#NUM!"},0,0,0,0]
[null,null,null,null,null,null,null,null,null,null,null,null,null,null,null,null,null,null,null,null,null,null,null,null,null,null,null,null,null,null,null,{"$error":"#NUM!"},{"$error":"#NUM!"},{"$error":"#NUM!"},0,0,0,0]
[null,null,null,null,null,null,null,null,null,null,null,null,null,null,null,null,null,null,null,null,null,null,null,null,null,null,null,null,null,null,null,{"$error":"#NUM!"},{"$error":"#NUM!"},{"$error":"#NUM!"},0,0,0,0]
[null,null,null,null,null,null,null,null,null,null,null,null,null,null,null,null,null,null,null,null,null,null,null,null,null,null,null,null,null,null,null,{"$error":"#NUM!"},{"$error":"#NUM!"},{"$error":"#NUM!"},0,0,0,0]
[null,null,null,null,null,null,null,null,null,null,null,null,null,null,null,null,null,null,null,null,null,null,null,null,null,null,null,null,null,null,null,{"$error":"#NUM!"},{"$error":"#NUM!"},{"$error":"#NUM!"},0,0,0,0]
[null,null,null,null,null,null,null,null,null,null,null,null,null,null,null,null,null,null,null,null,null,null,null,null,null,null,null,null,null,null,null,{"$error":"#NUM!"},{"$error":"#NUM!"},{"$error":"#NUM!"},0,0,0,0]
[null,null,null,null,null,null,null,null,null,null,null,null,null,null,null,null,null,null,null,null,null,null,null,null,null,null,null,null,null,null,null,{"$error":"#NUM!"},{"$error":"#NUM!"},{"$error":"#NUM!"},0,0,0,0]
[null,null,null,null,null,null,null,null,null,null,null,null,null,null,null,null,null,null,null,null,null,null,null,null,null,null,null,null,null,null,null,{"$error":"#NUM!"},{"$error":"#NUM!"},{"$error":"#NUM!"},0,0,0,0]
[null,null,null,null,null,null,null,null,null,null,null,null,null,null,null,null,null,null,null,null,null,null,null,null,null,null,null,null,null,null,null,{"$error":"#NUM!"},{"$error":"#NUM!"},{"$error":"#NUM!"},0,0,0,0]
[null,null,null,null,null,null,null,null,null,null,null,null,null,null,null,null,null,null,null,null,null,null,null,null,null,null,null,null,null,null,null,{"$error":"#NUM!"},{"$error":"#NUM!"},{"$error":"#NUM!"},0,0,0,0]
[null,null,null,null,null,null,null,null,null,null,null,null,null,null,null,null,null,null,null,null,null,null,null,null,null,null,null,null,null,null,null,{"$error":"#NUM!"},{"$error":"#NUM!"},{"$error":"#NUM!"},0,0,0,0]
[null,null,null,null,null,null,null,null,null,null,null,null,null,null,null,null,null,null,null,null,null,null,null,null,null,null,null,null,null,null,null,{"$error":"#NUM!"},{"$error":"#NUM!"},{"$error":"#NUM!"},0,0,0,0]
[null,null,null,null,null,null,null,null,null,null,null,null,null,null,null,null,null,null,null,null,null,null,null,null,null,null,null,null,null,null,null,{"$error":"#NUM!"},{"$error":"#NUM!"},{"$error":"#NUM!"},0,0,0,0]
[null,null,null,null,null,null,null,null,null,null,null,null,null,null,null,null,null,null,null,null,null,null,null,null,null,null,null,null,null,null,null,{"$error":"#NUM!"},{"$error":"#NUM!"},{"$error":"#NUM!"},0,0,0,0]
[null,null,null,null,null,null,null,null,null,null,null,null,null,null,null,null,null,null,null,null,null,null,null,null,null,null,null,null,null,null,null,{"$error":"#NUM!"},{"$error":"#NUM!"},{"$error":"#NUM!"},0,0,0,0]
[null,null,null,null,null,null,null,null,null,null,null,null,null,null,null,null,null,null,null,null,null,null,null,null,null,null,null,null,null,null,null,{"$error":"#NUM!"},{"$error":"#NUM!"},{"$error":"#NUM!"},0,0,0,0]
[null,null,null,null,null,null,null,null,null,null,null,null,null,null,null,null,null,null,null,null,null,null,null,null,null,null,null,null,null,null,null,{"$error":"#NUM!"},{"$error":"#NUM!"},{"$error":"#NUM!"},0,0,0,0]
[null,null,null,null,null,null,null,null,null,null,null,null,null,null,null,null,null,null,null,null,null,null,null,null,null,null,null,null,null,null,null,{"$error":"#NUM!"},{"$error":"#NUM!"},{"$error":"#NUM!"},0,0,0,0]
[null,null,null,null,null,null,null,null,null,null,null,null,null,null,null,null,null,null,null,null,null,null,null,null,null,null,null,null,null,null,null,{"$error":"#NUM!"},{"$error":"#NUM!"},{"$error":"#NUM!"},0,0,0,0]
[null,null,null,null,null,null,null,null,null,null,null,null,null,null,null,null,null,null,null,null,null,null,null,null,null,null,null,null,null,null,null,{"$error":"#NUM!"},{"$error":"#NUM!"},{"$error":"#NUM!"},0,0,0,0]
[null,null,null,null,null,null,null,null,null,null,null,null,null,null,null,null,null,null,null,null,null,null,null,null,null,null,null,null,null,null,null,{"$error":"#NUM!"},{"$error":"#NUM!"},{"$error":"#NUM!"},0,0,0,0]
[null,null,null,null,null,null,null,null,null,null,null,null,null,null,null,null,null,null,null,null,null,null,null,null,null,null,null,null,null,null,null,{"$error":"#NUM!"},{"$error":"#NUM!"},{"$error":"#NUM!"},0,0,0,0]
[null,null,null,null,null,null,null,null,null,null,null,null,null,null,null,null,null,null,null,null,null,null,null,null,null,null,null,null,null,null,null,{"$error":"#NUM!"},{"$error":"#NUM!"},{"$error":"#NUM!"},0,0,0,0]
[null,null,null,null,null,null,null,null,null,null,null,null,null,null,null,null,null,null,null,null,null,null,null,null,null,null,null,null,null,null,null,{"$error":"#NUM!"},{"$error":"#NUM!"},{"$error":"#NUM!"},0,0,0,0]
[null,null,null,null,null,null,null,null,null,null,null,null,null,null,null,null,null,null,null,null,null,null,null,null,null,null,null,null,null,null,null,{"$error":"#NUM!"},{"$error":"#NUM!"},{"$error":"#NUM!"},0,0,0,0]
[null,null,null,null,null,null,null,null,null,null,null,null,null,null,null,null,null,null,null,null,null,null,null,null,null,null,null,null,null,null,null,{"$error":"#NUM!"},{"$error":"#NUM!"},{"$error":"#NUM!"},0,0,0,0]
[null,null,null,null,null,null,null,null,null,null,null,null,null,null,null,null,null,null,null,null,null,null,null,null,null,null,null,null,null,null,null,{"$error":"#NUM!"},{"$error":"#NUM!"},{"$error":"#NUM!"},0,0,0,0]
[null,null,null,null,null,null,null,null,null,null,null,null,null,null,null,null,null,null,null,null,null,null,null,null,null,null,null,null,null,null,null,{"$error":"#NUM!"},{"$error":"#NUM!"},{"$error":"#NUM!"},0,0,0,0]
[null,null,null,null,null,null,null,null,null,null,null,null,null,null,null,null,null,null,null,null,null,null,null,null,null,null,null,null,null,null,null,{"$error":"#NUM!"},{"$error":"#NUM!"},{"$error":"#NUM!"},0,0,0,0]
[null,null,null,null,null,null,null,null,null,null,null,null,null,null,null,null,null,null,null,null,null,null,null,null,null,null,null,null,null,null,null,{"$error":"#NUM!"},{"$error":"#NUM!"},{"$error":"#NUM!"},0,0,0,0]
[null,null,null,null,null,null,null,null,null,null,null,null,null,null,null,null,null,null,null,null,null,null,null,null,null,null,null,null,null,null,null,{"$error":"#NUM!"},{"$error":"#NUM!"},{"$error":"#NUM!"},0,0,0,0]
[null,null,null,null,null,null,null,null,null,null,null,null,null,null,null,null,null,null,null,null,null,null,null,null,null,null,null,null,null,null,null,{"$error":"#NUM!"},{"$error":"#NUM!"},{"$error":"#NUM!"},0,0,0,0]
[null,null,null,null,null,null,null,null,null,null,null,null,null,null,null,null,null,null,null,null,null,null,null,null,null,null,null,null,null,null,null,{"$error":"#NUM!"},{"$error":"#NUM!"},{"$error":"#NUM!"},0,0,0,0]
[null,null,null,null,null,null,null,null,null,null,null,null,null,null,null,null,null,null,null,null,null,null,null,null,null,null,null,null,null,null,null,{"$error":"#NUM!"},{"$error":"#NUM!"},{"$error":"#NUM!"},0,0,0,0]
[null,null,null,null,null,null,null,null,null,null,null,null,null,null,null,null,null,null,null,null,null,null,null,null,null,null,null,null,null,null,null,{"$error":"#NUM!"},{"$error":"#NUM!"},{"$error":"#NUM!"},0,0,0,0]
[null,null,null,null,null,null,null,null,null,null,null,null,null,null,null,null,null,null,null,null,null,null,null,null,null,null,null,null,null,null,null,{"$error":"#NUM!"},{"$error":"#NUM!"},{"$error":"#NUM!"},0,0,0,0]
[null,null,null,null,null,null,null,null,null,null,null,null,null,null,null,null,null,null,null,null,null,null,null,null,null,null,null,null,null,null,null,{"$error":"#NUM!"},{"$error":"#NUM!"},{"$error":"#NUM!"},0,0,0,0]
[null,null,null,null,null,null,null,null,null,null,null,null,null,null,null,null,null,null,null,null,null,null,null,null,null,null,null,null,null,null,null,{"$error":"#NUM!"},{"$error":"#NUM!"},{"$error":"#NUM!"},0,0,0,0]
[null,null,null,null,null,null,null,null,null,null,null,null,null,null,null,null,null,null,null,null,null,null,null,null,null,null,null,null,null,null,null,{"$error":"#NUM!"},{"$error":"#NUM!"},{"$error":"#NUM!"},0,0,0,0]
[null,null,null,null,null,null,null,null,null,null,null,null,null,null,null,null,null,null,null,null,null,null,null,null,null,null,null,null,null,null,null,{"$error":"#NUM!"},{"$error":"#NUM!"},{"$error":"#NUM!"},0,0,0,0]
[null,null,null,null,null,null,null,null,null,null,null,null,null,null,null,null,null,null,null,null,null,null,null,null,null,null,null,null,null,null,null,{"$error":"#NUM!"},{"$error":"#NUM!"},{"$error":"#NUM!"},0,0,0,0]
[null,null,null,null,null,null,null,null,null,null,null,null,null,null,null,null,null,null,null,null,null,null,null,null,null,null,null,null,null,null,null,{"$f":"1/((0.0010295+0.0002391*LOG(I126*1000)+0.0000001568*LOG(I126*1000)^3))","v":{"$error":"#NUM!"}},{"$f":"1/((0.0010295+0.0002391*LOG(J126*1000)+0.0000001568*LOG(J126*1000)^3))","v":{"$error":"#NUM!"}},{"$f":"($AE$5*G126)+$AE$6*((1*(AF126^4))+($AE$9*((AF126^4)-(AG126^4))))","v":{"$error":"#NUM!"}},{"$f":"1000*(M126/$AE$10)","v":0},{"$f":"1000*(O126/$AE$11)","v":0},{"$f":"1000*(Q126/$AE$12)","v":0},{"$f":"1000*(K126/$AE$14)","v":0}]
[null,null,null,null,null,null,null,null,null,null,null,null,null,null,null,null,null,null,null,null,null,null,null,null,null,null,null,null,null,null,null,{"$error":"#NUM!"},{"$error":"#NUM!"},{"$error":"#NUM!"},0,0,0,0]
[null,null,null,null,null,null,null,null,null,null,null,null,null,null,null,null,null,null,null,null,null,null,null,null,null,null,null,null,null,null,null,{"$error":"#NUM!"},{"$error":"#NUM!"},{"$error":"#NUM!"},0,0,0,0]
[null,null,null,null,null,null,null,null,null,null,null,null,null,null,null,null,null,null,null,null,null,null,null,null,null,null,null,null,null,null,null,{"$error":"#NUM!"},{"$error":"#NUM!"},{"$error":"#NUM!"},0,0,0,0]
[null,null,null,null,null,null,null,null,null,null,null,null,null,null,null,null,null,null,null,null,null,null,null,null,null,null,null,null,null,null,null,{"$error":"#NUM!"},{"$error":"#NUM!"},{"$error":"#NUM!"},0,0,0,0]
[null,null,null,null,null,null,null,null,null,null,null,null,null,null,null,null,null,null,null,null,null,null,null,null,null,null,null,null,null,null,null,{"$error":"#NUM!"},{"$error":"#NUM!"},{"$error":"#NUM!"},0,0,0,0]
[null,null,null,null,null,null,null,null,null,null,null,null,null,null,null,null,null,null,null,null,null,null,null,null,null,null,null,null,null,null,null,{"$error":"#NUM!"},{"$error":"#NUM!"},{"$error":"#NUM!"},0,0,0,0]
[null,null,null,null,null,null,null,null,null,null,null,null,null,null,null,null,null,null,null,null,null,null,null,null,null,null,null,null,null,null,null,{"$error":"#NUM!"},{"$error":"#NUM!"},{"$error":"#NUM!"},0,0,0,0]
[null,null,null,null,null,null,null,null,null,null,null,null,null,null,null,null,null,null,null,null,null,null,null,null,null,null,null,null,null,null,null,{"$error":"#NUM!"},{"$error":"#NUM!"},{"$error":"#NUM!"},0,0,0,0]
[null,null,null,null,null,null,null,null,null,null,null,null,null,null,null,null,null,null,null,null,null,null,null,null,null,null,null,null,null,null,null,{"$error":"#NUM!"},{"$error":"#NUM!"},{"$error":"#NUM!"},0,0,0,0]
[null,null,null,null,null,null,null,null,null,null,null,null,null,null,null,null,null,null,null,null,null,null,null,null,null,null,null,null,null,null,null,{"$error":"#NUM!"},{"$error":"#NUM!"},{"$error":"#NUM!"},0,0,0,0]
[null,null,null,null,null,null,null,null,null,null,null,null,null,null,null,null,null,null,null,null,null,null,null,null,null,null,null,null,null,null,null,{"$error":"#NUM!"},{"$error":"#NUM!"},{"$error":"#NUM!"},0,0,0,0]
[null,null,null,null,null,null,null,null,null,null,null,null,null,null,null,null,null,null,null,null,null,null,null,null,null,null,null,null,null,null,null,{"$error":"#NUM!"},{"$error":"#NUM!"},{"$error":"#NUM!"},0,0,0,0]
[null,null,null,null,null,null,null,null,null,null,null,null,null,null,null,null,null,null,null,null,null,null,null,null,null,null,null,null,null,null,null,{"$error":"#NUM!"},{"$error":"#NUM!"},{"$error":"#NUM!"},0,0,0,0]
[null,null,null,null,null,null,null,null,null,null,null,null,null,null,null,null,null,null,null,null,null,null,null,null,null,null,null,null,null,null,null,{"$error":"#NUM!"},{"$error":"#NUM!"},{"$error":"#NUM!"},0,0,0,0]
[null,null,null,null,null,null,null,null,null,null,null,null,null,null,null,null,null,null,null,null,null,null,null,null,null,null,null,null,null,null,null,{"$error":"#NUM!"},{"$error":"#NUM!"},{"$error":"#NUM!"},0,0,0,0]
[null,null,null,null,null,null,null,null,null,null,null,null,null,null,null,null,null,null,null,null,null,null,null,null,null,null,null,null,null,null,null,{"$error":"#NUM!"},{"$error":"#NUM!"},{"$error":"#NUM!"},0,0,0,0]
[null,null,null,null,null,null,null,null,null,null,null,null,null,null,null,null,null,null,null,null,null,null,null,null,null,null,null,null,null,null,null,{"$error":"#NUM!"},{"$error":"#NUM!"},{"$error":"#NUM!"},0,0,0,0]
[null,null,null,null,null,null,null,null,null,null,null,null,null,null,null,null,null,null,null,null,null,null,null,null,null,null,null,null,null,null,null,{"$error":"#NUM!"},{"$error":"#NUM!"},{"$error":"#NUM!"},0,0,0,0]
[null,null,null,null,null,null,null,null,null,null,null,null,null,null,null,null,null,null,null,null,null,null,null,null,null,null,null,null,null,null,null,{"$error":"#NUM!"},{"$error":"#NUM!"},{"$error":"#NUM!"},0,0,0,0]
[null,null,null,null,null,null,null,null,null,null,null,null,null,null,null,null,null,null,null,null,null,null,null,null,null,null,null,null,null,null,null,{"$error":"#NUM!"},{"$error":"#NUM!"},{"$error":"#NUM!"},0,0,0,0]
[null,null,null,null,null,null,null,null,null,null,null,null,null,null,null,null,null,null,null,null,null,null,null,null,null,null,null,null,null,null,null,{"$error":"#NUM!"},{"$error":"#NUM!"},{"$error":"#NUM!"},0,0,0,0]
[null,null,null,null,null,null,null,null,null,null,null,null,null,null,null,null,null,null,null,null,null,null,null,null,null,null,null,null,null,null,null,{"$error":"#NUM!"},{"$error":"#NUM!"},{"$error":"#NUM!"},0,0,0,0]
[null,null,null,null,null,null,null,null,null,null,null,null,null,null,null,null,null,null,null,null,null,null,null,null,null,null,null,null,null,null,null,{"$error":"#NUM!"},{"$error":"#NUM!"},{"$error":"#NUM!"},0,0,0,0]
[null,null,null,null,null,null,null,null,null,null,null,null,null,null,null,null,null,null,null,null,null,null,null,null,null,null,null,null,null,null,null,{"$error":"#NUM!"},{"$error":"#NUM!"},{"$error":"#NUM!"},0,0,0,0]
[null,null,null,null,null,null,null,null,null,null,null,null,null,null,null,null,null,null,null,null,null,null,null,null,null,null,null,null,null,null,null,{"$error":"#NUM!"},{"$error":"#NUM!"},{"$error":"#NUM!"},0,0,0,0]
[null,null,null,null,null,null,null,null,null,null,null,null,null,null,null,null,null,null,null,null,null,null,null,null,null,null,null,null,null,null,null,{"$error":"#NUM!"},{"$error":"#NUM!"},{"$error":"#NUM!"},0,0,0,0]
[null,null,null,null,null,null,null,null,null,null,null,null,null,null,null,null,null,null,null,null,null,null,null,null,null,null,null,null,null,null,null,{"$error":"#NUM!"},{"$error":"#NUM!"},{"$error":"#NUM!"},0,0,0,0]
[null,null,null,null,null,null,null,null,null,null,null,null,null,null,null,null,null,null,null,null,null,null,null,null,null,null,null,null,null,null,null,{"$error":"#NUM!"},{"$error":"#NUM!"},{"$error":"#NUM!"},0,0,0,0]
[null,null,null,null,null,null,null,null,null,null,null,null,null,null,null,null,null,null,null,null,null,null,null,null,null,null,null,null,null,null,null,{"$error":"#NUM!"},{"$error":"#NUM!"},{"$error":"#NUM!"},0,0,0,0]
[null,null,null,null,null,null,null,null,null,null,null,null,null,null,null,null,null,null,null,null,null,null,null,null,null,null,null,null,null,null,null,{"$error":"#NUM!"},{"$error":"#NUM!"},{"$error":"#NUM!"},0,0,0,0]
[null,null,null,null,null,null,null,null,null,null,null,null,null,null,null,null,null,null,null,null,null,null,null,null,null,null,null,null,null,null,null,{"$error":"#NUM!"},{"$error":"#NUM!"},{"$error":"#NUM!"},0,0,0,0]
[null,null,null,null,null,null,null,null,null,null,null,null,null,null,null,null,null,null,null,null,null,null,null,null,null,null,null,null,null,null,null,{"$error":"#NUM!"},{"$error":"#NUM!"},{"$error":"#NUM!"},0,0,0,0]
[null,null,null,null,null,null,null,null,null,null,null,null,null,null,null,null,null,null,null,null,null,null,null,null,null,null,null,null,null,null,null,{"$error":"#NUM!"},{"$error":"#NUM!"},{"$error":"#NUM!"},0,0,0,0]
[null,null,null,null,null,null,null,null,null,null,null,null,null,null,null,null,null,null,null,null,null,null,null,null,null,null,null,null,null,null,null,{"$error":"#NUM!"},{"$error":"#NUM!"},{"$error":"#NUM!"},0,0,0,0]
[null,null,null,null,null,null,null,null,null,null,null,null,null,null,null,null,null,null,null,null,null,null,null,null,null,null,null,null,null,null,null,{"$error":"#NUM!"},{"$error":"#NUM!"},{"$error":"#NUM!"},0,0,0,0]
[null,null,null,null,null,null,null,null,null,null,null,null,null,null,null,null,null,null,null,null,null,null,null,null,null,null,null,null,null,null,null,{"$error":"#NUM!"},{"$error":"#NUM!"},{"$error":"#NUM!"},0,0,0,0]
[null,null,null,null,null,null,null,null,null,null,null,null,null,null,null,null,null,null,null,null,null,null,null,null,null,null,null,null,null,null,null,{"$error":"#NUM!"},{"$error":"#NUM!"},{"$error":"#NUM!"},0,0,0,0]
[null,null,null,null,null,null,null,null,null,null,null,null,null,null,null,null,null,null,null,null,null,null,null,null,null,null,null,null,null,null,null,{"$error":"#NUM!"},{"$error":"#NUM!"},{"$error":"#NUM!"},0,0,0,0]
[null,null,null,null,null,null,null,null,null,null,null,null,null,null,null,null,null,null,null,null,null,null,null,null,null,null,null,null,null,null,null,{"$error":"#NUM!"},{"$error":"#NUM!"},{"$error":"#NUM!"},0,0,0,0]
[null,null,null,null,null,null,null,null,null,null,null,null,null,null,null,null,null,null,null,null,null,null,null,null,null,null,null,null,null,null,null,{"$error":"#NUM!"},{"$error":"#NUM!"},{"$error":"#NUM!"},0,0,0,0]
[null,null,null,null,null,null,null,null,null,null,null,null,null,null,null,null,null,null,null,null,null,null,null,null,null,null,null,null,null,null,null,{"$error":"#NUM!"},{"$error":"#NUM!"},{"$error":"#NUM!"},0,0,0,0]
[null,null,null,null,null,null,null,null,null,null,null,null,null,null,null,null,null,null,null,null,null,null,null,null,null,null,null,null,null,null,null,{"$error":"#NUM!"},{"$error":"#NUM!"},{"$error":"#NUM!"},0,0,0,0]
[null,null,null,null,null,null,null,null,null,null,null,null,null,null,null,null,null,null,null,null,null,null,null,null,null,null,null,null,null,null,null,{"$error":"#NUM!"},{"$error":"#NUM!"},{"$error":"#NUM!"},0,0,0,0]
[null,null,null,null,null,null,null,null,null,null,null,null,null,null,null,null,null,null,null,null,null,null,null,null,null,null,null,null,null,null,null,{"$error":"#NUM!"},{"$error":"#NUM!"},{"$error":"#NUM!"},0,0,0,0]
[null,null,null,null,null,null,null,null,null,null,null,null,null,null,null,null,null,null,null,null,null,null,null,null,null,null,null,null,null,null,null,{"$error":"#NUM!"},{"$error":"#NUM!"},{"$error":"#NUM!"},0,0,0,0]
[null,null,null,null,null,null,null,null,null,null,null,null,null,null,null,null,null,null,null,null,null,null,null,null,null,null,null,null,null,null,null,{"$error":"#NUM!"},{"$error":"#NUM!"},{"$error":"#NUM!"},0,0,0,0]
[null,null,null,null,null,null,null,null,null,null,null,null,null,null,null,null,null,null,null,null,null,null,null,null,null,null,null,null,null,null,null,{"$error":"#NUM!"},{"$error":"#NUM!"},{"$error":"#NUM!"},0,0,0,0]
[null,null,null,null,null,null,null,null,null,null,null,null,null,null,null,null,null,null,null,null,null,null,null,null,null,null,null,null,null,null,null,{"$error":"#NUM!"},{"$error":"#NUM!"},{"$error":"#NUM!"},0,0,0,0]
[null,null,null,null,null,null,null,null,null,null,null,null,null,null,null,null,null,null,null,null,null,null,null,null,null,null,null,null,null,null,null,{"$error":"#NUM!"},{"$error":"#NUM!"},{"$error":"#NUM!"},0,0,0,0]
[null,null,null,null,null,null,null,null,null,null,null,null,null,null,null,null,null,null,null,null,null,null,null,null,null,null,null,null,null,null,null,{"$error":"#NUM!"},{"$error":"#NUM!"},{"$error":"#NUM!"},0,0,0,0]
[null,null,null,null,null,null,null,null,null,null,null,null,null,null,null,null,null,null,null,null,null,null,null,null,null,null,null,null,null,null,null,{"$error":"#NUM!"},{"$error":"#NUM!"},{"$error":"#NUM!"},0,0,0,0]
[null,null,null,null,null,null,null,null,null,null,null,null,null,null,null,null,null,null,null,null,null,null,null,null,null,null,null,null,null,null,null,{"$error":"#NUM!"},{"$error":"#NUM!"},{"$error":"#NUM!"},0,0,0,0]
[null,null,null,null,null,null,null,null,null,null,null,null,null,null,null,null,null,null,null,null,null,null,null,null,null,null,null,null,null,null,null,{"$error":"#NUM!"},{"$error":"#NUM!"},{"$error":"#NUM!"},0,0,0,0]
[null,null,null,null,null,null,null,null,null,null,null,null,null,null,null,null,null,null,null,null,null,null,null,null,null,null,null,null,null,null,null,{"$error":"#NUM!"},{"$error":"#NUM!"},{"$error":"#NUM!"},0,0,0,0]
[null,null,null,null,null,null,null,null,null,null,null,null,null,null,null,null,null,null,null,null,null,null,null,null,null,null,null,null,null,null,null,{"$error":"#NUM!"},{"$error":"#NUM!"},{"$error":"#NUM!"},0,0,0,0]
[null,null,null,null,null,null,null,null,null,null,null,null,null,null,null,null,null,null,null,null,null,null,null,null,null,null,null,null,null,null,null,{"$error":"#NUM!"},{"$error":"#NUM!"},{"$error":"#NUM!"},0,0,0,0]
[null,null,null,null,null,null,null,null,null,null,null,null,null,null,null,null,null,null,null,null,null,null,null,null,null,null,null,null,null,null,null,{"$error":"#NUM!"},{"$error":"#NUM!"},{"$error":"#NUM!"},0,0,0,0]
[null,null,null,null,null,null,null,null,null,null,null,null,null,null,null,null,null,null,null,null,null,null,null,null,null,null,null,null,null,null,null,{"$error":"#NUM!"},{"$error":"#NUM!"},{"$error":"#NUM!"},0,0,0,0]
[null,null,null,null,null,null,null,null,null,null,null,null,null,null,null,null,null,null,null,null,null,null,null,null,null,null,null,null,null,null,null,{"$error":"#NUM!"},{"$error":"#NUM!"},{"$error":"#NUM!"},0,0,0,0]
[null,null,null,null,null,null,null,null,null,null,null,null,null,null,null,null,null,null,null,null,null,null,null,null,null,null,null,null,null,null,null,{"$error":"#NUM!"},{"$error":"#NUM!"},{"$error":"#NUM!"},0,0,0,0]
[null,null,null,null,null,null,null,null,null,null,null,null,null,null,null,null,null,null,null,null,null,null,null,null,null,null,null,null,null,null,null,{"$error":"#NUM!"},{"$error":"#NUM!"},{"$error":"#NUM!"},0,0,0,0]
[null,null,null,null,null,null,null,null,null,null,null,null,null,null,null,null,null,null,null,null,null,null,null,null,null,null,null,null,null,null,null,{"$error":"#NUM!"},{"$error":"#NUM!"},{"$error":"#NUM!"},0,0,0,0]
[null,null,null,null,null,null,null,null,null,null,null,null,null,null,null,null,null,null,null,null,null,null,null,null,null,null,null,null,null,null,null,{"$error":"#NUM!"},{"$error":"#NUM!"},{"$error":"#NUM!"},0,0,0,0]
[null,null,null,null,null,null,null,null,null,null,null,null,null,null,null,null,null,null,null,null,null,null,null,null,null,null,null,null,null,null,null,{"$f":"1/((0.0010295+0.0002391*LOG(I190*1000)+0.0000001568*LOG(I190*1000)^3))","v":{"$error":"#NUM!"}},{"$f":"1/((0.0010295+0.0002391*LOG(J190*1000)+0.0000001568*LOG(J190*1000)^3))","v":{"$error":"#NUM!"}},{"$f":"($AE$5*G190)+$AE$6*((1*(AF190^4))+($AE$9*((AF190^4)-(AG190^4))))","v":{"$error":"#NUM!"}},{"$f":"1000*(M190/$AE$10)","v":0},{"$f":"1000*(O190/$AE$11)","v":0},{"$f":"1000*(Q190/$AE$12)","v":0},{"$f":"1000*(K190/$AE$14)","v":0}]
[null,null,null,null,null,null,null,null,null,null,null,null,null,null,null,null,null,null,null,null,null,null,null,null,null,null,null,null,null,null,null,{"$error":"#NUM!"},{"$error":"#NUM!"},{"$error":"#NUM!"},0,0,0,0]
[null,null,null,null,null,null,null,null,null,null,null,null,null,null,null,null,null,null,null,null,null,null,null,null,null,null,null,null,null,null,null,{"$error":"#NUM!"},{"$error":"#NUM!"},{"$error":"#NUM!"},0,0,0,0]
[null,null,null,null,null,null,null,null,null,null,null,null,null,null,null,null,null,null,null,null,null,null,null,null,null,null,null,null,null,null,null,{"$error":"#NUM!"},{"$error":"#NUM!"},{"$error":"#NUM!"},0,0,0,0]
[null,null,null,null,null,null,null,null,null,null,null,null,null,null,null,null,null,null,null,null,null,null,null,null,null,null,null,null,null,null,null,{"$error":"#NUM!"},{"$error":"#NUM!"},{"$error":"#NUM!"},0,0,0,0]
[null,null,null,null,null,null,null,null,null,null,null,null,null,null,null,null,null,null,null,null,null,null,null,null,null,null,null,null,null,null,null,{"$error":"#NUM!"},{"$error":"#NUM!"},{"$error":"#NUM!"},0,0,0,0]
[null,null,null,null,null,null,null,null,null,null,null,null,null,null,null,null,null,null,null,null,null,null,null,null,null,null,null,null,null,null,null,{"$error":"#NUM!"},{"$error":"#NUM!"},{"$error":"#NUM!"},0,0,0,0]
[null,null,null,null,null,null,null,null,null,null,null,null,null,null,null,null,null,null,null,null,null,null,null,null,null,null,null,null,null,null,null,{"$error":"#NUM!"},{"$error":"#NUM!"},{"$error":"#NUM!"},0,0,0,0]
[null,null,null,null,null,null,null,null,null,null,null,null,null,null,null,null,null,null,null,null,null,null,null,null,null,null,null,null,null,null,null,{"$error":"#NUM!"},{"$error":"#NUM!"},{"$error":"#NUM!"},0,0,0,0]
[null,null,null,null,null,null,null,null,null,null,null,null,null,null,null,null,null,null,null,null,null,null,null,null,null,null,null,null,null,null,null,{"$error":"#NUM!"},{"$error":"#NUM!"},{"$error":"#NUM!"},0,0,0,0]
[null,null,null,null,null,null,null,null,null,null,null,null,null,null,null,null,null,null,null,null,null,null,null,null,null,null,null,null,null,null,null,{"$error":"#NUM!"},{"$error":"#NUM!"},{"$error":"#NUM!"},0,0,0,0]
[null,null,null,null,null,null,null,null,null,null,null,null,null,null,null,null,null,null,null,null,null,null,null,null,null,null,null,null,null,null,null,{"$error":"#NUM!"},{"$error":"#NUM!"},{"$error":"#NUM!"},0,0,0,0]
[null,null,null,null,null,null,null,null,null,null,null,null,null,null,null,null,null,null,null,null,null,null,null,null,null,null,null,null,null,null,null,{"$error":"#NUM!"},{"$error":"#NUM!"},{"$error":"#NUM!"},0,0,0,0]
[null,null,null,null,null,null,null,null,null,null,null,null,null,null,null,null,null,null,null,null,null,null,null,null,null,null,null,null,null,null,null,{"$error":"#NUM!"},{"$error":"#NUM!"},{"$error":"#NUM!"},0,0,0,0]
[null,null,null,null,null,null,null,null,null,null,null,null,null,null,null,null,null,null,null,null,null,null,null,null,null,null,null,null,null,null,null,{"$error":"#NUM!"},{"$error":"#NUM!"},{"$error":"#NUM!"},0,0,0,0]
[null,null,null,null,null,null,null,null,null,null,null,null,null,null,null,null,null,null,null,null,null,null,null,null,null,null,null,null,null,null,null,{"$error":"#NUM!"},{"$error":"#NUM!"},{"$error":"#NUM!"},0,0,0,0]
[null,null,null,null,null,null,null,null,null,null,null,null,null,null,null,null,null,null,null,null,null,null,null,null,null,null,null,null,null,null,null,{"$error":"#NUM!"},{"$error":"#NUM!"},{"$error":"#NUM!"},0,0,0,0]
[null,null,null,null,null,null,null,null,null,null,null,null,null,null,null,null,null,null,null,null,null,null,null,null,null,null,null,null,null,null,null,{"$error":"#NUM!"},{"$error":"#NUM!"},{"$error":"#NUM!"},0,0,0,0]
[null,null,null,null,null,null,null,null,null,null,null,null,null,null,null,null,null,null,null,null,null,null,null,null,null,null,null,null,null,null,null,{"$error":"#NUM!"},{"$error":"#NUM!"},{"$error":"#NUM!"},0,0,0,0]
[null,null,null,null,null,null,null,null,null,null,null,null,null,null,null,null,null,null,null,null,null,null,null,null,null,null,null,null,null,null,null,{"$error":"#NUM!"},{"$error":"#NUM!"},{"$error":"#NUM!"},0,0,0,0]
[null,null,null,null,null,null,null,null,null,null,null,null,null,null,null,null,null,null,null,null,null,null,null,null,null,null,null,null,null,null,null,{"$error":"#NUM!"},{"$error":"#NUM!"},{"$error":"#NUM!"},0,0,0,0]
[null,null,null,null,null,null,null,null,null,null,null,null,null,null,null,null,null,null,null,null,null,null,null,null,null,null,null,null,null,null,null,{"$error":"#NUM!"},{"$error":"#NUM!"},{"$error":"#NUM!"},0,0,0,0]
[null,null,null,null,null,null,null,null,null,null,null,null,null,null,null,null,null,null,null,null,null,null,null,null,null,null,null,null,null,null,null,{"$error":"#NUM!"},{"$error":"#NUM!"},{"$error":"#NUM!"},0,0,0,0]
[null,null,null,null,null,null,null,null,null,null,null,null,null,null,null,null,null,null,null,null,null,null,null,null,null,null,null,null,null,null,null,{"$error":"#NUM!"},{"$error":"#NUM!"},{"$error":"#NUM!"},0,0,0,0]
[null,null,null,null,null,null,null,null,null,null,null,null,null,null,null,null,null,null,null,null,null,null,null,null,null,null,null,null,null,null,null,{"$error":"#NUM!"},{"$error":"#NUM!"},{"$error":"#NUM!"},0,0,0,0]
[null,null,null,null,null,null,null,null,null,null,null,null,null,null,null,null,null,null,null,null,null,null,null,null,null,null,null,null,null,null,null,{"$error":"#NUM!"},{"$error":"#NUM!"},{"$error":"#NUM!"},0,0,0,0]
[null,null,null,null,null,null,null,null,null,null,null,null,null,null,null,null,null,null,null,null,null,null,null,null,null,null,null,null,null,null,null,{"$error":"#NUM!"},{"$error":"#NUM!"},{"$error":"#NUM!"},0,0,0,0]
[null,null,null,null,null,null,null,null,null,null,null,null,null,null,null,null,null,null,null,null,null,null,null,null,null,null,null,null,null,null,null,{"$error":"#NUM!"},{"$error":"#NUM!"},{"$error":"#NUM!"},0,0,0,0]
[null,null,null,null,null,null,null,null,null,null,null,null,null,null,null,null,null,null,null,null,null,null,null,null,null,null,null,null,null,null,null,{"$error":"#NUM!"},{"$error":"#NUM!"},{"$error":"#NUM!"},0,0,0,0]
[null,null,null,null,null,null,null,null,null,null,null,null,null,null,null,null,null,null,null,null,null,null,null,null,null,null,null,null,null,null,null,{"$error":"#NUM!"},{"$error":"#NUM!"},{"$error":"#NUM!"},0,0,0,0]
[null,null,null,null,null,null,null,null,null,null,null,null,null,null,null,null,null,null,null,null,null,null,null,null,null,null,null,null,null,null,null,{"$error":"#NUM!"},{"$error":"#NUM!"},{"$error":"#NUM!"},0,0,0,0]
[null,null,null,null,null,null,null,null,null,null,null,null,null,null,null,null,null,null,null,null,null,null,null,null,null,null,null,null,null,null,null,{"$error":"#NUM!"},{"$error":"#NUM!"},{"$error":"#NUM!"},0,0,0,0]
[null,null,null,null,null,null,null,null,null,null,null,null,null,null,null,null,null,null,null,null,null,null,null,null,null,null,null,null,null,null,null,{"$error":"#NUM!"},{"$error":"#NUM!"},{"$error":"#NUM!"},0,0,0,0]
[null,null,null,null,null,null,null,null,null,null,null,null,null,null,null,null,null,null,null,null,null,null,null,null,null,null,null,null,null,null,null,{"$error":"#NUM!"},{"$error":"#NUM!"},{"$error":"#NUM!"},0,0,0,0]
[null,null,null,null,null,null,null,null,null,null,null,null,null,null,null,null,null,null,null,null,null,null,null,null,null,null,null,null,null,null,null,{"$error":"#NUM!"},{"$error":"#NUM!"},{"$error":"#NUM!"},0,0,0,0]
[null,null,null,null,null,null,null,null,null,null,null,null,null,null,null,null,null,null,null,null,null,null,null,null,null,null,null,null,null,null,null,{"$error":"#NUM!"},{"$error":"#NUM!"},{"$error":"#NUM!"},0,0,0,0]
[null,null,null,null,null,null,null,null,null,null,null,null,null,null,null,null,null,null,null,null,null,null,null,null,null,null,null,null,null,null,null,{"$error":"#NUM!"},{"$error":"#NUM!"},{"$error":"#NUM!"},0,0,0,0]
[null,null,null,null,null,null,null,null,null,null,null,null,null,null,null,null,null,null,null,null,null,null,null,null,null,null,null,null,null,null,null,{"$error":"#NUM!"},{"$error":"#NUM!"},{"$error":"#NUM!"},0,0,0,0]
[null,null,null,null,null,null,null,null,null,null,null,null,null,null,null,null,null,null,null,null,null,null,null,null,null,null,null,null,null,null,null,{"$error":"#NUM!"},{"$error":"#NUM!"},{"$error":"#NUM!"},0,0,0,0]
[null,null,null,null,null,null,null,null,null,null,null,null,null,null,null,null,null,null,null,null,null,null,null,null,null,null,null,null,null,null,null,{"$error":"#NUM!"},{"$error":"#NUM!"},{"$error":"#NUM!"},0,0,0,0]
[null,null,null,null,null,null,null,null,null,null,null,null,null,null,null,null,null,null,null,null,null,null,null,null,null,null,null,null,null,null,null,{"$error":"#NUM!"},{"$error":"#NUM!"},{"$error":"#NUM!"},0,0,0,0]
[null,null,null,null,null,null,null,null,null,null,null,null,null,null,null,null,null,null,null,null,null,null,null,null,null,null,null,null,null,null,null,{"$error":"#NUM!"},{"$error":"#NUM!"},{"$error":"#NUM!"},0,0,0,0]
[null,null,null,null,null,null,null,null,null,null,null,null,null,null,null,null,null,null,null,null,null,null,null,null,null,null,null,null,null,null,null,{"$error":"#NUM!"},{"$error":"#NUM!"},{"$error":"#NUM!"},0,0,0,0]
[null,null,null,null,null,null,null,null,null,null,null,null,null,null,null,null,null,null,null,null,null,null,null,null,null,null,null,null,null,null,null,{"$error":"#NUM!"},{"$error":"#NUM!"},{"$error":"#NUM!"},0,0,0,0]
[null,null,null,null,null,null,null,null,null,null,null,null,null,null,null,null,null,null,null,null,null,null,null,null,null,null,null,null,null,null,null,{"$error":"#NUM!"},{"$error":"#NUM!"},{"$error":"#NUM!"},0,0,0,0]
[null,null,null,null,null,null,null,null,null,null,null,null,null,null,null,null,null,null,null,null,null,null,null,null,null,null,null,null,null,null,null,{"$error":"#NUM!"},{"$error":"#NUM!"},{"$error":"#NUM!"},0,0,0,0]
[null,null,null,null,null,null,null,null,null,null,null,null,null,null,null,null,null,null,null,null,null,null,null,null,null,null,null,null,null,null,null,{"$error":"#NUM!"},{"$error":"#NUM!"},{"$error":"#NUM!"},0,0,0,0]
[null,null,null,null,null,null,null,null,null,null,null,null,null,null,null,null,null,null,null,null,null,null,null,null,null,null,null,null,null,null,null,{"$error":"#NUM!"},{"$error":"#NUM!"},{"$error":"#NUM!"},0,0,0,0]
[null,null,null,null,null,null,null,null,null,null,null,null,null,null,null,null,null,null,null,null,null,null,null,null,null,null,null,null,null,null,null,{"$error":"#NUM!"},{"$error":"#NUM!"},{"$error":"#NUM!"},0,0,0,0]
[null,null,null,null,null,null,null,null,null,null,null,null,null,null,null,null,null,null,null,null,null,null,null,null,null,null,null,null,null,null,null,{"$error":"#NUM!"},{"$error":"#NUM!"},{"$error":"#NUM!"},0,0,0,0]
[null,null,null,null,null,null,null,null,null,null,null,null,null,null,null,null,null,null,null,null,null,null,null,null,null,null,null,null,null,null,null,{"$error":"#NUM!"},{"$error":"#NUM!"},{"$error":"#NUM!"},0,0,0,0]
[null,null,null,null,null,null,null,null,null,null,null,null,null,null,null,null,null,null,null,null,null,null,null,null,null,null,null,null,null,null,null,{"$error":"#NUM!"},{"$error":"#NUM!"},{"$error":"#NUM!"},0,0,0,0]
[null,null,null,null,null,null,null,null,null,null,null,null,null,null,null,null,null,null,null,null,null,null,null,null,null,null,null,null,null,null,null,{"$error":"#NUM!"},{"$error":"#NUM!"},{"$error":"#NUM!"},0,0,0,0]
[null,null,null,null,null,null,null,null,null,null,null,null,null,null,null,null,null,null,null,null,null,null,null,null,null,null,null,null,null,null,null,{"$error":"#NUM!"},{"$error":"#NUM!"},{"$error":"#NUM!"},0,0,0,0]
[null,null,null,null,null,null,null,null,null,null,null,null,null,null,null,null,null,null,null,null,null,null,null,null,null,null,null,null,null,null,null,{"$error":"#NUM!"},{"$error":"#NUM!"},{"$error":"#NUM!"},0,0,0,0]
[null,null,null,null,null,null,null,null,null,null,null,null,null,null,null,null,null,null,null,null,null,null,null,null,null,null,null,null,null,null,null,{"$error":"#NUM!"},{"$error":"#NUM!"},{"$error":"#NUM!"},0,0,0,0]
[null,null,null,null,null,null,null,null,null,null,null,null,null,null,null,null,null,null,null,null,null,null,null,null,null,null,null,null,null,null,null,{"$error":"#NUM!"},{"$error":"#NUM!"},{"$error":"#NUM!"},0,0,0,0]
[null,null,null,null,null,null,null,null,null,null,null,null,null,null,null,null,null,null,null,null,null,null,null,null,null,null,null,null,null,null,null,{"$error":"#NUM!"},{"$error":"#NUM!"},{"$error":"#NUM!"},0,0,0,0]
[null,null,null,null,null,null,null,null,null,null,null,null,null,null,null,null,null,null,null,null,null,null,null,null,null,null,null,null,null,null,null,{"$error":"#NUM!"},{"$error":"#NUM!"},{"$error":"#NUM!"},0,0,0,0]
[null,null,null,null,null,null,null,null,null,null,null,null,null,null,null,null,null,null,null,null,null,null,null,null,null,null,null,null,null,null,null,{"$error":"#NUM!"},{"$error":"#NUM!"},{"$error":"#NUM!"},0,0,0,0]
[null,null,null,null,null,null,null,null,null,null,null,null,null,null,null,null,null,null,null,null,null,null,null,null,null,null,null,null,null,null,null,{"$error":"#NUM!"},{"$error":"#NUM!"},{"$error":"#NUM!"},0,0,0,0]
[null,null,null,null,null,null,null,null,null,null,null,null,null,null,null,null,null,null,null,null,null,null,null,null,null,null,null,null,null,null,null,{"$error":"#NUM!"},{"$error":"#NUM!"},{"$error":"#NUM!"},0,0,0,0]
[null,null,null,null,null,null,null,null,null,null,null,null,null,null,null,null,null,null,null,null,null,null,null,null,null,null,null,null,null,null,null,{"$error":"#NUM!"},{"$error":"#NUM!"},{"$error":"#NUM!"},0,0,0,0]
[null,null,null,null,null,null,null,null,null,null,null,null,null,null,null,null,null,null,null,null,null,null,null,null,null,null,null,null,null,null,null,{"$error":"#NUM!"},{"$error":"#NUM!"},{"$error":"#NUM!"},0,0,0,0]
[null,null,null,null,null,null,null,null,null,null,null,null,null,null,null,null,null,null,null,null,null,null,null,null,null,null,null,null,null,null,null,{"$f":"1/((0.0010295+0.0002391*LOG(I254*1000)+0.0000001568*LOG(I254*1000)^3))","v":{"$error":"#NUM!"}},{"$f":"1/((0.0010295+0.0002391*LOG(J254*1000)+0.0000001568*LOG(J254*1000)^3))","v":{"$error":"#NUM!"}},{"$f":"($AE$5*G254)+$AE$6*((1*(AF254^4))+($AE$9*((AF254^4)-(AG254^4))))","v":{"$error":"#NUM!"}},{"$f":"1000*(M254/$AE$10)","v":0},{"$f":"1000*(O254/$AE$11)","v":0},{"$f":"1000*(Q254/$AE$12)","v":0},{"$f":"1000*(K254/$AE$14)","v":0}]
[null,null,null,null,null,null,null,null,null,null,null,null,null,null,null,null,null,null,null,null,null,null,null,null,null,null,null,null,null,null,null,{"$error":"#NUM!"},{"$error":"#NUM!"},{"$error":"#NUM!"},0,0,0,0]
[null,null,null,null,null,null,null,null,null,null,null,null,null,null,null,null,null,null,null,null,null,null,null,null,null,null,null,null,null,null,null,{"$error":"#NUM!"},{"$error":"#NUM!"},{"$error":"#NUM!"},0,0,0,0]
[null,null,null,null,null,null,null,null,null,null,null,null,null,null,null,null,null,null,null,null,null,null,null,null,null,null,null,null,null,null,null,{"$error":"#NUM!"},{"$error":"#NUM!"},{"$error":"#NUM!"},0,0,0,0]
[null,null,null,null,null,null,null,null,null,null,null,null,null,null,null,null,null,null,null,null,null,null,null,null,null,null,null,null,null,null,null,{"$error":"#NUM!"},{"$error":"#NUM!"},{"$error":"#NUM!"},0,0,0,0]
[null,null,null,null,null,null,null,null,null,null,null,null,null,null,null,null,null,null,null,null,null,null,null,null,null,null,null,null,null,null,null,{"$error":"#NUM!"},{"$error":"#NUM!"},{"$error":"#NUM!"},0,0,0,0]
[null,null,null,null,null,null,null,null,null,null,null,null,null,null,null,null,null,null,null,null,null,null,null,null,null,null,null,null,null,null,null,{"$error":"#NUM!"},{"$error":"#NUM!"},{"$error":"#NUM!"},0,0,0,0]
[null,null,null,null,null,null,null,null,null,null,null,null,null,null,null,null,null,null,null,null,null,null,null,null,null,null,null,null,null,null,null,{"$error":"#NUM!"},{"$error":"#NUM!"},{"$error":"#NUM!"},0,0,0,0]
[null,null,null,null,null,null,null,null,null,null,null,null,null,null,null,null,null,null,null,null,null,null,null,null,null,null,null,null,null,null,null,{"$error":"#NUM!"},{"$error":"#NUM!"},{"$error":"#NUM!"},0,0,0,0]
[null,null,null,null,null,null,null,null,null,null,null,null,null,null,null,null,null,null,null,null,null,null,null,null,null,null,null,null,null,null,null,{"$error":"#NUM!"},{"$error":"#NUM!"},{"$error":"#NUM!"},0,0,0,0]
[null,null,null,null,null,null,null,null,null,null,null,null,null,null,null,null,null,null,null,null,null,null,null,null,null,null,null,null,null,null,null,{"$error":"#NUM!"},{"$error":"#NUM!"},{"$error":"#NUM!"},0,0,0,0]
[null,null,null,null,null,null,null,null,null,null,null,null,null,null,null,null,null,null,null,null,null,null,null,null,null,null,null,null,null,null,null,{"$error":"#NUM!"},{"$error":"#NUM!"},{"$error":"#NUM!"},0,0,0,0]
[null,null,null,null,null,null,null,null,null,null,null,null,null,null,null,null,null,null,null,null,null,null,null,null,null,null,null,null,null,null,null,{"$error":"#NUM!"},{"$error":"#NUM!"},{"$error":"#NUM!"},0,0,0,0]
[null,null,null,null,null,null,null,null,null,null,null,null,null,null,null,null,null,null,null,null,null,null,null,null,null,null,null,null,null,null,null,{"$error":"#NUM!"},{"$error":"#NUM!"},{"$error":"#NUM!"},0,0,0,0]
[null,null,null,null,null,null,null,null,null,null,null,null,null,null,null,null,null,null,null,null,null,null,null,null,null,null,null,null,null,null,null,{"$error":"#NUM!"},{"$error":"#NUM!"},{"$error":"#NUM!"},0,0,0,0]
[null,null,null,null,null,null,null,null,null,null,null,null,null,null,null,null,null,null,null,null,null,null,null,null,null,null,null,null,null,null,null,{"$error":"#NUM!"},{"$error":"#NUM!"},{"$error":"#NUM!"},0,0,0,0]
[null,null,null,null,null,null,null,null,null,null,null,null,null,null,null,null,null,null,null,null,null,null,null,null,null,null,null,null,null,null,null,{"$error":"#NUM!"},{"$error":"#NUM!"},{"$error":"#NUM!"},0,0,0,0]
[null,null,null,null,null,null,null,null,null,null,null,null,null,null,null,null,null,null,null,null,null,null,null,null,null,null,null,null,null,null,null,{"$error":"#NUM!"},{"$error":"#NUM!"},{"$error":"#NUM!"},0,0,0,0]
[null,null,null,null,null,null,null,null,null,null,null,null,null,null,null,null,null,null,null,null,null,null,null,null,null,null,null,null,null,null,null,{"$error":"#NUM!"},{"$error":"#NUM!"},{"$error":"#NUM!"},0,0,0,0]
[null,null,null,null,null,null,null,null,null,null,null,null,null,null,null,null,null,null,null,null,null,null,null,null,null,null,null,null,null,null,null,{"$error":"#NUM!"},{"$error":"#NUM!"},{"$error":"#NUM!"},0,0,0,0]
[null,null,null,null,null,null,null,null,null,null,null,null,null,null,null,null,null,null,null,null,null,null,null,null,null,null,null,null,null,null,null,{"$error":"#NUM!"},{"$error":"#NUM!"},{"$error":"#NUM!"},0,0,0,0]
[null,null,null,null,null,null,null,null,null,null,null,null,null,null,null,null,null,null,null,null,null,null,null,null,null,null,null,null,null,null,null,{"$error":"#NUM!"},{"$error":"#NUM!"},{"$error":"#NUM!"},0,0,0,0]
[null,null,null,null,null,null,null,null,null,null,null,null,null,null,null,null,null,null,null,null,null,null,null,null,null,null,null,null,null,null,null,{"$error":"#NUM!"},{"$error":"#NUM!"},{"$error":"#NUM!"},0,0,0,0]
[null,null,null,null,null,null,null,null,null,null,null,null,null,null,null,null,null,null,null,null,null,null,null,null,null,null,null,null,null,null,null,{"$error":"#NUM!"},{"$error":"#NUM!"},{"$error":"#NUM!"},0,0,0,0]
[null,null,null,null,null,null,null,null,null,null,null,null,null,null,null,null,null,null,null,null,null,null,null,null,null,null,null,null,null,null,null,{"$error":"#NUM!"},{"$error":"#NUM!"},{"$error":"#NUM!"},0,0,0,0]
[null,null,null,null,null,null,null,null,null,null,null,null,null,null,null,null,null,null,null,null,null,null,null,null,null,null,null,null,null,null,null,{"$error":"#NUM!"},{"$error":"#NUM!"},{"$error":"#NUM!"},0,0,0,0]
[null,null,null,null,null,null,null,null,null,null,null,null,null,null,null,null,null,null,null,null,null,null,null,null,null,null,null,null,null,null,null,{"$error":"#NUM!"},{"$error":"#NUM!"},{"$error":"#NUM!"},0,0,0,0]
[null,null,null,null,null,null,null,null,null,null,null,null,null,null,null,null,null,null,null,null,null,null,null,null,null,null,null,null,null,null,null,{"$error":"#NUM!"},{"$error":"#NUM!"},{"$error":"#NUM!"},0,0,0,0]
[null,null,null,null,null,null,null,null,null,null,null,null,null,null,null,null,null,null,null,null,null,null,null,null,null,null,null,null,null,null,null,{"$error":"#NUM!"},{"$error":"#NUM!"},{"$error":"#NUM!"},0,0,0,0]
[null,null,null,null,null,null,null,null,null,null,null,null,null,null,null,null,null,null,null,null,null,null,null,null,null,null,null,null,null,null,null,{"$error":"#NUM!"},{"$error":"#NUM!"},{"$error":"#NUM!"},0,0,0,0]
[null,null,null,null,null,null,null,null,null,null,null,null,null,null,null,null,null,null,null,null,null,null,null,null,null,null,null,null,null,null,null,{"$error":"#NUM!"},{"$error":"#NUM!"},{"$error":"#NUM!"},0,0,0,0]
[null,null,null,null,null,null,null,null,null,null,null,null,null,null,null,null,null,null,null,null,null,null,null,null,null,null,null,null,null,null,null,{"$error":"#NUM!"},{"$error":"#NUM!"},{"$error":"#NUM!"},0,0,0,0]
[null,null,null,null,null,null,null,null,null,null,null,null,null,null,null,null,null,null,null,null,null,null,null,null,null,null,null,null,null,null,null,{"$error":"#NUM!"},{"$error":"#NUM!"},{"$error":"#NUM!"},0,0,0,0]
[null,null,null,null,null,null,null,null,null,null,null,null,null,null,null,null,null,null,null,null,null,null,null,null,null,null,null,null,null,null,null,{"$error":"#NUM!"},{"$error":"#NUM!"},{"$error":"#NUM!"},0,0,0,0]
[null,null,null,null,null,null,null,null,null,null,null,null,null,null,null,null,null,null,null,null,null,null,null,null,null,null,null,null,null,null,null,{"$error":"#NUM!"},{"$error":"#NUM!"},{"$error":"#NUM!"},0,0,0,0]
[null,null,null,null,null,null,null,null,null,null,null,null,null,null,null,null,null,null,null,null,null,null,null,null,null,null,null,null,null,null,null,{"$error":"#NUM!"},{"$error":"#NUM!"},{"$error":"#NUM!"},0,0,0,0]
[null,null,null,null,null,null,null,null,null,null,null,null,null,null,null,null,null,null,null,null,null,null,null,null,null,null,null,null,null,null,null,{"$error":"#NUM!"},{"$error":"#NUM!"},{"$error":"#NUM!"},0,0,0,0]
[null,null,null,null,null,null,null,null,null,null,null,null,null,null,null,null,null,null,null,null,null,null,null,null,null,null,null,null,null,null,null,{"$error":"#NUM!"},{"$error":"#NUM!"},{"$error":"#NUM!"},0,0,0,0]
[null,null,null,null,null,null,null,null,null,null,null,null,null,null,null,null,null,null,null,null,null,null,null,null,null,null,null,null,null,null,null,{"$error":"#NUM!"},{"$error":"#NUM!"},{"$error":"#NUM!"},0,0,0,0]
[null,null,null,null,null,null,null,null,null,null,null,null,null,null,null,null,null,null,null,null,null,null,null,null,null,null,null,null,null,null,null,{"$error":"#NUM!"},{"$error":"#NUM!"},{"$error":"#NUM!"},0,0,0,0]
[null,null,null,null,null,null,null,null,null,null,null,null,null,null,null,null,null,null,null,null,null,null,null,null,null,null,null,null,null,null,null,{"$error":"#NUM!"},{"$error":"#NUM!"},{"$error":"#NUM!"},0,0,0,0]
[null,null,null,null,null,null,null,null,null,null,null,null,null,null,null,null,null,null,null,null,null,null,null,null,null,null,null,null,null,null,null,{"$error":"#NUM!"},{"$error":"#NUM!"},{"$error":"#NUM!"},0,0,0,0]
[null,null,null,null,null,null,null,null,null,null,null,null,null,null,null,null,null,null,null,null,null,null,null,null,null,null,null,null,null,null,null,{"$error":"#NUM!"},{"$error":"#NUM!"},{"$error":"#NUM!"},0,0,0,0]
[null,null,null,null,null,null,null,null,null,null,null,null,null,null,null,null,null,null,null,null,null,null,null,null,null,null,null,null,null,null,null,{"$error":"#NUM!"},{"$error":"#NUM!"},{"$error":"#NUM!"},0,0,0,0]
[null,null,null,null,null,null,null,null,null,null,null,null,null,null,null,null,null,null,null,null,null,null,null,null,null,null,null,null,null,null,null,{"$error":"#NUM!"},{"$error":"#NUM!"},{"$error":"#NUM!"},0,0,0,0]
[null,null,null,null,null,null,null,null,null,null,null,null,null,null,null,null,null,null,null,null,null,null,null,null,null,null,null,null,null,null,null,{"$error":"#NUM!"},{"$error":"#NUM!"},{"$error":"#NUM!"},0,0,0,0]
[null,null,null,null,null,null,null,null,null,null,null,null,null,null,null,null,null,null,null,null,null,null,null,null,null,null,null,null,null,null,null,{"$error":"#NUM!"},{"$error":"#NUM!"},{"$error":"#NUM!"},0,0,0,0]
[null,null,null,null,null,null,null,null,null,null,null,null,null,null,null,null,null,null,null,null,null,null,null,null,null,null,null,null,null,null,null,{"$error":"#NUM!"},{"$error":"#NUM!"},{"$error":"#NUM!"},0,0,0,0]
[null,null,null,null,null,null,null,null,null,null,null,null,null,null,null,null,null,null,null,null,null,null,null,null,null,null,null,null,null,null,null,{"$error":"#NUM!"},{"$error":"#NUM!"},{"$error":"#NUM!"},0,0,0,0]
[null,null,null,null,null,null,null,null,null,null,null,null,null,null,null,null,null,null,null,null,null,null,null,null,null,null,null,null,null,null,null,{"$error":"#NUM!"},{"$error":"#NUM!"},{"$error":"#NUM!"},0,0,0,0]
[null,null,null,null,null,null,null,null,null,null,null,null,null,null,null,null,null,null,null,null,null,null,null,null,null,null,null,null,null,null,null,{"$error":"#NUM!"},{"$error":"#NUM!"},{"$error":"#NUM!"},0,0,0,0]
[null,null,null,null,null,null,null,null,null,null,null,null,null,null,null,null,null,null,null,null,null,null,null,null,null,null,null,null,null,null,null,{"$error":"#NUM!"},{"$error":"#NUM!"},{"$error":"#NUM!"},0,0,0,0]
[null,null,null,null,null,null,null,null,null,null,null,null,null,null,null,null,null,null,null,null,null,null,null,null,null,null,null,null,null,null,null,{"$error":"#NUM!"},{"$error":"#NUM!"},{"$error":"#NUM!"},0,0,0,0]
[null,null,null,null,null,null,null,null,null,null,null,null,null,null,null,null,null,null,null,null,null,null,null,null,null,null,null,null,null,null,null,{"$error":"#NUM!"},{"$error":"#NUM!"},{"$error":"#NUM!"},0,0,0,0]
[null,null,null,null,null,null,null,null,null,null,null,null,null,null,null,null,null,null,null,null,null,null,null,null,null,null,null,null,null,null,null,{"$error":"#NUM!"},{"$error":"#NUM!"},{"$error":"#NUM!"},0,0,0,0]
[null,null,null,null,null,null,null,null,null,null,null,null,null,null,null,null,null,null,null,null,null,null,null,null,null,null,null,null,null,null,null,{"$error":"#NUM!"},{"$error":"#NUM!"},{"$error":"#NUM!"},0,0,0,0]
[null,null,null,null,null,null,null,null,null,null,null,null,null,null,null,null,null,null,null,null,null,null,null,null,null,null,null,null,null,null,null,{"$error":"#NUM!"},{"$error":"#NUM!"},{"$error":"#NUM!"},0,0,0,0]
[null,null,null,null,null,null,null,null,null,null,null,null,null,null,null,null,null,null,null,null,null,null,null,null,null,null,null,null,null,null,null,{"$error":"#NUM!"},{"$error":"#NUM!"},{"$error":"#NUM!"},0,0,0,0]
[null,null,null,null,null,null,null,null,null,null,null,null,null,null,null,null,null,null,null,null,null,null,null,null,null,null,null,null,null,null,null,{"$error":"#NUM!"},{"$error":"#NUM!"},{"$error":"#NUM!"},0,0,0,0]
[null,null,null,null,null,null,null,null,null,null,null,null,null,null,null,null,null,null,null,null,null,null,null,null,null,null,null,null,null,null,null,{"$error":"#NUM!"},{"$error":"#NUM!"},{"$error":"#NUM!"},0,0,0,0]
[null,null,null,null,null,null,null,null,null,null,null,null,null,null,null,null,null,null,null,null,null,null,null,null,null,null,null,null,null,null,null,{"$error":"#NUM!"},{"$error":"#NUM!"},{"$error":"#NUM!"},0,0,0,0]
[null,null,null,null,null,null,null,null,null,null,null,null,null,null,null,null,null,null,null,null,null,null,null,null,null,null,null,null,null,null,null,{"$error":"#NUM!"},{"$error":"#NUM!"},{"$error":"#NUM!"},0,0,0,0]
[null,null,null,null,null,null,null,null,null,null,null,null,null,null,null,null,null,null,null,null,null,null,null,null,null,null,null,null,null,null,null,{"$error":"#NUM!"},{"$error":"#NUM!"},{"$error":"#NUM!"},0,0,0,0]
[null,null,null,null,null,null,null,null,null,null,null,null,null,null,null,null,null,null,null,null,null,null,null,null,null,null,null,null,null,null,null,{"$error":"#NUM!"},{"$error":"#NUM!"},{"$error":"#NUM!"},0,0,0,0]
[null,null,null,null,null,null,null,null,null,null,null,null,null,null,null,null,null,null,null,null,null,null,null,null,null,null,null,null,null,null,null,{"$f":"1/((0.0010295+0.0002391*LOG(I318*1000)+0.0000001568*LOG(I318*1000)^3))","v":{"$error":"#NUM!"}},{"$f":"1/((0.0010295+0.0002391*LOG(J318*1000)+0.0000001568*LOG(J318*1000)^3))","v":{"$error":"#NUM!"}},{"$f":"($AE$5*G318)+$AE$6*((1*(AF318^4))+($AE$9*((AF318^4)-(AG318^4))))","v":{"$error":"#NUM!"}},{"$f":"1000*(M318/$AE$10)","v":0},{"$f":"1000*(O318/$AE$11)","v":0},{"$f":"1000*(Q318/$AE$12)","v":0},{"$f":"1000*(K318/$AE$14)","v":0}]
[null,null,null,null,null,null,null,null,null,null,null,null,null,null,null,null,null,null,null,null,null,null,null,null,null,null,null,null,null,null,null,{"$error":"#NUM!"},{"$error":"#NUM!"},{"$error":"#NUM!"},0,0,0,0]
[null,null,null,null,null,null,null,null,null,null,null,null,null,null,null,null,null,null,null,null,null,null,null,null,null,null,null,null,null,null,null,{"$error":"#NUM!"},{"$error":"#NUM!"},{"$error":"#NUM!"},0,0,0,0]
[null,null,null,null,null,null,null,null,null,null,null,null,null,null,null,null,null,null,null,null,null,null,null,null,null,null,null,null,null,null,null,{"$error":"#NUM!"},{"$error":"#NUM!"},{"$error":"#NUM!"},0,0,0,0]
[null,null,null,null,null,null,null,null,null,null,null,null,null,null,null,null,null,null,null,null,null,null,null,null,null,null,null,null,null,null,null,{"$error":"#NUM!"},{"$error":"#NUM!"},{"$error":"#NUM!"},0,0,0,0]
[null,null,null,null,null,null,null,null,null,null,null,null,null,null,null,null,null,null,null,null,null,null,null,null,null,null,null,null,null,null,null,{"$error":"#NUM!"},{"$error":"#NUM!"},{"$error":"#NUM!"},0,0,0,0]
[null,null,null,null,null,null,null,null,null,null,null,null,null,null,null,null,null,null,null,null,null,null,null,null,null,null,null,null,null,null,null,{"$error":"#NUM!"},{"$error":"#NUM!"},{"$error":"#NUM!"},0,0,0,0]
[null,null,null,null,null,null,null,null,null,null,null,null,null,null,null,null,null,null,null,null,null,null,null,null,null,null,null,null,null,null,null,{"$error":"#NUM!"},{"$error":"#NUM!"},{"$error":"#NUM!"},0,0,0,0]
[null,null,null,null,null,null,null,null,null,null,null,null,null,null,null,null,null,null,null,null,null,null,null,null,null,null,null,null,null,null,null,{"$error":"#NUM!"},{"$error":"#NUM!"},{"$error":"#NUM!"},0,0,0,0]
[null,null,null,null,null,null,null,null,null,null,null,null,null,null,null,null,null,null,null,null,null,null,null,null,null,null,null,null,null,null,null,{"$error":"#NUM!"},{"$error":"#NUM!"},{"$error":"#NUM!"},0,0,0,0]
[null,null,null,null,null,null,null,null,null,null,null,null,null,null,null,null,null,null,null,null,null,null,null,null,null,null,null,null,null,null,null,{"$error":"#NUM!"},{"$error":"#NUM!"},{"$error":"#NUM!"},0,0,0,0]
[null,null,null,null,null,null,null,null,null,null,null,null,null,null,null,null,null,null,null,null,null,null,null,null,null,null,null,null,null,null,null,{"$error":"#NUM!"},{"$error":"#NUM!"},{"$error":"#NUM!"},0,0,0,0]
[null,null,null,null,null,null,null,null,null,null,null,null,null,null,null,null,null,null,null,null,null,null,null,null,null,null,null,null,null,null,null,{"$error":"#NUM!"},{"$error":"#NUM!"},{"$error":"#NUM!"},0,0,0,0]
[null,null,null,null,null,null,null,null,null,null,null,null,null,null,null,null,null,null,null,null,null,null,null,null,null,null,null,null,null,null,null,{"$error":"#NUM!"},{"$error":"#NUM!"},{"$error":"#NUM!"},0,0,0,0]
[null,null,null,null,null,null,null,null,null,null,null,null,null,null,null,null,null,null,null,null,null,null,null,null,null,null,null,null,null,null,null,{"$error":"#NUM!"},{"$error":"#NUM!"},{"$error":"#NUM!"},0,0,0,0]
[null,null,null,null,null,null,null,null,null,null,null,null,null,null,null,null,null,null,null,null,null,null,null,null,null,null,null,null,null,null,null,{"$error":"#NUM!"},{"$error":"#NUM!"},{"$error":"#NUM!"},0,0,0,0]
[null,null,null,null,null,null,null,null,null,null,null,null,null,null,null,null,null,null,null,null,null,null,null,null,null,null,null,null,null,null,null,{"$error":"#NUM!"},{"$error":"#NUM!"},{"$error":"#NUM!"},0,0,0,0]
[null,null,null,null,null,null,null,null,null,null,null,null,null,null,null,null,null,null,null,null,null,null,null,null,null,null,null,null,null,null,null,{"$error":"#NUM!"},{"$error":"#NUM!"},{"$error":"#NUM!"},0,0,0,0]
[null,null,null,null,null,null,null,null,null,null,null,null,null,null,null,null,null,null,null,null,null,null,null,null,null,null,null,null,null,null,null,{"$error":"#NUM!"},{"$error":"#NUM!"},{"$error":"#NUM!"},0,0,0,0]
[null,null,null,null,null,null,null,null,null,null,null,null,null,null,null,null,null,null,null,null,null,null,null,null,null,null,null,null,null,null,null,{"$error":"#NUM!"},{"$error":"#NUM!"},{"$error":"#NUM!"},0,0,0,0]
[null,null,null,null,null,null,null,null,null,null,null,null,null,null,null,null,null,null,null,null,null,null,null,null,null,null,null,null,null,null,null,{"$error":"#NUM!"},{"$error":"#NUM!"},{"$error":"#NUM!"},0,0,0,0]
[null,null,null,null,null,null,null,null,null,null,null,null,null,null,null,null,null,null,null,null,null,null,null,null,null,null,null,null,null,null,null,{"$error":"#NUM!"},{"$error":"#NUM!"},{"$error":"#NUM!"},0,0,0,0]
[null,null,null,null,null,null,null,null,null,null,null,null,null,null,null,null,null,null,null,null,null,null,null,null,null,null,null,null,null,null,null,{"$error":"#NUM!"},{"$error":"#NUM!"},{"$error":"#NUM!"},0,0,0,0]
[null,null,null,null,null,null,null,null,null,null,null,null,null,null,null,null,null,null,null,null,null,null,null,null,null,null,null,null,null,null,null,{"$error":"#NUM!"},{"$error":"#NUM!"},{"$error":"#NUM!"},0,0,0,0]
[null,null,null,null,null,null,null,null,null,null,null,null,null,null,null,null,null,null,null,null,null,null,null,null,null,null,null,null,null,null,null,{"$error":"#NUM!"},{"$error":"#NUM!"},{"$error":"#NUM!"},0,0,0,0]
[null,null,null,null,null,null,null,null,null,null,null,null,null,null,null,null,null,null,null,null,null,null,null,null,null,null,null,null,null,null,null,{"$error":"#NUM!"},{"$error":"#NUM!"},{"$error":"#NUM!"},0,0,0,0]
[null,null,null,null,null,null,null,null,null,null,null,null,null,null,null,null,null,null,null,null,null,null,null,null,null,null,null,null,null,null,null,{"$error":"#NUM!"},{"$error":"#NUM!"},{"$error":"#NUM!"},0,0,0,0]
[null,null,null,null,null,null,null,null,null,null,null,null,null,null,null,null,null,null,null,null,null,null,null,null,null,null,null,null,null,null,null,{"$error":"#NUM!"},{"$error":"#NUM!"},{"$error":"#NUM!"},0,0,0,0]
[null,null,null,null,null,null,null,null,null,null,null,null,null,null,null,null,null,null,null,null,null,null,null,null,null,null,null,null,null,null,null,{"$error":"#NUM!"},{"$error":"#NUM!"},{"$error":"#NUM!"},0,0,0,0]
[null,null,null,null,null,null,null,null,null,null,null,null,null,null,null,null,null,null,null,null,null,null,null,null,null,null,null,null,null,null,null,{"$error":"#NUM!"},{"$error":"#NUM!"},{"$error":"#NUM!"},0,0,0,0]
[null,null,null,null,null,null,null,null,null,null,null,null,null,null,null,null,null,null,null,null,null,null,null,null,null,null,null,null,null,null,null,{"$error":"#NUM!"},{"$error":"#NUM!"},{"$error":"#NUM!"},0,0,0,0]
[null,null,null,null,null,null,null,null,null,null,null,null,null,null,null,null,null,null,null,null,null,null,null,null,null,null,null,null,null,null,null,{"$error":"#NUM!"},{"$error":"#NUM!"},{"$error":"#NUM!"},0,0,0,0]
[null,null,null,null,null,null,null,null,null,null,null,null,null,null,null,null,null,null,null,null,null,null,null,null,null,null,null,null,null,null,null,{"$error":"#NUM!"},{"$error":"#NUM!"},{"$error":"#NUM!"},0,0,0,0]
[null,null,null,null,null,null,null,null,null,null,null,null,null,null,null,null,null,null,null,null,null,null,null,null,null,null,null,null,null,null,null,{"$error":"#NUM!"},{"$error":"#NUM!"},{"$error":"#NUM!"},0,0,0,0]
[null,null,null,null,null,null,null,null,null,null,null,null,null,null,null,null,null,null,null,null,null,null,null,null,null,null,null,null,null,null,null,{"$error":"#NUM!"},{"$error":"#NUM!"},{"$error":"#NUM!"},0,0,0,0]
[null,null,null,null,null,null,null,null,null,null,null,null,null,null,null,null,null,null,null,null,null,null,null,null,null,null,null,null,null,null,null,{"$error":"#NUM!"},{"$error":"#NUM!"},{"$error":"#NUM!"},0,0,0,0]
[null,null,null,null,null,null,null,null,null,null,null,null,null,null,null,null,null,null,null,null,null,null,null,null,null,null,null,null,null,null,null,{"$error":"#NUM!"},{"$error":"#NUM!"},{"$error":"#NUM!"},0,0,0,0]
[null,null,null,null,null,null,null,null,null,null,null,null,null,null,null,null,null,null,null,null,null,null,null,null,null,null,null,null,null,null,null,{"$error":"#NUM!"},{"$error":"#NUM!"},{"$error":"#NUM!"},0,0,0,0]
[null,null,null,null,null,null,null,null,null,null,null,null,null,null,null,null,null,null,null,null,null,null,null,null,null,null,null,null,null,null,null,{"$error":"#NUM!"},{"$error":"#NUM!"},{"$error":"#NUM!"},0,0,0,0]
[null,null,null,null,null,null,null,null,null,null,null,null,null,null,null,null,null,null,null,null,null,null,null,null,null,null,null,null,null,null,null,{"$error":"#NUM!"},{"$error":"#NUM!"},{"$error":"#NUM!"},0,0,0,0]
[null,null,null,null,null,null,null,null,null,null,null,null,null,null,null,null,null,null,null,null,null,null,null,null,null,null,null,null,null,null,null,{"$error":"#NUM!"},{"$error":"#NUM!"},{"$error":"#NUM!"},0,0,0,0]
[null,null,null,null,null,null,null,null,null,null,null,null,null,null,null,null,null,null,null,null,null,null,null,null,null,null,null,null,null,null,null,{"$error":"#NUM!"},{"$error":"#NUM!"},{"$error":"#NUM!"},0,0,0,0]
[null,null,null,null,null,null,null,null,null,null,null,null,null,null,null,null,null,null,null,null,null,null,null,null,null,null,null,null,null,null,null,{"$error":"#NUM!"},{"$error":"#NUM!"},{"$error":"#NUM!"},0,0,0,0]
[null,null,null,null,null,null,null,null,null,null,null,null,null,null,null,null,null,null,null,null,null,null,null,null,null,null,null,null,null,null,null,{"$error":"#NUM!"},{"$error":"#NUM!"},{"$error":"#NUM!"},0,0,0,0]
[null,null,null,null,null,null,null,null,null,null,null,null,null,null,null,null,null,null,null,null,null,null,null,null,null,null,null,null,null,null,null,{"$error":"#NUM!"},{"$error":"#NUM!"},{"$error":"#NUM!"},0,0,0,0]
[null,null,null,null,null,null,null,null,null,null,null,null,null,null,null,null,null,null,null,null,null,null,null,null,null,null,null,null,null,null,null,{"$error":"#NUM!"},{"$error":"#NUM!"},{"$error":"#NUM!"},0,0,0,0]
[null,null,null,null,null,null,null,null,null,null,null,null,null,null,null,null,null,null,null,null,null,null,null,null,null,null,null,null,null,null,null,{"$error":"#NUM!"},{"$error":"#NUM!"},{"$error":"#NUM!"},0,0,0,0]
[null,null,null,null,null,null,null,null,null,null,null,null,null,null,null,null,null,null,null,null,null,null,null,null,null,null,null,null,null,null,null,{"$error":"#NUM!"},{"$error":"#NUM!"},{"$error":"#NUM!"},0,0,0,0]
[null,null,null,null,null,null,null,null,null,null,null,null,null,null,null,null,null,null,null,null,null,null,null,null,null,null,null,null,null,null,null,{"$error":"#NUM!"},{"$error":"#NUM!"},{"$error":"#NUM!"},0,0,0,0]
[null,null,null,null,null,null,null,null,null,null,null,null,null,null,null,null,null,null,null,null,null,null,null,null,null,null,null,null,null,null,null,{"$error":"#NUM!"},{"$error":"#NUM!"},{"$error":"#NUM!"},0,0,0,0]
[null,null,null,null,null,null,null,null,null,null,null,null,null,null,null,null,null,null,null,null,null,null,null,null,null,null,null,null,null,null,null,{"$error":"#NUM!"},{"$error":"#NUM!"},{"$error":"#NUM!"},0,0,0,0]
[null,null,null,null,null,null,null,null,null,null,null,null,null,null,null,null,null,null,null,null,null,null,null,null,null,null,null,null,null,null,null,{"$error":"#NUM!"},{"$error":"#NUM!"},{"$error":"#NUM!"},0,0,0,0]
[null,null,null,null,null,null,null,null,null,null,null,null,null,null,null,null,null,null,null,null,null,null,null,null,null,null,null,null,null,null,null,{"$error":"#NUM!"},{"$error":"#NUM!"},{"$error":"#NUM!"},0,0,0,0]
[null,null,null,null,null,null,null,null,null,null,null,null,null,null,null,null,null,null,null,null,null,null,null,null,null,null,null,null,null,null,null,{"$error":"#NUM!"},{"$error":"#NUM!"},{"$error":"#NUM!"},0,0,0,0]
[null,null,null,null,null,null,null,null,null,null,null,null,null,null,null,null,null,null,null,null,null,null,null,null,null,null,null,null,null,null,null,{"$error":"#NUM!"},{"$error":"#NUM!"},{"$error":"#NUM!"},0,0,0,0]
[null,null,null,null,null,null,null,null,null,null,null,null,null,null,null,null,null,null,null,null,null,null,null,null,null,null,null,null,null,null,null,{"$error":"#NUM!"},{"$error":"#NUM!"},{"$error":"#NUM!"},0,0,0,0]
[null,null,null,null,null,null,null,null,null,null,null,null,null,null,null,null,null,null,null,null,null,null,null,null,null,null,null,null,null,null,null,{"$error":"#NUM!"},{"$error":"#NUM!"},{"$error":"#NUM!"},0,0,0,0]
[null,null,null,null,null,null,null,null,null,null,null,null,null,null,null,null,null,null,null,null,null,null,null,null,null,null,null,null,null,null,null,{"$error":"#NUM!"},{"$error":"#NUM!"},{"$error":"#NUM!"},0,0,0,0]
[null,null,null,null,null,null,null,null,null,null,null,null,null,null,null,null,null,null,null,null,null,null,null,null,null,null,null,null,null,null,null,{"$error":"#NUM!"},{"$error":"#NUM!"},{"$error":"#NUM!"},0,0,0,0]
[null,null,null,null,null,null,null,null,null,null,null,null,null,null,null,null,null,null,null,null,null,null,null,null,null,null,null,null,null,null,null,{"$error":"#NUM!"},{"$error":"#NUM!"},{"$error":"#NUM!"},0,0,0,0]
[null,null,null,null,null,null,null,null,null,null,null,null,null,null,null,null,null,null,null,null,null,null,null,null,null,null,null,null,null,null,null,{"$error":"#NUM!"},{"$error":"#NUM!"},{"$error":"#NUM!"},0,0,0,0]
[null,null,null,null,null,null,null,null,null,null,null,null,null,null,null,null,null,null,null,null,null,null,null,null,null,null,null,null,null,null,null,{"$error":"#NUM!"},{"$error":"#NUM!"},{"$error":"#NUM!"},0,0,0,0]
[null,null,null,null,null,null,null,null,null,null,null,null,null,null,null,null,null,null,null,null,null,null,null,null,null,null,null,null,null,null,null,{"$error":"#NUM!"},{"$error":"#NUM!"},{"$error":"#NUM!"},0,0,0,0]
[null,null,null,null,null,null,null,null,null,null,null,null,null,null,null,null,null,null,null,null,null,null,null,null,null,null,null,null,null,null,null,{"$error":"#NUM!"},{"$error":"#NUM!"},{"$error":"#NUM!"},0,0,0,0]
[null,null,null,null,null,null,null,null,null,null,null,null,null,null,null,null,null,null,null,null,null,null,null,null,null,null,null,null,null,null,null,{"$f":"1/((0.0010295+0.0002391*LOG(I382*1000)+0.0000001568*LOG(I382*1000)^3))","v":{"$error":"#NUM!"}},{"$f":"1/((0.0010295+0.0002391*LOG(J382*1000)+0.0000001568*LOG(J382*1000)^3))","v":{"$error":"#NUM!"}},{"$f":"($AE$5*G382)+$AE$6*((1*(AF382^4))+($AE$9*((AF382^4)-(AG382^4))))","v":{"$error":"#NUM!"}},{"$f":"1000*(M382/$AE$10)","v":0},{"$f":"1000*(O382/$AE$11)","v":0},{"$f":"1000*(Q382/$AE$12)","v":0},{"$f":"1000*(K382/$AE$14)","v":0}]
[null,null,null,null,null,null,null,null,null,null,null,null,null,null,null,null,null,null,null,null,null,null,null,null,null,null,null,null,null,null,null,{"$error":"#NUM!"},{"$error":"#NUM!"},{"$error":"#NUM!"},0,0,0,0]
[null,null,null,null,null,null,null,null,null,null,null,null,null,null,null,null,null,null,null,null,null,null,null,null,null,null,null,null,null,null,null,{"$error":"#NUM!"},{"$error":"#NUM!"},{"$error":"#NUM!"},0,0,0,0]
[null,null,null,null,null,null,null,null,null,null,null,null,null,null,null,null,null,null,null,null,null,null,null,null,null,null,null,null,null,null,null,{"$error":"#NUM!"},{"$error":"#NUM!"},{"$error":"#NUM!"},0,0,0,0]
[null,null,null,null,null,null,null,null,null,null,null,null,null,null,null,null,null,null,null,null,null,null,null,null,null,null,null,null,null,null,null,{"$error":"#NUM!"},{"$error":"#NUM!"},{"$error":"#NUM!"},0,0,0,0]
[null,null,null,null,null,null,null,null,null,null,null,null,null,null,null,null,null,null,null,null,null,null,null,null,null,null,null,null,null,null,null,{"$error":"#NUM!"},{"$error":"#NUM!"},{"$error":"#NUM!"},0,0,0,0]
[null,null,null,null,null,null,null,null,null,null,null,null,null,null,null,null,null,null,null,null,null,null,null,null,null,null,null,null,null,null,null,{"$error":"#NUM!"},{"$error":"#NUM!"},{"$error":"#NUM!"},0,0,0,0]
[null,null,null,null,null,null,null,null,null,null,null,null,null,null,null,null,null,null,null,null,null,null,null,null,null,null,null,null,null,null,null,{"$error":"#NUM!"},{"$error":"#NUM!"},{"$error":"#NUM!"},0,0,0,0]
[null,null,null,null,null,null,null,null,null,null,null,null,null,null,null,null,null,null,null,null,null,null,null,null,null,null,null,null,null,null,null,{"$error":"#NUM!"},{"$error":"#NUM!"},{"$error":"#NUM!"},0,0,0,0]
[null,null,null,null,null,null,null,null,null,null,null,null,null,null,null,null,null,null,null,null,null,null,null,null,null,null,null,null,null,null,null,{"$error":"#NUM!"},{"$error":"#NUM!"},{"$error":"#NUM!"},0,0,0,0]
[null,null,null,null,null,null,null,null,null,null,null,null,null,null,null,null,null,null,null,null,null,null,null,null,null,null,null,null,null,null,null,{"$error":"#NUM!"},{"$error":"#NUM!"},{"$error":"#NUM!"},0,0,0,0]
[null,null,null,null,null,null,null,null,null,null,null,null,null,null,null,null,null,null,null,null,null,null,null,null,null,null,null,null,null,null,null,{"$error":"#NUM!"},{"$error":"#NUM!"},{"$error":"#NUM!"},0,0,0,0]
[null,null,null,null,null,null,null,null,null,null,null,null,null,null,null,null,null,null,null,null,null,null,null,null,null,null,null,null,null,null,null,{"$error":"#NUM!"},{"$error":"#NUM!"},{"$error":"#NUM!"},0,0,0,0]
[null,null,null,null,null,null,null,null,null,null,null,null,null,null,null,null,null,null,null,null,null,null,null,null,null,null,null,null,null,null,null,{"$error":"#NUM!"},{"$error":"#NUM!"},{"$error":"#NUM!"},0,0,0,0]
[null,null,null,null,null,null,null,null,null,null,null,null,null,null,null,null,null,null,null,null,null,null,null,null,null,null,null,null,null,null,null,{"$error":"#NUM!"},{"$error":"#NUM!"},{"$error":"#NUM!"},0,0,0,0]
[null,null,null,null,null,null,null,null,null,null,null,null,null,null,null,null,null,null,null,null,null,null,null,null,null,null,null,null,null,null,null,{"$error":"#NUM!"},{"$error":"#NUM!"},{"$error":"#NUM!"},0,0,0,0]
[null,null,null,null,null,null,null,null,null,null,null,null,null,null,null,null,null,null,null,null,null,null,null,null,null,null,null,null,null,null,null,{"$error":"#NUM!"},{"$error":"#NUM!"},{"$error":"#NUM!"},0,0,0,0]
[null,null,null,null,null,null,null,null,null,null,null,null,null,null,null,null,null,null,null,null,null,null,null,null,null,null,null,null,null,null,null,{"$error":"#NUM!"},{"$error":"#NUM!"},{"$error":"#NUM!"},0,0,0,0]
[null,null,null,null,null,null,null,null,null,null,null,null,null,null,null,null,null,null,null,null,null,null,null,null,null,null,null,null,null,null,null,{"$error":"#NUM!"},{"$error":"#NUM!"},{"$error":"#NUM!"},0,0,0,0]
[null,null,null,null,null,null,null,null,null,null,null,null,null,null,null,null,null,null,null,null,null,null,null,null,null,null,null,null,null,null,null,{"$error":"#NUM!"},{"$error":"#NUM!"},{"$error":"#NUM!"},0,0,0,0]
[null,null,null,null,null,null,null,null,null,null,null,null,null,null,null,null,null,null,null,null,null,null,null,null,null,null,null,null,null,null,null,{"$error":"#NUM!"},{"$error":"#NUM!"},{"$error":"#NUM!"},0,0,0,0]
[null,null,null,null,null,null,null,null,null,null,null,null,null,null,null,null,null,null,null,null,null,null,null,null,null,null,null,null,null,null,null,{"$error":"#NUM!"},{"$error":"#NUM!"},{"$error":"#NUM!"},0,0,0,0]
[null,null,null,null,null,null,null,null,null,null,null,null,null,null,null,null,null,null,null,null,null,null,null,null,null,null,null,null,null,null,null,{"$error":"#NUM!"},{"$error":"#NUM!"},{"$error":"#NUM!"},0,0,0,0]
[null,null,null,null,null,null,null,null,null,null,null,null,null,null,null,null,null,null,null,null,null,null,null,null,null,null,null,null,null,null,null,{"$error":"#NUM!"},{"$error":"#NUM!"},{"$error":"#NUM!"},0,0,0,0]
[null,null,null,null,null,null,null,null,null,null,null,null,null,null,null,null,null,null,null,null,null,null,null,null,null,null,null,null,null,null,null,{"$error":"#NUM!"},{"$error":"#NUM!"},{"$error":"#NUM!"},0,0,0,0]
[null,null,null,null,null,null,null,null,null,null,null,null,null,null,null,null,null,null,null,null,null,null,null,null,null,null,null,null,null,null,null,{"$error":"#NUM!"},{"$error":"#NUM!"},{"$error":"#NUM!"},0,0,0,0]
[null,null,null,null,null,null,null,null,null,null,null,null,null,null,null,null,null,null,null,null,null,null,null,null,null,null,null,null,null,null,null,{"$error":"#NUM!"},{"$error":"#NUM!"},{"$error":"#NUM!"},0,0,0,0]
[null,null,null,null,null,null,null,null,null,null,null,null,null,null,null,null,null,null,null,null,null,null,null,null,null,null,null,null,null,null,null,{"$error":"#NUM!"},{"$error":"#NUM!"},{"$error":"#NUM!"},0,0,0,0]
[null,null,null,null,null,null,null,null,null,null,null,null,null,null,null,null,null,null,null,null,null,null,null,null,null,null,null,null,null,null,null,{"$error":"#NUM!"},{"$error":"#NUM!"},{"$error":"#NUM!"},0,0,0,0]
[null,null,null,null,null,null,null,null,null,null,null,null,null,null,null,null,null,null,null,null,null,null,null,null,null,null,null,null,null,null,null,{"$error":"#NUM!"},{"$error":"#NUM!"},{"$error":"#NUM!"},0,0,0,0]
[null,null,null,null,null,null,null,null,null,null,null,null,null,null,null,null,null,null,null,null,null,null,null,null,null,null,null,null,null,null,null,{"$error":"#NUM!"},{"$error":"#NUM!"},{"$error":"#NUM!"},0,0,0,0]
[null,null,null,null,null,null,null,null,null,null,null,null,null,null,null,null,null,null,null,null,null,null,null,null,null,null,null,null,null,null,null,{"$error":"#NUM!"},{"$error":"#NUM!"},{"$error":"#NUM!"},0,0,0,0]
[null,null,null,null,null,null,null,null,null,null,null,null,null,null,null,null,null,null,null,null,null,null,null,null,null,null,null,null,null,null,null,{"$error":"#NUM!"},{"$error":"#NUM!"},{"$error":"#NUM!"},0,0,0,0]
[null,null,null,null,null,null,null,null,null,null,null,null,null,null,null,null,null,null,null,null,null,null,null,null,null,null,null,null,null,null,null,{"$error":"#NUM!"},{"$error":"#NUM!"},{"$error":"#NUM!"},0,0,0,0]
[null,null,null,null,null,null,null,null,null,null,null,null,null,null,null,null,null,null,null,null,null,null,null,null,null,null,null,null,null,null,null,{"$error":"#NUM!"},{"$error":"#NUM!"},{"$error":"#NUM!"},0,0,0,0]
[null,null,null,null,null,null,null,null,null,null,null,null,null,null,null,null,null,null,null,null,null,null,null,null,null,null,null,null,null,null,null,{"$error":"#NUM!"},{"$error":"#NUM!"},{"$error":"#NUM!"},0,0,0,0]
[null,null,null,null,null,null,null,null,null,null,null,null,null,null,null,null,null,null,null,null,null,null,null,null,null,null,null,null,null,null,null,{"$error":"#NUM!"},{"$error":"#NUM!"},{"$error":"#NUM!"},0,0,0,0]
[null,null,null,null,null,null,null,null,null,null,null,null,null,null,null,null,null,null,null,null,null,null,null,null,null,null,null,null,null,null,null,{"$error":"#NUM!"},{"$error":"#NUM!"},{"$error":"#NUM!"},0,0,0,0]
[null,null,null,null,null,null,null,null,null,null,null,null,null,null,null,null,null,null,null,null,null,null,null,null,null,null,null,null,null,null,null,{"$error":"#NUM!"},{"$error":"#NUM!"},{"$error":"#NUM!"},0,0,0,0]
[null,null,null,null,null,null,null,null,null,null,null,null,null,null,null,null,null,null,null,null,null,null,null,null,null,null,null,null,null,null,null,{"$error":"#NUM!"},{"$error":"#NUM!"},{"$error":"#NUM!"},0,0,0,0]
[null,null,null,null,null,null,null,null,null,null,null,null,null,null,null,null,null,null,null,null,null,null,null,null,null,null,null,null,null,null,null,{"$error":"#NUM!"},{"$error":"#NUM!"},{"$error":"#NUM!"},0,0,0,0]
[null,null,null,null,null,null,null,null,null,null,null,null,null,null,null,null,null,null,null,null,null,null,null,null,null,null,null,null,null,null,null,{"$error":"#NUM!"},{"$error":"#NUM!"},{"$error":"#NUM!"},0,0,0,0]
[null,null,null,null,null,null,null,null,null,null,null,null,null,null,null,null,null,null,null,null,null,null,null,null,null,null,null,null,null,null,null,{"$error":"#NUM!"},{"$error":"#NUM!"},{"$error":"#NUM!"},0,0,0,0]
[null,null,null,null,null,null,null,null,null,null,null,null,null,null,null,null,null,null,null,null,null,null,null,null,null,null,null,null,null,null,null,{"$error":"#NUM!"},{"$error":"#NUM!"},{"$error":"#NUM!"},0,0,0,0]
[null,null,null,null,null,null,null,null,null,null,null,null,null,null,null,null,null,null,null,null,null,null,null,null,null,null,null,null,null,null,null,{"$error":"#NUM!"},{"$error":"#NUM!"},{"$error":"#NUM!"},0,0,0,0]
[null,null,null,null,null,null,null,null,null,null,null,null,null,null,null,null,null,null,null,null,null,null,null,null,null,null,null,null,null,null,null,{"$error":"#NUM!"},{"$error":"#NUM!"},{"$error":"#NUM!"},0,0,0,0]
[null,null,null,null,null,null,null,null,null,null,null,null,null,null,null,null,null,null,null,null,null,null,null,null,null,null,null,null,null,null,null,{"$error":"#NUM!"},{"$error":"#NUM!"},{"$error":"#NUM!"},0,0,0,0]
[null,null,null,null,null,null,null,null,null,null,null,null,null,null,null,null,null,null,null,null,null,null,null,null,null,null,null,null,null,null,null,{"$error":"#NUM!"},{"$error":"#NUM!"},{"$error":"#NUM!"},0,0,0,0]
[null,null,null,null,null,null,null,null,null,null,null,null,null,null,null,null,null,null,null,null,null,null,null,null,null,null,null,null,null,null,null,{"$error":"#NUM!"},{"$error":"#NUM!"},{"$error":"#NUM!"},0,0,0,0]
[null,null,null,null,null,null,null,null,null,null,null,null,null,null,null,null,null,null,null,null,null,null,null,null,null,null,null,null,null,null,null,{"$error":"#NUM!"},{"$error":"#NUM!"},{"$error":"#NUM!"},0,0,0,0]
[null,null,null,null,null,null,null,null,null,null,null,null,null,null,null,null,null,null,null,null,null,null,null,null,null,null,null,null,null,null,null,{"$error":"#NUM!"},{"$error":"#NUM!"},{"$error":"#NUM!"},0,0,0,0]
[null,null,null,null,null,null,null,null,null,null,null,null,null,null,null,null,null,null,null,null,null,null,null,null,null,null,null,null,null,null,null,{"$error":"#NUM!"},{"$error":"#NUM!"},{"$error":"#NUM!"},0,0,0,0]
[null,null,null,null,null,null,null,null,null,null,null,null,null,null,null,null,null,null,null,null,null,null,null,null,null,null,null,null,null,null,null,{"$error":"#NUM!"},{"$error":"#NUM!"},{"$error":"#NUM!"},0,0,0,0]
[null,null,null,null,null,null,null,null,null,null,null,null,null,null,null,null,null,null,null,null,null,null,null,null,null,null,null,null,null,null,null,{"$error":"#NUM!"},{"$error":"#NUM!"},{"$error":"#NUM!"},0,0,0,0]
[null,null,null,null,null,null,null,null,null,null,null,null,null,null,null,null,null,null,null,null,null,null,null,null,null,null,null,null,null,null,null,{"$error":"#NUM!"},{"$error":"#NUM!"},{"$error":"#NUM!"},0,0,0,0]
[null,null,null,null,null,null,null,null,null,null,null,null,null,null,null,null,null,null,null,null,null,null,null,null,null,null,null,null,null,null,null,{"$error":"#NUM!"},{"$error":"#NUM!"},{"$error":"#NUM!"},0,0,0,0]
[null,null,null,null,null,null,null,null,null,null,null,null,null,null,null,null,null,null,null,null,null,null,null,null,null,null,null,null,null,null,null,{"$error":"#NUM!"},{"$error":"#NUM!"},{"$error":"#NUM!"},0,0,0,0]
[null,null,null,null,null,null,null,null,null,null,null,null,null,null,null,null,null,null,null,null,null,null,null,null,null,null,null,null,null,null,null,{"$error":"#NUM!"},{"$error":"#NUM!"},{"$error":"#NUM!"},0,0,0,0]
[null,null,null,null,null,null,null,null,null,null,null,null,null,null,null,null,null,null,null,null,null,null,null,null,null,null,null,null,null,null,null,{"$error":"#NUM!"},{"$error":"#NUM!"},{"$error":"#NUM!"},0,0,0,0]
[null,null,null,null,null,null,null,null,null,null,null,null,null,null,null,null,null,null,null,null,null,null,null,null,null,null,null,null,null,null,null,{"$error":"#NUM!"},{"$error":"#NUM!"},{"$error":"#NUM!"},0,0,0,0]
[null,null,null,null,null,null,null,null,null,null,null,null,null,null,null,null,null,null,null,null,null,null,null,null,null,null,null,null,null,null,null,{"$error":"#NUM!"},{"$error":"#NUM!"},{"$error":"#NUM!"},0,0,0,0]
[null,null,null,null,null,null,null,null,null,null,null,null,null,null,null,null,null,null,null,null,null,null,null,null,null,null,null,null,null,null,null,{"$error":"#NUM!"},{"$error":"#NUM!"},{"$error":"#NUM!"},0,0,0,0]
[null,null,null,null,null,null,null,null,null,null,null,null,null,null,null,null,null,null,null,null,null,null,null,null,null,null,null,null,null,null,null,{"$error":"#NUM!"},{"$error":"#NUM!"},{"$error":"#NUM!"},0,0,0,0]
[null,null,null,null,null,null,null,null,null,null,null,null,null,null,null,null,null,null,null,null,null,null,null,null,null,null,null,null,null,null,null,{"$error":"#NUM!"},{"$error":"#NUM!"},{"$error":"#NUM!"},0,0,0,0]
[null,null,null,null,null,null,null,null,null,null,null,null,null,null,null,null,null,null,null,null,null,null,null,null,null,null,null,null,null,null,null,{"$f":"1/((0.0010295+0.0002391*LOG(I446*1000)+0.0000001568*LOG(I446*1000)^3))","v":{"$error":"#NUM!"}},{"$f":"1/((0.0010295+0.0002391*LOG(J446*1000)+0.0000001568*LOG(J446*1000)^3))","v":{"$error":"#NUM!"}},{"$f":"($AE$5*G446)+$AE$6*((1*(AF446^4))+($AE$9*((AF446^4)-(AG446^4))))","v":{"$error":"#NUM!"}},{"$f":"1000*(M446/$AE$10)","v":0},{"$f":"1000*(O446/$AE$11)","v":0},{"$f":"1000*(Q446/$AE$12)","v":0},{"$f":"1000*(K446/$AE$14)","v":0}]
[null,null,null,null,null,null,null,null,null,null,null,null,null,null,null,null,null,null,null,null,null,null,null,null,null,null,null,null,null,null,null,{"$error":"#NUM!"},{"$error":"#NUM!"},{"$error":"#NUM!"},0,0,0,0]
[null,null,null,null,null,null,null,null,null,null,null,null,null,null,null,null,null,null,null,null,null,null,null,null,null,null,null,null,null,null,null,{"$error":"#NUM!"},{"$error":"#NUM!"},{"$error":"#NUM!"},0,0,0,0]
[null,null,null,null,null,null,null,null,null,null,null,null,null,null,null,null,null,null,null,null,null,null,null,null,null,null,null,null,null,null,null,{"$error":"#NUM!"},{"$error":"#NUM!"},{"$error":"#NUM!"},0,0,0,0]
[null,null,null,null,null,null,null,null,null,null,null,null,null,null,null,null,null,null,null,null,null,null,null,null,null,null,null,null,null,null,null,{"$error":"#NUM!"},{"$error":"#NUM!"},{"$error":"#NUM!"},0,0,0,0]
[null,null,null,null,null,null,null,null,null,null,null,null,null,null,null,null,null,null,null,null,null,null,null,null,null,null,null,null,null,null,null,{"$error":"#NUM!"},{"$error":"#NUM!"},{"$error":"#NUM!"},0,0,0,0]
[null,null,null,null,null,null,null,null,null,null,null,null,null,null,null,null,null,null,null,null,null,null,null,null,null,null,null,null,null,null,null,{"$error":"#NUM!"},{"$error":"#NUM!"},{"$error":"#NUM!"},0,0,0,0]
[null,null,null,null,null,null,null,null,null,null,null,null,null,null,null,null,null,null,null,null,null,null,null,null,null,null,null,null,null,null,null,{"$error":"#NUM!"},{"$error":"#NUM!"},{"$error":"#NUM!"},0,0,0,0]
[null,null,null,null,null,null,null,null,null,null,null,null,null,null,null,null,null,null,null,null,null,null,null,null,null,null,null,null,null,null,null,{"$error":"#NUM!"},{"$error":"#NUM!"},{"$error":"#NUM!"},0,0,0,0]
[null,null,null,null,null,null,null,null,null,null,null,null,null,null,null,null,null,null,null,null,null,null,null,null,null,null,null,null,null,null,null,{"$error":"#NUM!"},{"$error":"#NUM!"},{"$error":"#NUM!"},0,0,0,0]
[null,null,null,null,null,null,null,null,null,null,null,null,null,null,null,null,null,null,null,null,null,null,null,null,null,null,null,null,null,null,null,{"$error":"#NUM!"},{"$error":"#NUM!"},{"$error":"#NUM!"},0,0,0,0]
[null,null,null,null,null,null,null,null,null,null,null,null,null,null,null,null,null,null,null,null,null,null,null,null,null,null,null,null,null,null,null,{"$error":"#NUM!"},{"$error":"#NUM!"},{"$error":"#NUM!"},0,0,0,0]
[null,null,null,null,null,null,null,null,null,null,null,null,null,null,null,null,null,null,null,null,null,null,null,null,null,null,null,null,null,null,null,{"$error":"#NUM!"},{"$error":"#NUM!"},{"$error":"#NUM!"},0,0,0,0]
[null,null,null,null,null,null,null,null,null,null,null,null,null,null,null,null,null,null,null,null,null,null,null,null,null,null,null,null,null,null,null,{"$error":"#NUM!"},{"$error":"#NUM!"},{"$error":"#NUM!"},0,0,0,0]
[null,null,null,null,null,null,null,null,null,null,null,null,null,null,null,null,null,null,null,null,null,null,null,null,null,null,null,null,null,null,null,{"$error":"#NUM!"},{"$error":"#NUM!"},{"$error":"#NUM!"},0,0,0,0]
[null,null,null,null,null,null,null,null,null,null,null,null,null,null,null,null,null,null,null,null,null,null,null,null,null,null,null,null,null,null,null,{"$error":"#NUM!"},{"$error":"#NUM!"},{"$error":"#NUM!"},0,0,0,0]
[null,null,null,null,null,null,null,null,null,null,null,null,null,null,null,null,null,null,null,null,null,null,null,null,null,null,null,null,null,null,null,{"$error":"#NUM!"},{"$error":"#NUM!"},{"$error":"#NUM!"},0,0,0,0]
[null,null,null,null,null,null,null,null,null,null,null,null,null,null,null,null,null,null,null,null,null,null,null,null,null,null,null,null,null,null,null,{"$error":"#NUM!"},{"$error":"#NUM!"},{"$error":"#NUM!"},0,0,0,0]
[null,null,null,null,null,null,null,null,null,null,null,null,null,null,null,null,null,null,null,null,null,null,null,null,null,null,null,null,null,null,null,{"$error":"#NUM!"},{"$error":"#NUM!"},{"$error":"#NUM!"},0,0,0,0]
[null,null,null,null,null,null,null,null,null,null,null,null,null,null,null,null,null,null,null,null,null,null,null,null,null,null,null,null,null,null,null,{"$error":"#NUM!"},{"$error":"#NUM!"},{"$error":"#NUM!"},0,0,0,0]
[null,null,null,null,null,null,null,null,null,null,null,null,null,null,null,null,null,null,null,null,null,null,null,null,null,null,null,null,null,null,null,{"$error":"#NUM!"},{"$error":"#NUM!"},{"$error":"#NUM!"},0,0,0,0]
[null,null,null,null,null,null,null,null,null,null,null,null,null,null,null,null,null,null,null,null,null,null,null,null,null,null,null,null,null,null,null,{"$error":"#NUM!"},{"$error":"#NUM!"},{"$error":"#NUM!"},0,0,0,0]
[null,null,null,null,null,null,null,null,null,null,null,null,null,null,null,null,null,null,null,null,null,null,null,null,null,null,null,null,null,null,null,{"$error":"#NUM!"},{"$error":"#NUM!"},{"$error":"#NUM!"},0,0,0,0]
[null,null,null,null,null,null,null,null,null,null,null,null,null,null,null,null,null,null,null,null,null,null,null,null,null,null,null,null,null,null,null,{"$error":"#NUM!"},{"$error":"#NUM!"},{"$error":"#NUM!"},0,0,0,0]
[null,null,null,null,null,null,null,null,null,null,null,null,null,null,null,null,null,null,null,null,null,null,null,null,null,null,null,null,null,null,null,{"$error":"#NUM!"},{"$error":"#NUM!"},{"$error":"#NUM!"},0,0,0,0]
[null,null,null,null,null,null,null,null,null,null,null,null,null,null,null,null,null,null,null,null,null,null,null,null,null,null,null,null,null,null,null,{"$error":"#NUM!"},{"$error":"#NUM!"},{"$error":"#NUM!"},0,0,0,0]
[null,null,null,null,null,null,null,null,null,null,null,null,null,null,null,null,null,null,null,null,null,null,null,null,null,null,null,null,null,null,null,{"$error":"#NUM!"},{"$error":"#NUM!"},{"$error":"#NUM!"},0,0,0,0]
[null,null,null,null,null,null,null,null,null,null,null,null,null,null,null,null,null,null,null,null,null,null,null,null,null,null,null,null,null,null,null,{"$error":"#NUM!"},{"$error":"#NUM!"},{"$error":"#NUM!"},0,0,0,0]
[null,null,null,null,null,null,null,null,null,null,null,null,null,null,null,null,null,null,null,null,null,null,null,null,null,null,null,null,null,null,null,{"$error":"#NUM!"},{"$error":"#NUM!"},{"$error":"#NUM!"},0,0,0,0]
[null,null,null,null,null,null,null,null,null,null,null,null,null,null,null,null,null,null,null,null,null,null,null,null,null,null,null,null,null,null,null,{"$error":"#NUM!"},{"$error":"#NUM!"},{"$error":"#NUM!"},0,0,0,0]
[null,null,null,null,null,null,null,null,null,null,null,null,null,null,null,null,null,null,null,null,null,null,null,null,null,null,null,null,null,null,null,{"$error":"#NUM!"},{"$error":"#NUM!"},{"$error":"#NUM!"},0,0,0,0]
[null,null,null,null,null,null,null,null,null,null,null,null,null,null,null,null,null,null,null,null,null,null,null,null,null,null,null,null,null,null,null,{"$error":"#NUM!"},{"$error":"#NUM!"},{"$error":"#NUM!"},0,0,0,0]
[null,null,null,null,null,null,null,null,null,null,null,null,null,null,null,null,null,null,null,null,null,null,null,null,null,null,null,null,null,null,null,{"$error":"#NUM!"},{"$error":"#NUM!"},{"$error":"#NUM!"},0,0,0,0]
[null,null,null,null,null,null,null,null,null,null,null,null,null,null,null,null,null,null,null,null,null,null,null,null,null,null,null,null,null,null,null,{"$error":"#NUM!"},{"$error":"#NUM!"},{"$error":"#NUM!"},0,0,0,0]
[null,null,null,null,null,null,null,null,null,null,null,null,null,null,null,null,null,null,null,null,null,null,null,null,null,null,null,null,null,null,null,{"$error":"#NUM!"},{"$error":"#NUM!"},{"$error":"#NUM!"},0,0,0,0]
[null,null,null,null,null,null,null,null,null,null,null,null,null,null,null,null,null,null,null,null,null,null,null,null,null,null,null,null,null,null,null,{"$error":"#NUM!"},{"$error":"#NUM!"},{"$error":"#NUM!"},0,0,0,0]
[null,null,null,null,null,null,null,null,null,null,null,null,null,null,null,null,null,null,null,null,null,null,null,null,null,null,null,null,null,null,null,{"$error":"#NUM!"},{"$error":"#NUM!"},{"$error":"#NUM!"},0,0,0,0]
[null,null,null,null,null,null,null,null,null,null,null,null,null,null,null,null,null,null,null,null,null,null,null,null,null,null,null,null,null,null,null,{"$error":"#NUM!"},{"$error":"#NUM!"},{"$error":"#NUM!"},0,0,0,0]
[null,null,null,null,null,null,null,null,null,null,null,null,null,null,null,null,null,null,null,null,null,null,null,null,null,null,null,null,null,null,null,{"$error":"#NUM!"},{"$error":"#NUM!"},{"$error":"#NUM!"},0,0,0,0]
[null,null,null,null,null,null,null,null,null,null,null,null,null,null,null,null,null,null,null,null,null,null,null,null,null,null,null,null,null,null,null,{"$error":"#NUM!"},{"$error":"#NUM!"},{"$error":"#NUM!"},0,0,0,0]
[null,null,null,null,null,null,null,null,null,null,null,null,null,null,null,null,null,null,null,null,null,null,null,null,null,null,null,null,null,null,null,{"$error":"#NUM!"},{"$error":"#NUM!"},{"$error":"#NUM!"},0,0,0,0]
[null,null,null,null,null,null,null,null,null,null,null,null,null,null,null,null,null,null,null,null,null,null,null,null,null,null,null,null,null,null,null,{"$error":"#NUM!"},{"$error":"#NUM!"},{"$error":"#NUM!"},0,0,0,0]
[null,null,null,null,null,null,null,null,null,null,null,null,null,null,null,null,null,null,null,null,null,null,null,null,null,null,null,null,null,null,null,{"$error":"#NUM!"},{"$error":"#NUM!"},{"$error":"#NUM!"},0,0,0,0]
[null,null,null,null,null,null,null,null,null,null,null,null,null,null,null,null,null,null,null,null,null,null,null,null,null,null,null,null,null,null,null,{"$error":"#NUM!"},{"$error":"#NUM!"},{"$error":"#NUM!"},0,0,0,0]
[null,null,null,null,null,null,null,null,null,null,null,null,null,null,null,null,null,null,null,null,null,null,null,null,null,null,null,null,null,null,null,{"$error":"#NUM!"},{"$error":"#NUM!"},{"$error":"#NUM!"},0,0,0,0]
[null,null,null,null,null,null,null,null,null,null,null,null,null,null,null,null,null,null,null,null,null,null,null,null,null,null,null,null,null,null,null,{"$error":"#NUM!"},{"$error":"#NUM!"},{"$error":"#NUM!"},0,0,0,0]
[null,null,null,null,null,null,null,null,null,null,null,null,null,null,null,null,null,null,null,null,null,null,null,null,null,null,null,null,null,null,null,{"$error":"#NUM!"},{"$error":"#NUM!"},{"$error":"#NUM!"},0,0,0,0]
[null,null,null,null,null,null,null,null,null,null,null,null,null,null,null,null,null,null,null,null,null,null,null,null,null,null,null,null,null,null,null,{"$error":"#NUM!"},{"$error":"#NUM!"},{"$error":"#NUM!"},0,0,0,0]
[null,null,null,null,null,null,null,null,null,null,null,null,null,null,null,null,null,null,null,null,null,null,null,null,null,null,null,null,null,null,null,{"$error":"#NUM!"},{"$error":"#NUM!"},{"$error":"#NUM!"},0,0,0,0]
[null,null,null,null,null,null,null,null,null,null,null,null,null,null,null,null,null,null,null,null,null,null,null,null,null,null,null,null,null,null,null,{"$error":"#NUM!"},{"$error":"#NUM!"},{"$error":"#NUM!"},0,0,0,0]
[null,null,null,null,null,null,null,null,null,null,null,null,null,null,null,null,null,null,null,null,null,null,null,null,null,null,null,null,null,null,null,{"$error":"#NUM!"},{"$error":"#NUM!"},{"$error":"#NUM!"},0,0,0,0]
[null,null,null,null,null,null,null,null,null,null,null,null,null,null,null,null,null,null,null,null,null,null,null,null,null,null,null,null,null,null,null,{"$error":"#NUM!"},{"$error":"#NUM!"},{"$error":"#NUM!"},0,0,0,0]
[null,null,null,null,null,null,null,null,null,null,null,null,null,null,null,null,null,null,null,null,null,null,null,null,null,null,null,null,null,null,null,{"$error":"#NUM!"},{"$error":"#NUM!"},{"$error":"#NUM!"},0,0,0,0]
[null,null,null,null,null,null,null,null,null,null,null,null,null,null,null,null,null,null,null,null,null,null,null,null,null,null,null,null,null,null,null,{"$error":"#NUM!"},{"$error":"#NUM!"},{"$error":"#NUM!"},0,0,0,0]
[null,null,null,null,null,null,null,null,null,null,null,null,null,null,null,null,null,null,null,null,null,null,null,null,null,null,null,null,null,null,null,{"$error":"#NUM!"},{"$error":"#NUM!"},{"$error":"#NUM!"},0,0,0,0]
[null,null,null,null,null,null,null,null,null,null,null,null,null,null,null,null,null,null,null,null,null,null,null,null,null,null,null,null,null,null,null,{"$error":"#NUM!"},{"$error":"#NUM!"},{"$error":"#NUM!"},0,0,0,0]
[null,null,null,null,null,null,null,null,null,null,null,null,null,null,null,null,null,null,null,null,null,null,null,null,null,null,null,null,null,null,null,{"$error":"#NUM!"},{"$error":"#NUM!"},{"$error":"#NUM!"},0,0,0,0]
[null,null,null,null,null,null,null,null,null,null,null,null,null,null,null,null,null,null,null,null,null,null,null,null,null,null,null,null,null,null,null,{"$error":"#NUM!"},{"$error":"#NUM!"},{"$error":"#NUM!"},0,0,0,0]
[null,null,null,null,null,null,null,null,null,null,null,null,null,null,null,null,null,null,null,null,null,null,null,null,null,null,null,null,null,null,null,{"$error":"#NUM!"},{"$error":"#NUM!"},{"$error":"#NUM!"},0,0,0,0]
[null,null,null,null,null,null,null,null,null,null,null,null,null,null,null,null,null,null,null,null,null,null,null,null,null,null,null,null,null,null,null,{"$error":"#NUM!"},{"$error":"#NUM!"},{"$error":"#NUM!"},0,0,0,0]
[null,null,null,null,null,null,null,null,null,null,null,null,null,null,null,null,null,null,null,null,null,null,null,null,null,null,null,null,null,null,null,{"$error":"#NUM!"},{"$error":"#NUM!"},{"$error":"#NUM!"},0,0,0,0]
[null,null,null,null,null,null,null,null,null,null,null,null,null,null,null,null,null,null,null,null,null,null,null,null,null,null,null,null,null,null,null,{"$error":"#NUM!"},{"$error":"#NUM!"},{"$error":"#NUM!"},0,0,0,0]
[null,null,null,null,null,null,null,null,null,null,null,null,null,null,null,null,null,null,null,null,null,null,null,null,null,null,null,null,null,null,null,{"$error":"#NUM!"},{"$error":"#NUM!"},{"$error":"#NUM!"},0,0,0,0]
[null,null,null,null,null,null,null,null,null,null,null,null,null,null,null,null,null,null,null,null,null,null,null,null,null,null,null,null,null,null,null,{"$error":"#NUM!"},{"$error":"#NUM!"},{"$error":"#NUM!"},0,0,0,0]
[null,null,null,null,null,null,null,null,null,null,null,null,null,null,null,null,null,null,null,null,null,null,null,null,null,null,null,null,null,null,null,{"$f":"1/((0.0010295+0.0002391*LOG(I510*1000)+0.0000001568*LOG(I510*1000)^3))","v":{"$error":"#NUM!"}},{"$f":"1/((0.0010295+0.0002391*LOG(J510*1000)+0.0000001568*LOG(J510*1000)^3))","v":{"$error":"#NUM!"}},{"$f":"($AE$5*G510)+$AE$6*((1*(AF510^4))+($AE$9*((AF510^4)-(AG510^4))))","v":{"$error":"#NUM!"}},{"$f":"1000*(M510/$AE$10)","v":0},{"$f":"1000*(O510/$AE$11)","v":0},{"$f":"1000*(Q510/$AE$12)","v":0},{"$f":"1000*(K510/$AE$14)","v":0}]
[null,null,null,null,null,null,null,null,null,null,null,null,null,null,null,null,null,null,null,null,null,null,null,null,null,null,null,null,null,null,null,{"$error":"#NUM!"},{"$error":"#NUM!"},{"$error":"#NUM!"},0,0,0,0]
[null,null,null,null,null,null,null,null,null,null,null,null,null,null,null,null,null,null,null,null,null,null,null,null,null,null,null,null,null,null,null,{"$error":"#NUM!"},{"$error":"#NUM!"},{"$error":"#NUM!"},0,0,0,0]
[null,null,null,null,null,null,null,null,null,null,null,null,null,null,null,null,null,null,null,null,null,null,null,null,null,null,null,null,null,null,null,{"$error":"#NUM!"},{"$error":"#NUM!"},{"$error":"#NUM!"},0,0,0,0]
[null,null,null,null,null,null,null,null,null,null,null,null,null,null,null,null,null,null,null,null,null,null,null,null,null,null,null,null,null,null,null,{"$error":"#NUM!"},{"$error":"#NUM!"},{"$error":"#NUM!"},0,0,0,0]
[null,null,null,null,null,null,null,null,null,null,null,null,null,null,null,null,null,null,null,null,null,null,null,null,null,null,null,null,null,null,null,{"$error":"#NUM!"},{"$error":"#NUM!"},{"$error":"#NUM!"},0,0,0,0]
[null,null,null,null,null,null,null,null,null,null,null,null,null,null,null,null,null,null,null,null,null,null,null,null,null,null,null,null,null,null,null,{"$error":"#NUM!"},{"$error":"#NUM!"},{"$error":"#NUM!"},0,0,0,0]
[null,null,null,null,null,null,null,null,null,null,null,null,null,null,null,null,null,null,null,null,null,null,null,null,null,null,null,null,null,null,null,{"$error":"#NUM!"},{"$error":"#NUM!"},{"$error":"#NUM!"},0,0,0,0]
[null,null,null,null,null,null,null,null,null,null,null,null,null,null,null,null,null,null,null,null,null,null,null,null,null,null,null,null,null,null,null,{"$error":"#NUM!"},{"$error":"#NUM!"},{"$error":"#NUM!"},0,0,0,0]
[null,null,null,null,null,null,null,null,null,null,null,null,null,null,null,null,null,null,null,null,null,null,null,null,null,null,null,null,null,null,null,{"$error":"#NUM!"},{"$error":"#NUM!"},{"$error":"#NUM!"},0,0,0,0]
[null,null,null,null,null,null,null,null,null,null,null,null,null,null,null,null,null,null,null,null,null,null,null,null,null,null,null,null,null,null,null,{"$error":"#NUM!"},{"$error":"#NUM!"},{"$error":"#NUM!"},0,0,0,0]
[null,null,null,null,null,null,null,null,null,null,null,null,null,null,null,null,null,null,null,null,null,null,null,null,null,null,null,null,null,null,null,{"$error":"#NUM!"},{"$error":"#NUM!"},{"$error":"#NUM!"},0,0,0,0]
[null,null,null,null,null,null,null,null,null,null,null,null,null,null,null,null,null,null,null,null,null,null,null,null,null,null,null,null,null,null,null,{"$error":"#NUM!"},{"$error":"#NUM!"},{"$error":"#NUM!"},0,0,0,0]
[null,null,null,null,null,null,null,null,null,null,null,null,null,null,null,null,null,null,null,null,null,null,null,null,null,null,null,null,null,null,null,{"$error":"#NUM!"},{"$error":"#NUM!"},{"$error":"#NUM!"},0,0,0,0]
[null,null,null,null,null,null,null,null,null,null,null,null,null,null,null,null,null,null,null,null,null,null,null,null,null,null,null,null,null,null,null,{"$error":"#NUM!"},{"$error":"#NUM!"},{"$error":"#NUM!"},0,0,0,0]
[null,null,null,null,null,null,null,null,null,null,null,null,null,null,null,null,null,null,null,null,null,null,null,null,null,null,null,null,null,null,null,{"$error":"#NUM!"},{"$error":"#NUM!"},{"$error":"#NUM!"},0,0,0,0]
[null,null,null,null,null,null,null,null,null,null,null,null,null,null,null,null,null,null,null,null,null,null,null,null,null,null,null,null,null,null,null,{"$error":"#NUM!"},{"$error":"#NUM!"},{"$error":"#NUM!"},0,0,0,0]
[null,null,null,null,null,null,null,null,null,null,null,null,null,null,null,null,null,null,null,null,null,null,null,null,null,null,null,null,null,null,null,{"$error":"#NUM!"},{"$error":"#NUM!"},{"$error":"#NUM!"},0,0,0,0]
[null,null,null,null,null,null,null,null,null,null,null,null,null,null,null,null,null,null,null,null,null,null,null,null,null,null,null,null,null,null,null,{"$error":"#NUM!"},{"$error":"#NUM!"},{"$error":"#NUM!"},0,0,0,0]
[null,null,null,null,null,null,null,null,null,null,null,null,null,null,null,null,null,null,null,null,null,null,null,null,null,null,null,null,null,null,null,{"$error":"#NUM!"},{"$error":"#NUM!"},{"$error":"#NUM!"},0,0,0,0]
[null,null,null,null,null,null,null,null,null,null,null,null,null,null,null,null,null,null,null,null,null,null,null,null,null,null,null,null,null,null,null,{"$error":"#NUM!"},{"$error":"#NUM!"},{"$error":"#NUM!"},0,0,0,0]
[null,null,null,null,null,null,null,null,null,null,null,null,null,null,null,null,null,null,null,null,null,null,null,null,null,null,null,null,null,null,null,{"$error":"#NUM!"},{"$error":"#NUM!"},{"$error":"#NUM!"},0,0,0,0]
[null,null,null,null,null,null,null,null,null,null,null,null,null,null,null,null,null,null,null,null,null,null,null,null,null,null,null,null,null,null,null,{"$error":"#NUM!"},{"$error":"#NUM!"},{"$error":"#NUM!"},0,0,0,0]
[null,null,null,null,null,null,null,null,null,null,null,null,null,null,null,null,null,null,null,null,null,null,null,null,null,null,null,null,null,null,null,{"$error":"#NUM!"},{"$error":"#NUM!"},{"$error":"#NUM!"},0,0,0,0]
[null,null,null,null,null,null,null,null,null,null,null,null,null,null,null,null,null,null,null,null,null,null,null,null,null,null,null,null,null,null,null,{"$error":"#NUM!"},{"$error":"#NUM!"},{"$error":"#NUM!"},0,0,0,0]
[null,null,null,null,null,null,null,null,null,null,null,null,null,null,null,null,null,null,null,null,null,null,null,null,null,null,null,null,null,null,null,{"$error":"#NUM!"},{"$error":"#NUM!"},{"$error":"#NUM!"},0,0,0,0]
[null,null,null,null,null,null,null,null,null,null,null,null,null,null,null,null,null,null,null,null,null,null,null,null,null,null,null,null,null,null,null,{"$error":"#NUM!"},{"$error":"#NUM!"},{"$error":"#NUM!"},0,0,0,0]
[null,null,null,null,null,null,null,null,null,null,null,null,null,null,null,null,null,null,null,null,null,null,null,null,null,null,null,null,null,null,null,{"$error":"#NUM!"},{"$error":"#NUM!"},{"$error":"#NUM!"},0,0,0,0]
[null,null,null,null,null,null,null,null,null,null,null,null,null,null,null,null,null,null,null,null,null,null,null,null,null,null,null,null,null,null,null,{"$error":"#NUM!"},{"$error":"#NUM!"},{"$error":"#NUM!"},0,0,0,0]
[null,null,null,null,null,null,null,null,null,null,null,null,null,null,null,null,null,null,null,null,null,null,null,null,null,null,null,null,null,null,null,{"$error":"#NUM!"},{"$error":"#NUM!"},{"$error":"#NUM!"},0,0,0,0]
[null,null,null,null,null,null,null,null,null,null,null,null,null,null,null,null,null,null,null,null,null,null,null,null,null,null,null,null,null,null,null,{"$error":"#NUM!"},{"$error":"#NUM!"},{"$error":"#NUM!"},0,0,0,0]
[null,null,null,null,null,null,null,null,null,null,null,null,null,null,null,null,null,null,null,null,null,null,null,null,null,null,null,null,null,null,null,{"$error":"#NUM!"},{"$error":"#NUM!"},{"$error":"#NUM!"},0,0,0,0]
[null,null,null,null,null,null,null,null,null,null,null,null,null,null,null,null,null,null,null,null,null,null,null,null,null,null,null,null,null,null,null,{"$error":"#NUM!"},{"$error":"#NUM!"},{"$error":"#NUM!"},0,0,0,0]
[null,null,null,null,null,null,null,null,null,null,null,null,null,null,null,null,null,null,null,null,null,null,null,null,null,null,null,null,null,null,null,{"$error":"#NUM!"},{"$error":"#NUM!"},{"$error":"#NUM!"},0,0,0,0]
[null,null,null,null,null,null,null,null,null,null,null,null,null,null,null,null,null,null,null,null,null,null,null,null,null,null,null,null,null,null,null,{"$error":"#NUM!"},{"$error":"#NUM!"},{"$error":"#NUM!"},0,0,0,0]
[null,null,null,null,null,null,null,null,null,null,null,null,null,null,null,null,null,null,null,null,null,null,null,null,null,null,null,null,null,null,null,{"$error":"#NUM!"},{"$error":"#NUM!"},{"$error":"#NUM!"},0,0,0,0]
[null,null,null,null,null,null,null,null,null,null,null,null,null,null,null,null,null,null,null,null,null,null,null,null,null,null,null,null,null,null,null,{"$error":"#NUM!"},{"$error":"#NUM!"},{"$error":"#NUM!"},0,0,0,0]
[null,null,null,null,null,null,null,null,null,null,null,null,null,null,null,null,null,null,null,null,null,null,null,null,null,null,null,null,null,null,null,{"$error":"#NUM!"},{"$error":"#NUM!"},{"$error":"#NUM!"},0,0,0,0]
[null,null,null,null,null,null,null,null,null,null,null,null,null,null,null,null,null,null,null,null,null,null,null,null,null,null,null,null,null,null,null,{"$error":"#NUM!"},{"$error":"#NUM!"},{"$error":"#NUM!"},0,0,0,0]
[null,null,null,null,null,null,null,null,null,null,null,null,null,null,null,null,null,null,null,null,null,null,null,null,null,null,null,null,null,null,null,{"$error":"#NUM!"},{"$error":"#NUM!"},{"$error":"#NUM!"},0,0,0,0]
[null,null,null,null,null,null,null,null,null,null,null,null,null,null,null,null,null,null,null,null,null,null,null,null,null,null,null,null,null,null,null,{"$error":"#NUM!"},{"$error":"#NUM!"},{"$error":"#NUM!"},0,0,0,0]
[null,null,null,null,null,null,null,null,null,null,null,null,null,null,null,null,null,null,null,null,null,null,null,null,null,null,null,null,null,null,null,{"$error":"#NUM!"},{"$error":"#NUM!"},{"$error":"#NUM!"},0,0,0,0]
[null,null,null,null,null,null,null,null,null,null,null,null,null,null,null,null,null,null,null,null,null,null,null,null,null,null,null,null,null,null,null,{"$error":"#NUM!"},{"$error":"#NUM!"},{"$error":"#NUM!"},0,0,0,0]
[null,null,null,null,null,null,null,null,null,null,null,null,null,null,null,null,null,null,null,null,null,null,null,null,null,null,null,null,null,null,null,{"$error":"#NUM!"},{"$error":"#NUM!"},{"$error":"#NUM!"},0,0,0,0]
[null,null,null,null,null,null,null,null,null,null,null,null,null,null,null,null,null,null,null,null,null,null,null,null,null,null,null,null,null,null,null,{"$error":"#NUM!"},{"$error":"#NUM!"},{"$error":"#NUM!"},0,0,0,0]
[null,null,null,null,null,null,null,null,null,null,null,null,null,null,null,null,null,null,null,null,null,null,null,null,null,null,null,null,null,null,null,{"$error":"#NUM!"},{"$error":"#NUM!"},{"$error":"#NUM!"},0,0,0,0]
[null,null,null,null,null,null,null,null,null,null,null,null,null,null,null,null,null,null,null,null,null,null,null,null,null,null,null,null,null,null,null,{"$error":"#NUM!"},{"$error":"#NUM!"},{"$error":"#NUM!"},0,0,0,0]
[null,null,null,null,null,null,null,null,null,null,null,null,null,null,null,null,null,null,null,null,null,null,null,null,null,null,null,null,null,null,null,{"$error":"#NUM!"},{"$error":"#NUM!"},{"$error":"#NUM!"},0,0,0,0]
[null,null,null,null,null,null,null,null,null,null,null,null,null,null,null,null,null,null,null,null,null,null,null,null,null,null,null,null,null,null,null,{"$error":"#NUM!"},{"$error":"#NUM!"},{"$error":"#NUM!"},0,0,0,0]
[null,null,null,null,null,null,null,null,null,null,null,null,null,null,null,null,null,null,null,null,null,null,null,null,null,null,null,null,null,null,null,{"$error":"#NUM!"},{"$error":"#NUM!"},{"$error":"#NUM!"},0,0,0,0]
[null,null,null,null,null,null,null,null,null,null,null,null,null,null,null,null,null,null,null,null,null,null,null,null,null,null,null,null,null,null,null,{"$error":"#NUM!"},{"$error":"#NUM!"},{"$error":"#NUM!"},0,0,0,0]
[null,null,null,null,null,null,null,null,null,null,null,null,null,null,null,null,null,null,null,null,null,null,null,null,null,null,null,null,null,null,null,{"$error":"#NUM!"},{"$error":"#NUM!"},{"$error":"#NUM!"},0,0,0,0]
[null,null,null,null,null,null,null,null,null,null,null,null,null,null,null,null,null,null,null,null,null,null,null,null,null,null,null,null,null,null,null,{"$error":"#NUM!"},{"$error":"#NUM!"},{"$error":"#NUM!"},0,0,0,0]
[null,null,null,null,null,null,null,null,null,null,null,null,null,null,null,null,null,null,null,null,null,null,null,null,null,null,null,null,null,null,null,{"$error":"#NUM!"},{"$error":"#NUM!"},{"$error":"#NUM!"},0,0,0,0]
[null,null,null,null,null,null,null,null,null,null,null,null,null,null,null,null,null,null,null,null,null,null,null,null,null,null,null,null,null,null,null,{"$error":"#NUM!"},{"$error":"#NUM!"},{"$error":"#NUM!"},0,0,0,0]
[null,null,null,null,null,null,null,null,null,null,null,null,null,null,null,null,null,null,null,null,null,null,null,null,null,null,null,null,null,null,null,{"$error":"#NUM!"},{"$error":"#NUM!"},{"$error":"#NUM!"},0,0,0,0]
[null,null,null,null,null,null,null,null,null,null,null,null,null,null,null,null,null,null,null,null,null,null,null,null,null,null,null,null,null,null,null,{"$error":"#NUM!"},{"$error":"#NUM!"},{"$error":"#NUM!"},0,0,0,0]
[null,null,null,null,null,null,null,null,null,null,null,null,null,null,null,null,null,null,null,null,null,null,null,null,null,null,null,null,null,null,null,{"$error":"#NUM!"},{"$error":"#NUM!"},{"$error":"#NUM!"},0,0,0,0]
[null,null,null,null,null,null,null,null,null,null,null,null,null,null,null,null,null,null,null,null,null,null,null,null,null,null,null,null,null,null,null,{"$error":"#NUM!"},{"$error":"#NUM!"},{"$error":"#NUM!"},0,0,0,0]
[null,null,null,null,null,null,null,null,null,null,null,null,null,null,null,null,null,null,null,null,null,null,null,null,null,null,null,null,null,null,null,{"$error":"#NUM!"},{"$error":"#NUM!"},{"$error":"#NUM!"},0,0,0,0]
[null,null,null,null,null,null,null,null,null,null,null,null,null,null,null,null,null,null,null,null,null,null,null,null,null,null,null,null,null,null,null,{"$error":"#NUM!"},{"$error":"#NUM!"},{"$error":"#NUM!"},0,0,0,0]
[null,null,null,null,null,null,null,null,null,null,null,null,null,null,null,null,null,null,null,null,null,null,null,null,null,null,null,null,null,null,null,{"$error":"#NUM!"},{"$error":"#NUM!"},{"$error":"#NUM!"},0,0,0,0]
[null,null,null,null,null,null,null,null,null,null,null,null,null,null,null,null,null,null,null,null,null,null,null,null,null,null,null,null,null,null,null,{"$error":"#NUM!"},{"$error":"#NUM!"},{"$error":"#NUM!"},0,0,0,0]
[null,null,null,null,null,null,null,null,null,null,null,null,null,null,null,null,null,null,null,null,null,null,null,null,null,null,null,null,null,null,null,{"$error":"#NUM!"},{"$error":"#NUM!"},{"$error":"#NUM!"},0,0,0,0]
[null,null,null,null,null,null,null,null,null,null,null,null,null,null,null,null,null,null,null,null,null,null,null,null,null,null,null,null,null,null,null,{"$f":"1/((0.0010295+0.0002391*LOG(I574*1000)+0.0000001568*LOG(I574*1000)^3))","v":{"$error":"#NUM!"}},{"$f":"1/((0.0010295+0.0002391*LOG(J574*1000)+0.0000001568*LOG(J574*1000)^3))","v":{"$error":"#NUM!"}},{"$f":"($AE$5*G574)+$AE$6*((1*(AF574^4))+($AE$9*((AF574^4)-(AG574^4))))","v":{"$error":"#NUM!"}},{"$f":"1000*(M574/$AE$10)","v":0},{"$f":"1000*(O574/$AE$11)","v":0},{"$f":"1000*(Q574/$AE$12)","v":0},{"$f":"1000*(K574/$AE$14)","v":0}]
[null,null,null,null,null,null,null,null,null,null,null,null,null,null,null,null,null,null,null,null,null,null,null,null,null,null,null,null,null,null,null,{"$error":"#NUM!"},{"$error":"#NUM!"},{"$error":"#NUM!"},0,0,0,0]
[null,null,null,null,null,null,null,null,null,null,null,null,null,null,null,null,null,null,null,null,null,null,null,null,null,null,null,null,null,null,null,{"$error":"#NUM!"},{"$error":"#NUM!"},{"$error":"#NUM!"},0,0,0,0]
[null,null,null,null,null,null,null,null,null,null,null,null,null,null,null,null,null,null,null,null,null,null,null,null,null,null,null,null,null,null,null,{"$error":"#NUM!"},{"$error":"#NUM!"},{"$error":"#NUM!"},0,0,0,0]
[null,null,null,null,null,null,null,null,null,null,null,null,null,null,null,null,null,null,null,null,null,null,null,null,null,null,null,null,null,null,null,{"$error":"#NUM!"},{"$error":"#NUM!"},{"$error":"#NUM!"},0,0,0,0]
[null,null,null,null,null,null,null,null,null,null,null,null,null,null,null,null,null,null,null,null,null,null,null,null,null,null,null,null,null,null,null,{"$error":"#NUM!"},{"$error":"#NUM!"},{"$error":"#NUM!"},0,0,0,0]
[null,null,null,null,null,null,null,null,null,null,null,null,null,null,null,null,null,null,null,null,null,null,null,null,null,null,null,null,null,null,null,{"$error":"#NUM!"},{"$error":"#NUM!"},{"$error":"#NUM!"},0,0,0,0]
[null,null,null,null,null,null,null,null,null,null,null,null,null,null,null,null,null,null,null,null,null,null,null,null,null,null,null,null,null,null,null,{"$error":"#NUM!"},{"$error":"#NUM!"},{"$error":"#NUM!"},0,0,0,0]
[null,null,null,null,null,null,null,null,null,null,null,null,null,null,null,null,null,null,null,null,null,null,null,null,null,null,null,null,null,null,null,{"$error":"#NUM!"},{"$error":"#NUM!"},{"$error":"#NUM!"},0,0,0,0]
[null,null,null,null,null,null,null,null,null,null,null,null,null,null,null,null,null,null,null,null,null,null,null,null,null,null,null,null,null,null,null,{"$error":"#NUM!"},{"$error":"#NUM!"},{"$error":"#NUM!"},0,0,0,0]
[null,null,null,null,null,null,null,null,null,null,null,null,null,null,null,null,null,null,null,null,null,null,null,null,null,null,null,null,null,null,null,{"$error":"#NUM!"},{"$error":"#NUM!"},{"$error":"#NUM!"},0,0,0,0]
[null,null,null,null,null,null,null,null,null,null,null,null,null,null,null,null,null,null,null,null,null,null,null,null,null,null,null,null,null,null,null,{"$error":"#NUM!"},{"$error":"#NUM!"},{"$error":"#NUM!"},0,0,0,0]
[null,null,null,null,null,null,null,null,null,null,null,null,null,null,null,null,null,null,null,null,null,null,null,null,null,null,null,null,null,null,null,{"$error":"#NUM!"},{"$error":"#NUM!"},{"$error":"#NUM!"},0,0,0,0]
[null,null,null,null,null,null,null,null,null,null,null,null,null,null,null,null,null,null,null,null,null,null,null,null,null,null,null,null,null,null,null,{"$error":"#NUM!"},{"$error":"#NUM!"},{"$error":"#NUM!"},0,0,0,0]
[null,null,null,null,null,null,null,null,null,null,null,null,null,null,null,null,null,null,null,null,null,null,null,null,null,null,null,null,null,null,null,{"$error":"#NUM!"},{"$error":"#NUM!"},{"$error":"#NUM!"},0,0,0,0]
[null,null,null,null,null,null,null,null,null,null,null,null,null,null,null,null,null,null,null,null,null,null,null,null,null,null,null,null,null,null,null,{"$error":"#NUM!"},{"$error":"#NUM!"},{"$error":"#NUM!"},0,0,0,0]
[null,null,null,null,null,null,null,null,null,null,null,null,null,null,null,null,null,null,null,null,null,null,null,null,null,null,null,null,null,null,null,{"$error":"#NUM!"},{"$error":"#NUM!"},{"$error":"#NUM!"},0,0,0,0]
[null,null,null,null,null,null,null,null,null,null,null,null,null,null,null,null,null,null,null,null,null,null,null,null,null,null,null,null,null,null,null,{"$error":"#NUM!"},{"$error":"#NUM!"},{"$error":"#NUM!"},0,0,0,0]
[null,null,null,null,null,null,null,null,null,null,null,null,null,null,null,null,null,null,null,null,null,null,null,null,null,null,null,null,null,null,null,{"$error":"#NUM!"},{"$error":"#NUM!"},{"$error":"#NUM!"},0,0,0,0]
[null,null,null,null,null,null,null,null,null,null,null,null,null,null,null,null,null,null,null,null,null,null,null,null,null,null,null,null,null,null,null,{"$error":"#NUM!"},{"$error":"#NUM!"},{"$error":"#NUM!"},0,0,0,0]
[null,null,null,null,null,null,null,null,null,null,null,null,null,null,null,null,null,null,null,null,null,null,null,null,null,null,null,null,null,null,null,{"$error":"#NUM!"},{"$error":"#NUM!"},{"$error":"#NUM!"},0,0,0,0]
[null,null,null,null,null,null,null,null,null,null,null,null,null,null,null,null,null,null,null,null,null,null,null,null,null,null,null,null,null,null,null,{"$error":"#NUM!"},{"$error":"#NUM!"},{"$error":"#NUM!"},0,0,0,0]
[null,null,null,null,null,null,null,null,null,null,null,null,null,null,null,null,null,null,null,null,null,null,null,null,null,null,null,null,null,null,null,{"$error":"#NUM!"},{"$error":"#NUM!"},{"$error":"#NUM!"},0,0,0,0]
[null,null,null,null,null,null,null,null,null,null,null,null,null,null,null,null,null,null,null,null,null,null,null,null,null,null,null,null,null,null,null,{"$error":"#NUM!"},{"$error":"#NUM!"},{"$error":"#NUM!"},0,0,0,0]
[null,null,null,null,null,null,null,null,null,null,null,null,null,null,null,null,null,null,null,null,null,null,null,null,null,null,null,null,null,null,null,{"$error":"#NUM!"},{"$error":"#NUM!"},{"$error":"#NUM!"},0,0,0,0]
[null,null,null,null,null,null,null,null,null,null,null,null,null,null,null,null,null,null,null,null,null,null,null,null,null,null,null,null,null,null,null,{"$error":"#NUM!"},{"$error":"#NUM!"},{"$error":"#NUM!"},0,0,0,0]
[null,null,null,null,null,null,null,null,null,null,null,null,null,null,null,null,null,null,null,null,null,null,null,null,null,null,null,null,null,null,null,{"$error":"#NUM!"},{"$error":"#NUM!"},{"$error":"#NUM!"},0,0,0,0]
[null,null,null,null,null,null,null,null,null,null,null,null,null,null,null,null,null,null,null,null,null,null,null,null,null,null,null,null,null,null,null,{"$error":"#NUM!"},{"$error":"#NUM!"},{"$error":"#NUM!"},0,0,0,0]
[null,null,null,null,null,null,null,null,null,null,null,null,null,null,null,null,null,null,null,null,null,null,null,null,null,null,null,null,null,null,null,{"$error":"#NUM!"},{"$error":"#NUM!"},{"$error":"#NUM!"},0,0,0,0]
[null,null,null,null,null,null,null,null,null,null,null,null,null,null,null,null,null,null,null,null,null,null,null,null,null,null,null,null,null,null,null,{"$error":"#NUM!"},{"$error":"#NUM!"},{"$error":"#NUM!"},0,0,0,0]
[null,null,null,null,null,null,null,null,null,null,null,null,null,null,null,null,null,null,null,null,null,null,null,null,null,null,null,null,null,null,null,{"$error":"#NUM!"},{"$error":"#NUM!"},{"$error":"#NUM!"},0,0,0,0]
[null,null,null,null,null,null,null,null,null,null,null,null,null,null,null,null,null,null,null,null,null,null,null,null,null,null,null,null,null,null,null,{"$error":"#NUM!"},{"$error":"#NUM!"},{"$error":"#NUM!"},0,0,0,0]
[null,null,null,null,null,null,null,null,null,null,null,null,null,null,null,null,null,null,null,null,null,null,null,null,null,null,null,null,null,null,null,{"$error":"#NUM!"},{"$error":"#NUM!"},{"$error":"#NUM!"},0,0,0,0]
[null,null,null,null,null,null,null,null,null,null,null,null,null,null,null,null,null,null,null,null,null,null,null,null,null,null,null,null,null,null,null,{"$error":"#NUM!"},{"$error":"#NUM!"},{"$error":"#NUM!"},0,0,0,0]
[null,null,null,null,null,null,null,null,null,null,null,null,null,null,null,null,null,null,null,null,null,null,null,null,null,null,null,null,null,null,null,{"$error":"#NUM!"},{"$error":"#NUM!"},{"$error":"#NUM!"},0,0,0,0]
[null,null,null,null,null,null,null,null,null,null,null,null,null,null,null,null,null,null,null,null,null,null,null,null,null,null,null,null,null,null,null,{"$error":"#NUM!"},{"$error":"#NUM!"},{"$error":"#NUM!"},0,0,0,0]
[null,null,null,null,null,null,null,null,null,null,null,null,null,null,null,null,null,null,null,null,null,null,null,null,null,null,null,null,null,null,null,{"$error":"#NUM!"},{"$error":"#NUM!"},{"$error":"#NUM!"},0,0,0,0]
[null,null,null,null,null,null,null,null,null,null,null,null,null,null,null,null,null,null,null,null,null,null,null,null,null,null,null,null,null,null,null,{"$error":"#NUM!"},{"$error":"#NUM!"},{"$error":"#NUM!"},0,0,0,0]
[null,null,null,null,null,null,null,null,null,null,null,null,null,null,null,null,null,null,null,null,null,null,null,null,null,null,null,null,null,null,null,{"$error":"#NUM!"},{"$error":"#NUM!"},{"$error":"#NUM!"},0,0,0,0]
[null,null,null,null,null,null,null,null,null,null,null,null,null,null,null,null,null,null,null,null,null,null,null,null,null,null,null,null,null,null,null,{"$error":"#NUM!"},{"$error":"#NUM!"},{"$error":"#NUM!"},0,0,0,0]
[null,null,null,null,null,null,null,null,null,null,null,null,null,null,null,null,null,null,null,null,null,null,null,null,null,null,null,null,null,null,null,{"$error":"#NUM!"},{"$error":"#NUM!"},{"$error":"#NUM!"},0,0,0,0]
[null,null,null,null,null,null,null,null,null,null,null,null,null,null,null,null,null,null,null,null,null,null,null,null,null,null,null,null,null,null,null,{"$error":"#NUM!"},{"$error":"#NUM!"},{"$error":"#NUM!"},0,0,0,0]
[null,null,null,null,null,null,null,null,null,null,null,null,null,null,null,null,null,null,null,null,null,null,null,null,null,null,null,null,null,null,null,{"$error":"#NUM!"},{"$error":"#NUM!"},{"$error":"#NUM!"},0,0,0,0]
[null,null,null,null,null,null,null,null,null,null,null,null,null,null,null,null,null,null,null,null,null,null,null,null,null,null,null,null,null,null,null,{"$error":"#NUM!"},{"$error":"#NUM!"},{"$error":"#NUM!"},0,0,0,0]
[null,null,null,null,null,null,null,null,null,null,null,null,null,null,null,null,null,null,null,null,null,null,null,null,null,null,null,null,null,null,null,{"$error":"#NUM!"},{"$error":"#NUM!"},{"$error":"#NUM!"},0,0,0,0]
[null,null,null,null,null,null,null,null,null,null,null,null,null,null,null,null,null,null,null,null,null,null,null,null,null,null,null,null,null,null,null,{"$error":"#NUM!"},{"$error":"#NUM!"},{"$error":"#NUM!"},0,0,0,0]
[null,null,null,null,null,null,null,null,null,null,null,null,null,null,null,null,null,null,null,null,null,null,null,null,null,null,null,null,null,null,null,{"$error":"#NUM!"},{"$error":"#NUM!"},{"$error":"#NUM!"},0,0,0,0]
[null,null,null,null,null,null,null,null,null,null,null,null,null,null,null,null,null,null,null,null,null,null,null,null,null,null,null,null,null,null,null,{"$error":"#NUM!"},{"$error":"#NUM!"},{"$error":"#NUM!"},0,0,0,0]
[null,null,null,null,null,null,null,null,null,null,null,null,null,null,null,null,null,null,null,null,null,null,null,null,null,null,null,null,null,null,null,{"$error":"#NUM!"},{"$error":"#NUM!"},{"$error":"#NUM!"},0,0,0,0]
[null,null,null,null,null,null,null,null,null,null,null,null,null,null,null,null,null,null,null,null,null,null,null,null,null,null,null,null,null,null,null,{"$error":"#NUM!"},{"$error":"#NUM!"},{"$error":"#NUM!"},0,0,0,0]
[null,null,null,null,null,null,null,null,null,null,null,null,null,null,null,null,null,null,null,null,null,null,null,null,null,null,null,null,null,null,null,{"$error":"#NUM!"},{"$error":"#NUM!"},{"$error":"#NUM!"},0,0,0,0]
[null,null,null,null,null,null,null,null,null,null,null,null,null,null,null,null,null,null,null,null,null,null,null,null,null,null,null,null,null,null,null,{"$error":"#NUM!"},{"$error":"#NUM!"},{"$error":"#NUM!"},0,0,0,0]
[null,null,null,null,null,null,null,null,null,null,null,null,null,null,null,null,null,null,null,null,null,null,null,null,null,null,null,null,null,null,null,{"$error":"#NUM!"},{"$error":"#NUM!"},{"$error":"#NUM!"},0,0,0,0]
[null,null,null,null,null,null,null,null,null,null,null,null,null,null,null,null,null,null,null,null,null,null,null,null,null,null,null,null,null,null,null,{"$error":"#NUM!"},{"$error":"#NUM!"},{"$error":"#NUM!"},0,0,0,0]
[null,null,null,null,null,null,null,null,null,null,null,null,null,null,null,null,null,null,null,null,null,null,null,null,null,null,null,null,null,null,null,{"$error":"#NUM!"},{"$error":"#NUM!"},{"$error":"#NUM!"},0,0,0,0]
[null,null,null,null,null,null,null,null,null,null,null,null,null,null,null,null,null,null,null,null,null,null,null,null,null,null,null,null,null,null,null,{"$error":"#NUM!"},{"$error":"#NUM!"},{"$error":"#NUM!"},0,0,0,0]
[null,null,null,null,null,null,null,null,null,null,null,null,null,null,null,null,null,null,null,null,null,null,null,null,null,null,null,null,null,null,null,{"$error":"#NUM!"},{"$error":"#NUM!"},{"$error":"#NUM!"},0,0,0,0]
[null,null,null,null,null,null,null,null,null,null,null,null,null,null,null,null,null,null,null,null,null,null,null,null,null,null,null,null,null,null,null,{"$error":"#NUM!"},{"$error":"#NUM!"},{"$error":"#NUM!"},0,0,0,0]
[null,null,null,null,null,null,null,null,null,null,null,null,null,null,null,null,null,null,null,null,null,null,null,null,null,null,null,null,null,null,null,{"$error":"#NUM!"},{"$error":"#NUM!"},{"$error":"#NUM!"},0,0,0,0]
[null,null,null,null,null,null,null,null,null,null,null,null,null,null,null,null,null,null,null,null,null,null,null,null,null,null,null,null,null,null,null,{"$error":"#NUM!"},{"$error":"#NUM!"},{"$error":"#NUM!"},0,0,0,0]
[null,null,null,null,null,null,null,null,null,null,null,null,null,null,null,null,null,null,null,null,null,null,null,null,null,null,null,null,null,null,null,{"$error":"#NUM!"},{"$error":"#NUM!"},{"$error":"#NUM!"},0,0,0,0]
[null,null,null,null,null,null,null,null,null,null,null,null,null,null,null,null,null,null,null,null,null,null,null,null,null,null,null,null,null,null,null,{"$error":"#NUM!"},{"$error":"#NUM!"},{"$error":"#NUM!"},0,0,0,0]
[null,null,null,null,null,null,null,null,null,null,null,null,null,null,null,null,null,null,null,null,null,null,null,null,null,null,null,null,null,null,null,{"$error":"#NUM!"},{"$error":"#NUM!"},{"$error":"#NUM!"},0,0,0,0]
[null,null,null,null,null,null,null,null,null,null,null,null,null,null,null,null,null,null,null,null,null,null,null,null,null,null,null,null,null,null,null,{"$error":"#NUM!"},{"$error":"#NUM!"},{"$error":"#NUM!"},0,0,0,0]
[null,null,null,null,null,null,null,null,null,null,null,null,null,null,null,null,null,null,null,null,null,null,null,null,null,null,null,null,null,null,null,{"$f":"1/((0.0010295+0.0002391*LOG(I638*1000)+0.0000001568*LOG(I638*1000)^3))","v":{"$error":"#NUM!"}},{"$f":"1/((0.0010295+0.0002391*LOG(J638*1000)+0.0000001568*LOG(J638*1000)^3))","v":{"$error":"#NUM!"}},{"$f":"($AE$5*G638)+$AE$6*((1*(AF638^4))+($AE$9*((AF638^4)-(AG638^4))))","v":{"$error":"#NUM!"}},{"$f":"1000*(M638/$AE$10)","v":0},{"$f":"1000*(O638/$AE$11)","v":0},{"$f":"1000*(Q638/$AE$12)","v":0},{"$f":"1000*(K638/$AE$14)","v":0}]
[null,null,null,null,null,null,null,null,null,null,null,null,null,null,null,null,null,null,null,null,null,null,null,null,null,null,null,null,null,null,null,{"$error":"#NUM!"},{"$error":"#NUM!"},{"$error":"#NUM!"},0,0,0,0]
[null,null,null,null,null,null,null,null,null,null,null,null,null,null,null,null,null,null,null,null,null,null,null,null,null,null,null,null,null,null,null,{"$error":"#NUM!"},{"$error":"#NUM!"},{"$error":"#NUM!"},0,0,0,0]
[null,null,null,null,null,null,null,null,null,null,null,null,null,null,null,null,null,null,null,null,null,null,null,null,null,null,null,null,null,null,null,{"$error":"#NUM!"},{"$error":"#NUM!"},{"$error":"#NUM!"},0,0,0,0]
[null,null,null,null,null,null,null,null,null,null,null,null,null,null,null,null,null,null,null,null,null,null,null,null,null,null,null,null,null,null,null,{"$error":"#NUM!"},{"$error":"#NUM!"},{"$error":"#NUM!"},0,0,0,0]
[null,null,null,null,null,null,null,null,null,null,null,null,null,null,null,null,null,null,null,null,null,null,null,null,null,null,null,null,null,null,null,{"$error":"#NUM!"},{"$error":"#NUM!"},{"$error":"#NUM!"},0,0,0,0]
[null,null,null,null,null,null,null,null,null,null,null,null,null,null,null,null,null,null,null,null,null,null,null,null,null,null,null,null,null,null,null,{"$error":"#NUM!"},{"$error":"#NUM!"},{"$error":"#NUM!"},0,0,0,0]
[null,null,null,null,null,null,null,null,null,null,null,null,null,null,null,null,null,null,null,null,null,null,null,null,null,null,null,null,null,null,null,{"$error":"#NUM!"},{"$error":"#NUM!"},{"$error":"#NUM!"},0,0,0,0]
[null,null,null,null,null,null,null,null,null,null,null,null,null,null,null,null,null,null,null,null,null,null,null,null,null,null,null,null,null,null,null,{"$error":"#NUM!"},{"$error":"#NUM!"},{"$error":"#NUM!"},0,0,0,0]
[null,null,null,null,null,null,null,null,null,null,null,null,null,null,null,null,null,null,null,null,null,null,null,null,null,null,null,null,null,null,null,{"$error":"#NUM!"},{"$error":"#NUM!"},{"$error":"#NUM!"},0,0,0,0]
[null,null,null,null,null,null,null,null,null,null,null,null,null,null,null,null,null,null,null,null,null,null,null,null,null,null,null,null,null,null,null,{"$error":"#NUM!"},{"$error":"#NUM!"},{"$error":"#NUM!"},0,0,0,0]
[null,null,null,null,null,null,null,null,null,null,null,null,null,null,null,null,null,null,null,null,null,null,null,null,null,null,null,null,null,null,null,{"$error":"#NUM!"},{"$error":"#NUM!"},{"$error":"#NUM!"},0,0,0,0]
[null,null,null,null,null,null,null,null,null,null,null,null,null,null,null,null,null,null,null,null,null,null,null,null,null,null,null,null,null,null,null,{"$error":"#NUM!"},{"$error":"#NUM!"},{"$error":"#NUM!"},0,0,0,0]
[null,null,null,null,null,null,null,null,null,null,null,null,null,null,null,null,null,null,null,null,null,null,null,null,null,null,null,null,null,null,null,{"$error":"#NUM!"},{"$error":"#NUM!"},{"$error":"#NUM!"},0,0,0,0]
[null,null,null,null,null,null,null,null,null,null,null,null,null,null,null,null,null,null,null,null,null,null,null,null,null,null,null,null,null,null,null,{"$error":"#NUM!"},{"$error":"#NUM!"},{"$error":"#NUM!"},0,0,0,0]
[null,null,null,null,null,null,null,null,null,null,null,null,null,null,null,null,null,null,null,null,null,null,null,null,null,null,null,null,null,null,null,{"$error":"#NUM!"},{"$error":"#NUM!"},{"$error":"#NUM!"},0,0,0,0]
[null,null,null,null,null,null,null,null,null,null,null,null,null,null,null,null,null,null,null,null,null,null,null,null,null,null,null,null,null,null,null,{"$error":"#NUM!"},{"$error":"#NUM!"},{"$error":"#NUM!"},0,0,0,0]
[null,null,null,null,null,null,null,null,null,null,null,null,null,null,null,null,null,null,null,null,null,null,null,null,null,null,null,null,null,null,null,{"$error":"#NUM!"},{"$error":"#NUM!"},{"$error":"#NUM!"},0,0,0,0]
[null,null,null,null,null,null,null,null,null,null,null,null,null,null,null,null,null,null,null,null,null,null,null,null,null,null,null,null,null,null,null,{"$error":"#NUM!"},{"$error":"#NUM!"},{"$error":"#NUM!"},0,0,0,0]
[null,null,null,null,null,null,null,null,null,null,null,null,null,null,null,null,null,null,null,null,null,null,null,null,null,null,null,null,null,null,null,{"$error":"#NUM!"},{"$error":"#NUM!"},{"$error":"#NUM!"},0,0,0,0]
[null,null,null,null,null,null,null,null,null,null,null,null,null,null,null,null,null,null,null,null,null,null,null,null,null,null,null,null,null,null,null,{"$error":"#NUM!"},{"$error":"#NUM!"},{"$error":"#NUM!"},0,0,0,0]
[null,null,null,null,null,null,null,null,null,null,null,null,null,null,null,null,null,null,null,null,null,null,null,null,null,null,null,null,null,null,null,{"$error":"#NUM!"},{"$error":"#NUM!"},{"$error":"#NUM!"},0,0,0,0]
[null,null,null,null,null,null,null,null,null,null,null,null,null,null,null,null,null,null,null,null,null,null,null,null,null,null,null,null,null,null,null,{"$error":"#NUM!"},{"$error":"#NUM!"},{"$error":"#NUM!"},0,0,0,0]
[null,null,null,null,null,null,null,null,null,null,null,null,null,null,null,null,null,null,null,null,null,null,null,null,null,null,null,null,null,null,null,{"$error":"#NUM!"},{"$error":"#NUM!"},{"$error":"#NUM!"},0,0,0,0]
[null,null,null,null,null,null,null,null,null,null,null,null,null,null,null,null,null,null,null,null,null,null,null,null,null,null,null,null,null,null,null,{"$error":"#NUM!"},{"$error":"#NUM!"},{"$error":"#NUM!"},0,0,0,0]
[null,null,null,null,null,null,null,null,null,null,null,null,null,null,null,null,null,null,null,null,null,null,null,null,null,null,null,null,null,null,null,{"$error":"#NUM!"},{"$error":"#NUM!"},{"$error":"#NUM!"},0,0,0,0]
[null,null,null,null,null,null,null,null,null,null,null,null,null,null,null,null,null,null,null,null,null,null,null,null,null,null,null,null,null,null,null,{"$error":"#NUM!"},{"$error":"#NUM!"},{"$error":"#NUM!"},0,0,0,0]
[null,null,null,null,null,null,null,null,null,null,null,null,null,null,null,null,null,null,null,null,null,null,null,null,null,null,null,null,null,null,null,{"$error":"#NUM!"},{"$error":"#NUM!"},{"$error":"#NUM!"},0,0,0,0]
[null,null,null,null,null,null,null,null,null,null,null,null,null,null,null,null,null,null,null,null,null,null,null,null,null,null,null,null,null,null,null,{"$error":"#NUM!"},{"$error":"#NUM!"},{"$error":"#NUM!"},0,0,0,0]
[null,null,null,null,null,null,null,null,null,null,null,null,null,null,null,null,null,null,null,null,null,null,null,null,null,null,null,null,null,null,null,{"$error":"#NUM!"},{"$error":"#NUM!"},{"$error":"#NUM!"},0,0,0,0]
[null,null,null,null,null,null,null,null,null,null,null,null,null,null,null,null,null,null,null,null,null,null,null,null,null,null,null,null,null,null,null,{"$error":"#NUM!"},{"$error":"#NUM!"},{"$error":"#NUM!"},0,0,0,0]
[null,null,null,null,null,null,null,null,null,null,null,null,null,null,null,null,null,null,null,null,null,null,null,null,null,null,null,null,null,null,null,{"$error":"#NUM!"},{"$error":"#NUM!"},{"$error":"#NUM!"},0,0,0,0]
[null,null,null,null,null,null,null,null,null,null,null,null,null,null,null,null,null,null,null,null,null,null,null,null,null,null,null,null,null,null,null,{"$error":"#NUM!"},{"$error":"#NUM!"},{"$error":"#NUM!"},0,0,0,0]
[null,null,null,null,null,null,null,null,null,null,null,null,null,null,null,null,null,null,null,null,null,null,null,null,null,null,null,null,null,null,null,{"$error":"#NUM!"},{"$error":"#NUM!"},{"$error":"#NUM!"},0,0,0,0]
[null,null,null,null,null,null,null,null,null,null,null,null,null,null,null,null,null,null,null,null,null,null,null,null,null,null,null,null,null,null,null,{"$error":"#NUM!"},{"$error":"#NUM!"},{"$error":"#NUM!"},0,0,0,0]
[]
[]
[]
[]
[]
[]
[]
[]
[]
[]
[]
[]
[]
[]
[]
[]
[]
[]
[]
[]
[]
[]
[]
[]
[]
[]
[]
[]
[]
[]
[]
[]
[]
[]
[]
[]
[]
[]
[]
[]
[]
[]
[]
[]
[]
[]
[]
[]
[]
[]
[]
[]
[]
[]
[]
[]
[]
[]
[]
[]
[]
[]
[]
[]
[]
[]
[]
[]
[]
[]
[]
[]
[]
[]
[]
[]
[]
[]
[]
[]
[]
[]
[]
[]
[]
[]
[]
[]
[]
[]
[]
[]
[]
[]
[]
[]
[]
[]
[]
[]
[]
[]
[]
[]
[]
[]
[]
[]
[]
[]
[]
[]
[]
[]
[]
[]
[]
[]
[]
[]
[]
[]
[]
[]
[]
[]
[]
[]
[]
[]
[]
[]
[]
[]
[]
[]
[]
[]
[]
[]
[]
[]
[]
[]
[]
[]
[]
[]
[]
[]
[]
[]
[]
[]
[]
[]
[]
[]
[]
[]
[]
[]
[]
[]
[]
[]
[]
[]
[]
[]
[]
[]
[]
[]
[]
[]
[]
[]
[]
[]
[]
[]
[]
[]
[]
[]
[]
[]
[]
[]
[]
[]
[]
[]
[]
[]
[]
[]
[]
[]
[]
[]
[]
[]
[]
[]
[]
[]
[]
[]
[]
[]
[]
[]
[]
[]
[]
[]
[]
[]
[]
[]
[]
[]
[]
[]
[]
[]
[]
[]
[]
[]
[]
[]
[]
[]
[]
[]
[]
[]
[]
[]
[]
[]
[]
[]
[]
[]
[]
[]
[]
[]
[]
[]
[]
[]
[]
[]
[]
[]
[]
[]
[]
[]
[]
[]
[]
[]
[]
[]
[]
[]
[]
[]
[]
[]
[]
[]
[]
[]
[]
[]
[]
[]
[]
[]
[]
[]
[]
[]
[]
[]
[]
[]
[]
[]
[]
[]
[]
[]
[]
[]
[]
[]
[]
[]
[]
[]
[]
[]
[]
[]
[]
[]
[]
[]
[]
[]
[]
[]
[]
[]
[]
[]
[]
[]
[]
[]
[]
[]
[]
[]
[]
[]
[]
[]
[]
[]
[]
[]
[]
[]
[]
[]
[]
[]
[]
[]
[]
[]
[]
[]
[]
[]
[]
[]
[]
[]
[]
[]
[]
[]
[]
[]
[]
[]
[]
[]
[]
[]
[]
[]
[]
[]
[]
[]
[]
[]
[]
[]
[]
[]
[]
[]
[]
[]
[]
[]
[]
[]
[]
[]
[]
[]
[]
[]
[]
[]
[]
[]
[]
[]
[]
[]
[]
[]
[]
[]
[]
[]
[]
[]
[]
[]
[]
[]
[]
[]
[]
[]
[]
[]
[]
[]
[]
[]
[]
[]
[]
[]
[]
[]
[]
[]
[]
[]
[]
[]
[]
[]
[]
[]
[]
[]
[]
[]
[]
[]
[]
[]
[]
[]
[]
[]
[]
[]
[]
[]
[]
[]
[]
[]
[]
[]
[]
[]
[]
[]
[]
[]
[]
[]
[]
[]
[]
[]
[]
[]
[]
[]
[]
[]
[]
[]
[]
[]
[]
[]
[]
[]
[]
[]
[]
[]
[]
[]
[]
[]
[]
[]
[]
[]
[]
[]
[]
[]
[]
[]
[]
[]
[]
[]
[]
[]
[]
[]
[]
[]
[]
[]
[]
[]
[]
[]
[]
[]
[]
[]
[]
[]
[]
[]
[]
[]
[]
[]
[]
[]
[]
[]
[]
[]
[]
[]
[]
[]
[]
[]
[]
[]
[]
[]
[]
[]
[]
[]
[]
[]
[]
[]
[]
[]
[]
[]
[]
[]
[]
[]
[]
[]
[]
[]
[]
[]
[]
[]
[]
[]
[]
[]
[]
[]
[]
[]
[]
[]
[]
[]
[]
[]
[]
[]
[]
[]
[]
[]
[]
[]
[]
[]
[]
[]
[]
[]
[]
[]
[]
[]
[]
[]
[]
[]
[]
[]
[]
[]
[]
[]
[]
[]
[]
[]
[]
[]
[]
[]
[]
[]
[]
[]
[]
[]
[]
[]
[]
[]
[]
[]
[]
[]
[]
[]
[]
[]
[]
[]
[]
[]
[]
[]
[]
[]
[]
[]
[]
[]
[]
[]
[]
[]
[]
[]
[]
[]
[]
[]
[]
[]
[]
[]
[]
[]
[]
[]
[]
[]
[]
[]
[]
[]
[]
[]
[]
[]
[]
[]
[]
[]
[]
[]
[]
[]
[]
[]
[]
[]
[]
[]
[]
[]
[]
[]
[]
[]
[]
[]
[]
[]
[]
[]
[]
[]
[]
[]
[]
[]
[]
[]
[]
[]
[]
[]
[]
[]
[]
[]
[]
[]
[]
[]
[]
[]
[]
[]
[]
[]
[]
[]
[]
[]
[]
[]
[]
[]
[]
[]
[]
[]
[]
[]
[]
[]
[]
[]
[]
[]
[]
[]
[]
[]
[]
[]
[]
[]
[]
[]
[]
[]
[]
[]
[]
[]
[]
[]
[]
[]
[]
[]
[]
[]
[]
[]
[]
[]
[]
[]
[]
[]
[]
[]
[]
[]
[]
[]
[]
[]
[]
[]
[]
[]
[]
[]
[]
[]
[]
[]
[]
[]
[]
[]
[]
[]
[]
[]
[]
[]
[]
[]
[]
[]
[]
[]
[]
[]
[]
[]
[]
[]
[]
[]
[]
[]
[]
[]
[]
[]
[]
[]
[]
[]
[]
[]
[]
[]
[]
[]
[]
[]
[]
[]
[]
[]
[]
[]
[]
[]
[]
[]
[]
[]
[]
[]
[]
[]
[]
[]
[]
[]
[]
[]
[]
[]
[]
[]
[]
[]
[]
[]
[]
[]
[]
[]
[]
[]
[]
[]
[]
[]
[]
[]
[]
[]
[]
[]
[]
[]
[]
[]
[]
[]
[]
[]
[]
[]
[]
[]
[]
[]
[]
[]
[]
[]
[]
[]
[]
[]
[]
[]
[]
[]
[]
[]
[]
[]
[]
[]
[]
[]
[]
[]
[]
[]
[]
[]
[]
[]
[]
[]
[]
[]
[]
[]
[]
[]
[]
[]
[]
[]
[]
[]
[]
[]
[]
[]
[]
[]
[]
[]
[]
[]
[]
[]
[]
[]
[]
[]
[]
[]
[]
[]
[]
[]
[]
[]
[]
[]
[]
[]
[]
[]
[]
[]
[]
[]
[]
[]
[]
[]
[]
[]
[]
[]
[]
[]
[]
[]
[]
[]
[]
[]
[]
[]
[]
[]
[]
[]
[]
[]
[]
[]
[]
[]
[]
[]
[]
[]
[]
[]
[]
[]
[]
[]
[]
[]
[]
[]
[]
[]
[]
[]
[]
[]
[]
[]
[]
[]
[]
[]
[]
[]
[]
[]
[]
[]
[]
[]
[]
[]
[]
[]
[]
[]
[]
[]
[]
[]
[]
[]
[]
[]
[]
[]
[]
[]
[]
[]
[]
[]
[]
[]
[]
[]
[]
[]
[]
[]
[]
[]
[]
[]
[]
[]
[]
[]
[]
[]
[]
[]
[]
[]
[]
[]
[]
[]
[]
[]
[]
[]
[]
[]
[]
[]
[]
[]
[]
[]
[]
[]
[]
[]
[]
[]
[]
[]
[]
[]
[]
[]
[]
[]
[]
[]
[]
[]
[]
[]
[]
[]
[]
[]
[]
[]
[]
[]
[]
[]
[]
[]
[]
[]
[]
[]
[]
[]
[]
[]
[]
[]
[]
[]
[]
[]
[]
[]
[]
[]
[]
[]
[]
[]
[]
[]
[]
[]
[]
[]
[]
[]
[]
[]
[]
[]
[]
[]
[]
[]
[]
[]
[]
[]
[]
[]
[]
[]
[]
[]
[]
[]
[]
[]
[]
[]
[]
[]
[]
[]
[]
[]
[]
[]
[]
[]
[]
[]
[]
[]
[]
[]
[]
[]
[]
[]
[]
[]
[]
[]
[]
[]
[]
[]
[]
[]
[]
[]
[]
[]
[]
[]
[]
[]
[]
[]
[]
[]
[]
[]
[]
[]
[]
[]
[]
[]
[]
[]
[]
[]
[]
[]
[]
[]
[]
[]
[]
[]
[]
[]
[]
[]
[]
[]
[]
[]
[]
[]
[]
[]
[]
[]
[]
[]
[]
[]
[]
[]
[]
[]
[]
[]
[]
[]
[]
[]
[]
[]
[]
[]
[]
[]
[]
[]
[]
[]
[]
[]
[]
[]
[]
[]
[]
[]
[]
[]
[]
[]
[]
[]
[]
[]
[]
[]
[]
[]
[]
[]
[]
[]
[]
[]
[]
[]
[]
[]
[]
[]
[]
[]
[]
[]
[]
[]
[]
[]
[]
[]
[]
[]
[]
[]
[]
[]
[]
[]
[]
[]
[]
[]
[]
[]
[]
[]
[]
[]
[]
[]
[]
[]
[]
[]
[]
[]
[]
[]
[]
[]
[]
[]
[]
[]
[]
[]
[]
[]
[]
[]
[]
[]
[]
[]
[]
[]
[]
[]
[]
[]
[]
[]
[]
[]
[]
[]
[]
[]
[]
[]
[]
[]
[]
[]
[]
[]
[]
[]
[]
[]
[]
[]
[]
[]
[]
[]
[]
[]
[]
[]
[]
[]
[]
[]
[]
[]
[]
[]
[]
[]
[]
[]
[]
[]
[]
[]
[]
[]
[]
[]
[]
[]
[]
[]
[]
[]
[]
[]
[]
[]
[]
[]
[]
[]
[]
[]
[]
[]
[]
[]
[]
[]
[]
[]
[]
[]
[]
[]
[]
[]
[]
[]
[]
[]
[]
[]
[]
[]
[]
[]
[]
[]
[]
[]
[]
[]
[]
[]
[]
[]
[]
[]
[]
[]
[]
[]
[]
[]
[]
[]
[]
[]
[]
[]
[]
[]
[]
[]
[]
[]
[]
[]
[]
[]
[]
[]
[]
[]
[]
[]
[]
[]
[]
[]
[]
[]
[]
[]
[]
[]
[]
[]
[]
[]
[]
[]
[]
[]
[]
[]
[]
[]
[]
[]
[]
[]
[]
[]
[]
[]
[]
[]
[]
[]
[]
[]
[]
[]
[]
[]
[]
[]
[]
[]
[]
[]
[]
[]
[]
[]
[]
[]
[]
[]
[]
[]
[]
[]
[]
[]
[]
[]
[]
[]
[]
[]
[]
[]
[]
[]
[]
[]
[]
[]
[]
[]
[]
[]
[]
[]
[]
[]
[]
[]
[]
[]
[]
[]
[]
[]
[]
[]
[]
[]
[]
[]
[]
[]
[]
[]
[]
[]
[]
[]
[]
[]
[]
[]
[]
[]
[]
[]
[]
[]
[]
[]
[]
[]
[]
[]
[]
[]
[]
[]
[]
[]
[]
[]
[]
[]
[]
[]
[]
[]
[]
[]
[]
[]
[]
[]
[]
[]
[]
[]
[]
[]
[]
[]
[]
[]
[]
[]
[]
[]
[]
[]
[]
[]
[]
[]
[]
[]
[]
[]
[]
[]
[]
[]
[]
[]
[]
[]
[]
[]
[]
[]
[]
[]
[]
[]
[]
[]
[]
[]
[]
[]
[]
[]
[]
[]
[]
[]
[]
[]
[]
[]
[]
[]
[]
[]
[]
[]
[]
[]
[]
[]
[]
[]
[]
[]
[]
[]
[]
[]
[]
[]
[]
[]
[]
[]
[]
[]
[]
[]
[]
[]
[]
[]
[]
[]
[]
[]
[]
[]
[]
[]
[]
[]
[]
[]
[]
[]
[]
[]
[]
[]
[]
[]
[]
[]
[]
[]
[]
[]
[]
[]
[]
[]
[]
[]
[]
[]
[]
[]
[]
[]
[]
[]
[]
[]
[]
[]
[]
[]
[]
[]
[]
[]
[]
[]
[]
[]
[]
[]
[]
[]
[]
[]
[]
[]
[]
[]
[]
[]
[]
[]
[]
[]
[]
[]
[]
[]
[]
[]
[]
[]
[]
[]
[]
[]
[]
[]
[]
[]
[]
[]
[]
[]
[]
[]
[]
[]
[]
[]
[]
[]
[]
[]
[]
[]
[]
[]
[]
[]
[]
[]
[]
[]
[]
[]
[]
[]
[]
[]
[]
[]
[]
[]
[]
[]
[]
[]
[]
[]
[]
[]
[]
[]
[]
[]
[]
[]
[]
[]
[]
[]
[]
[]
[]
[]
[]
[]
[]
[]
[]
[]
[]
[]
[]
[]
[]
[]
[]
[]
[]
[]
[]
[]
[]
[]
[]
[]
[]
[]
[]
[]
[]
[]
[]
[]
[]
[]
[]
[]
[]
[]
[]
[]
[]
[]
[]
[]
[]
[]
[]
[]
[]
[]
[]
[]
[]
[]
[]
[]
[]
[]
[]
[]
[]
[]
[]
[]
[]
[]
[]
[]
[]
[]
[]
[]
[]
[]
[]
[]
[]
[]
[]
[]
[]
[]
[]
[]
[]
[]
[]
[]
[]
[]
[]
[]
[]
[]
[]
[]
[]
[]
[]
[]
[]
[]
[]
[]
[]
[]
[]
[]
[]
[]
[]
[]
[]
[]
[]
[]
[]
[]
[]
[]
[]
[]
[]
[]
[]
[]
[]
[]
[]
[]
[]
[]
[]
[]
[]
[]
[]
[]
[]
[]
[]
[]
[]
[]
[]
[]
[]
[]
[]
[]
[]
[]
[]
[]
[]
[]
[]
[]
[]
[]
[]
[]
[]
[]
[]
[]
[]
[]
[]
[]
[]
[]
[]
[]
[]
[]
[]
[]
[]
[]
[]
[]
[]
[]
[]
[]
[]
[]
[]
[]
[]
[]
[]
[]
[]
[]
[]
[]
[]
[]
[]
[]
[]
[]
[]
[]
[]
[]
[]
[]
[]
[]
[]
[]
[]
[]
[]
[]
[]
[]
[]
[]
[]
[]
[]
[]
[]
[]
[]
[]
[]
[]
[]
[]
[]
[]
[]
[]
[]
[]
[]
[]
[]
[]
[]
[]
[]
[]
[]
[]
[]
[]
[]
[]
[]
[]
[]
[]
[]
[]
[]
[]
[]
[]
[]
[]
[]
[]
[]
[]
[]
[]
[]
[]
[]
[]
[]
[]
[]
[]
[]
[]
[]
[]
[]
[]
[]
[]
[]
[]
[]
[]
[]
[]
[]
[]
[]
[]
[]
[]
[]
[]
[]
[]
[]
[]
[]
[]
[]
[]
[]
[]
[]
[]
[]
[]
[]
[]
[]
[]
[]
[]
[]
[]
[]
[]
[]
[]
[]
[]
[]
[]
[]
[]
[]
[]
[]
[]
[]
[]
[]
[]
[]
[]
[]
[]
[]
[]
[]
[]
[]
[]
[]
[]
[]
[]
[]
[]
[]
[]
[]
[]
[]
[]
[]
[]
[]
[]
[]
[]
[]
[]
[]
[]
[]
[]
[]
[]
[]
[]
[]
[]
[]
[]
[]
[]
[]
[]
[]
[]
[]
[]
[]
[]
[]
[]
[]
[]
[]
[]
[]
[]
[]
[]
[]
[]
[]
[]
[]
[]
[]
[]
[]
[]
[]
[]
[]
[]
[]
[]
[]
[]
[]
[]
[]
[]
[]
[]
[]
[]
[]
[]
[]
[]
[]
[]
[]
[]
[]
[]
[]
[]
[]
[]
[]
[]
[]
[]
[]
[]
[]
[]
[]
[]
[]
[]
[]
[]
[]
[]
[]
[]
[]
[]
[]
[]
[]
[]
[]
[]
[]
[]
[]
[]
[]
[]
[]
[]
[]
[]
[]
[]
[]
[]
[]
[]
[]
[]
[]
[]
[]
[]
[]
[]
[]
[]
[]
[]
[]
[]
[]
[]
[]
[]
[]
[]
[]
[]
[]
[]
[]
[]
[]
[]
[]
[]
[]
[]
[]
[]
[]
[]
[]
[]
[]
[]
[]
[]
[]
[]
[]
[]
[]
[]
[]
[]
[]
[]
[]
[]
[]
[]
[]
[]
[]
[]
[]
[]
[]
[]
[]
[]
[]
[]
[]
[]
[]
[]
[]
[]
[]
[]
[]
[]
[]
[]
[]
[]
[]
[]
[]
[]
[]
[]
[]
[]
[]
[]
[]
[]
[]
[]
[]
[]
[]
[]
[]
[]
[]
[]
[]
[]
[]
[]
[]
[]
[]
[]
[]
[]
[]
[]
[]
[]
[]
[]
[]
[]
[]
[]
[]
[]
[]
[]
[]
[]
[]
[]
[]
[]
[]
[]
[]
[]
[]
[]
[]
[]
[]
[]
[]
[]
[]
[]
[]
[]
[]
[]
[]
[]
[]
[]
[]
[]
[]
[]
[]
[]
[]
[]
[]
[]
[]
[]
[]
[]
[]
[]
[]
[]
[]
[]
[]
[]
[]
[]
[]
[]
[]
[]
[]
[]
[]
[]
[]
[]
[]
[]
[]
[]
[]
[]
[]
[]
[]
[]
[]
[]
[]
[]
[]
[]
[]
[]
[]
[]
[]
[]
[]
[]
[]
[]
[]
[]
[]
[]
[]
[]
[]
[]
[]
[]
[]
[]
[]
[]
[]
[]
[]
[]
[]
[]
[]
[]
[]
[]
[]
[]
[]
[]
[]
[]
[]
[]
[]
[]
[]
[]
[]
[]
[]
[]
[]
[]
[]
[]
[]
[]
[]
[]
[]
[]
[]
[]
[]
[]
[]
[]
[]
[]
[]
[]
[]
[]
[]
[]
[]
[]
[]
[]
[]
[]
[]
[]
[]
[]
[]
[]
[]
[]
[]
[]
[]
[]
[]
[]
[]
[]
[]
[]
[]
[]
[]
[]
[]
[]
[]
[]
[]
[]
[]
[]
[]
[]
[]
[]
[]
[]
[]
[]
[]
[]
[]
[]
[]
[]
[]
[]
[]
[]
[]
[]
[]
[]
[]
[]
[]
[]
[]
[]
[]
[]
[]
[]
[]
[]
[]
[]
[]
[]
[]
[]
[]
[]
[]
[]
[]
[]
[]
[]
[]
[]
[]
[]
[]
[]
[]
[]
[]
[]
[]
[]
[]
[]
[]
[]
[]
[]
[]
[]
[]
[]
[]
[]
[]
[]
[]
[]
[]
[]
[]
[]
[]
[]
[]
[]
[]
[]
[]
[]
[]
[]
[]
[]
[]
[]
[]
[]
[]
[]
[]
[]
[]
[]
[]
[]
[]
[]
[]
[]
[]
[]
[]
[]
[]
[]
[]
[]
[]
[]
[]
[]
[]
[]
[]
[]
[]
[]
[]
[]
[]
[]
[]
[]
[]
[]
[]
[]
[]
[]
[]
[]
[]
[]
[]
[]
[]
[]
[]
[]
[]
[]
[]
[]
[]
[]
[]
[]
[]
[]
[]
[]
[]
[]
[]
[]
[]
[]
[]
[]
[]
[]
[]
[]
[]
[]
[]
[]
[]
[]
[]
[]
[]
[]
[]
[]
[]
[]
[]
[]
[]
[]
[]
[]
[]
[]
[]
[]
[]
[]
[]
[]
[]
[]
[]
[]
[]
[]
[]
[]
[]
[]
[]
[]
[]
[]
[]
[]
[]
[]
[]
[]
[]
[]
[]
[]
[]
[]
[]
[]
[]
[]
[]
[]
[]
[]
[]
[]
[]
[]
[]
[]
[]
[]
[]
[]
[]
[]
[]
[]
[]
[]
[]
[]
[]
[]
[]
[]
[]
[]
[]
[]
[]
[]
[]
[]
[]
[]
[]
[]
[]
[]
[]
[]
[]
[]
[]
[]
[]
[]
[]
[]
[]
[]
[]
[]
[]
[]
[]
[]
[]
[]
[]
[]
[]
[]
[]
[]
[]
[]
[]
[]
[]
[]
[]
[]
[]
[]
[]
[]
[]
[]
[]
[]
[]
[]
[]
[]
[]
[]
[]
[]
[]
[]
[]
[]
[]
[]
[]
[]
[]
[]
[]
[]
[]
[]
[]
[]
[]
[]
[]
[]
[]
[]
[]
[]
[]
[]
[]
[]
[]
[]
[]
[]
[]
[]
[]
[]
[]
[]
[]
[]
[]
[]
[]
[]
[]
[]
[]
[]
[]
[]
[]
[]
[]
[]
[]
[]
[]
[]
[]
[]
[]
[]
[]
[]
[]
[]
[]
[]
[]
[]
[]
[]
[]
[]
[]
[]
[]
[]
[]
[]
[]
[]
[]
[]
[]
[]
[]
[]
[]
[]
[]
[]
[]
[]
[]
[]
[]
[]
[]
[]
[]
[]
[]
[]
[]
[]
[]
[]
[]
[]
[]
[]
[]
[]
[]
[]
[]
[]
[]
[]
[]
[]
[]
[]
[]
[]
[]
[]
[]
[]
[]
[]
[]
[]
[]
[]
[]
[]
[]
[]
[]
[]
[]
[]
[]
[]
[]
[]
[]
[]
[]
[]
[]
[]
[]
[]
[]
[]
[]
[]
[]
[]
[]
[]
[]
[]
[]
[]
[]
[]
[]
[]
[]
[]
[]
[]
[]
[]
[]
[]
[]
[]
[]
[]
[]
[]
[]
[]
[]
[]
[]
[]
[]
[]
[]
[]
[]
[]
[]
[]
[]
[]
[]
[]
[]
[]
[]
[]
[]
[]
[]
[]
[]
[]
[]
[]
[]
[]
[]
[]
[]
[]
[]
[]
[]
[]
[]
[]
[]
[]
[]
[]
[]
[]
[]
[]
[]
[]
[]
[]
[]
[]
[]
[]
[]
[]
[]
[]
[]
[]
[]
[]
[]
[]
[]
[]
[]
[]
[]
[]
[]
[]
[]
[]
[]
[]
[]
[]
[]
[]
[]
[]
[]
[]
[]
[]
[]
[]
[]
[]
[]
[]
[]
[]
[]
[]
[]
[]
[]
[]
[]
[]
[]
[]
[]
[]
[]
[]
[]
[]
[]
[]
[]
[]
[]
[]
[]
[]
[]
[]
[]
[]
[]
[]
[]
[]
[]
[]
[]
[]
[]
[]
[]
[]
[]
[]
[]
[]
[]
[]
[]
[]
[]
[]
[]
[]
[]
[]
[]
[]
[]
[]
[]
[]
[]
[]
[]
[]
[]
[]
[]
[]
[]
[]
[]
[]
[]
[]
[]
[]
[]
[]
[]
[]
[]
[]
[]
[]
[]
[]
[]
[]
[]
[]
[]
[]
[]
[]
[]
[]
[]
[]
[]
[]
[]
[]
[]
[]
[]
[]
[]
[]
[]
[]
[]
[]
[]
[]
[]
[]
[]
[]
[]
[]
[]
[]
[]
[]
[]
[]
[]
[]
[]
[]
[]
[]
[]
[]
[]
[]
[]
[]
[]
[]
[]
[]
[]
[]
[]
[]
[]
[]
[]
[]
[]
[]
[]
[]
[]
[]
[]
[]
[]
[]
[]
[]
[]
[]
[]
[]
[]
[]
[]
[]
[]
[]
[]
[]
[]
[]
[]
[]
[]
[]
[]
[]
[]
[]
[]
[]
[]
[]
[]
[]
[]
[]
[]
[]
[]
[]
[]
[]
[]
[]
[]
[]
[]
[]
[]
[]
[]
[]
[]
[]
[]
[]
[]
[]
[]
[]
[]
[]
[]
[]
[]
[]
[]
[]
[]
[]
[]
[]
[]
[]
[]
[]
[]
[]
[]
[]
[]
[]
[]
[]
[]
[]
[]
[]
[]
[]
[]
[]
[]
[]
[]
[]
[]
[]
[]
[]
[]
[]
[]
[]
[]
[]
[]
[]
[]
[]
[]
[]
[]
[]
[]
[]
[]
[]
[]
[]
[]
[]
[]
[]
[]
[]
[]
[]
[]
[]
[]
[]
[]
[]
[]
[]
[]
[]
[]
[]
[]
[]
[]
[]
[]
[]
[]
[]
[]
[]
[]
[]
[]
[]
[]
[]
[]
[]
[]
[]
[]
[]
[]
[]
[]
[]
[]
[]
[]
[]
[]
[]
[]
[]
[]
[]
[]
[]
[]
[]
[]
[]
[]
[]
[]
[]
[]
[]
[]
[]
[]
[]
[]
[]
[]
[]
[]
[]
[]
[]
[]
[]
[]
[]
[]
[]
[]
[]
[]
[]
[]
[]
[]
[]
[]
[]
[]
[]
[]
[]
[]
[]
[]
[]
[]
[]
[]
[]
[]
[]
[]
[]
[]
[]
[]
[]
[]
[]
[]
[]
[]
[]
[]
[]
[]
[]
[]
[]
[]
[]
[]
[]
[]
[]
[]
[]
[]
[]
[]
[]
[]
[]
[]
[]
[]
[]
[]
[]
[]
[]
[]
[]
[]
[]
[]
[]
[]
[]
[]
[]
[]
[]
[]
[]
[]
[]
[]
[]
[]
[]
[]
[]
[]
[]
[]
[]
[]
[]
[]
[]
[]
[]
[]
[]
[]
[]
[]
[]
[]
[]
[]
[]
[]
[]
[]
[]
[]
[]
[]
[]
[]
[]
[]
[]
[]
[]
[]
[]
[]
[]
[]
[]
[]
[]
[]
[]
[]
[]
[]
[]
[]
[]
[]
[]
[]
[]
[]
[]
[]
[]
[]
[]
[]
[]
[]
[]
[]
[]
[]
[]
[]
[]
[]
[]
[]
[]
[]
[]
[]
[]
[]
[]
[]
[]
[]
[]
[]
[]
[]
[]
[]
[]
[]
[]
[]
[]
[]
[]
[]
[]
[]
[]
[]
[]
[]
[]
[]
[]
[]
[]
[]
[]
[]
[]
[]
[]
[]
[]
[]
[]
[]
[]
[]
[]
[]
[]
[]
[]
[]
[]
[]
[]
[]
[]
[]
[]
[]
[]
[]
[]
[]
[]
[]
[]
[]
[]
[]
[]
[]
[]
[]
[]
[]
[]
[]
[]
[]
[]
[]
[]
[]
[]
[]
[]
[]
[]
[]
[]
[]
[]
[]
[]
[]
[]
[]
[]
[]
[]
[]
[]
[]
[]
[]
[]
[]
[]
[]
[]
[]
[]
[]
[]
[]
[]
[]
[]
[]
[]
[]
[]
[]
[]
[]
[]
[]
[]
[]
[]
[]
[]
[]
[]
[]
[]
[]
[]
[]
[]
[]
[]
[]
[]
[]
[]
[]
[]
[]
[]
[]
[]
[]
[]
[]
[]
[]
[]
[]
[]
[]
[]
[]
[]
[]
[]
[]
[]
[]
[]
[]
[]
[]
[]
[]
[]
[]
[]
[]
[]
[]
[]
[]
[]
[]
[]
[]
[]
[]
[]
[]
[]
[]
[]
[]
[]
[]
[]
[]
[]
[]
[]
[]
[]
[]
[]
[]
[]
[]
[]
[]
[]
[]
[]
[]
[]
[]
[]
[]
[]
[]
[]
[]
[]
[]
[]
[]
[]
[]
[]
[]
[]
[]
[]
[]
[]
[]
[]
[]
[]
[]
[]
[]
[]
[]
[]
[]
[]
[]
[]
[]
[]
[]
[]
[]
[]
[]
[]
[]
[]
[]
[]
[]
[]
[]
[]
[]
[]
[]
[]
[]
[]
[]
[]
[]
[]
[]
[]
[]
[]
[]
[]
[]
[]
[]
[]
[]
[]
[]
[]
[]
[]
[]
[]
[]
[]
[]
[]
[]
[]
[]
[]
[]
[]
[]
[]
[]
[]
[]
[]
[]
[]
[]
[]
[]
[]
[]
[]
[]
[]
[]
[]
[]
[]
[]
[]
[]
[]
[]
[]
[]
[]
[]
[]
[]
[]
[]
[]
[]
[]
[]
[]
[]
[]
[]
[]
[]
[]
[]
[]
[]
[]
[]
[]
[]
[]
[]
[]
[]
[]
[]
[]
[]
[]
[]
[]
[]
[]
[]
[]
[]
[]
[]
[]
[]
[]
[]
[]
[]
[]
[]
[]
[]
[]
[]
[]
[]
[]
[]
[]
[]
[]
[]
[]
[]
[]
[]
[]
[]
[]
[]
[]
[]
[]
[]
[]
[]
[]
[]
[]
[]
[]
[]
[]
[]
[]
[]
[]
[]
[]
[]
[]
[]
[]
[]
[]
[]
[]
[]
[]
[]
[]
[]
[]
[]
[]
[]
[]
[]
[]
[]
[]
[]
[]
[]
[]
[]
[]
[]
[]
[]
[]
[]
[]
[]
[]
[]
[]
[]
[]
[]
[]
[]
[]
[]
[]
[]
[]
[]
[]
[]
[]
[]
[]
[]
[]
[]
[]
[]
[]
[]
[]
[]
[]
[]
[]
[]
[]
[]
[]
[]
[]
[]
[]
[]
[]
[]
[]
[]
[]
[]
[]
[]
[]
[]
[]
[]
[]
[]
[]
[]
[]
[]
[]
[]
[]
[]
[]
[]
[]
[]
[]
[]
[]
[]
[]
[]
[]
[]
[]
[]
[]
[]
[]
[]
[]
[]
[]
[]
[]
[]
[]
[]
[]
[]
[]
[]
[]
[]
[]
[]
[]
[]
[]
[]
[]
[]
[]
[]
[]
[]
[]
[]
[]
[]
[]
[]
[]
[]
[]
[]
[]
[]
[]
[]
[]
[]
[]
[]
[]
[]
[]
[]
[]
[]
[]
[]
[]
[]
[]
[]
[]
[]
[]
[]
[]
[]
[]
[]
[]
[]
[]
[]
[]
[]
[]
[]
[]
[]
[]
[]
[]
[]
[]
[]
[]
[]
[]
[]
[]
[]
[]
[]
[]
[]
[]
[]
[]
[]
[]
[]
[]
[]
[]
[]
[]
[]
[]
[]
[]
[]
[]
[]
[]
[]
[]
[]
[]
[]
[]
[]
[]
[]
[]
[]
[]
[]
[]
[]
[]
[]
[]
[]
[]
[]
[]
[]
[]
[]
[]
[]
[]
[]
[]
[]
[]
[]
[]
[]
[]
[]
[]
[]
[]
[]
[]
[]
[]
[]
[]
[]
[]
[]
[]
[]
[]
[]
[]
[]
[]
[]
[]
[]
[]
[]
[]
[]
[]
[]
[]
[]
[]
[]
[]
[]
[]
[]
[]
[]
[]
[]
[]
[]
[]
[]
[]
[]
[]
[]
[]
[]
[]
[]
[]
[]
[]
[]
[]
[]
[]
[]
[]
[]
[]
[]
[]
[]
[]
[]
[]
[]
[]
[]
[]
[]
[]
[]
[]
[]
[]
[]
[]
[]
[]
[]
[]
[]
[]
[]
[]
[]
[]
[]
[]
[]
[]
[]
[]
[]
[]
[]
[]
[]
[]
[]
[]
[]
[]
[]
[]
[]
[]
[]
[]
[]
[]
[]
[]
[]
[]
[]
[]
[]
[]
[]
[]
[]
[]
[]
[]
[]
[]
[]
[]
[]
[]
[]
[]
[]
[]
[]
[]
[]
[]
[]
[]
[]
[]
[]
[]
[]
[]
[]
[]
[]
[]
[]
[]
[]
[]
[]
[]
[]
[]
[]
[]
[]
[]
[]
[]
[]
[]
[]
[]
[]
[]
[]
[]
[]
[]
[]
[]
[]
[]
[]
[]
[]
[]
[]
[]
[]
[]
[]
[]
[]
[]
[]
[]
[]
[]
[]
[]
[]
[]
[]
[]
[]
[]
[]
[]
[]
[]
[]
[]
[]
[]
[]
[]
[]
[]
[]
[]
[]
[]
[]
[]
[]
[]
[]
[]
[]
[]
[]
[]
[]
[]
[]
[]
[]
[]
[]
[]
[]
[]
[]
[]
[]
[]
[]
[]
[]
[]
[]
[]
[]
[]
[]
[]
[]
[]
[]
[]
[]
[]
[]
[]
[]
[]
[]
[]
[]
[]
[]
[]
[]
[]
[]
[]
[]
[]
[]
[]
[]
[]
[]
[]
[]
[]
[]
[]
[]
[]
[]
[]
[]
[]
[]
[]
[]
[]
[]
[]
[]
[]
[]
[]
[]
[]
[]
[]
[]
[]
[]
[]
[]
[]
[]
[]
[]
[]
[]
[]
[]
[]
[]
[]
[]
[]
[]
[]
[]
[]
[]
[]
[]
[]
[]
[]
[]
[]
[]
[]
[]
[]
[]
[]
[]
[]
[]
[]
[]
[]
[]
[]
[]
[]
[]
[]
[]
[]
[]
[]
[]
[]
[]
[]
[]
[]
[]
[]
[]
[]
[]
[]
[]
[]
[]
[]
[]
[]
[]
[]
[]
[]
[]
[]
[]
[]
[]
[]
[]
[]
[]
[]
[]
[]
[]
[]
[]
[]
[]
[]
[]
[]
[]
[]
[]
[]
[]
[]
[]
[]
[]
[]
[]
[]
[]
[]
[]
[]
[]
[]
[]
[]
[]
[]
[]
[]
[]
[]
[]
[]
[]
[]
[]
[]
[]
[]
[]
[]
[]
[]
[]
[]
[]
[]
[]
[]
[]
[]
[]
[]
[]
[]
[]
[]
[]
[]
[]
[]
[]
[]
[]
[]
[]
[]
[]
[]
[]
[]
[]
[]
[]
[]
[]
[]
[]
[]
[]
[]
[]
[]
[]
[]
[]
[]
[]
[]
[]
[]
[]
[]
[]
[]
[]
[]
[]
[]
[]
[]
[]
[]
[]
[]
[]
[]
[]
[]
[]
[]
[]
[]
[]
[]
[]
[]
[]
[]
[]
[]
[]
[]
[]
[]
[]
[]
[]
[]
[]
[]
[]
[]
[]
[]
[]
[]
[]
[]
[]
[]
[]
[]
[]
[]
[]
[]
[]
[]
[]
[]
[]
[]
[]
[]
[]
[]
[]
[]
[]
[]
[]
[]
[]
[]
[]
[]
[]
[]
[]
[]
[]
[]
[]
[]
[]
[]
[]
[]
[]
[]
[]
[]
[]
[]
[]
[]
[]
[]
[]
[]
[]
[]
[]
[]
[]
[]
[]
[]
[]
[]
[]
[]
[]
[]
[]
[]
[]
[]
[]
[]
[]
[]
[]
[]
[]
[]
[]
[]
[]
[]
[]
[]
[]
[]
[]
[]
[]
[]
[]
[]
[]
[]
[]
[]
[]
[]
[]
[]
[]
[]
[]
[]
[]
[]
[]
[]
[]
[]
[]
[]
[]
[]
[]
[]
[]
[]
[]
[]
[]
[]
[]
[]
[]
[]
[]
[]
[]
[]
[]
[]
[]
[]
[]
[]
[]
[]
[]
[]
[]
[]
[]
[]
[]
[]
[]
[]
[]
[]
[]
[]
[]
[]
[]
[]
[]
[]
[]
[]
[]
[]
[]
[]
[]
[]
[]
[]
[]
[]
[]
[]
[]
[]
[]
[]
[]
[]
[]
[]
[]
[]
[]
[]
[]
[]
[]
[]
[]
[]
[]
[]
[]
[]
[]
[]
[]
[]
[]
[]
[]
[]
[]
[]
[]
[]
[]
[]
[]
[]
[]
[]
[]
[]
[]
[]
[]
[]
[]
[]
[]
[]
[]
[]
[]
[]
[]
[]
[]
[]
[]
[]
[]
[]
[]
[]
[]
[]
[]
[]
[]
[]
[]
[]
[]
[]
[]
[]
[]
[]
[]
[]
[]
[]
[]
[]
[]
[]
[]
[]
[]
[]
[]
[]
[]
[]
[]
[]
[]
[]
[]
[]
[]
[]
[]
[]
[]
[]
[]
[]
[]
[]
[]
[]
[]
[]
[]
[]
[]
[]
[]
[]
[]
[]
[]
[]
[]
[]
[]
[]
[]
[]
[]
[]
[]
[]
[]
[]
[]
[]
[]
[]
[]
[]
[]
[]
[]
[]
[]
[]
[]
[]
[]
[]
[]
[]
[]
[]
[]
[]
[]
[]
[]
[]
[]
[]
[]
[]
[]
[]
[]
[]
[]
[]
[]
[]
[]
[]
[]
[]
[]
[]
[]
[]
[]
[]
[]
[]
[]
[]
[]
[]
[]
[]
[]
[]
[]
[]
[]
[]
[]
[]
[]
[]
[]
[]
[]
[]
[]
[]
[]
[]
[]
[]
[]
[]
[]
[]
[]
[]
[]
[]
[]
[]
[]
[]
[]
[]
[]
[]
[]
[]
[]
[]
[]
[]
[]
[]
[]
[]
[]
[]
[]
[]
[]
[]
[]
[]
[]
[]
[]
[]
[]
[]
[]
[]
[]
[]
[]
[]
[]
[]
[]
[]
[]
[]
[]
[]
[]
[]
[]
[]
[]
[]
[]
[]
[]
[]
[]
[]
[]
[]
[]
[]
[]
[]
[]
[]
[]
[]
[]
[]
[]
[]
[]
[]
[]
[]
[]
[]
[]
[]
[]
[]
[]
[]
[]
[]
[]
[]
[]
[]
[]
[]
[]
[]
[]
[]
[]
[]
[]
[]
[]
[]
[]
[]
[]
[]
[]
[]
[]
[]
[]
[]
[]
[]
[]
[]
[]
[]
[]
[]
[]
[]
[]
[]
[]
[]
[]
[]
[]
[]
[]
[]
[]
[]
[]
[]
[]
[]
[]
[]
[]
[]
[]
[]
[]
[]
[]
[]
[]
[]
[]
[]
[]
[]
[]
[]
[]
[]
[]
[]
[]
[]
[]
[]
[]
[]
[]
[]
[]
[]
[]
[]
[]
[]
[]
[]
[]
[]
[]
[]
[]
[]
[]
[]
[]
[]
[]
[]
[]
[]
[]
[]
[]
[]
[]
[]
[]
[]
[]
[]
[]
[]
[]
[]
[]
[]
[]
[]
[]
[]
[]
[]
[]
[]
[]
[]
[]
[]
[]
[]
[]
[]
[]
[]
[]
[]
[]
[]
[]
[]
[]
[]
[]
[]
[]
[]
[]
[]
[]
[]
[]
[]
[]
[]
[]
[]
[]
[]
[]
[]
[]
[]
[]
[]
[]
[]
[]
[]
[]
[]
[]
[]
[]
[]
[]
[]
[]
[]
[]
[]
[]
[]
[]
[]
[]
[]
[]
[]
[]
[]
[]
[]
[]
[]
[]
[]
[]
[]
[]
[]
[]
[]
[]
[]
[]
[]
[]
[]
[]
[]
[]
[]
[]
[]
[]
[]
[]
[]
[]
[]
[]
[]
[]
[]
[]
[]
[]
[]
[]
[]
[]
[]
[]
[]
[]
[]
[]
[]
[]
[]
[]
[]
[]
[]
[]
[]
[]
[]
[]
[]
[]
[]
[]
[]
[]
[]
[]
[]
[]
[]
[]
[]
[]
[]
[]
[]
[]
[]
[]
[]
[]
[]
[]
[]
[]
[]
[]
[]
[]
[]
[]
[]
[]
[]
[]
[]
[]
[]
[]
[]
[]
[]
[]
[]
[]
[]
[]
[]
[]
[]
[]
[]
[]
[]
[]
[]
[]
[]
[]
[]
[]
[]
[]
[]
[]
[]
[]
[]
[]
[]
[]
[]
[]
[]
[]
[]
[]
[]
[]
[]
[]
[]
[]
[]
[]
[]
[]
[]
[]
[]
[]
[]
[]
[]
[]
[]
[]
[]
[]
[]
[]
[]
[]
[]
[]
[]
[]
[]
[]
[]
[]
[]
[]
[]
[]
[]
[]
[]
[]
[]
[]
[]
[]
[]
[]
[]
[]
[]
[]
[]
[]
[]
[]
[]
[]
[]
[]
[]
[]
[]
[]
[]
[]
[]
[]
[]
[]
[]
[]
[]
[]
[]
[]
[]
[]
[]
[]
[]
[]
[]
[]
[]
[]
[]
[]
[]
[]
[]
[]
[]
[]
[]
[]
[]
[]
[]
[]
[]
[]
[]
[]
[]
[]
[]
[]
[]
[]
[]
[]
[]
[]
[]
[]
[]
[]
[]
[]
[]
[]
[]
[]
[]
[]
[]
[]
[]
[]
[]
[]
[]
[]
[]
[]
[]
[]
[]
[]
[]
[]
[]
[]
[]
[]
[]
[]
[]
[]
[]
[]
[]
[]
[]
[]
[]
[]
[]
[]
[]
[]
[]
[]
[]
[]
[]
[]
[]
[]
[]
[]
[]
[]
[]
[]
[]
[]
[]
[]
[]
[]
[]
[]
[]
[]
[]
[]
[]
[]
[]
[]
[]
[]
[]
[]
[]
[]
[]
[]
[]
[]
[]
[]
[]
[]
[]
[]
[]
[]
[]
[]
[]
[]
[]
[]
[]
[]
[]
[]
[]
[]
[]
[]
[]
[]
[]
[]
[]
[]
[]
[]
[]
[]
[]
[]
[]
[]
[]
[]
[]
[]
[]
[]
[]
[]
[]
[]
[]
[]
[]
[]
[]
[]
[]
[]
[]
[]
[]
[]
[]
[]
[]
[]
[]
[]
[]
[]
[]
[]
[]
[]
[]
[]
[]
[]
[]
[]
[]
[]
[]
[]
[]
[]
[]
[]
[]
[]
[]
[]
[]
[]
[]
[]
[]
[]
[]
[]
[]
[]
[]
[]
[]
[]
[]
[]
[]
[]
[]
[]
[]
[]
[]
[]
[]
[]
[]
[]
[]
[]
[]
[]
[]
[]
[]
[]
[]
[]
[]
[]
[]
[]
[]
[]
[]
[]
[]
[]
[]
[]
[]
[]
[]
[]
[]
[]
[]
[]
[]
[]
[]
[]
[]
[]
[]
[]
[]
[]
[]
[]
[]
[]
[]
[]
[]
[]
[]
[]
[]
[]
[]
[]
[]
[]
[]
[]
[]
[]
[]
[]
[]
[]
[]
[]
[]
[]
[]
[]
[]
[]
[]
[]
[]
[]
[]
[]
[]
[]
[]
[]
[]
[]
[]
[]
[]
[]
[]
[]
[]
[]
[]
[]
[]
[]
[]
[]
[]
[]
[]
[]
[]
[]
[]
[]
[]
[]
[]
[]
[]
[]
[]
[]
[]
[]
[]
[]
[]
[]
[]
[]
[]
[]
[]
[]
[]
[]
[]
[]
[]
[]
[]
[]
[]
[]
[]
[]
[]
[]
[]
[]
[]
[]
[]
[]
[]
[]
[]
[]
[]
[]
[]
[]
[]
[]
[]
[]
[]
[]
[]
[]
[]
[]
[]
[]
[]
[]
[]
[]
[]
[]
[]
[]
[]
[]
[]
[]
[]
[]
[]
[]
[]
[]
[]
[]
[]
[]
[]
[]
[]
[]
[]
[]
[]
[]
[]
[]
[]
[]
[]
[]
[]
[]
[]
[]
[]
[]
[]
[]
[]
[]
[]
[]
[]
[]
[]
[]
[]
[]
[]
[]
[]
[]
[]
[]
[]
[]
[]
[]
[]
[]
[]
[]
[]
[]
[]
[]
[]
[]
[]
[]
[]
[]
[]
[]
[]
[]
[]
[]
[]
[]
[]
[]
[]
[]
[]
[]
[]
[]
[]
[]
[]
[]
[]
[]
[]
[]
[]
[]
[]
[]
[]
[]
[]
[]
[]
[]
[]
[]
[]
[]
[]
[]
[]
[]
[]
[]
[]
[]
[]
[]
[]
[]
[]
[]
[]
[]
[]
[]
[]
[]
[]
[]
[]
[]
[]
[]
[]
[]
[]
[]
[]
[]
[]
[]
[]
[]
[]
[]
[]
[]
[]
[]
[]
[]
[]
[]
[]
[]
[]
[]
[]
[]
[]
[]
[]
[]
[]
[]
[]
[]
[]
[]
[]
[]
[]
[]
[]
[]
[]
[]
[]
[]
[]
[]
[]
[]
[]
[]
[]
[]
[]
[]
[]
[]
[]
[]
[]
[]
[]
[]
[]
[]
[]
[]
[]
[]
[]
[]
[]
[]
[]
[]
[]
[]
[]
[]
[]
[]
[]
[]
[]
[]
[]
[]
[]
[]
[]
[]
[]
[]
[]
[]
[]
[]
[]
[]
[]
[]
[]
[]
[]
[]
[]
[]
[]
[]
[]
[]
[]
[]
[]
[]
[]
[]
[]
[]
[]
[]
[]
[]
[]
[]
[]
[]
[]
[]
[]
[]
[]
[]
[]
[]
[]
[]
[]
[]
[]
[]
[]
[]
[]
[]
[]
[]
[]
[]
[]
[]
[]
[]
[]
[]
[]
[]
[]
[]
[]
[]
[]
[]
[]
[]
[]
[]
[]
[]
[]
[]
[]
[]
[]
[]
[]
[]
[]
[]
[]
[]
[]
[]
[]
[]
[]
[]
[]
[]
[]
[]
[]
[]
[]
[]
[]
[]
[]
[]
[]
[]
[]
[]
[]
[]
[]
[]
[]
[]
[]
[]
[]
[]
[]
[]
[]
[]
[]
[]
[]
[]
[]
[]
[]
[]
[]
[]
[]
[]
[]
[]
[]
[]
[]
[]
[]
[]
[]
[]
[]
[]
[]
[]
[]
[]
[]
[]
[]
[]
[]
[]
[]
[]
[]
[]
[]
[]
[]
[]
[]
[]
[]
[]
[]
[]
[]
[]
[]
[]
[]
[]
[]
[]
[]
[]
[]
[]
[]
[]
[]
[]
[]
[]
[]
[]
[]
[]
[]
[]
[]
[]
[]
[]
[]
[]
[]
[]
[]
[]
[]
[]
[]
[]
[]
[]
[]
[]
[]
[]
[]
[]
[]
[]
[]
[]
[]
[]
[]
[]
[]
[]
[]
[]
[]
[]
[]
[]
[]
[]
[]
[]
[]
[]
[]
[]
[]
[]
[]
[]
[]
[]
[]
[]
[]
[]
[]
[]
[]
[]
[]
[]
[]
[]
[]
[]
[]
[]
[]
[]
[]
[]
[]
[]
[]
[]
[]
[]
[]
[]
[]
[]
[]
[]
[]
[]
[]
[]
[]
[]
[]
[]
[]
[]
[]
[]
[]
[]
[]
[]
[]
[]
[]
[]
[]
[]
[]
[]
[]
[]
[]
[]
[]
[]
[]
[]
[]
[]
[]
[]
[]
[]
[]
[]
[]
[]
[]
[]
[]
[]
[]
[]
[]
[]
[]
[]
[]
[]
[]
[]
[]
[]
[]
[]
[]
[]
[]
[]
[]
[]
[]
[]
[]
[]
[]
[]
[]
[]
[]
[]
[]
[]
[]
[]
[]
[]
[]
[]
[]
[]
[]
[]
[]
[]
[]
[]
[]
[]
[]
[]
[]
[]
[]
[]
[]
[]
[]
[]
[]
[]
[]
[]
[]
[]
[]
[]
[]
[]
[]
[]
[]
[]
[]
[]
[]
[]
[]
[]
[]
[]
[]
[]
[]
[]
[]
[]
[]
[]
[]
[]
[]
[]
[]
[]
[]
[]
[]
[]
[]
[]
[]
[]
[]
[]
[]
[]
[]
[]
[]
[]
[]
[]
[]
[]
[]
[]
[]
[]
[]
[]
[]
[]
[]
[]
[]
[]
[]
[]
[]
[]
[]
[]
[]
[]
[]
[]
[]
[]
[]
[]
[]
[]
[]
[]
[]
[]
[]
[]
[]
[]
[]
[]
[]
[]
[]
[]
[]
[]
[]
[]
[]
[]
[]
[]
[]
[]
[]
[]
[]
[]
[]
[]
[]
[]
[]
[]
[]
[]
[]
[]
[]
[]
[]
[]
[]
[]
[]
[]
[]
[]
[]
[]
[]
[]
[]
[]
[]
[]
[]
[]
[]
[]
[]
[]
[]
[]
[]
[]
[]
[]
[]
[]
[]
[]
[]
[]
[]
[]
[]
[]
[]
[]
[]
[]
[]
[]
[]
[]
[]
[]
[]
[]
[]
[]
[]
[]
[]
[]
[]
[]
[]
[]
[]
[]
[]
[]
[]
[]
[]
[]
[]
[]
[]
[]
[]
[]
[]
[]
[]
[]
[]
[]
[]
[]
[]
[]
[]
[]
[]
[]
[]
[]
[]
[]
[]
[]
[]
[]
[]
[]
[]
[]
[]
[]
[]
[]
[]
[]
[]
[]
[]
[]
[]
[]
[]
[]
[]
[]
[]
[]
[]
[]
[]
[]
[]
[]
[]
[]
[]
[]
[]
[]
[]
[]
[]
[]
[]
[]
[]
[]
[]
[]
[]
[]
[]
[]
[]
[]
[]
[]
[]
[]
[]
[]
[]
[]
[]
[]
[]
[]
[]
[]
[]
[]
[]
[]
[]
[]
[]
[]
[]
[]
[]
[]
[]
[]
[]
[]
[]
[]
[]
[]
[]
[]
[]
[]
[]
[]
[]
[]
[]
[]
[]
[]
[]
[]
[]
[]
[]
[]
[]
[]
[]
[]
[]
[]
[]
[]
[]
[]
[]
[]
[]
[]
[]
[]
[]
[]
[]
[]
[]
[]
[]
[]
[]
[]
[]
[]
[]
[]
[]
[]
[]
[]
[]
[]
[]
[]
[]
[]
[]
[]
[]
[]
[]
[]
[]
[]
[]
[]
[]
[]
[]
[]
[]
[]
[]
[]
[]
[]
[]
[]
[]
[]
[]
[]
[]
[]
[]
[]
[]
[]
[]
[]
[]
[]
[]
[]
[]
[]
[]
[]
[]
[]
[]
[]
[]
[]
[]
[]
[]
[]
[]
[]
[]
[]
[]
[]
[]
[]
[]
[]
[]
[]
[]
[]
[]
[]
[]
[]
[]
[]
[]
[]
[]
[]
[]
[]
[]
[]
[]
[]
[]
[]
[]
[]
[]
[]
[]
[]
[]
[]
[]
[]
[]
[]
[]
[]
[]
[]
[]
[]
[]
[]
[]
[]
[]
[]
[]
[]
[]
[]
[]
[]
[]
[]
[]
[]
[]
[]
[]
[]
[]
[]
[]
[]
[]
[]
[]
[]
[]
[]
[]
[]
[]
[]
[]
[]
[]
[]
[]
[]
[]
[]
[]
[]
[]
[]
[]
[]
[]
[]
[]
[]
[]
[]
[]
[]
[]
[]
[]
[]
[]
[]
[]
[]
[]
[]
[]
[]
[]
[]
[]
[]
[]
[]
[]
[]
[]
[]
[]
[]
[]
[]
[]
[]
[]
[]
[]
[]
[]
[]
[]
[]
[]
[]
[]
[]
[]
[]
[]
[]
[]
[]
[]
[]
[]
[]
[]
[]
[]
[]
[]
[]
[]
[]
[]
[]
[]
[]
[]
[]
[]
[]
[]
[]
[]
[]
[]
[]
[]
[]
[]
[]
[]
[]
[]
[]
[]
[]
[]
[]
[]
[]
[]
[]
[]
[]
[]
[]
[]
[]
[]
[]
[]
[]
[]
[]
[]
[]
[]
[]
[]
[]
[]
[]
[]
[]
[]
[]
[]
[]
[]
[]
[]
[]
[]
[]
[]
[]
[]
[]
[]
[]
[]
[]
[]
[]
[]
[]
[]
[]
[]
[]
[]
[]
[]
[]
[]
[]
[]
[]
[]
[]
[]
[]
[]
[]
[]
[]
[]
[]
[]
[]
[]
[]
[]
[]
[]
[]
[]
[]
[]
[]
[]
[]
[]
[]
[]
[]
[]
[]
[]
[]
[]
[]
[]
[]
[]
[]
[]
[]
[]
[]
[]
[]
[]
[]
[]
[]
[]
[]
[]
[]
[]
[]
[]
[]
[]
[]
[]
[]
[]
[]
[]
[]
[]
[]
[]
[]
[]
[]
[]
[]
[]
[]
[]
[]
[]
[]
[]
[]
[]
[]
[]
[]
[]
[]
[]
[]
[]
[]
[]
[]
[]
[]
[]
[]
[]
[]
[]
[]
[]
[]
[]
[]
[]
[]
[]
[]
[]
[]
[]
[]
[]
[]
[]
[]
[]
[]
[]
[]
[]
[]
[]
[]
[]
[]
[]
[]
[]
[]
[]
[]
[]
[]
[]
[]
[]
[]
[]
[]
[]
[]
[]
[]
[]
[]
[]
[]
[]
[]
[]
[]
[]
[]
[]
[]
[]
[]
[]
[]
[]
[]
[]
[]
[]
[]
[]
[]
[]
[]
[]
[]
[]
[]
[]
[]
[]
[]
[]
[]
[]
[]
[]
[]
[]
[]
[]
[]
[]
[]
[]
[]
[]
[]
[]
[]
[]
[]
[]
[]
[]
[]
[]
[]
[]
[]
[]
[]
[]
[]
[]
[]
[]
[]
[]
[]
[]
[]
[]
[]
[]
[]
[]
[]
[]
[]
[]
[]
[]
[]
[]
[]
[]
[]
[]
[]
[]
[]
[]
[]
[]
[]
[]
[]
[]
[]
[]
[]
[]
[]
[]
[]
[]
[]
[]
[]
[]
[]
[]
[]
[]
[]
[]
[]
[]
[]
[]
[]
[]
[]
[]
[]
[]
[]
[]
[]
[]
[]
[]
[]
[]
[]
[]
[]
[]
[]
[]
[]
[]
[]
[]
[]
[]
[]
[]
[]
[]
[]
[]
[]
[]
[]
[]
[]
[]
[]
[]
[]
[]
[]
[]
[]
[]
[]
[]
[]
[]
[]
[]
[]
[]
[]
[]
[]
[]
[]
[]
[]
[]
[]
[]
[]
[]
[]
[]
[]
[]
[]
[]
[]
[]
[]
[]
[]
[]
[]
[]
[]
[]
[]
[]
[]
[]
[]
[]
[]
[]
[]
[]
[]
[]
[]
[]
[]
[]
[]
[]
[]
[]
[]
[]
[]
[]
[]
[]
[]
[]
[]
[]
[]
[]
[]
[]
[]
[]
[]
[]
[]
[]
[]
[]
[]
[]
[]
[]
[]
[]
[]
[]
[]
[]
[]
[]
[]
[]
[]
[]
[]
[]
[]
[]
[]
[]
[]
[]
[]
[]
[]
[]
[]
[]
[]
[]
[]
[]
[]
[]
[]
[]
[]
[]
[]
[]
[]
[]
[]
[]
[]
[]
[]
[]
[]
[]
[]
[]
[]
[]
[]
[]
[]
[]
[]
[]
[]
[]
[]
[]
[]
[]
[]
[]
[]
[]
[]
[]
[]
[]
[]
[]
[]
[]
[]
[]
[]
[]
[]
[]
[]
[]
[]
[]
[]
[]
[]
[]
[]
[]
[]
[]
[]
[]
[]
[]
[]
[]
[]
[]
[]
[]
[]
[]
[]
[]
[]
[]
[]
[]
[]
[]
[]
[]
[]
[]
[]
[]
[]
[]
[]
[]
[]
[]
[]
[]
[]
[]
[]
[]
[]
[]
[]
[]
[]
[]
[]
[]
[]
[]
[]
[]
[]
[]
[]
[]
[]
[]
[]
[]
[]
[]
[]
[]
[]
[]
[]
[]
[]
[]
[]
[]
[]
[]
[]
[]
[]
[]
[]
[]
[]
[]
[]
[]
[]
[]
[]
[]
[]
[]
[]
[]
[]
[]
[]
[]
[]
[]
[]
[]
[]
[]
[]
[]
[]
[]
[]
[]
[]
[]
[]
[]
[]
[]
[]
[]
[]
[]
[]
[]
[]
[]
[]
[]
[]
[]
[]
[]
[]
[]
[]
[]
[]
[]
[]
[]
[]
[]
[]
[]
[]
[]
[]
[]
[]
[]
[]
[]
[]
[]
[]
[]
[]
[]
[]
[]
[]
[]
[]
[]
[]
[]
[]
[]
[]
[]
[]
[]
[]
[]
[]
[]
[]
[]
[]
[]
[]
[]
[]
[]
[]
[]
[]
[]
[]
[]
[]
[]
[]
[]
[]
[]
[]
[]
[]
[]
[]
[]
[]
[]
[]
[]
[]
[]
[]
[]
[]
[]
[]
[]
[]
[]
[]
[]
[]
[]
[]
[]
[]
[]
[]
[]
[]
[]
[]
[]
[]
[]
[]
[]
[]
[]
[]
[]
[]
[]
[]
[]
[]
[]
[]
[]
[]
[]
[]
[]
[]
[]
[]
[]
[]
[]
[]
[]
[]
[]
[]
[]
[]
[]
[]
[]
[]
[]
[]
[]
[]
[]
[]
[]
[]
[]
[]
[]
[]
[]
[]
[]
[]
[]
[]
[]
[]
[]
[]
[]
[]
[]
[]
[]
[]
[]
[]
[]
[]
[]
[]
[]
[]
[]
[]
[]
[]
[]
[]
[]
[]
[]
[]
[]
[]
[]
[]
[]
[]
[]
[]
[]
[]
[]
[]
[]
[]
[]
[]
[]
[]
[]
[]
[]
[]
[]
[]
[]
[]
[]
[]
[]
[]
[]
[]
[]
[]
[]
[]
[]
[]
[]
[]
[]
[]
[]
[]
[]
[]
[]
[]
[]
[]
[]
[]
[]
[]
[]
[]
[]
[]
[]
[]
[]
[]
[]
[]
[]
[]
[]
[]
[]
[]
[]
[]
[]
[]
[]
[]
[]
[]
[]
[]
[]
[]
[]
[]
[]
[]
[]
[]
[]
[]
[]
[]
[]
[]
[]
[]
[]
[]
[]
[]
[]
[]
[]
[]
[]
[]
[]
[]
[]
[]
[]
[]
[]
[]
[]
[]
[]
[]
[]
[]
[]
[]
[]
[]
[]
[]
[]
[]
[]
[]
[]
[]
[]
[]
[]
[]
[]
[]
[]
[]
[]
[]
[]
[]
[]
[]
[]
[]
[]
[]
[]
[]
[]
[]
[]
[]
[]
[]
[]
[]
[]
[]
[]
[]
[]
[]
[]
[]
[]
[]
[]
[]
[]
[]
[]
[]
[]
[]
[]
[]
[]
[]
[]
[]
[]
[]
[]
[]
[]
[]
[]
[]
[]
[]
[]
[]
[]
[]
[]
[]
[]
[]
[]
[]
[]
[]
[]
[]
[]
[]
[]
[]
[]
[]
[]
[]
[]
[]
[]
[]
[]
[]
[]
[]
[]
[]
[]
[]
[]
[]
[]
[]
[]
[]
[]
[]
[]
[]
[]
[]
[]
[]
[]
[]
[]
[]
[]
[]
[]
[]
[]
[]
[]
[]
[]
[]
[]
[]
[]
[]
[]
[]
[]
[]
[]
[]
[]
[]
[]
[]
[]
[]
[]
[]
[]
[]
[]
[]
[]
[]
[]
[]
[]
[]
[]
[]
[]
[]
[]
[]
[]
[]
[]
[]
[]
[]
[]
[]
[]
[]
[]
[]
[]
[]
[]
[]
[]
[]
[]
[]
[]
[]
[]
[]
[]
[]
[]
[]
[]
[]
[]
[]
[]
[]
[]
[]
[]
[]
[]
[]
[]
[]
[]
[]
[]
[]
[]
[]
[]
[]
[]
[]
[]
[]
[]
[]
[]
[]
[]
[]
[]
[]
[]
[]
[]
[]
[]
[]
[]
[]
[]
[]
[]
[]
[]
[]
[]
[]
[]
[]
[]
[]
[]
[]
[]
[]
[]
[]
[]
[]
[]
[]
[]
[]
[]
[]
[]
[]
[]
[]
[]
[]
[]
[]
[]
[]
[]
[]
[]
[]
[]
[]
[]
[]
[]
[]
[]
[]
[]
[]
[]
[]
[]
[]
[]
[]
[]
[]
[]
[]
[]
[]
[]
[]
[]
[]
[]
[]
[]
[]
[]
[]
[]
[]
[]
[]
[]
[]
[]
[]
[]
[]
[]
[]
[]
[]
[]
[]
[]
[]
[]
[]
[]
[]
[]
[]
[]
[]
[]
[]
[]
[]
[]
[]
[]
[]
[]
[]
[]
[]
[]
[]
[]
[]
[]
[]
[]
[]
[]
[]
[]
[]
[]
[]
[]
[]
[]
[]
[]
[]
[]
[]
[]
[]
[]
[]
[]
[]
[]
[]
[]
[]
[]
[]
[]
[]
[]
[]
[]
[]
[]
[]
[]
[]
[]
[]
[]
[]
[]
[]
[]
[]
[]
[]
[]
[]
[]
[]
[]
[]
[]
[]
[]
[]
[]
[]
[]
[]
[]
[]
[]
[]
[]
[]
[]
[]
[]
[]
[]
[]
[]
[]
[]
[]
[]
[]
[]
[]
[]
[]
[]
[]
[]
[]
[]
[]
[]
[]
[]
[]
[]
[]
[]
[]
[]
[]
[]
[]
[]
[]
[]
[]
[]
[]
[]
[]
[]
[]
[]
[]
[]
[]
[]
[]
[]
[]
[]
[]
[]
[]
[]
[]
[]
[]
[]
[]
[]
[]
[]
[]
[]
[]
[]
[]
[]
[]
[]
[]
[]
[]
[]
[]
[]
[]
[]
[]
[]
[]
[]
[]
[]
[]
[]
[]
[]
[]
[]
[]
[]
[]
[]
[]
[]
[]
[]
[]
[]
[]
[]
[]
[]
[]
[]
[]
[]
[]
[]
[]
[]
[]
[]
[]
[]
[]
[]
[]
[]
[]
[]
[]
[]
[]
[]
[]
[]
[]
[]
[]
[]
[]
[]
[]
[]
[]
[]
[]
[]
[]
[]
[]
[]
[]
[]
[]
[]
[]
[]
[]
[]
[]
[]
[]
[]
[]
[]
[]
[]
[]
[]
[]
[]
[]
[]
[]
[]
[]
[]
[]
[]
[]
[]
[]
[]
[]
[]
[]
[]
[]
[]
[]
[]
[]
[]
[]
[]
[]
[]
[]
[]
[]
[]
[]
[]
[]
[]
[]
[]
[]
[]
[]
[]
[]
[]
[]
[]
[]
[]
[]
[]
[]
[]
[]
[]
[]
[]
[]
[]
[]
[]
[]
[]
[]
[]
[]
[]
[]
[]
[]
[]
[]
[]
[]
[]
[]
[]
[]
[]
[]
[]
[]
[]
[]
[]
[]
[]
[]
[]
[]
[]
[]
[]
[]
[]
[]
[]
[]
[]
[]
[]
[]
[]
[]
[]
[]
[]
[]
[]
[]
[]
[]
[]
[]
[]
[]
[]
[]
[]
[]
[]
[]
[]
[]
[]
[]
[]
[]
[]
[]
[]
[]
[]
[]
[]
[]
[]
[]
[]
[]
[]
[]
[]
[]
[]
[]
[]
[]
[]
[]
[]
[]
[]
[]
[]
[]
[]
[]
[]
[]
[]
[]
[]
[]
[]
[]
[]
[]
[]
[]
[]
[]
[]
[]
[]
[]
[]
[]
[]
[]
[]
[]
[]
[]
[]
[]
[]
[]
[]
[]
[]
[]
[]
[]
[]
[]
[]
[]
[]
[]
[]
[]
[]
[]
[]
[]
[]
[]
[]
[]
[]
[]
[]
[]
[]
[]
[]
[]
[]
[]
[]
[]
[]
[]
[]
[]
[]
[]
[]
[]
[]
[]
[]
[]
[]
[]
[]
[]
[]
[]
[]
[]
[]
[]
[]
[]
[]
[]
[]
[]
[]
[]
[]
[]
[]
[]
[]
[]
[]
[]
[]
[]
[]
[]
[]
[]
[]
[]
[]
[]
[]
[]
[]
[]
[]
[]
[]
[]
[]
[]
[]
[]
[]
[]
[]
[]
[]
[]
[]
[]
[]
[]
[]
[]
[]
[]
[]
[]
[]
[]
[]
[]
[]
[]
[]
[]
[]
[]
[]
[]
[]
[]
[]
[]
[]
[]
[]
[]
[]
[]
[]
[]
[]
[]
[]
[]
[]
[]
[]
[]
[]
[]
[]
[]
[]
[]
[]
[]
[]
[]
[]
[]
[]
[]
[]
[]
[]
[]
[]
[]
[]
[]
[]
[]
[]
[]
[]
[]
[]
[]
[]
[]
[]
[]
[]
[]
[]
[]
[]
[]
[]
[]
[]
[]
[]
[]
[]
[]
[]
[]
[]
[]
[]
[]
[]
[]
[]
[]
[]
[]
[]
[]
[]
[]
[]
[]
[]
[]
[]
[]
[]
[]
[]
[]
[]
[]
[]
[]
[]
[]
[]
[]
[]
[]
[]
[]
[]
[]
[]
[]
[]
[]
[]
[]
[]
[]
[]
[]
[]
[]
[]
[]
[]
[]
[]
[]
[]
[]
[]
[]
[]
[]
[]
[]
[]
[]
[]
[]
[]
[]
[]
[]
[]
[]
[]
[]
[]
[]
[]
[]
[]
[]
[]
[]
[]
[]
[]
[]
[]
[]
[]
[]
[]
[]
[]
[]
[]
[]
[]
[]
[]
[]
[]
[]
[]
[]
[]
[]
[]
[]
[]
[]
[]
[]
[]
[]
[]
[]
[]
[]
[]
[]
[]
[]
[]
[]
[]
[]
[]
[]
[]
[]
[]
[]
[]
[]
[]
[]
[]
[]
[]
[]
[]
[]
[]
[]
[]
[]
[]
[]
[]
[]
[]
[]
[]
[]
[]
[]
[]
[]
[]
[]
[]
[]
[]
[]
[]
[]
[]
[]
[]
[]
[]
[]
[]
[]
[]
[]
[]
[]
[]
[]
[]
[]
[]
[]
[]
[]
[]
[]
[]
[]
[]
[]
[]
[]
[]
[]
[]
[]
[]
[]
[]
[]
[]
[]
[]
[]
[]
[]
[]
[]
[]
[]
[]
[]
[]
[]
[]
[]
[]
[]
[]
[]
[]
[]
[]
[]
[]
[]
[]
[]
[]
[]
[]
[]
[]
[]
[]
[]
[]
[]
[]
[]
[]
[]
[]
[]
[]
[]
[]
[]
[]
[]
[]
[]
[]
[]
[]
[]
[]
[]
[]
[]
[]
[]
[]
[]
[]
[]
[]
[]
[]
[]
[]
[]
[]
[]
[]
[]
[]
[]
[]
[]
[]
[]
[]
[]
[]
[]
[]
[]
[]
[]
[]
[]
[]
[]
[]
[]
[]
[]
[]
[]
[]
[]
[]
[]
[]
[]
[]
[]
[]
[]
[]
[]
[]
[]
[]
[]
[]
[]
[]
[]
[]
[]
[]
[]
[]
[]
[]
[]
[]
[]
[]
[]
[]
[]
[]
[]
[]
[]
[]
[]
[]
[]
[]
[]
[]
[]
[]
[]
[]
[]
[]
[]
[]
[]
[]
[]
[]
[]
[]
[]
[]
[]
[]
[]
[]
[]
[]
[]
[]
[]
[]
[]
[]
[]
[]
[]
[]
[]
[]
[]
[]
[]
[]
[]
[]
[]
[]
[]
[]
[]
[]
[]
[]
[]
[]
[]
[]
[]
[]
[]
[]
[]
[]
[]
[]
[]
[]
[]
[]
[]
[]
[]
[]
[]
[]
[]
[]
[]
[]
[]
[]
[]
[]
[]
[]
[]
[]
[]
[]
[]
[]
[]
[]
[]
[]
[]
[]
[]
[]
[]
[]
[]
[]
[]
[]
[]
[]
[]
[]
[]
[]
[]
[]
[]
[]
[]
[]
[]
[]
[]
[]
[]
[]
[]
[]
[]
[]
[]
[]
[]
[]
[]
[]
[]
[]
[]
[]
[]
[]
[]
[]
[]
[]
[]
[]
[]
[]
[]
[]
[]
[]
[]
[]
[]
[]
[]
[]
[]
[]
[]
[]
[]
[]
[]
[]
[]
[]
[]
[]
[]
[]
[]
[]
[]
[]
[]
[]
[]
[]
[]
[]
[]
[]
[]
[]
[]
[]
[]
[]
[]
[]
[]
[]
[]
[]
[]
[]
[]
[]
[]
[]
[]
[]
[]
[]
[]
[]
[]
[]
[]
[]
[]
[]
[]
[]
[]
[]
[]
[]
[]
[]
[]
[]
[]
[]
[]
[]
[]
[]
[]
[]
[]
[]
[]
[]
[]
[]
[]
[]
[]
[]
[]
[]
[]
[]
[]
[]
[]
[]
[]
[]
[]
[]
[]
[]
[]
[]
[]
[]
[]
[]
[]
[]
[]
[]
[]
[]
[]
[]
[]
[]
[]
[]
[]
[]
[]
[]
[]
[]
[]
[]
[]
[]
[]
[]
[]
[]
[]
[]
[]
[]
[]
[]
[]
[]
[]
[]
[]
[]
[]
[]
[]
[]
[]
[]
[]
[]
[]
[]
[]
[]
[]
[]
[]
[]
[]
[]
[]
[]
[]
[]
[]
[]
[]
[]
[]
[]
[]
[]
[]
[]
[]
[]
[]
[]
[]
[]
[]
[]
[]
[]
[]
[]
[]
[]
[]
[]
[]
[]
[]
[]
[]
[]
[]
[]
[]
[]
[]
[]
[]
[]
[]
[]
[]
[]
[]
[]
[]
[]
[]
[]
[]
[]
[]
[]
[]
[]
[]
[]
[]
[]
[]
[]
[]
[]
[]
[]
[]
[]
[]
[]
[]
[]
[]
[]
[]
[]
[]
[]
[]
[]
[]
[]
[]
[]
[]
[]
[]
[]
[]
[]
[]
[]
[]
[]
[]
[]
[]
[]
[]
[]
[]
[]
[]
[]
[]
[]
[]
[]
[]
[]
[]
[]
[]
[]
[]
[]
[]
[]
[]
[]
[]
[]
[]
[]
[]
[]
[]
[]
[]
[]
[]
[]
[]
[]
[]
[]
[]
[]
[]
[]
[]
[]
[]
[]
[]
[]
[]
[]
[]
[]
[]
[]
[]
[]
[]
[]
[]
[]
[]
[]
[]
[]
[]
[]
[]
[]
[]
[]
[]
[]
[]
[]
[]
[]
[]
[]
[]
[]
[]
[]
[]
[]
[]
[]
[]
[]
[]
[]
[]
[]
[]
[]
[]
[]
[]
[]
[]
[]
[]
[]
[]
[]
[]
[]
[]
[]
[]
[]
[]
[]
[]
[]
[]
[]
[]
[]
[]
[]
[]
[]
[]
[]
[]
[]
[]
[]
[]
[]
[]
[]
[]
[]
[]
[]
[]
[]
[]
[]
[]
[]
[]
[]
[]
[]
[]
[]
[]
[]
[]
[]
[]
[]
[]
[]
[]
[]
[]
[]
[]
[]
[]
[]
[]
[]
[]
[]
[]
[]
[]
[]
[]
[]
[]
[]
[]
[]
[]
[]
[]
[]
[]
[]
[]
[]
[]
[]
[]
[]
[]
[]
[]
[]
[]
[]
[]
[]
[]
[]
[]
[]
[]
[]
[]
[]
[]
[]
[]
[]
[]
[]
[]
[]
[]
[]
[]
[]
[]
[]
[]
[]
[]
[]
[]
[]
[]
[]
[]
[]
[]
[]
[]
[]
[]
[]
[]
[]
[]
[]
[]
[]
[]
[]
[]
[]
[]
[]
[]
[]
[]
[]
[]
[]
[]
[]
[]
[]
[]
[]
[]
[]
[]
[]
[]
[]
[]
[]
[]
[]
[]
[]
[]
[]
[]
[]
[]
[]
[]
[]
[]
[]
[]
[]
[]
[]
[]
[]
[]
[]
[]
[]
[]
[]
[]
[]
[]
[]
[]
[]
[]
[]
[]
[]
[]
[]
[]
[]
[]
[]
[]
[]
[]
[]
[]
[]
[]
[]
[]
[]
[]
[]
[]
[]
[]
[]
[]
[]
[]
[]
[]
[]
[]
[]
[]
[]
[]
[]
[]
[]
[]
[]
[]
[]
[]
[]
[]
[]
[]
[]
[]
[]
[]
[]
[]
[]
[]
[]
[]
[]
[]
[]
[]
[]
[]
[]
[]
[]
[]
[]
[]
[]
[]
[]
[]
[]
[]
[]
[]
[]
[]
[]
[]
[]
[]
[]
[]
[]
[]
[]
[]
[]
[]
[]
[]
[]
[]
[]
[]
[]
[]
[]
[]
[]
[]
[]
[]
[]
[]
[]
[]
[]
[]
[]
[]
[]
[]
[]
[]
[]
[]
[]
[]
[]
[]
[]
[]
[]
[]
[]
[]
[]
[]
[]
[]
[]
[]
[]
[]
[]
[]
[]
[]
[]
[]
[]
[]
[]
[]
[]
[]
[]
[]
[]
[]
[]
[]
[]
[]
[]
[]
[]
[]
[]
[]
[]
[]
[]
[]
[]
[]
[]
[]
[]
[]
[]
[]
[]
[]
[]
[]
[]
[]
[]
[]
[]
[]
[]
[]
[]
[]
[]
[]
[]
[]
[]
[]
[]
[]
[]
[]
[]
[]
[]
[]
[]
[]
[]
[]
[]
[]
[]
[]
[]
[]
[]
[]
[]
[]
[]
[]
[]
[]
[]
[]
[]
[]
[]
[]
[]
[]
[]
[]
[]
[]
[]
[]
[]
[]
[]
[]
[]
[]
[]
[]
[]
[]
[]
[]
[]
[]
[]
[]
[]
[]
[]
[]
[]
[]
[]
[]
[]
[]
[]
[]
[]
[]
[]
[]
[]
[]
[]
[]
[]
[]
[]
[]
[]
[]
[]
[]
[]
[]
[]
[]
[]
[]
[]
[]
[]
[]
[]
[]
[]
[]
[]
[]
[]
[]
[]
[]
[]
[]
[]
[]
[]
[]
[]
[]
[]
[]
[]
[]
[]
[]
[]
[]
[]
[]
[]
[]
[]
[]
[]
[]
[]
[]
[]
[]
[]
[]
[]
[]
[]
[]
[]
[]
[]
[]
[]
[]
[]
[]
[]
[]
[]
[]
[]
[]
[]
[]
[]
[]
[]
[]
[]
[]
[]
[]
[]
[]
[]
[]
[]
[]
[]
[]
[]
[]
[]
[]
[]
[]
[]
[]
[]
[]
[]
[]
[]
[]
[]
[]
[]
[]
[]
[]
[]
[]
[]
[]
[]
[]
[]
[]
[]
[]
[]
[]
[]
[]
[]
[]
[]
[]
[]
[]
[]
[]
[]
[]
[]
[]
[]
[]
[]
[]
[]
[]
[]
[]
[]
[]
[]
[]
[]
[]
[]
[]
[]
[]
[]
[]
[]
[]
[]
[]
[]
[]
[]
[]
[]
[]
[]
[]
[]
[]
[]
[]
[]
[]
[]
[]
[]
[]
[]
[]
[]
[]
[]
[]
[]
[]
[]
[]
[]
[]
[]
[]
[]
[]
[]
[]
[]
[]
[]
[]
[]
[]
[]
[]
[]
[]
[]
[]
[]
[]
[]
[]
[]
[]
[]
[]
[]
[]
[]
[]
[]
[]
[]
[]
[]
[]
[]
[]
[]
[]
[]
[]
[]
[]
[]
[]
[]
[]
[]
[]
[]
[]
[]
[]
[]
[]
[]
[]
[]
[]
[]
[]
[]
[]
[]
[]
[]
[]
[]
[]
[]
[]
[]
[]
[]
[]
[]
[]
[]
[]
[]
[]
[]
[]
[]
[]
[]
[]
[]
[]
[]
[]
[]
[]
[]
[]
[]
[]
[]
[]
[]
[]
[]
[]
[]
[]
[]
[]
[]
[]
[]
[]
[]
[]
[]
[]
[]
[]
[]
[]
[]
[]
[]
[]
[]
[]
[]
[]
[]
[]
[]
[]
[]
[]
[]
[]
[]
[]
[]
[]
[]
[]
[]
[]
[]
[]
[]
[]
[]
[]
[]
[]
[]
[]
[]
[]
[]
[]
[]
[]
[]
[]
[]
[]
[]
[]
[]
[]
[]
[]
[]
[]
[]
[]
[]
[]
[]
[]
[]
[]
[]
[]
[]
[]
[]
[]
[]
[]
[]
[]
[]
[]
[]
[]
[]
[]
[]
[]
[]
[]
[]
[]
[]
[]
[]
[]
[]
[]
[]
[]
[]
[]
[]
[]
[]
[]
[]
[]
[]
[]
[]
[]
[]
[]
[]
[]
[]
[]
[]
[]
[]
[]
[]
[]
[]
[]
[]
[]
[]
[]
[]
[]
[]
[]
[]
[]
[]
[]
[]
[]
[]
[]
[]
[]
[]
[]
[]
[]
[]
[]
[]
[]
[]
[]
[]
[]
[]
[]
[]
[]
[]
[]
[]
[]
[]
[]
[]
[]
[]
[]
[]
[]
[]
[]
[]
[]
[]
[]
[]
[]
[]
[]
[]
[]
[]
[]
[]
[]
[]
[]
[]
[]
[]
[]
[]
[]
[]
[]
[]
[]
[]
[]
[]
[]
[]
[]
[]
[]
[]
[]
[]
[]
[]
[]
[]
[]
[]
[]
[]
[]
[]
[]
[]
[]
[]
[]
[]
[]
[]
[]
[]
[]
[]
[]
[]
[]
[]
[]
[]
[]
[]
[]
[]
[]
[]
[]
[]
[]
[]
[]
[]
[]
[]
[]
[]
[]
[]
[]
[]
[]
[]
[]
[]
[]
[]
[]
[]
[]
[]
[]
[]
[]
[]
[]
[]
[]
[]
[]
[]
[]
[]
[]
[]
[]
[]
[]
[]
[]
[]
[]
[]
[]
[]
[]
[]
[]
[]
[]
[]
[]
[]
[]
[]
[]
[]
[]
[]
[]
[]
[]
[]
[]
[]
[]
[]
[]
[]
[]
[]
[]
[]
[]
[]
[]
[]
[]
[]
[]
[]
[]
[]
[]
[]
[]
[]
[]
[]
[]
[]
[]
[]
[]
[]
[]
[]
[]
[]
[]
[]
[]
[]
[]
[]
[]
[]
[]
[]
[]
[]
[]
[]
[]
[]
[]
[]
[]
[]
[]
[]
[]
[]
[]
[]
[]
[]
[]
[]
[]
[]
[]
[]
[]
[]
[]
[]
[]
[]
[]
[]
[]
[]
[]
[]
[]
[]
[]
[]
[]
[]
[]
[]
[]
[]
[]
[]
[]
[]
[]
[]
[]
[]
[]
[]
[]
[]
[]
[]
[]
[]
[]
[]
[]
[]
[]
[]
[]
[]
[]
[]
[]
[]
[]
[]
[]
[]
[]
[]
[]
[]
[]
[]
[]
[]
[]
[]
[]
[]
[]
[]
[]
[]
[]
[]
[]
[]
[]
[]
[]
[]
[]
[]
[]
[]
[]
[]
[]
[]
[]
[]
[]
[]
[]
[]
[]
[]
[]
[]
[]
[]
[]
[]
[]
[]
[]
[]
[]
[]
[]
[]
[]
[]
[]
[]
[]
[]
[]
[]
[]
[]
[]
[]
[]
[]
[]
[]
[]
[]
[]
[]
[]
[]
[]
[]
[]
[]
[]
[]
[]
[]
[]
[]
[]
[]
[]
[]
[]
[]
[]
[]
[]
[]
[]
[]
[]
[]
[]
[]
[]
[]
[]
[]
[]
[]
[]
[]
[]
[]
[]
[]
[]
[]
[]
[]
[]
[]
[]
[]
[]
[]
[]
[]
[]
[]
[]
[]
[]
[]
[]
[]
[]
[]
[]
[]
[]
[]
[]
[]
[]
[]
[]
[]
[]
[]
[]
[]
[]
[]
[]
[]
[]
[]
[]
[]
[]
[]
[]
[]
[]
[]
[]
[]
[]
[]
[]
[]
[]
[]
[]
[]
[]
[]
[]
[]
[]
[]
[]
[]
[]
[]
[]
[]
[]
[]
[]
[]
[]
[]
[]
[]
[]
[]
[]
[]
[]
[]
[]
[]
[]
[]
[]
[]
[]
[]
[]
[]
[]
[]
[]
[]
[]
[]
[]
[]
[]
[]
[]
[]
[]
[]
[]
[]
[]
[]
[]
[]
[]
[]
[]
[]
[]
[]
[]
[]
[]
[]
[]
[]
[]
[]
[]
[]
[]
[]
[]
[]
[]
[]
[]
[]
[]
[]
[]
[]
[]
[]
[]
[]
[]
[]
[]
[]
[]
[]
[]
[]
[]
[]
[]
[]
[]
[]
[]
[]
[]
[]
[]
[]
[]
[]
[]
[]
[]
[]
[]
[]
[]
[]
[]
[]
[]
[]
[]
[]
[]
[]
[]
[]
[]
[]
[]
[]
[]
[]
[]
[]
[]
[]
[]
[]
[]
[]
[]
[]
[]
[]
[]
[]
[]
[]
[]
[]
[]
[]
[]
[]
[]
[]
[]
[]
[]
[]
[]
[]
[]
[]
[]
[]
[]
[]
[]
[]
[]
[]
[]
[]
[]
[]
[]
[]
[]
[]
[]
[]
[]
[]
[]
[]
[]
[]
[]
[]
[]
[]
[]
[]
[]
[]
[]
[]
[]
[]
[]
[]
[]
[]
[]
[]
[]
[]
[]
[]
[]
[]
[]
[]
[]
[]
[]
[]
[]
[]
[]
[]
[]
[]
[]
[]
[]
[]
[]
[]
[]
[]
[]
[]
[]
[]
[]
[]
[]
[]
[]
[]
[]
[]
[]
[]
[]
[]
[]
[]
[]
[]
[]
[]
[]
[]
[]
[]
[]
[]
[]
[]
[]
[]
[]
[]
[]
[]
[]
[]
[]
[]
[]
[]
[]
[]
[]
[]
[]
[]
[]
[]
[]
[]
[]
[]
[]
[]
[]
[]
[]
[]
[]
[]
[]
[]
[]
[]
[]
[]
[]
[]
[]
[]
[]
[]
[]
[]
[]
[]
[]
[]
[]
[]
[]
[]
[]
[]
[]
[]
[]
[]
[]
[]
[]
[]
[]
[]
[]
[]
[]
[]
[]
[]
[]
[]
[]
[]
[]
[]
[]
[]
[]
[]
[]
[]
[]
[]
[]
[]
[]
[]
[]
[]
[]
[]
[]
[]
[]
[]
[]
[]
[]
[]
[]
[]
[]
[]
[]
[]
[]
[]
[]
[]
[]
[]
[]
[]
[]
[]
[]
[]
[]
[]
[]
[]
[]
[]
[]
[]
[]
[]
[]
[]
[]
[]
[]
[]
[]
[]
[]
[]
[]
[]
[]
[]
[]
[]
[]
[]
[]
[]
[]
[]
[]
[]
[]
[]
[]
[]
[]
[]
[]
[]
[]
[]
[]
[]
[]
[]
[]
[]
[]
[]
[]
[]
[]
[]
[]
[]
[]
[]
[]
[]
[]
[]
[]
[]
[]
[]
[]
[]
[]
[]
[]
[]
[]
[]
[]
[]
[]
[]
[]
[]
[]
[]
[]
[]
[]
[]
[]
[]
[]
[]
[]
[]
[]
[]
[]
[]
[]
[]
[]
[]
[]
[]
[]
[]
[]
[]
[]
[]
[]
[]
[]
[]
[]
[]
[]
[]
[]
[]
[]
[]
[]
[]
[]
[]
[]
[]
[]
[]
[]
[]
[]
[]
[]
[]
[]
[]
[]
[]
[]
[]
[]
[]
[]
[]
[]
[]
[]
[]
[]
[]
[]
[]
[]
[]
[]
[]
[]
[]
[]
[]
[]
[]
[]
[]
[]
[]
[]
[]
[]
[]
[]
[]
[]
[]
[]
[]
[]
[]
[]
[]
[]
[]
[]
[]
[]
[]
[]
[]
[]
[]
[]
[]
[]
[]
[]
[]
[]
[]
[]
[]
[]
[]
[]
[]
[]
[]
[]
[]
[]
[]
[]
[]
[]
[]
[]
[]
[]
[]
[]
[]
[]
[]
[]
[]
[]
[]
[]
[]
[]
[]
[]
[]
[]
[]
[]
[]
[]
[]
[]
[]
[]
[]
[]
[]
[]
[]
[]
[]
[]
[]
[]
[]
[]
[]
[]
[]
[]
[]
[]
[]
[]
[]
[]
[]
[]
[]
[]
[]
[]
[]
[]
[]
[]
[]
[]
[]
[]
[]
[]
[]
[]
[]
[]
[]
[]
[]
[]
[]
[]
[]
[]
[]
[]
[]
[]
[]
[]
[]
[]
[]
[]
[]
[]
[]
[]
[]
[]
[]
[]
[]
[]
[]
[]
[]
[]
[]
[]
[]
[]
[]
[]
[]
[]
[]
[]
[]
[]
[]
[]
[]
[]
[]
[]
[]
[]
[]
[]
[]
[]
[]
[]
[]
[]
[]
[]
[]
[]
[]
[]
[]
[]
[]
[]
[]
[]
[]
[]
[]
[]
[]
[]
[]
[]
[]
[]
[]
[]
[]
[]
[]
[]
[]
[]
[]
[]
[]
[]
[]
[]
[]
[]
[]
[]
[]
[]
[]
[]
[]
[]
[]
[]
[]
[]
[]
[]
[]
[]
[]
[]
[]
[]
[]
[]
[]
[]
[]
[]
[]
[]
[]
[]
[]
[]
[]
[]
[]
[]
[]
[]
[]
[]
[]
[]
[]
[]
[]
[]
[]
[]
[]
[]
[]
[]
[]
[]
[]
[]
[]
[]
[]
[]
[]
[]
[]
[]
[]
[]
[]
[]
[]
[]
[]
[]
[]
[]
[]
[]
[]
[]
[]
[]
[]
[]
[]
[]
[]
[]
[]
[]
[]
[]
[]
[]
[]
[]
[]
[]
[]
[]
[]
[]
[]
[]
[]
[]
[]
[]
[]
[]
[]
[]
[]
[]
[]
[]
[]
[]
[]
[]
[]
[]
[]
[]
[]
[]
[]
[]
[]
[]
[]
[]
[]
[]
[]
[]
[]
[]
[]
[]
[]
[]
[]
[]
[]
[]
[]
[]
[]
[]
[]
[]
[]
[]
[]
[]
[]
[]
[]
[]
[]
[]
[]
[]
[]
[]
[]
[]
[]
[]
[]
[]
[]
[]
[]
[]
[]
[]
[]
[]
[]
[]
[]
[]
[]
[]
[]
[]
[]
[]
[]
[]
[]
[]
[]
[]
[]
[]
[]
[]
[]
[]
[]
[]
[]
[]
[]
[]
[]
[]
[]
[]
[]
[]
[]
[]
[]
[]
[]
[]
[]
[]
[]
[]
[]
[]
[]
[]
[]
[]
[]
[]
[]
[]
[]
[]
[]
[]
[]
[]
[]
[]
[]
[]
[]
[]
[]
[]
[]
[]
[]
[]
[]
[]
[]
[]
[]
[]
[]
[]
[]
[]
[]
[]
[]
[]
[]
[]
[]
[]
[]
[]
[]
[]
[]
[]
[]
[]
[]
[]
[]
[]
[]
[]
[]
[]
[]
[]
[]
[]
[]
[]
[]
[]
[]
[]
[]
[]
[]
[]
[]
[]
[]
[]
[]
[]
[]
[]
[]
[]
[]
[]
[]
[]
[]
[]
[]
[]
[]
[]
[]
[]
[]
[]
[]
[]
[]
[]
[]
[]
[]
[]
[]
[]
[]
[]
[]
[]
[]
[]
[]
[]
[]
[]
[]
[]
[]
[]
[]
[]
[]
[]
[]
[]
[]
[]
[]
[]
[]
[]
[]
[]
[]
[]
[]
[]
[]
[]
[]
[]
[]
[]
[]
[]
[]
[]
[]
[]
[]
[]
[]
[]
[]
[]
[]
[]
[]
[]
[]
[]
[]
[]
[]
[]
[]
[]
[]
[]
[]
[]
[]
[]
[]
[]
[]
[]
[]
[]
[]
[]
[]
[]
[]
[]
[]
[]
[]
[]
[]
[]
[]
[]
[]
[]
[]
[]
[]
[]
[]
[]
[]
[]
[]
[]
[]
[]
[]
[]
[]
[]
[]
[]
[]
[]
[]
[]
[]
[]
[]
[]
[]
[]
[]
[]
[]
[]
[]
[]
[]
[]
[]
[]
[]
[]
[]
[]
[]
[]
[]
[]
[]
[]
[]
[]
[]
[]
[]
[]
[]
[]
[]
[]
[]
[]
[]
[]
[]
[]
[]
[]
[]
[]
[]
[]
[]
[]
[]
[]
[]
[]
[]
[]
[]
[]
[]
[]
[]
[]
[]
[]
[]
[]
[]
[]
[]
[]
[]
[]
[]
[]
[]
[]
[]
[]
[]
[]
[]
[]
[]
[]
[]
[]
[]
[]
[]
[]
[]
[]
[]
[]
[]
[]
[]
[]
[]
[]
[]
[]
[]
[]
[]
[]
[]
[]
[]
[]
[]
[]
[]
[]
[]
[]
[]
[]
[]
[]
[]
[]
[]
[]
[]
[]
[]
[]
[]
[]
[]
[]
[]
[]
[]
[]
[]
[]
[]
[]
[]
[]
[]
[]
[]
[]
[]
[]
[]
[]
[]
[]
[]
[]
[]
[]
[]
[]
[]
[]
[]
[]
[]
[]
[]
[]
[]
[]
[]
[]
[]
[]
[]
[]
[]
[]
[]
[]
[]
[]
[]
[]
[]
[]
[]
[]
[]
[]
[]
[]
[]
[]
[]
[]
[]
[]
[]
[]
[]
[]
[]
[]
[]
[]
[]
[]
[]
[]
[]
[]
[]
[]
[]
[]
[]
[]
[]
[]
[]
[]
[]
[]
[]
[]
[]
[]
[]
[]
[]
[]
[]
[]
[]
[]
[]
[]
[]
[]
[]
[]
[]
[]
[]
[]
[]
[]
[]
[]
[]
[]
[]
[]
[]
[]
[]
[]
[]
[]
[]
[]
[]
[]
[]
[]
[]
[]
[]
[]
[]
[]
[]
[]
[]
[]
[]
[]
[]
[]
[]
[]
[]
[]
[]
[]
[]
[]
[]
[]
[]
[]
[]
[]
[]
[]
[]
[]
[]
[]
[]
[]
[]
[]
[]
[]
[]
[]
[]
[]
[]
[]
[]
[]
[]
[]
[]
[]
[]
[]
[]
[]
[]
[]
[]
[]
[]
[]
[]
[]
[]
[]
[]
[]
[]
[]
[]
[]
[]
[]
[]
[]
[]
[]
[]
[]
[]
[]
[]
[]
[]
[]
[]
[]
[]
[]
[]
[]
[]
[]
[]
[]
[]
[]
[]
[]
[]
[]
[]
[]
[]
[]
[]
[]
[]
[]
[]
[]
[]
[]
[]
[]
[]
[]
[]
[]
[]
[]
[]
[]
[]
[]
[]
[]
[]
[]
[]
[]
[]
[]
[]
[]
[]
[]
[]
[]
[]
[]
[]
[]
[]
[]
[]
[]
[]
[]
[]
[]
[]
[]
[]
[]
[]
[]
[]
[]
[]
[]
[]
[]
[]
[]
[]
[]
[]
[]
[]
[]
[]
[]
[]
[]
[]
[]
[]
[]
[]
[]
[]
[]
[]
[]
[]
[]
[]
[]
[]
[]
[]
[]
[]
[]
[]
[]
[]
[]
[]
[]
[]
[]
[]
[]
[]
[]
[]
[]
[]
[]
[]
[]
[]
[]
[]
[]
[]
[]
[]
[]
[]
[]
[]
[]
[]
[]
[]
[]
[]
[]
[]
[]
[]
[]
[]
[]
[]
[]
[]
[]
[]
[]
[]
[]
[]
[]
[]
[]
[]
[]
[]
[]
[]
[]
[]
[]
[]
[]
[]
[]
[]
[]
[]
[]
[]
[]
[]
[]
[]
[]
[]
[]
[]
[]
[]
[]
[]
[]
[]
[]
[]
[]
[]
[]
[]
[]
[]
[]
[]
[]
[]
[]
[]
[]
[]
[]
[]
[]
[]
[]
[]
[]
[]
[]
[]
[]
[]
[]
[]
[]
[]
[]
[]
[]
[]
[]
[]
[]
[]
[]
[]
[]
[]
[]
[]
[]
[]
[]
[]
[]
[]
[]
[]
[]
[]
[]
[]
[]
[]
[]
[]
[]
[]
[]
[]
[]
[]
[]
[]
[]
[]
[]
[]
[]
[]
[]
[]
[]
[]
[]
[]
[]
[]
[]
[]
[]
[]
[]
[]
[]
[]
[]
[]
[]
[]
[]
[]
[]
[]
[]
[]
[]
[]
[]
[]
[]
[]
[]
[]
[]
[]
[]
[]
[]
[]
[]
[]
[]
[]
[]
[]
[]
[]
[]
[]
[]
[]
[]
[]
[]
[]
[]
[]
[]
[]
[]
[]
[]
[]
[]
[]
[]
[]
[]
[]
[]
[]
[]
[]
[]
[]
[]
[]
[]
[]
[]
[]
[]
[]
[]
[]
[]
[]
[]
[]
[]
[]
[]
[]
[]
[]
[]
[]
[]
[]
[]
[]
[]
[]
[]
[]
[]
[]
[]
[]
[]
[]
[]
[]
[]
[]
[]
[]
[]
[]
[]
[]
[]
[]
[]
[]
[]
[]
[]
[]
[]
[]
[]
[]
[]
[]
[]
[]
[]
[]
[]
[]
[]
[]
[]
[]
[]
[]
[]
[]
[]
[]
[]
[]
[]
[]
[]
[]
[]
[]
[]
[]
[]
[]
[]
[]
[]
[]
[]
[]
[]
[]
[]
[]
[]
[]
[]
[]
[]
[]
[]
[]
[]
[]
[]
[]
[]
[]
[]
[]
[]
[]
[]
[]
[]
[]
[]
[]
[]
[]
[]
[]
[]
[]
[]
[]
[]
[]
[]
[]
[]
[]
[]
[]
[]
[]
[]
[]
[]
[]
[]
[]
[]
[]
[]
[]
[]
[]
[]
[]
[]
[]
[]
[]
[]
[]
[]
[]
[]
[]
[]
[]
[]
[]
[]
[]
[]
[]
[]
[]
[]
[]
[]
[]
[]
[]
[]
[]
[]
[]
[]
[]
[]
[]
[]
[]
[]
[]
[]
[]
[]
[]
[]
[]
[]
[]
[]
[]
[]
[]
[]
[]
[]
[]
[]
[]
[]
[]
[]
[]
[]
[]
[]
[]
[]
[]
[]
[]
[]
[]
[]
[]
[]
[]
[]
[]
[]
[]
[]
[]
[]
[]
[]
[]
[]
[]
[]
[]
[]
[]
[]
[]
[]
[]
[]
[]
[]
[]
[]
[]
[]
[]
[]
[]
[]
[]
[]
[]
[]
[]
[]
[]
[]
[]
[]
[]
[]
[]
[]
[]
[]
[]
[]
[]
[]
[]
[]
[]
[]
[]
[]
[]
[]
[]
[]
[]
[]
[]
[]
[]
[]
[]
[]
[]
[]
[]
[]
[]
[]
[]
[]
[]
[]
[]
[]
[]
[]
[]
[]
[]
[]
[]
[]
[]
[]
[]
[]
[]
[]
[]
[]
[]
[]
[]
[]
[]
[]
[]
[]
[]
[]
[]
[]
[]
[]
[]
[]
[]
[]
[]
[]
[]
[]
[]
[]
[]
[]
[]
[]
[]
[]
[]
[]
[]
[]
[]
[]
[]
[]
[]
[]
[]
[]
[]
[]
[]
[]
[]
[]
[]
[]
[]
[]
[]
[]
[]
[]
[]
[]
[]
[]
[]
[]
[]
[]
[]
[]
[]
[]
[]
[]
[]
[]
[]
[]
[]
[]
[]
[]
[]
[]
[]
[]
[]
[]
[]
[]
[]
[]
[]
[]
[]
[]
[]
[]
[]
[]
[]
[]
[]
[]
[]
[]
[]
[]
[]
[]
[]
[]
[]
[]
[]
[]
[]
[]
[]
[]
[]
[]
[]
[]
[]
[]
[]
[]
[]
[]
[]
[]
[]
[]
[]
[]
[]
[]
[]
[]
[]
[]
[]
[]
[]
[]
[]
[]
[]
[]
[]
[]
[]
[]
[]
[]
[]
[]
[]
[]
[]
[]
[]
[]
[]
[]
[]
[]
[]
[]
[]
[]
[]
[]
[]
[]
[]
[]
[]
[]
[]
[]
[]
[]
[]
[]
[]
[]
[]
[]
[]
[]
[]
[]
[]
[]
[]
[]
[]
[]
[]
[]
[]
[]
[]
[]
[]
[]
[]
[]
[]
[]
[]
[]
[]
[]
[]
[]
[]
[]
[]
[]
[]
[]
[]
[]
[]
[]
[]
[]
[]
[]
[]
[]
[]
[]
[]
[]
[]
[]
[]
[]
["\u001a"]

{"sheet":"daily plot_rad1","index":1,"n_rows":0,"n_cols":0,"rows_kept":0,"cut":false,"hidden":false,"merged":[]}

{"sheet":"BSRN_rad2","index":2,"n_rows":736,"n_cols":20,"rows_kept":736,"cut":false,"hidden":false,"merged":[[0,13,0,14],[3,13,3,14]]}
["Line ID","Year","Julian Day","Time","Campbell Battery Voltage","Campbell CR10X temp (deg C)","PIR thermopile (mV)","PIR thermopile std (mV)","PIR temp case (mV)","PIR temp dome (mV)","PSP thermopile (mV)","PSP thermopile std (mV)",null,"Smoothed data with calibration factors  -->",null,null,"PIR temp case (deg K)","PIR temp dome (deg K)","Calculated PIR thermopile (W/m^2)","Calculated PSP thermopile (W/m^2)"]
[null,null,null,null,null,null,null,null,null,null,null,null,null,"PIR cal # (SF)","PSP cal # (SF)",null,{"$f":"1/((0.0010295+0.0002391*LOG(I2*1000)+0.0000001568*LOG(I2*1000)^3))","v":{"$error":"#NUM!"}},{"$f":"1/((0.0010295+0.0002391*LOG(J2*1000)+0.0000001568*LOG(J2*1000)^3))","v":{"$error":"#NUM!"}},{"$f":"($O$5*G2)+$O$6*((1*(Q2^4))+($O$11*((Q2^4)-(R2^4))))","v":{"$error":"#NUM!"}},{"$f":"1000*(K2/$O$3)","v":0}]
[null,null,null,null,null,null,null,null,null,null,null,null,null,{"$f":"(1/268.42)*1000","v":3.725504805901199},7.96,null,{"$f":"1/((0.0010295+0.0002391*LOG(I3*1000)+0.0000001568*LOG(I3*1000)^3))","v":{"$error":"#NUM!"}},{"$f":"1/((0.0010295+0.0002391*LOG(J3*1000)+0.0000001568*LOG(J3*1000)^3))","v":{"$error":"#NUM!"}},{"$f":"($O$5*G3)+$O$6*((1*(Q3^4))+($O$11*((Q3^4)-(R3^4))))","v":{"$error":"#NUM!"}},{"$f":"1000*(K3/$O$3)","v":0}]
[null,null,null,null,null,null,null,null,null,null,null,null,null,"[above] cal units: microvolts/watt/square meter",null,null,{"$error":"#NUM!"},{"$error":"#NUM!"},{"$error":"#NUM!"},{"$f":"1000*(K4/$O$3)","v":0}]
[null,null,null,null,null,null,null,null,null,null,null,null,null,"PIR cal # (SF) in W/mV/m^2",268.42,null,{"$error":"#NUM!"},{"$error":"#NUM!"},{"$error":"#NUM!"},{"$f":"1000*(K5/$O$3)","v":0}]
[null,null,null,null,null,null,null,null,null,null,null,null,null,"sigma",{"$f":"5.6704*(10^(-8))","v":5.6704000000000003E-8},null,{"$error":"#NUM!"},{"$error":"#NUM!"},{"$error":"#NUM!"},0]
[null,null,null,null,null,null,null,null,null,null,null,null,null,"TC","1/((0.0010295+0.0002391*log(TCR*1000)+0.0000001568*log(TCR*1000)^3))",null,{"$error":"#NUM!"},{"$error":"#NUM!"},{"$error":"#NUM!"},0]
[null,null,null,null,null,null,null,null,null,null,null,null,null,"TD","1/((0.0010295+0.0002391*log(TDR*1000)+0.0000001568*log(TDR*1000)^3))",null,{"$error":"#NUM!"},{"$error":"#NUM!"},{"$error":"#NUM!"},0]
[null,null,null,null,null,null,null,null,null,null,null,null,null,null,null,null,{"$error":"#NUM!"},{"$error":"#NUM!"},{"$error":"#NUM!"},0]
[null,null,null,null,null,null,null,null,null,null,null,null,null,null,null,null,{"$error":"#NUM!"},{"$error":"#NUM!"},{"$error":"#NUM!"},0]
[null,null,null,null,null,null,null,null,null,null,null,null,null,"dome correction factor",3.8,null,{"$error":"#NUM!"},{"$error":"#NUM!"},{"$error":"#NUM!"},0]
[null,null,null,null,null,null,null,null,null,null,null,null,null,null,null,null,{"$error":"#NUM!"},{"$error":"#NUM!"},{"$error":"#NUM!"},0]
[null,null,null,null,null,null,null,null,null,null,null,null,null,null,null,null,{"$error":"#NUM!"},{"$error":"#NUM!"},{"$error":"#NUM!"},0]
[null,null,null,null,null,null,null,null,null,null,null,null,null,null,null,null,{"$error":"#NUM!"},{"$error":"#NUM!"},{"$error":"#NUM!"},0]
[null,null,null,null,null,null,null,null,null,null,null,null,null,null,null,null,{"$error":"#NUM!"},{"$error":"#NUM!"},{"$error":"#NUM!"},0]
[null,null,null,null,null,null,null,null,null,null,null,null,null,null,null,null,{"$error":"#NUM!"},{"$error":"#NUM!"},{"$error":"#NUM!"},0]
[null,null,null,null,null,null,null,null,null,null,null,null,null,null,null,null,{"$error":"#NUM!"},{"$error":"#NUM!"},{"$error":"#NUM!"},0]
[null,null,null,null,null,null,null,null,null,null,null,null,null,null,null,null,{"$error":"#NUM!"},{"$error":"#NUM!"},{"$error":"#NUM!"},0]
[null,null,null,null,null,null,null,null,null,null,null,null,null,null,null,null,{"$error":"#NUM!"},{"$error":"#NUM!"},{"$error":"#NUM!"},0]
[null,null,null,null,null,null,null,null,null,null,null,null,null,null,null,null,{"$error":"#NUM!"},{"$error":"#NUM!"},{"$error":"#NUM!"},0]
[null,null,null,null,null,null,null,null,null,null,null,null,null,null,null,null,{"$error":"#NUM!"},{"$error":"#NUM!"},{"$error":"#NUM!"},0]
[null,null,null,null,null,null,null,null,null,null,null,null,null,null,null,null,{"$error":"#NUM!"},{"$error":"#NUM!"},{"$error":"#NUM!"},0]
[null,null,null,null,null,null,null,null,null,null,null,null,null,null,null,null,{"$error":"#NUM!"},{"$error":"#NUM!"},{"$error":"#NUM!"},0]
[null,null,null,null,null,null,null,null,null,null,null,null,null,null,null,null,{"$error":"#NUM!"},{"$error":"#NUM!"},{"$error":"#NUM!"},0]
[null,null,null,null,null,null,null,null,null,null,null,null,null,null,null,null,{"$error":"#NUM!"},{"$error":"#NUM!"},{"$error":"#NUM!"},0]
[null,null,null,null,null,null,null,null,null,null,null,null,null,null,null,null,{"$error":"#NUM!"},{"$error":"#NUM!"},{"$error":"#NUM!"},0]
[null,null,null,null,null,null,null,null,null,null,null,null,null,null,null,null,{"$error":"#NUM!"},{"$error":"#NUM!"},{"$error":"#NUM!"},0]
[null,null,null,null,null,null,null,null,null,null,null,null,null,null,null,null,{"$error":"#NUM!"},{"$error":"#NUM!"},{"$error":"#NUM!"},0]
[null,null,null,null,null,null,null,null,null,null,null,null,null,null,null,null,{"$error":"#NUM!"},{"$error":"#NUM!"},{"$error":"#NUM!"},0]
[null,null,null,null,null,null,null,null,null,null,null,null,null,null,null,null,{"$error":"#NUM!"},{"$error":"#NUM!"},{"$error":"#NUM!"},0]
[null,null,null,null,null,null,null,null,null,null,null,null,null,null,null,null,{"$error":"#NUM!"},{"$error":"#NUM!"},{"$error":"#NUM!"},0]
[null,null,null,null,null,null,null,null,null,null,null,null,null,null,null,null,{"$error":"#NUM!"},{"$error":"#NUM!"},{"$error":"#NUM!"},0]
[null,null,null,null,null,null,null,null,null,null,null,null,null,null,null,null,{"$error":"#NUM!"},{"$error":"#NUM!"},{"$error":"#NUM!"},0]
[null,null,null,null,null,null,null,null,null,null,null,null,null,null,null,null,{"$error":"#NUM!"},{"$error":"#NUM!"},{"$error":"#NUM!"},0]
[null,null,null,null,null,null,null,null,null,null,null,null,null,null,null,null,{"$error":"#NUM!"},{"$error":"#NUM!"},{"$error":"#NUM!"},0]
[null,null,null,null,null,null,null,null,null,null,null,null,null,null,null,null,{"$error":"#NUM!"},{"$error":"#NUM!"},{"$error":"#NUM!"},0]
[null,null,null,null,null,null,null,null,null,null,null,null,null,null,null,null,{"$error":"#NUM!"},{"$error":"#NUM!"},{"$error":"#NUM!"},0]
[null,null,null,null,null,null,null,null,null,null,null,null,null,null,null,null,{"$error":"#NUM!"},{"$error":"#NUM!"},{"$error":"#NUM!"},0]
[null,null,null,null,null,null,null,null,null,null,null,null,null,null,null,null,{"$f":"1/((0.0010295+0.0002391*LOG(I39*1000)+0.0000001568*LOG(I39*1000)^3))","v":{"$error":"#NUM!"}},{"$f":"1/((0.0010295+0.0002391*LOG(J39*1000)+0.0000001568*LOG(J39*1000)^3))","v":{"$error":"#NUM!"}},{"$f":"($O$5*G39)+$O$6*((1*(Q39^4))+($O$11*((Q39^4)-(R39^4))))","v":{"$error":"#NUM!"}},{"$f":"1000*(K39/$O$3)","v":0}]
[null,null,null,null,null,null,null,null,null,null,null,null,null,null,null,null,{"$error":"#NUM!"},{"$error":"#NUM!"},{"$error":"#NUM!"},0]
[null,null,null,null,null,null,null,null,null,null,null,null,null,null,null,null,{"$error":"#NUM!"},{"$error":"#NUM!"},{"$error":"#NUM!"},0]
[null,null,null,null,null,null,null,null,null,null,null,null,null,null,null,null,{"$error":"#NUM!"},{"$error":"#NUM!"},{"$error":"#NUM!"},0]
[null,null,null,null,null,null,null,null,null,null,null,null,null,null,null,null,{"$error":"#NUM!"},{"$error":"#NUM!"},{"$error":"#NUM!"},0]
[null,null,null,null,null,null,null,null,null,null,null,null,null,null,null,null,{"$error":"#NUM!"},{"$error":"#NUM!"},{"$error":"#NUM!"},0]
[null,null,null,null,null,null,null,null,null,null,null,null,null,null,null,null,{"$error":"#NUM!"},{"$error":"#NUM!"},{"$error":"#NUM!"},0]
[null,null,null,null,null,null,null,null,null,null,null,null,null,null,null,null,{"$error":"#NUM!"},{"$error":"#NUM!"},{"$error":"#NUM!"},0]
[null,null,null,null,null,null,null,null,null,null,null,null,null,null,null,null,{"$error":"#NUM!"},{"$error":"#NUM!"},{"$error":"#NUM!"},0]
[null,null,null,null,null,null,null,null,null,null,null,null,null,null,null,null,{"$error":"#NUM!"},{"$error":"#NUM!"},{"$error":"#NUM!"},0]
[null,null,null,null,null,null,null,null,null,null,null,null,null,null,null,null,{"$error":"#NUM!"},{"$error":"#NUM!"},{"$error":"#NUM!"},0]
[null,null,null,null,null,null,null,null,null,null,null,null,null,null,null,null,{"$error":"#NUM!"},{"$error":"#NUM!"},{"$error":"#NUM!"},0]
[null,null,null,null,null,null,null,null,null,null,null,null,null,null,null,null,{"$error":"#NUM!"},{"$error":"#NUM!"},{"$error":"#NUM!"},0]
[null,null,null,null,null,null,null,null,null,null,null,null,null,null,null,null,{"$error":"#NUM!"},{"$error":"#NUM!"},{"$error":"#NUM!"},0]
[null,null,null,null,null,null,null,null,null,null,null,null,null,null,null,null,{"$error":"#NUM!"},{"$error":"#NUM!"},{"$error":"#NUM!"},0]
[null,null,null,null,null,null,null,null,null,null,null,null,null,null,null,null,{"$error":"#NUM!"},{"$error":"#NUM!"},{"$error":"#NUM!"},0]
[null,null,null,null,null,null,null,null,null,null,null,null,null,null,null,null,{"$error":"#NUM!"},{"$error":"#NUM!"},{"$error":"#NUM!"},0]
[null,null,null,null,null,null,null,null,null,null,null,null,null,null,null,null,{"$error":"#NUM!"},{"$error":"#NUM!"},{"$error":"#NUM!"},0]
[null,null,null,null,null,null,null,null,null,null,null,null,null,null,null,null,{"$error":"#NUM!"},{"$error":"#NUM!"},{"$error":"#NUM!"},0]
[null,null,null,null,null,null,null,null,null,null,null,null,null,null,null,null,{"$error":"#NUM!"},{"$error":"#NUM!"},{"$error":"#NUM!"},0]
[null,null,null,null,null,null,null,null,null,null,null,null,null,null,null,null,{"$error":"#NUM!"},{"$error":"#NUM!"},{"$error":"#NUM!"},0]
[null,null,null,null,null,null,null,null,null,null,null,null,null,null,null,null,{"$error":"#NUM!"},{"$error":"#NUM!"},{"$error":"#NUM!"},0]
[null,null,null,null,null,null,null,null,null,null,null,null,null,null,null,null,{"$error":"#NUM!"},{"$error":"#NUM!"},{"$error":"#NUM!"},0]
[null,null,null,null,null,null,null,null,null,null,null,null,null,null,null,null,{"$error":"#NUM!"},{"$error":"#NUM!"},{"$error":"#NUM!"},0]
[null,null,null,null,null,null,null,null,null,null,null,null,null,null,null,null,{"$error":"#NUM!"},{"$error":"#NUM!"},{"$error":"#NUM!"},0]
[null,null,null,null,null,null,null,null,null,null,null,null,null,null,null,null,{"$error":"#NUM!"},{"$error":"#NUM!"},{"$error":"#NUM!"},0]
[null,null,null,null,null,null,null,null,null,null,null,null,null,null,null,null,{"$error":"#NUM!"},{"$error":"#NUM!"},{"$error":"#NUM!"},0]
[null,null,null,null,null,null,null,null,null,null,null,null,null,null,null,null,{"$error":"#NUM!"},{"$error":"#NUM!"},{"$error":"#NUM!"},0]
[null,null,null,null,null,null,null,null,null,null,null,null,null,null,null,null,{"$error":"#NUM!"},{"$error":"#NUM!"},{"$error":"#NUM!"},0]
[null,null,null,null,null,null,null,null,null,null,null,null,null,null,null,null,{"$error":"#NUM!"},{"$error":"#NUM!"},{"$error":"#NUM!"},0]
[null,null,null,null,null,null,null,null,null,null,null,null,null,null,null,null,{"$error":"#NUM!"},{"$error":"#NUM!"},{"$error":"#NUM!"},0]
[null,null,null,null,null,null,null,null,null,null,null,null,null,null,null,null,{"$error":"#NUM!"},{"$error":"#NUM!"},{"$error":"#NUM!"},0]
[null,null,null,null,null,null,null,null,null,null,null,null,null,null,null,null,{"$error":"#NUM!"},{"$error":"#NUM!"},{"$error":"#NUM!"},0]
[null,null,null,null,null,null,null,null,null,null,null,null,null,null,null,null,{"$error":"#NUM!"},{"$error":"#NUM!"},{"$error":"#NUM!"},0]
[null,null,null,null,null,null,null,null,null,null,null,null,null,null,null,null,{"$error":"#NUM!"},{"$error":"#NUM!"},{"$error":"#NUM!"},0]
[null,null,null,null,null,null,null,null,null,null,null,null,null,null,null,null,{"$error":"#NUM!"},{"$error":"#NUM!"},{"$error":"#NUM!"},0]
[null,null,null,null,null,null,null,null,null,null,null,null,null,null,null,null,{"$error":"#NUM!"},{"$error":"#NUM!"},{"$error":"#NUM!"},0]
[null,null,null,null,null,null,null,null,null,null,null,null,null,null,null,null,{"$error":"#NUM!"},{"$error":"#NUM!"},{"$error":"#NUM!"},0]
[null,null,null,null,null,null,null,null,null,null,null,null,null,null,null,null,{"$error":"#NUM!"},{"$error":"#NUM!"},{"$error":"#NUM!"},0]
[null,null,null,null,null,null,null,null,null,null,null,null,null,null,null,null,{"$error":"#NUM!"},{"$error":"#NUM!"},{"$error":"#NUM!"},0]
[null,null,null,null,null,null,null,null,null,null,null,null,null,null,null,null,{"$error":"#NUM!"},{"$error":"#NUM!"},{"$error":"#NUM!"},0]
[null,null,null,null,null,null,null,null,null,null,null,null,null,null,null,null,{"$error":"#NUM!"},{"$error":"#NUM!"},{"$error":"#NUM!"},0]
[null,null,null,null,null,null,null,null,null,null,null,null,null,null,null,null,{"$error":"#NUM!"},{"$error":"#NUM!"},{"$error":"#NUM!"},0]
[null,null,null,null,null,null,null,null,null,null,null,null,null,null,null,null,{"$error":"#NUM!"},{"$error":"#NUM!"},{"$error":"#NUM!"},0]
[null,null,null,null,null,null,null,null,null,null,null,null,null,null,null,null,{"$error":"#NUM!"},{"$error":"#NUM!"},{"$error":"#NUM!"},0]
[null,null,null,null,null,null,null,null,null,null,null,null,null,null,null,null,{"$error":"#NUM!"},{"$error":"#NUM!"},{"$error":"#NUM!"},0]
[null,null,null,null,null,null,null,null,null,null,null,null,null,null,null,null,{"$error":"#NUM!"},{"$error":"#NUM!"},{"$error":"#NUM!"},0]
[null,null,null,null,null,null,null,null,null,null,null,null,null,null,null,null,{"$error":"#NUM!"},{"$error":"#NUM!"},{"$error":"#NUM!"},0]
[null,null,null,null,null,null,null,null,null,null,null,null,null,null,null,null,{"$error":"#NUM!"},{"$error":"#NUM!"},{"$error":"#NUM!"},0]
[null,null,null,null,null,null,null,null,null,null,null,null,null,null,null,null,{"$error":"#NUM!"},{"$error":"#NUM!"},{"$error":"#NUM!"},0]
[null,null,null,null,null,null,null,null,null,null,null,null,null,null,null,null,{"$error":"#NUM!"},{"$error":"#NUM!"},{"$error":"#NUM!"},0]
[null,null,null,null,null,null,null,null,null,null,null,null,null,null,null,null,{"$error":"#NUM!"},{"$error":"#NUM!"},{"$error":"#NUM!"},0]
[null,null,null,null,null,null,null,null,null,null,null,null,null,null,null,null,{"$error":"#NUM!"},{"$error":"#NUM!"},{"$error":"#NUM!"},0]
[null,null,null,null,null,null,null,null,null,null,null,null,null,null,null,null,{"$error":"#NUM!"},{"$error":"#NUM!"},{"$error":"#NUM!"},0]
[null,null,null,null,null,null,null,null,null,null,null,null,null,null,null,null,{"$error":"#NUM!"},{"$error":"#NUM!"},{"$error":"#NUM!"},0]
[null,null,null,null,null,null,null,null,null,null,null,null,null,null,null,null,{"$error":"#NUM!"},{"$error":"#NUM!"},{"$error":"#NUM!"},0]
[null,null,null,null,null,null,null,null,null,null,null,null,null,null,null,null,{"$error":"#NUM!"},{"$error":"#NUM!"},{"$error":"#NUM!"},0]
[null,null,null,null,null,null,null,null,null,null,null,null,null,null,null,null,{"$error":"#NUM!"},{"$error":"#NUM!"},{"$error":"#NUM!"},0]
[null,null,null,null,null,null,null,null,null,null,null,null,null,null,null,null,{"$error":"#NUM!"},{"$error":"#NUM!"},{"$error":"#NUM!"},0]
[null,null,null,null,null,null,null,null,null,null,null,null,null,null,null,null,{"$error":"#NUM!"},{"$error":"#NUM!"},{"$error":"#NUM!"},0]
[null,null,null,null,null,null,null,null,null,null,null,null,null,null,null,null,{"$error":"#NUM!"},{"$error":"#NUM!"},{"$error":"#NUM!"},0]
[null,null,null,null,null,null,null,null,null,null,null,null,null,null,null,null,{"$error":"#NUM!"},{"$error":"#NUM!"},{"$error":"#NUM!"},0]
[null,null,null,null,null,null,null,null,null,null,null,null,null,null,null,null,{"$error":"#NUM!"},{"$error":"#NUM!"},{"$error":"#NUM!"},0]
[null,null,null,null,null,null,null,null,null,null,null,null,null,null,null,null,{"$error":"#NUM!"},{"$error":"#NUM!"},{"$error":"#NUM!"},0]
[null,null,null,null,null,null,null,null,null,null,null,null,null,null,null,null,{"$f":"1/((0.0010295+0.0002391*LOG(I103*1000)+0.0000001568*LOG(I103*1000)^3))","v":{"$error":"#NUM!"}},{"$f":"1/((0.0010295+0.0002391*LOG(J103*1000)+0.0000001568*LOG(J103*1000)^3))","v":{"$error":"#NUM!"}},{"$f":"($O$5*G103)+$O$6*((1*(Q103^4))+($O$11*((Q103^4)-(R103^4))))","v":{"$error":"#NUM!"}},{"$f":"1000*(K103/$O$3)","v":0}]
[null,null,null,null,null,null,null,null,null,null,null,null,null,null,null,null,{"$error":"#NUM!"},{"$error":"#NUM!"},{"$error":"#NUM!"},0]
[null,null,null,null,null,null,null,null,null,null,null,null,null,null,null,null,{"$error":"#NUM!"},{"$error":"#NUM!"},{"$error":"#NUM!"},0]
[null,null,null,null,null,null,null,null,null,null,null,null,null,null,null,null,{"$error":"#NUM!"},{"$error":"#NUM!"},{"$error":"#NUM!"},0]
[null,null,null,null,null,null,null,null,null,null,null,null,null,null,null,null,{"$error":"#NUM!"},{"$error":"#NUM!"},{"$error":"#NUM!"},0]
[null,null,null,null,null,null,null,null,null,null,null,null,null,null,null,null,{"$error":"#NUM!"},{"$error":"#NUM!"},{"$error":"#NUM!"},0]
[null,null,null,null,null,null,null,null,null,null,null,null,null,null,null,null,{"$error":"#NUM!"},{"$error":"#NUM!"},{"$error":"#NUM!"},0]
[null,null,null,null,null,null,null,null,null,null,null,null,null,null,null,null,{"$error":"#NUM!"},{"$error":"#NUM!"},{"$error":"#NUM!"},0]
[null,null,null,null,null,null,null,null,null,null,null,null,null,null,null,null,{"$error":"#NUM!"},{"$error":"#NUM!"},{"$error":"#NUM!"},0]
[null,null,null,null,null,null,null,null,null,null,null,null,null,null,null,null,{"$error":"#NUM!"},{"$error":"#NUM!"},{"$error":"#NUM!"},0]
[null,null,null,null,null,null,null,null,null,null,null,null,null,null,null,null,{"$error":"#NUM!"},{"$error":"#NUM!"},{"$error":"#NUM!"},0]
[null,null,null,null,null,null,null,null,null,null,null,null,null,null,null,null,{"$error":"#NUM!"},{"$error":"#NUM!"},{"$error":"#NUM!"},0]
[null,null,null,null,null,null,null,null,null,null,null,null,null,null,null,null,{"$error":"#NUM!"},{"$error":"#NUM!"},{"$error":"#NUM!"},0]
[null,null,null,null,null,null,null,null,null,null,null,null,null,null,null,null,{"$error":"#NUM!"},{"$error":"#NUM!"},{"$error":"#NUM!"},0]
[null,null,null,null,null,null,null,null,null,null,null,null,null,null,null,null,{"$error":"#NUM!"},{"$error":"#NUM!"},{"$error":"#NUM!"},0]
[null,null,null,null,null,null,null,null,null,null,null,null,null,null,null,null,{"$error":"#NUM!"},{"$error":"#NUM!"},{"$error":"#NUM!"},0]
[null,null,null,null,null,null,null,null,null,null,null,null,null,null,null,null,{"$error":"#NUM!"},{"$error":"#NUM!"},{"$error":"#NUM!"},0]
[null,null,null,null,null,null,null,null,null,null,null,null,null,null,null,null,{"$error":"#NUM!"},{"$error":"#NUM!"},{"$error":"#NUM!"},0]
[null,null,null,null,null,null,null,null,null,null,null,null,null,null,null,null,{"$error":"#NUM!"},{"$error":"#NUM!"},{"$error":"#NUM!"},0]
[null,null,null,null,null,null,null,null,null,null,null,null,null,null,null,null,{"$error":"#NUM!"},{"$error":"#NUM!"},{"$error":"#NUM!"},0]
[null,null,null,null,null,null,null,null,null,null,null,null,null,null,null,null,{"$error":"#NUM!"},{"$error":"#NUM!"},{"$error":"#NUM!"},0]
[null,null,null,null,null,null,null,null,null,null,null,null,null,null,null,null,{"$error":"#NUM!"},{"$error":"#NUM!"},{"$error":"#NUM!"},0]
[null,null,null,null,null,null,null,null,null,null,null,null,null,null,null,null,{"$error":"#NUM!"},{"$error":"#NUM!"},{"$error":"#NUM!"},0]
[null,null,null,null,null,null,null,null,null,null,null,null,null,null,null,null,{"$error":"#NUM!"},{"$error":"#NUM!"},{"$error":"#NUM!"},0]
[null,null,null,null,null,null,null,null,null,null,null,null,null,null,null,null,{"$error":"#NUM!"},{"$error":"#NUM!"},{"$error":"#NUM!"},0]
[null,null,null,null,null,null,null,null,null,null,null,null,null,null,null,null,{"$error":"#NUM!"},{"$error":"#NUM!"},{"$error":"#NUM!"},0]
[null,null,null,null,null,null,null,null,null,null,null,null,null,null,null,null,{"$error":"#NUM!"},{"$error":"#NUM!"},{"$error":"#NUM!"},0]
[null,null,null,null,null,null,null,null,null,null,null,null,null,null,null,null,{"$error":"#NUM!"},{"$error":"#NUM!"},{"$error":"#NUM!"},0]
[null,null,null,null,null,null,null,null,null,null,null,null,null,null,null,null,{"$error":"#NUM!"},{"$error":"#NUM!"},{"$error":"#NUM!"},0]
[null,null,null,null,null,null,null,null,null,null,null,null,null,null,null,null,{"$error":"#NUM!"},{"$error":"#NUM!"},{"$error":"#NUM!"},0]
[null,null,null,null,null,null,null,null,null,null,null,null,null,null,null,null,{"$error":"#NUM!"},{"$error":"#NUM!"},{"$error":"#NUM!"},0]
[null,null,null,null,null,null,null,null,null,null,null,null,null,null,null,null,{"$error":"#NUM!"},{"$error":"#NUM!"},{"$error":"#NUM!"},0]
[null,null,null,null,null,null,null,null,null,null,null,null,null,null,null,null,{"$error":"#NUM!"},{"$error":"#NUM!"},{"$error":"#NUM!"},0]
[null,null,null,null,null,null,null,null,null,null,null,null,null,null,null,null,{"$error":"#NUM!"},{"$error":"#NUM!"},{"$error":"#NUM!"},0]
[null,null,null,null,null,null,null,null,null,null,null,null,null,null,null,null,{"$error":"#NUM!"},{"$error":"#NUM!"},{"$error":"#NUM!"},0]
[null,null,null,null,null,null,null,null,null,null,null,null,null,null,null,null,{"$error":"#NUM!"},{"$error":"#NUM!"},{"$error":"#NUM!"},0]
[null,null,null,null,null,null,null,null,null,null,null,null,null,null,null,null,{"$error":"#NUM!"},{"$error":"#NUM!"},{"$error":"#NUM!"},0]
[null,null,null,null,null,null,null,null,null,null,null,null,null,null,null,null,{"$error":"#NUM!"},{"$error":"#NUM!"},{"$error":"#NUM!"},0]
[null,null,null,null,null,null,null,null,null,null,null,null,null,null,null,null,{"$error":"#NUM!"},{"$error":"#NUM!"},{"$error":"#NUM!"},0]
[null,null,null,null,null,null,null,null,null,null,null,null,null,null,null,null,{"$error":"#NUM!"},{"$error":"#NUM!"},{"$error":"#NUM!"},0]
[null,null,null,null,null,null,null,null,null,null,null,null,null,null,null,null,{"$error":"#NUM!"},{"$error":"#NUM!"},{"$error":"#NUM!"},0]
[null,null,null,null,null,null,null,null,null,null,null,null,null,null,null,null,{"$error":"#NUM!"},{"$error":"#NUM!"},{"$error":"#NUM!"},0]
[null,null,null,null,null,null,null,null,null,null,null,null,null,null,null,null,{"$error":"#NUM!"},{"$error":"#NUM!"},{"$error":"#NUM!"},0]
[null,null,null,null,null,null,null,null,null,null,null,null,null,null,null,null,{"$error":"#NUM!"},{"$error":"#NUM!"},{"$error":"#NUM!"},0]
[null,null,null,null,null,null,null,null,null,null,null,null,null,null,null,null,{"$error":"#NUM!"},{"$error":"#NUM!"},{"$error":"#NUM!"},0]
[null,null,null,null,null,null,null,null,null,null,null,null,null,null,null,null,{"$error":"#NUM!"},{"$error":"#NUM!"},{"$error":"#NUM!"},0]
[null,null,null,null,null,null,null,null,null,null,null,null,null,null,null,null,{"$error":"#NUM!"},{"$error":"#NUM!"},{"$error":"#NUM!"},0]
[null,null,null,null,null,null,null,null,null,null,null,null,null,null,null,null,{"$error":"#NUM!"},{"$error":"#NUM!"},{"$error":"#NUM!"},0]
[null,null,null,null,null,null,null,null,null,null,null,null,null,null,null,null,{"$error":"#NUM!"},{"$error":"#NUM!"},{"$error":"#NUM!"},0]
[null,null,null,null,null,null,null,null,null,null,null,null,null,null,null,null,{"$error":"#NUM!"},{"$error":"#NUM!"},{"$error":"#NUM!"},0]
[null,null,null,null,null,null,null,null,null,null,null,null,null,null,null,null,{"$error":"#NUM!"},{"$error":"#NUM!"},{"$error":"#NUM!"},0]
[null,null,null,null,null,null,null,null,null,null,null,null,null,null,null,null,{"$error":"#NUM!"},{"$error":"#NUM!"},{"$error":"#NUM!"},0]
[null,null,null,null,null,null,null,null,null,null,null,null,null,null,null,null,{"$error":"#NUM!"},{"$error":"#NUM!"},{"$error":"#NUM!"},0]
[null,null,null,null,null,null,null,null,null,null,null,null,null,null,null,null,{"$error":"#NUM!"},{"$error":"#NUM!"},{"$error":"#NUM!"},0]
[null,null,null,null,null,null,null,null,null,null,null,null,null,null,null,null,{"$error":"#NUM!"},{"$error":"#NUM!"},{"$error":"#NUM!"},0]
[null,null,null,null,null,null,null,null,null,null,null,null,null,null,null,null,{"$error":"#NUM!"},{"$error":"#NUM!"},{"$error":"#NUM!"},0]
[null,null,null,null,null,null,null,null,null,null,null,null,null,null,null,null,{"$error":"#NUM!"},{"$error":"#NUM!"},{"$error":"#NUM!"},0]
[null,null,null,null,null,null,null,null,null,null,null,null,null,null,null,null,{"$error":"#NUM!"},{"$error":"#NUM!"},{"$error":"#NUM!"},0]
[null,null,null,null,null,null,null,null,null,null,null,null,null,null,null,null,{"$error":"#NUM!"},{"$error":"#NUM!"},{"$error":"#NUM!"},0]
[null,null,null,null,null,null,null,null,null,null,null,null,null,null,null,null,{"$error":"#NUM!"},{"$error":"#NUM!"},{"$error":"#NUM!"},0]
[null,null,null,null,null,null,null,null,null,null,null,null,null,null,null,null,{"$error":"#NUM!"},{"$error":"#NUM!"},{"$error":"#NUM!"},0]
[null,null,null,null,null,null,null,null,null,null,null,null,null,null,null,null,{"$error":"#NUM!"},{"$error":"#NUM!"},{"$error":"#NUM!"},0]
[null,null,null,null,null,null,null,null,null,null,null,null,null,null,null,null,{"$error":"#NUM!"},{"$error":"#NUM!"},{"$error":"#NUM!"},0]
[null,null,null,null,null,null,null,null,null,null,null,null,null,null,null,null,{"$error":"#NUM!"},{"$error":"#NUM!"},{"$error":"#NUM!"},0]
[null,null,null,null,null,null,null,null,null,null,null,null,null,null,null,null,{"$f":"1/((0.0010295+0.0002391*LOG(I167*1000)+0.0000001568*LOG(I167*1000)^3))","v":{"$error":"#NUM!"}},{"$f":"1/((0.0010295+0.0002391*LOG(J167*1000)+0.0000001568*LOG(J167*1000)^3))","v":{"$error":"#NUM!"}},{"$f":"($O$5*G167)+$O$6*((1*(Q167^4))+($O$11*((Q167^4)-(R167^4))))","v":{"$error":"#NUM!"}},{"$f":"1000*(K167/$O$3)","v":0}]
[null,null,null,null,null,null,null,null,null,null,null,null,null,null,null,null,{"$error":"#NUM!"},{"$error":"#NUM!"},{"$error":"#NUM!"},0]
[null,null,null,null,null,null,null,null,null,null,null,null,null,null,null,null,{"$error":"#NUM!"},{"$error":"#NUM!"},{"$error":"#NUM!"},0]
[null,null,null,null,null,null,null,null,null,null,null,null,null,null,null,null,{"$error":"#NUM!"},{"$error":"#NUM!"},{"$error":"#NUM!"},0]
[null,null,null,null,null,null,null,null,null,null,null,null,null,null,null,null,{"$error":"#NUM!"},{"$error":"#NUM!"},{"$error":"#NUM!"},0]
[null,null,null,null,null,null,null,null,null,null,null,null,null,null,null,null,{"$error":"#NUM!"},{"$error":"#NUM!"},{"$error":"#NUM!"},0]
[null,null,null,null,null,null,null,null,null,null,null,null,null,null,null,null,{"$error":"#NUM!"},{"$error":"#NUM!"},{"$error":"#NUM!"},0]
[null,null,null,null,null,null,null,null,null,null,null,null,null,null,null,null,{"$error":"#NUM!"},{"$error":"#NUM!"},{"$error":"#NUM!"},0]
[null,null,null,null,null,null,null,null,null,null,null,null,null,null,null,null,{"$error":"#NUM!"},{"$error":"#NUM!"},{"$error":"#NUM!"},0]
[null,null,null,null,null,null,null,null,null,null,null,null,null,null,null,null,{"$error":"#NUM!"},{"$error":"#NUM!"},{"$error":"#NUM!"},0]
[null,null,null,null,null,null,null,null,null,null,null,null,null,null,null,null,{"$error":"#NUM!"},{"$error":"#NUM!"},{"$error":"#NUM!"},0]
[null,null,null,null,null,null,null,null,null,null,null,null,null,null,null,null,{"$error":"#NUM!"},{"$error":"#NUM!"},{"$error":"#NUM!"},0]
[null,null,null,null,null,null,null,null,null,null,null,null,null,null,null,null,{"$error":"#NUM!"},{"$error":"#NUM!"},{"$error":"#NUM!"},0]
[null,null,null,null,null,null,null,null,null,null,null,null,null,null,null,null,{"$error":"#NUM!"},{"$error":"#NUM!"},{"$error":"#NUM!"},0]
[null,null,null,null,null,null,null,null,null,null,null,null,null,null,null,null,{"$error":"#NUM!"},{"$error":"#NUM!"},{"$error":"#NUM!"},0]
[null,null,null,null,null,null,null,null,null,null,null,null,null,null,null,null,{"$error":"#NUM!"},{"$error":"#NUM!"},{"$error":"#NUM!"},0]
[null,null,null,null,null,null,null,null,null,null,null,null,null,null,null,null,{"$error":"#NUM!"},{"$error":"#NUM!"},{"$error":"#NUM!"},0]
[null,null,null,null,null,null,null,null,null,null,null,null,null,null,null,null,{"$error":"#NUM!"},{"$error":"#NUM!"},{"$error":"#NUM!"},0]
[null,null,null,null,null,null,null,null,null,null,null,null,null,null,null,null,{"$error":"#NUM!"},{"$error":"#NUM!"},{"$error":"#NUM!"},0]
[null,null,null,null,null,null,null,null,null,null,null,null,null,null,null,null,{"$error":"#NUM!"},{"$error":"#NUM!"},{"$error":"#NUM!"},0]
[null,null,null,null,null,null,null,null,null,null,null,null,null,null,null,null,{"$error":"#NUM!"},{"$error":"#NUM!"},{"$error":"#NUM!"},0]
[null,null,null,null,null,null,null,null,null,null,null,null,null,null,null,null,{"$error":"#NUM!"},{"$error":"#NUM!"},{"$error":"#NUM!"},0]
[null,null,null,null,null,null,null,null,null,null,null,null,null,null,null,null,{"$error":"#NUM!"},{"$error":"#NUM!"},{"$error":"#NUM!"},0]
[null,null,null,null,null,null,null,null,null,null,null,null,null,null,null,null,{"$error":"#NUM!"},{"$error":"#NUM!"},{"$error":"#NUM!"},0]
[null,null,null,null,null,null,null,null,null,null,null,null,null,null,null,null,{"$error":"#NUM!"},{"$error":"#NUM!"},{"$error":"#NUM!"},0]
[null,null,null,null,null,null,null,null,null,null,null,null,null,null,null,null,{"$error":"#NUM!"},{"$error":"#NUM!"},{"$error":"#NUM!"},0]
[null,null,null,null,null,null,null,null,null,null,null,null,null,null,null,null,{"$error":"#NUM!"},{"$error":"#NUM!"},{"$error":"#NUM!"},0]
[null,null,null,null,null,null,null,null,null,null,null,null,null,null,null,null,{"$error":"#NUM!"},{"$error":"#NUM!"},{"$error":"#NUM!"},0]
[null,null,null,null,null,null,null,null,null,null,null,null,null,null,null,null,{"$error":"#NUM!"},{"$error":"#NUM!"},{"$error":"#NUM!"},0]
[null,null,null,null,null,null,null,null,null,null,null,null,null,null,null,null,{"$error":"#NUM!"},{"$error":"#NUM!"},{"$error":"#NUM!"},0]
[null,null,null,null,null,null,null,null,null,null,null,null,null,null,null,null,{"$error":"#NUM!"},{"$error":"#NUM!"},{"$error":"#NUM!"},0]
[null,null,null,null,null,null,null,null,null,null,null,null,null,null,null,null,{"$error":"#NUM!"},{"$error":"#NUM!"},{"$error":"#NUM!"},0]
[null,null,null,null,null,null,null,null,null,null,null,null,null,null,null,null,{"$error":"#NUM!"},{"$error":"#NUM!"},{"$error":"#NUM!"},0]
[null,null,null,null,null,null,null,null,null,null,null,null,null,null,null,null,{"$error":"#NUM!"},{"$error":"#NUM!"},{"$error":"#NUM!"},0]
[null,null,null,null,null,null,null,null,null,null,null,null,null,null,null,null,{"$error":"#NUM!"},{"$error":"#NUM!"},{"$error":"#NUM!"},0]
[null,null,null,null,null,null,null,null,null,null,null,null,null,null,null,null,{"$error":"#NUM!"},{"$error":"#NUM!"},{"$error":"#NUM!"},0]
[null,null,null,null,null,null,null,null,null,null,null,null,null,null,null,null,{"$error":"#NUM!"},{"$error":"#NUM!"},{"$error":"#NUM!"},0]
[null,null,null,null,null,null,null,null,null,null,null,null,null,null,null,null,{"$error":"#NUM!"},{"$error":"#NUM!"},{"$error":"#NUM!"},0]
[null,null,null,null,null,null,null,null,null,null,null,null,null,null,null,null,{"$error":"#NUM!"},{"$error":"#NUM!"},{"$error":"#NUM!"},0]
[null,null,null,null,null,null,null,null,null,null,null,null,null,null,null,null,{"$error":"#NUM!"},{"$error":"#NUM!"},{"$error":"#NUM!"},0]
[null,null,null,null,null,null,null,null,null,null,null,null,null,null,null,null,{"$error":"#NUM!"},{"$error":"#NUM!"},{"$error":"#NUM!"},0]
[null,null,null,null,null,null,null,null,null,null,null,null,null,null,null,null,{"$error":"#NUM!"},{"$error":"#NUM!"},{"$error":"#NUM!"},0]
[null,null,null,null,null,null,null,null,null,null,null,null,null,null,null,null,{"$error":"#NUM!"},{"$error":"#NUM!"},{"$error":"#NUM!"},0]
[null,null,null,null,null,null,null,null,null,null,null,null,null,null,null,null,{"$error":"#NUM!"},{"$error":"#NUM!"},{"$error":"#NUM!"},0]
[null,null,null,null,null,null,null,null,null,null,null,null,null,null,null,null,{"$error":"#NUM!"},{"$error":"#NUM!"},{"$error":"#NUM!"},0]
[null,null,null,null,null,null,null,null,null,null,null,null,null,null,null,null,{"$error":"#NUM!"},{"$error":"#NUM!"},{"$error":"#NUM!"},0]
[null,null,null,null,null,null,null,null,null,null,null,null,null,null,null,null,{"$error":"#NUM!"},{"$error":"#NUM!"},{"$error":"#NUM!"},0]
[null,null,null,null,null,null,null,null,null,null,null,null,null,null,null,null,{"$error":"#NUM!"},{"$error":"#NUM!"},{"$error":"#NUM!"},0]
[null,null,null,null,null,null,null,null,null,null,null,null,null,null,null,null,{"$error":"#NUM!"},{"$error":"#NUM!"},{"$error":"#NUM!"},0]
[null,null,null,null,null,null,null,null,null,null,null,null,null,null,null,null,{"$error":"#NUM!"},{"$error":"#NUM!"},{"$error":"#NUM!"},0]
[null,null,null,null,null,null,null,null,null,null,null,null,null,null,null,null,{"$error":"#NUM!"},{"$error":"#NUM!"},{"$error":"#NUM!"},0]
[null,null,null,null,null,null,null,null,null,null,null,null,null,null,null,null,{"$error":"#NUM!"},{"$error":"#NUM!"},{"$error":"#NUM!"},0]
[null,null,null,null,null,null,null,null,null,null,null,null,null,null,null,null,{"$error":"#NUM!"},{"$error":"#NUM!"},{"$error":"#NUM!"},0]
[null,null,null,null,null,null,null,null,null,null,null,null,null,null,null,null,{"$error":"#NUM!"},{"$error":"#NUM!"},{"$error":"#NUM!"},0]
[null,null,null,null,null,null,null,null,null,null,null,null,null,null,null,null,{"$error":"#NUM!"},{"$error":"#NUM!"},{"$error":"#NUM!"},0]
[null,null,null,null,null,null,null,null,null,null,null,null,null,null,null,null,{"$error":"#NUM!"},{"$error":"#NUM!"},{"$error":"#NUM!"},0]
[null,null,null,null,null,null,null,null,null,null,null,null,null,null,null,null,{"$error":"#NUM!"},{"$error":"#NUM!"},{"$error":"#NUM!"},0]
[null,null,null,null,null,null,null,null,null,null,null,null,null,null,null,null,{"$error":"#NUM!"},{"$error":"#NUM!"},{"$error":"#NUM!"},0]
[null,null,null,null,null,null,null,null,null,null,null,null,null,null,null,null,{"$error":"#NUM!"},{"$error":"#NUM!"},{"$error":"#NUM!"},0]
[null,null,null,null,null,null,null,null,null,null,null,null,null,null,null,null,{"$error":"#NUM!"},{"$error":"#NUM!"},{"$error":"#NUM!"},0]
[null,null,null,null,null,null,null,null,null,null,null,null,null,null,null,null,{"$error":"#NUM!"},{"$error":"#NUM!"},{"$error":"#NUM!"},0]
[null,null,null,null,null,null,null,null,null,null,null,null,null,null,null,null,{"$error":"#NUM!"},{"$error":"#NUM!"},{"$error":"#NUM!"},0]
[null,null,null,null,null,null,null,null,null,null,null,null,null,null,null,null,{"$error":"#NUM!"},{"$error":"#NUM!"},{"$error":"#NUM!"},0]
[null,null,null,null,null,null,null,null,null,null,null,null,null,null,null,null,{"$error":"#NUM!"},{"$error":"#NUM!"},{"$error":"#NUM!"},0]
[null,null,null,null,null,null,null,null,null,null,null,null,null,null,null,null,{"$f":"1/((0.0010295+0.0002391*LOG(I231*1000)+0.0000001568*LOG(I231*1000)^3))","v":{"$error":"#NUM!"}},{"$f":"1/((0.0010295+0.0002391*LOG(J231*1000)+0.0000001568*LOG(J231*1000)^3))","v":{"$error":"#NUM!"}},{"$f":"($O$5*G231)+$O$6*((1*(Q231^4))+($O$11*((Q231^4)-(R231^4))))","v":{"$error":"#NUM!"}},{"$f":"1000*(K231/$O$3)","v":0}]
[null,null,null,null,null,null,null,null,null,null,null,null,null,null,null,null,{"$error":"#NUM!"},{"$error":"#NUM!"},{"$error":"#NUM!"},0]
[null,null,null,null,null,null,null,null,null,null,null,null,null,null,null,null,{"$error":"#NUM!"},{"$error":"#NUM!"},{"$error":"#NUM!"},0]
[null,null,null,null,null,null,null,null,null,null,null,null,null,null,null,null,{"$error":"#NUM!"},{"$error":"#NUM!"},{"$error":"#NUM!"},0]
[null,null,null,null,null,null,null,null,null,null,null,null,null,null,null,null,{"$error":"#NUM!"},{"$error":"#NUM!"},{"$error":"#NUM!"},0]
[null,null,null,null,null,null,null,null,null,null,null,null,null,null,null,null,{"$error":"#NUM!"},{"$error":"#NUM!"},{"$error":"#NUM!"},0]
[null,null,null,null,null,null,null,null,null,null,null,null,null,null,null,null,{"$error":"#NUM!"},{"$error":"#NUM!"},{"$error":"#NUM!"},0]
[null,null,null,null,null,null,null,null,null,null,null,null,null,null,null,null,{"$error":"#NUM!"},{"$error":"#NUM!"},{"$error":"#NUM!"},0]
[null,null,null,null,null,null,null,null,null,null,null,null,null,null,null,null,{"$error":"#NUM!"},{"$error":"#NUM!"},{"$error":"#NUM!"},0]
[null,null,null,null,null,null,null,null,null,null,null,null,null,null,null,null,{"$error":"#NUM!"},{"$error":"#NUM!"},{"$error":"#NUM!"},0]
[null,null,null,null,null,null,null,null,null,null,null,null,null,null,null,null,{"$error":"#NUM!"},{"$error":"#NUM!"},{"$error":"#NUM!"},0]
[null,null,null,null,null,null,null,null,null,null,null,null,null,null,null,null,{"$error":"#NUM!"},{"$error":"#NUM!"},{"$error":"#NUM!"},0]
[null,null,null,null,null,null,null,null,null,null,null,null,null,null,null,null,{"$error":"#NUM!"},{"$error":"#NUM!"},{"$error":"#NUM!"},0]
[null,null,null,null,null,null,null,null,null,null,null,null,null,null,null,null,{"$error":"#NUM!"},{"$error":"#NUM!"},{"$error":"#NUM!"},0]
[null,null,null,null,null,null,null,null,null,null,null,null,null,null,null,null,{"$error":"#NUM!"},{"$error":"#NUM!"},{"$error":"#NUM!"},0]
[null,null,null,null,null,null,null,null,null,null,null,null,null,null,null,null,{"$error":"#NUM!"},{"$error":"#NUM!"},{"$error":"#NUM!"},0]
[null,null,null,null,null,null,null,null,null,null,null,null,null,null,null,null,{"$error":"#NUM!"},{"$error":"#NUM!"},{"$error":"#NUM!"},0]
[null,null,null,null,null,null,null,null,null,null,null,null,null,null,null,null,{"$error":"#NUM!"},{"$error":"#NUM!"},{"$error":"#NUM!"},0]
[null,null,null,null,null,null,null,null,null,null,null,null,null,null,null,null,{"$error":"#NUM!"},{"$error":"#NUM!"},{"$error":"#NUM!"},0]
[null,null,null,null,null,null,null,null,null,null,null,null,null,null,null,null,{"$error":"#NUM!"},{"$error":"#NUM!"},{"$error":"#NUM!"},0]
[null,null,null,null,null,null,null,null,null,null,null,null,null,null,null,null,{"$error":"#NUM!"},{"$error":"#NUM!"},{"$error":"#NUM!"},0]
[null,null,null,null,null,null,null,null,null,null,null,null,null,null,null,null,{"$error":"#NUM!"},{"$error":"#NUM!"},{"$error":"#NUM!"},0]
[null,null,null,null,null,null,null,null,null,null,null,null,null,null,null,null,{"$error":"#NUM!"},{"$error":"#NUM!"},{"$error":"#NUM!"},0]
[null,null,null,null,null,null,null,null,null,null,null,null,null,null,null,null,{"$error":"#NUM!"},{"$error":"#NUM!"},{"$error":"#NUM!"},0]
[null,null,null,null,null,null,null,null,null,null,null,null,null,null,null,null,{"$error":"#NUM!"},{"$error":"#NUM!"},{"$error":"#NUM!"},0]
[null,null,null,null,null,null,null,null,null,null,null,null,null,null,null,null,{"$error":"#NUM!"},{"$error":"#NUM!"},{"$error":"#NUM!"},0]
[null,null,null,null,null,null,null,null,null,null,null,null,null,null,null,null,{"$error":"#NUM!"},{"$error":"#NUM!"},{"$error":"#NUM!"},0]
[null,null,null,null,null,null,null,null,null,null,null,null,null,null,null,null,{"$error":"#NUM!"},{"$error":"#NUM!"},{"$error":"#NUM!"},0]
[null,null,null,null,null,null,null,null,null,null,null,null,null,null,null,null,{"$error":"#NUM!"},{"$error":"#NUM!"},{"$error":"#NUM!"},0]
[null,null,null,null,null,null,null,null,null,null,null,null,null,null,null,null,{"$error":"#NUM!"},{"$error":"#NUM!"},{"$error":"#NUM!"},0]
[null,null,null,null,null,null,null,null,null,null,null,null,null,null,null,null,{"$error":"#NUM!"},{"$error":"#NUM!"},{"$error":"#NUM!"},0]
[null,null,null,null,null,null,null,null,null,null,null,null,null,null,null,null,{"$error":"#NUM!"},{"$error":"#NUM!"},{"$error":"#NUM!"},0]
[null,null,null,null,null,null,null,null,null,null,null,null,null,null,null,null,{"$error":"#NUM!"},{"$error":"#NUM!"},{"$error":"#NUM!"},0]
[null,null,null,null,null,null,null,null,null,null,null,null,null,null,null,null,{"$error":"#NUM!"},{"$error":"#NUM!"},{"$error":"#NUM!"},0]
[null,null,null,null,null,null,null,null,null,null,null,null,null,null,null,null,{"$error":"#NUM!"},{"$error":"#NUM!"},{"$error":"#NUM!"},0]
[null,null,null,null,null,null,null,null,null,null,null,null,null,null,null,null,{"$error":"#NUM!"},{"$error":"#NUM!"},{"$error":"#NUM!"},0]
[null,null,null,null,null,null,null,null,null,null,null,null,null,null,null,null,{"$error":"#NUM!"},{"$error":"#NUM!"},{"$error":"#NUM!"},0]
[null,null,null,null,null,null,null,null,null,null,null,null,null,null,null,null,{"$error":"#NUM!"},{"$error":"#NUM!"},{"$error":"#NUM!"},0]
[null,null,null,null,null,null,null,null,null,null,null,null,null,null,null,null,{"$error":"#NUM!"},{"$error":"#NUM!"},{"$error":"#NUM!"},0]
[null,null,null,null,null,null,null,null,null,null,null,null,null,null,null,null,{"$error":"#NUM!"},{"$error":"#NUM!"},{"$error":"#NUM!"},0]
[null,null,null,null,null,null,null,null,null,null,null,null,null,null,null,null,{"$error":"#NUM!"},{"$error":"#NUM!"},{"$error":"#NUM!"},0]
[null,null,null,null,null,null,null,null,null,null,null,null,null,null,null,null,{"$error":"#NUM!"},{"$error":"#NUM!"},{"$error":"#NUM!"},0]
[null,null,null,null,null,null,null,null,null,null,null,null,null,null,null,null,{"$error":"#NUM!"},{"$error":"#NUM!"},{"$error":"#NUM!"},0]
[null,null,null,null,null,null,null,null,null,null,null,null,null,null,null,null,{"$error":"#NUM!"},{"$error":"#NUM!"},{"$error":"#NUM!"},0]
[null,null,null,null,null,null,null,null,null,null,null,null,null,null,null,null,{"$error":"#NUM!"},{"$error":"#NUM!"},{"$error":"#NUM!"},0]
[null,null,null,null,null,null,null,null,null,null,null,null,null,null,null,null,{"$error":"#NUM!"},{"$error":"#NUM!"},{"$error":"#NUM!"},0]
[null,null,null,null,null,null,null,null,null,null,null,null,null,null,null,null,{"$error":"#NUM!"},{"$error":"#NUM!"},{"$error":"#NUM!"},0]
[null,null,null,null,null,null,null,null,null,null,null,null,null,null,null,null,{"$error":"#NUM!"},{"$error":"#NUM!"},{"$error":"#NUM!"},0]
[null,null,null,null,null,null,null,null,null,null,null,null,null,null,null,null,{"$error":"#NUM!"},{"$error":"#NUM!"},{"$error":"#NUM!"},0]
[null,null,null,null,null,null,null,null,null,null,null,null,null,null,null,null,{"$error":"#NUM!"},{"$error":"#NUM!"},{"$error":"#NUM!"},0]
[null,null,null,null,null,null,null,null,null,null,null,null,null,null,null,null,{"$error":"#NUM!"},{"$error":"#NUM!"},{"$error":"#NUM!"},0]
[null,null,null,null,null,null,null,null,null,null,null,null,null,null,null,null,{"$error":"#NUM!"},{"$error":"#NUM!"},{"$error":"#NUM!"},0]
[null,null,null,null,null,null,null,null,null,null,null,null,null,null,null,null,{"$error":"#NUM!"},{"$error":"#NUM!"},{"$error":"#NUM!"},0]
[null,null,null,null,null,null,null,null,null,null,null,null,null,null,null,null,{"$error":"#NUM!"},{"$error":"#NUM!"},{"$error":"#NUM!"},0]
[null,null,null,null,null,null,null,null,null,null,null,null,null,null,null,null,{"$error":"#NUM!"},{"$error":"#NUM!"},{"$error":"#NUM!"},0]
[null,null,null,null,null,null,null,null,null,null,null,null,null,null,null,null,{"$error":"#NUM!"},{"$error":"#NUM!"},{"$error":"#NUM!"},0]
[null,null,null,null,null,null,null,null,null,null,null,null,null,null,null,null,{"$error":"#NUM!"},{"$error":"#NUM!"},{"$error":"#NUM!"},0]
[null,null,null,null,null,null,null,null,null,null,null,null,null,null,null,null,{"$error":"#NUM!"},{"$error":"#NUM!"},{"$error":"#NUM!"},0]
[null,null,null,null,null,null,null,null,null,null,null,null,null,null,null,null,{"$error":"#NUM!"},{"$error":"#NUM!"},{"$error":"#NUM!"},0]
[null,null,null,null,null,null,null,null,null,null,null,null,null,null,null,null,{"$error":"#NUM!"},{"$error":"#NUM!"},{"$error":"#NUM!"},0]
[null,null,null,null,null,null,null,null,null,null,null,null,null,null,null,null,{"$error":"#NUM!"},{"$error":"#NUM!"},{"$error":"#NUM!"},0]
[null,null,null,null,null,null,null,null,null,null,null,null,null,null,null,null,{"$error":"#NUM!"},{"$error":"#NUM!"},{"$error":"#NUM!"},0]
[null,null,null,null,null,null,null,null,null,null,null,null,null,null,null,null,{"$error":"#NUM!"},{"$error":"#NUM!"},{"$error":"#NUM!"},0]
[null,null,null,null,null,null,null,null,null,null,null,null,null,null,null,null,{"$error":"#NUM!"},{"$error":"#NUM!"},{"$error":"#NUM!"},0]
[null,null,null,null,null,null,null,null,null,null,null,null,null,null,null,null,{"$f":"1/((0.0010295+0.0002391*LOG(I295*1000)+0.0000001568*LOG(I295*1000)^3))","v":{"$error":"#NUM!"}},{"$f":"1/((0.0010295+0.0002391*LOG(J295*1000)+0.0000001568*LOG(J295*1000)^3))","v":{"$error":"#NUM!"}},{"$f":"($O$5*G295)+$O$6*((1*(Q295^4))+($O$11*((Q295^4)-(R295^4))))","v":{"$error":"#NUM!"}},{"$f":"1000*(K295/$O$3)","v":0}]
[null,null,null,null,null,null,null,null,null,null,null,null,null,null,null,null,{"$error":"#NUM!"},{"$error":"#NUM!"},{"$error":"#NUM!"},0]
[null,null,null,null,null,null,null,null,null,null,null,null,null,null,null,null,{"$error":"#NUM!"},{"$error":"#NUM!"},{"$error":"#NUM!"},0]
[null,null,null,null,null,null,null,null,null,null,null,null,null,null,null,null,{"$error":"#NUM!"},{"$error":"#NUM!"},{"$error":"#NUM!"},0]
[null,null,null,null,null,null,null,null,null,null,null,null,null,null,null,null,{"$error":"#NUM!"},{"$error":"#NUM!"},{"$error":"#NUM!"},0]
[null,null,null,null,null,null,null,null,null,null,null,null,null,null,null,null,{"$error":"#NUM!"},{"$error":"#NUM!"},{"$error":"#NUM!"},0]
[null,null,null,null,null,null,null,null,null,null,null,null,null,null,null,null,{"$error":"#NUM!"},{"$error":"#NUM!"},{"$error":"#NUM!"},0]
[null,null,null,null,null,null,null,null,null,null,null,null,null,null,null,null,{"$error":"#NUM!"},{"$error":"#NUM!"},{"$error":"#NUM!"},0]
[null,null,null,null,null,null,null,null,null,null,null,null,null,null,null,null,{"$error":"#NUM!"},{"$error":"#NUM!"},{"$error":"#NUM!"},0]
[null,null,null,null,null,null,null,null,null,null,null,null,null,null,null,null,{"$error":"#NUM!"},{"$error":"#NUM!"},{"$error":"#NUM!"},0]
[null,null,null,null,null,null,null,null,null,null,null,null,null,null,null,null,{"$error":"#NUM!"},{"$error":"#NUM!"},{"$error":"#NUM!"},0]
[null,null,null,null,null,null,null,null,null,null,null,null,null,null,null,null,{"$error":"#NUM!"},{"$error":"#NUM!"},{"$error":"#NUM!"},0]
[null,null,null,null,null,null,null,null,null,null,null,null,null,null,null,null,{"$error":"#NUM!"},{"$error":"#NUM!"},{"$error":"#NUM!"},0]
[null,null,null,null,null,null,null,null,null,null,null,null,null,null,null,null,{"$error":"#NUM!"},{"$error":"#NUM!"},{"$error":"#NUM!"},0]
[null,null,null,null,null,null,null,null,null,null,null,null,null,null,null,null,{"$error":"#NUM!"},{"$error":"#NUM!"},{"$error":"#NUM!"},0]
[null,null,null,null,null,null,null,null,null,null,null,null,null,null,null,null,{"$error":"#NUM!"},{"$error":"#NUM!"},{"$error":"#NUM!"},0]
[null,null,null,null,null,null,null,null,null,null,null,null,null,null,null,null,{"$error":"#NUM!"},{"$error":"#NUM!"},{"$error":"#NUM!"},0]
[null,null,null,null,null,null,null,null,null,null,null,null,null,null,null,null,{"$error":"#NUM!"},{"$error":"#NUM!"},{"$error":"#NUM!"},0]
[null,null,null,null,null,null,null,null,null,null,null,null,null,null,null,null,{"$error":"#NUM!"},{"$error":"#NUM!"},{"$error":"#NUM!"},0]
[null,null,null,null,null,null,null,null,null,null,null,null,null,null,null,null,{"$error":"#NUM!"},{"$error":"#NUM!"},{"$error":"#NUM!"},0]
[null,null,null,null,null,null,null,null,null,null,null,null,null,null,null,null,{"$error":"#NUM!"},{"$error":"#NUM!"},{"$error":"#NUM!"},0]
[null,null,null,null,null,null,null,null,null,null,null,null,null,null,null,null,{"$error":"#NUM!"},{"$error":"#NUM!"},{"$error":"#NUM!"},0]
[null,null,null,null,null,null,null,null,null,null,null,null,null,null,null,null,{"$error":"#NUM!"},{"$error":"#NUM!"},{"$error":"#NUM!"},0]
[null,null,null,null,null,null,null,null,null,null,null,null,null,null,null,null,{"$error":"#NUM!"},{"$error":"#NUM!"},{"$error":"#NUM!"},0]
[null,null,null,null,null,null,null,null,null,null,null,null,null,null,null,null,{"$error":"#NUM!"},{"$error":"#NUM!"},{"$error":"#NUM!"},0]
[null,null,null,null,null,null,null,null,null,null,null,null,null,null,null,null,{"$error":"#NUM!"},{"$error":"#NUM!"},{"$error":"#NUM!"},0]
[null,null,null,null,null,null,null,null,null,null,null,null,null,null,null,null,{"$error":"#NUM!"},{"$error":"#NUM!"},{"$error":"#NUM!"},0]
[null,null,null,null,null,null,null,null,null,null,null,null,null,null,null,null,{"$error":"#NUM!"},{"$error":"#NUM!"},{"$error":"#NUM!"},0]
[null,null,null,null,null,null,null,null,null,null,null,null,null,null,null,null,{"$error":"#NUM!"},{"$error":"#NUM!"},{"$error":"#NUM!"},0]
[null,null,null,null,null,null,null,null,null,null,null,null,null,null,null,null,{"$error":"#NUM!"},{"$error":"#NUM!"},{"$error":"#NUM!"},0]
[null,null,null,null,null,null,null,null,null,null,null,null,null,null,null,null,{"$error":"#NUM!"},{"$error":"#NUM!"},{"$error":"#NUM!"},0]
[null,null,null,null,null,null,null,null,null,null,null,null,null,null,null,null,{"$error":"#NUM!"},{"$error":"#NUM!"},{"$error":"#NUM!"},0]
[null,null,null,null,null,null,null,null,null,null,null,null,null,null,null,null,{"$error":"#NUM!"},{"$error":"#NUM!"},{"$error":"#NUM!"},0]
[null,null,null,null,null,null,null,null,null,null,null,null,null,null,null,null,{"$error":"#NUM!"},{"$error":"#NUM!"},{"$error":"#NUM!"},0]
[null,null,null,null,null,null,null,null,null,null,null,null,null,null,null,null,{"$error":"#NUM!"},{"$error":"#NUM!"},{"$error":"#NUM!"},0]
[null,null,null,null,null,null,null,null,null,null,null,null,null,null,null,null,{"$error":"#NUM!"},{"$error":"#NUM!"},{"$error":"#NUM!"},0]
[null,null,null,null,null,null,null,null,null,null,null,null,null,null,null,null,{"$error":"#NUM!"},{"$error":"#NUM!"},{"$error":"#NUM!"},0]
[null,null,null,null,null,null,null,null,null,null,null,null,null,null,null,null,{"$error":"#NUM!"},{"$error":"#NUM!"},{"$error":"#NUM!"},0]
[null,null,null,null,null,null,null,null,null,null,null,null,null,null,null,null,{"$error":"#NUM!"},{"$error":"#NUM!"},{"$error":"#NUM!"},0]
[null,null,null,null,null,null,null,null,null,null,null,null,null,null,null,null,{"$error":"#NUM!"},{"$error":"#NUM!"},{"$error":"#NUM!"},0]
[null,null,null,null,null,null,null,null,null,null,null,null,null,null,null,null,{"$error":"#NUM!"},{"$error":"#NUM!"},{"$error":"#NUM!"},0]
[null,null,null,null,null,null,null,null,null,null,null,null,null,null,null,null,{"$error":"#NUM!"},{"$error":"#NUM!"},{"$error":"#NUM!"},0]
[null,null,null,null,null,null,null,null,null,null,null,null,null,null,null,null,{"$error":"#NUM!"},{"$error":"#NUM!"},{"$error":"#NUM!"},0]
[null,null,null,null,null,null,null,null,null,null,null,null,null,null,null,null,{"$error":"#NUM!"},{"$error":"#NUM!"},{"$error":"#NUM!"},0]
[null,null,null,null,null,null,null,null,null,null,null,null,null,null,null,null,{"$error":"#NUM!"},{"$error":"#NUM!"},{"$error":"#NUM!"},0]
[null,null,null,null,null,null,null,null,null,null,null,null,null,null,null,null,{"$error":"#NUM!"},{"$error":"#NUM!"},{"$error":"#NUM!"},0]
[null,null,null,null,null,null,null,null,null,null,null,null,null,null,null,null,{"$error":"#NUM!"},{"$error":"#NUM!"},{"$error":"#NUM!"},0]
[null,null,null,null,null,null,null,null,null,null,null,null,null,null,null,null,{"$error":"#NUM!"},{"$error":"#NUM!"},{"$error":"#NUM!"},0]
[null,null,null,null,null,null,null,null,null,null,null,null,null,null,null,null,{"$error":"#NUM!"},{"$error":"#NUM!"},{"$error":"#NUM!"},0]
[null,null,null,null,null,null,null,null,null,null,null,null,null,null,null,null,{"$error":"#NUM!"},{"$error":"#NUM!"},{"$error":"#NUM!"},0]
[null,null,null,null,null,null,null,null,null,null,null,null,null,null,null,null,{"$error":"#NUM!"},{"$error":"#NUM!"},{"$error":"#NUM!"},0]
[null,null,null,null,null,null,null,null,null,null,null,null,null,null,null,null,{"$error":"#NUM!"},{"$error":"#NUM!"},{"$error":"#NUM!"},0]
[null,null,null,null,null,null,null,null,null,null,null,null,null,null,null,null,{"$error":"#NUM!"},{"$error":"#NUM!"},{"$error":"#NUM!"},0]
[null,null,null,null,null,null,null,null,null,null,null,null,null,null,null,null,{"$error":"#NUM!"},{"$error":"#NUM!"},{"$error":"#NUM!"},0]
[null,null,null,null,null,null,null,null,null,null,null,null,null,null,null,null,{"$error":"#NUM!"},{"$error":"#NUM!"},{"$error":"#NUM!"},0]
[null,null,null,null,null,null,null,null,null,null,null,null,null,null,null,null,{"$error":"#NUM!"},{"$error":"#NUM!"},{"$error":"#NUM!"},0]
[null,null,null,null,null,null,null,null,null,null,null,null,null,null,null,null,{"$error":"#NUM!"},{"$error":"#NUM!"},{"$error":"#NUM!"},0]
[null,null,null,null,null,null,null,null,null,null,null,null,null,null,null,null,{"$error":"#NUM!"},{"$error":"#NUM!"},{"$error":"#NUM!"},0]
[null,null,null,null,null,null,null,null,null,null,null,null,null,null,null,null,{"$error":"#NUM!"},{"$error":"#NUM!"},{"$error":"#NUM!"},0]
[null,null,null,null,null,null,null,null,null,null,null,null,null,null,null,null,{"$error":"#NUM!"},{"$error":"#NUM!"},{"$error":"#NUM!"},0]
[null,null,null,null,null,null,null,null,null,null,null,null,null,null,null,null,{"$error":"#NUM!"},{"$error":"#NUM!"},{"$error":"#NUM!"},0]
[null,null,null,null,null,null,null,null,null,null,null,null,null,null,null,null,{"$error":"#NUM!"},{"$error":"#NUM!"},{"$error":"#NUM!"},0]
[null,null,null,null,null,null,null,null,null,null,null,null,null,null,null,null,{"$error":"#NUM!"},{"$error":"#NUM!"},{"$error":"#NUM!"},0]
[null,null,null,null,null,null,null,null,null,null,null,null,null,null,null,null,{"$error":"#NUM!"},{"$error":"#NUM!"},{"$error":"#NUM!"},0]
[null,null,null,null,null,null,null,null,null,null,null,null,null,null,null,null,{"$f":"1/((0.0010295+0.0002391*LOG(I359*1000)+0.0000001568*LOG(I359*1000)^3))","v":{"$error":"#NUM!"}},{"$f":"1/((0.0010295+0.0002391*LOG(J359*1000)+0.0000001568*LOG(J359*1000)^3))","v":{"$error":"#NUM!"}},{"$f":"($O$5*G359)+$O$6*((1*(Q359^4))+($O$11*((Q359^4)-(R359^4))))","v":{"$error":"#NUM!"}},{"$f":"1000*(K359/$O$3)","v":0}]
[null,null,null,null,null,null,null,null,null,null,null,null,null,null,null,null,{"$error":"#NUM!"},{"$error":"#NUM!"},{"$error":"#NUM!"},0]
[null,null,null,null,null,null,null,null,null,null,null,null,null,null,null,null,{"$error":"#NUM!"},{"$error":"#NUM!"},{"$error":"#NUM!"},0]
[null,null,null,null,null,null,null,null,null,null,null,null,null,null,null,null,{"$error":"#NUM!"},{"$error":"#NUM!"},{"$error":"#NUM!"},0]
[null,null,null,null,null,null,null,null,null,null,null,null,null,null,null,null,{"$error":"#NUM!"},{"$error":"#NUM!"},{"$error":"#NUM!"},0]
[null,null,null,null,null,null,null,null,null,null,null,null,null,null,null,null,{"$error":"#NUM!"},{"$error":"#NUM!"},{"$error":"#NUM!"},0]
[null,null,null,null,null,null,null,null,null,null,null,null,null,null,null,null,{"$error":"#NUM!"},{"$error":"#NUM!"},{"$error":"#NUM!"},0]
[null,null,null,null,null,null,null,null,null,null,null,null,null,null,null,null,{"$error":"#NUM!"},{"$error":"#NUM!"},{"$error":"#NUM!"},0]
[null,null,null,null,null,null,null,null,null,null,null,null,null,null,null,null,{"$error":"#NUM!"},{"$error":"#NUM!"},{"$error":"#NUM!"},0]
[null,null,null,null,null,null,null,null,null,null,null,null,null,null,null,null,{"$error":"#NUM!"},{"$error":"#NUM!"},{"$error":"#NUM!"},0]
[null,null,null,null,null,null,null,null,null,null,null,null,null,null,null,null,{"$error":"#NUM!"},{"$error":"#NUM!"},{"$error":"#NUM!"},0]
[null,null,null,null,null,null,null,null,null,null,null,null,null,null,null,null,{"$error":"#NUM!"},{"$error":"#NUM!"},{"$error":"#NUM!"},0]
[null,null,null,null,null,null,null,null,null,null,null,null,null,null,null,null,{"$error":"#NUM!"},{"$error":"#NUM!"},{"$error":"#NUM!"},0]
[null,null,null,null,null,null,null,null,null,null,null,null,null,null,null,null,{"$error":"#NUM!"},{"$error":"#NUM!"},{"$error":"#NUM!"},0]
[null,null,null,null,null,null,null,null,null,null,null,null,null,null,null,null,{"$error":"#NUM!"},{"$error":"#NUM!"},{"$error":"#NUM!"},0]
[null,null,null,null,null,null,null,null,null,null,null,null,null,null,null,null,{"$error":"#NUM!"},{"$error":"#NUM!"},{"$error":"#NUM!"},0]
[null,null,null,null,null,null,null,null,null,null,null,null,null,null,null,null,{"$error":"#NUM!"},{"$error":"#NUM!"},{"$error":"#NUM!"},0]
[null,null,null,null,null,null,null,null,null,null,null,null,null,null,null,null,{"$error":"#NUM!"},{"$error":"#NUM!"},{"$error":"#NUM!"},0]
[null,null,null,null,null,null,null,null,null,null,null,null,null,null,null,null,{"$error":"#NUM!"},{"$error":"#NUM!"},{"$error":"#NUM!"},0]
[null,null,null,null,null,null,null,null,null,null,null,null,null,null,null,null,{"$error":"#NUM!"},{"$error":"#NUM!"},{"$error":"#NUM!"},0]
[null,null,null,null,null,null,null,null,null,null,null,null,null,null,null,null,{"$error":"#NUM!"},{"$error":"#NUM!"},{"$error":"#NUM!"},0]
[null,null,null,null,null,null,null,null,null,null,null,null,null,null,null,null,{"$error":"#NUM!"},{"$error":"#NUM!"},{"$error":"#NUM!"},0]
[null,null,null,null,null,null,null,null,null,null,null,null,null,null,null,null,{"$error":"#NUM!"},{"$error":"#NUM!"},{"$error":"#NUM!"},0]
[null,null,null,null,null,null,null,null,null,null,null,null,null,null,null,null,{"$error":"#NUM!"},{"$error":"#NUM!"},{"$error":"#NUM!"},0]
[null,null,null,null,null,null,null,null,null,null,null,null,null,null,null,null,{"$error":"#NUM!"},{"$error":"#NUM!"},{"$error":"#NUM!"},0]
[null,null,null,null,null,null,null,null,null,null,null,null,null,null,null,null,{"$error":"#NUM!"},{"$error":"#NUM!"},{"$error":"#NUM!"},0]
[null,null,null,null,null,null,null,null,null,null,null,null,null,null,null,null,{"$error":"#NUM!"},{"$error":"#NUM!"},{"$error":"#NUM!"},0]
[null,null,null,null,null,null,null,null,null,null,null,null,null,null,null,null,{"$error":"#NUM!"},{"$error":"#NUM!"},{"$error":"#NUM!"},0]
[null,null,null,null,null,null,null,null,null,null,null,null,null,null,null,null,{"$error":"#NUM!"},{"$error":"#NUM!"},{"$error":"#NUM!"},0]
[null,null,null,null,null,null,null,null,null,null,null,null,null,null,null,null,{"$error":"#NUM!"},{"$error":"#NUM!"},{"$error":"#NUM!"},0]
[null,null,null,null,null,null,null,null,null,null,null,null,null,null,null,null,{"$error":"#NUM!"},{"$error":"#NUM!"},{"$error":"#NUM!"},0]
[null,null,null,null,null,null,null,null,null,null,null,null,null,null,null,null,{"$error":"#NUM!"},{"$error":"#NUM!"},{"$error":"#NUM!"},0]
[null,null,null,null,null,null,null,null,null,null,null,null,null,null,null,null,{"$error":"#NUM!"},{"$error":"#NUM!"},{"$error":"#NUM!"},0]
[null,null,null,null,null,null,null,null,null,null,null,null,null,null,null,null,{"$error":"#NUM!"},{"$error":"#NUM!"},{"$error":"#NUM!"},0]
[null,null,null,null,null,null,null,null,null,null,null,null,null,null,null,null,{"$error":"#NUM!"},{"$error":"#NUM!"},{"$error":"#NUM!"},0]
[null,null,null,null,null,null,null,null,null,null,null,null,null,null,null,null,{"$error":"#NUM!"},{"$error":"#NUM!"},{"$error":"#NUM!"},0]
[null,null,null,null,null,null,null,null,null,null,null,null,null,null,null,null,{"$error":"#NUM!"},{"$error":"#NUM!"},{"$error":"#NUM!"},0]
[null,null,null,null,null,null,null,null,null,null,null,null,null,null,null,null,{"$error":"#NUM!"},{"$error":"#NUM!"},{"$error":"#NUM!"},0]
[null,null,null,null,null,null,null,null,null,null,null,null,null,null,null,null,{"$error":"#NUM!"},{"$error":"#NUM!"},{"$error":"#NUM!"},0]
[null,null,null,null,null,null,null,null,null,null,null,null,null,null,null,null,{"$error":"#NUM!"},{"$error":"#NUM!"},{"$error":"#NUM!"},0]
[null,null,null,null,null,null,null,null,null,null,null,null,null,null,null,null,{"$error":"#NUM!"},{"$error":"#NUM!"},{"$error":"#NUM!"},0]
[null,null,null,null,null,null,null,null,null,null,null,null,null,null,null,null,{"$error":"#NUM!"},{"$error":"#NUM!"},{"$error":"#NUM!"},0]
[null,null,null,null,null,null,null,null,null,null,null,null,null,null,null,null,{"$error":"#NUM!"},{"$error":"#NUM!"},{"$error":"#NUM!"},0]
[null,null,null,null,null,null,null,null,null,null,null,null,null,null,null,null,{"$error":"#NUM!"},{"$error":"#NUM!"},{"$error":"#NUM!"},0]
[null,null,null,null,null,null,null,null,null,null,null,null,null,null,null,null,{"$error":"#NUM!"},{"$error":"#NUM!"},{"$error":"#NUM!"},0]
[null,null,null,null,null,null,null,null,null,null,null,null,null,null,null,null,{"$error":"#NUM!"},{"$error":"#NUM!"},{"$error":"#NUM!"},0]
[null,null,null,null,null,null,null,null,null,null,null,null,null,null,null,null,{"$error":"#NUM!"},{"$error":"#NUM!"},{"$error":"#NUM!"},0]
[null,null,null,null,null,null,null,null,null,null,null,null,null,null,null,null,{"$error":"#NUM!"},{"$error":"#NUM!"},{"$error":"#NUM!"},0]
[null,null,null,null,null,null,null,null,null,null,null,null,null,null,null,null,{"$error":"#NUM!"},{"$error":"#NUM!"},{"$error":"#NUM!"},0]
[null,null,null,null,null,null,null,null,null,null,null,null,null,null,null,null,{"$error":"#NUM!"},{"$error":"#NUM!"},{"$error":"#NUM!"},0]
[null,null,null,null,null,null,null,null,null,null,null,null,null,null,null,null,{"$error":"#NUM!"},{"$error":"#NUM!"},{"$error":"#NUM!"},0]
[null,null,null,null,null,null,null,null,null,null,null,null,null,null,null,null,{"$error":"#NUM!"},{"$error":"#NUM!"},{"$error":"#NUM!"},0]
[null,null,null,null,null,null,null,null,null,null,null,null,null,null,null,null,{"$error":"#NUM!"},{"$error":"#NUM!"},{"$error":"#NUM!"},0]
[null,null,null,null,null,null,null,null,null,null,null,null,null,null,null,null,{"$error":"#NUM!"},{"$error":"#NUM!"},{"$error":"#NUM!"},0]
[null,null,null,null,null,null,null,null,null,null,null,null,null,null,null,null,{"$error":"#NUM!"},{"$error":"#NUM!"},{"$error":"#NUM!"},0]
[null,null,null,null,null,null,null,null,null,null,null,null,null,null,null,null,{"$error":"#NUM!"},{"$error":"#NUM!"},{"$error":"#NUM!"},0]
[null,null,null,null,null,null,null,null,null,null,null,null,null,null,null,null,{"$error":"#NUM!"},{"$error":"#NUM!"},{"$error":"#NUM!"},0]
[null,null,null,null,null,null,null,null,null,null,null,null,null,null,null,null,{"$error":"#NUM!"},{"$error":"#NUM!"},{"$error":"#NUM!"},0]
[null,null,null,null,null,null,null,null,null,null,null,null,null,null,null,null,{"$error":"#NUM!"},{"$error":"#NUM!"},{"$error":"#NUM!"},0]
[null,null,null,null,null,null,null,null,null,null,null,null,null,null,null,null,{"$error":"#NUM!"},{"$error":"#NUM!"},{"$error":"#NUM!"},0]
[null,null,null,null,null,null,null,null,null,null,null,null,null,null,null,null,{"$error":"#NUM!"},{"$error":"#NUM!"},{"$error":"#NUM!"},0]
[null,null,null,null,null,null,null,null,null,null,null,null,null,null,null,null,{"$error":"#NUM!"},{"$error":"#NUM!"},{"$error":"#NUM!"},0]
[null,null,null,null,null,null,null,null,null,null,null,null,null,null,null,null,{"$error":"#NUM!"},{"$error":"#NUM!"},{"$error":"#NUM!"},0]
[null,null,null,null,null,null,null,null,null,null,null,null,null,null,null,null,{"$error":"#NUM!"},{"$error":"#NUM!"},{"$error":"#NUM!"},0]
[null,null,null,null,null,null,null,null,null,null,null,null,null,null,null,null,{"$f":"1/((0.0010295+0.0002391*LOG(I423*1000)+0.0000001568*LOG(I423*1000)^3))","v":{"$error":"#NUM!"}},{"$f":"1/((0.0010295+0.0002391*LOG(J423*1000)+0.0000001568*LOG(J423*1000)^3))","v":{"$error":"#NUM!"}},{"$f":"($O$5*G423)+$O$6*((1*(Q423^4))+($O$11*((Q423^4)-(R423^4))))","v":{"$error":"#NUM!"}},{"$f":"1000*(K423/$O$3)","v":0}]
[null,null,null,null,null,null,null,null,null,null,null,null,null,null,null,null,{"$error":"#NUM!"},{"$error":"#NUM!"},{"$error":"#NUM!"},0]
[null,null,null,null,null,null,null,null,null,null,null,null,null,null,null,null,{"$error":"#NUM!"},{"$error":"#NUM!"},{"$error":"#NUM!"},0]
[null,null,null,null,null,null,null,null,null,null,null,null,null,null,null,null,{"$error":"#NUM!"},{"$error":"#NUM!"},{"$error":"#NUM!"},0]
[null,null,null,null,null,null,null,null,null,null,null,null,null,null,null,null,{"$error":"#NUM!"},{"$error":"#NUM!"},{"$error":"#NUM!"},0]
[null,null,null,null,null,null,null,null,null,null,null,null,null,null,null,null,{"$error":"#NUM!"},{"$error":"#NUM!"},{"$error":"#NUM!"},0]
[null,null,null,null,null,null,null,null,null,null,null,null,null,null,null,null,{"$error":"#NUM!"},{"$error":"#NUM!"},{"$error":"#NUM!"},0]
[null,null,null,null,null,null,null,null,null,null,null,null,null,null,null,null,{"$error":"#NUM!"},{"$error":"#NUM!"},{"$error":"#NUM!"},0]
[null,null,null,null,null,null,null,null,null,null,null,null,null,null,null,null,{"$error":"#NUM!"},{"$error":"#NUM!"},{"$error":"#NUM!"},0]
[null,null,null,null,null,null,null,null,null,null,null,null,null,null,null,null,{"$error":"#NUM!"},{"$error":"#NUM!"},{"$error":"#NUM!"},0]
[null,null,null,null,null,null,null,null,null,null,null,null,null,null,null,null,{"$error":"#NUM!"},{"$error":"#NUM!"},{"$error":"#NUM!"},0]
[null,null,null,null,null,null,null,null,null,null,null,null,null,null,null,null,{"$error":"#NUM!"},{"$error":"#NUM!"},{"$error":"#NUM!"},0]
[null,null,null,null,null,null,null,null,null,null,null,null,null,null,null,null,{"$error":"#NUM!"},{"$error":"#NUM!"},{"$error":"#NUM!"},0]
[null,null,null,null,null,null,null,null,null,null,null,null,null,null,null,null,{"$error":"#NUM!"},{"$error":"#NUM!"},{"$error":"#NUM!"},0]
[null,null,null,null,null,null,null,null,null,null,null,null,null,null,null,null,{"$error":"#NUM!"},{"$error":"#NUM!"},{"$error":"#NUM!"},0]
[null,null,null,null,null,null,null,null,null,null,null,null,null,null,null,null,{"$error":"#NUM!"},{"$error":"#NUM!"},{"$error":"#NUM!"},0]
[null,null,null,null,null,null,null,null,null,null,null,null,null,null,null,null,{"$error":"#NUM!"},{"$error":"#NUM!"},{"$error":"#NUM!"},0]
[null,null,null,null,null,null,null,null,null,null,null,null,null,null,null,null,{"$error":"#NUM!"},{"$error":"#NUM!"},{"$error":"#NUM!"},0]
[null,null,null,null,null,null,null,null,null,null,null,null,null,null,null,null,{"$error":"#NUM!"},{"$error":"#NUM!"},{"$error":"#NUM!"},0]
[null,null,null,null,null,null,null,null,null,null,null,null,null,null,null,null,{"$error":"#NUM!"},{"$error":"#NUM!"},{"$error":"#NUM!"},0]
[null,null,null,null,null,null,null,null,null,null,null,null,null,null,null,null,{"$error":"#NUM!"},{"$error":"#NUM!"},{"$error":"#NUM!"},0]
[null,null,null,null,null,null,null,null,null,null,null,null,null,null,null,null,{"$error":"#NUM!"},{"$error":"#NUM!"},{"$error":"#NUM!"},0]
[null,null,null,null,null,null,null,null,null,null,null,null,null,null,null,null,{"$error":"#NUM!"},{"$error":"#NUM!"},{"$error":"#NUM!"},0]
[null,null,null,null,null,null,null,null,null,null,null,null,null,null,null,null,{"$error":"#NUM!"},{"$error":"#NUM!"},{"$error":"#NUM!"},0]
[null,null,null,null,null,null,null,null,null,null,null,null,null,null,null,null,{"$error":"#NUM!"},{"$error":"#NUM!"},{"$error":"#NUM!"},0]
[null,null,null,null,null,null,null,null,null,null,null,null,null,null,null,null,{"$error":"#NUM!"},{"$error":"#NUM!"},{"$error":"#NUM!"},0]
[null,null,null,null,null,null,null,null,null,null,null,null,null,null,null,null,{"$error":"#NUM!"},{"$error":"#NUM!"},{"$error":"#NUM!"},0]
[null,null,null,null,null,null,null,null,null,null,null,null,null,null,null,null,{"$error":"#NUM!"},{"$error":"#NUM!"},{"$error":"#NUM!"},0]
[null,null,null,null,null,null,null,null,null,null,null,null,null,null,null,null,{"$error":"#NUM!"},{"$error":"#NUM!"},{"$error":"#NUM!"},0]
[null,null,null,null,null,null,null,null,null,null,null,null,null,null,null,null,{"$error":"#NUM!"},{"$error":"#NUM!"},{"$error":"#NUM!"},0]
[null,null,null,null,null,null,null,null,null,null,null,null,null,null,null,null,{"$error":"#NUM!"},{"$error":"#NUM!"},{"$error":"#NUM!"},0]
[null,null,null,null,null,null,null,null,null,null,null,null,null,null,null,null,{"$error":"#NUM!"},{"$error":"#NUM!"},{"$error":"#NUM!"},0]
[null,null,null,null,null,null,null,null,null,null,null,null,null,null,null,null,{"$error":"#NUM!"},{"$error":"#NUM!"},{"$error":"#NUM!"},0]
[null,null,null,null,null,null,null,null,null,null,null,null,null,null,null,null,{"$error":"#NUM!"},{"$error":"#NUM!"},{"$error":"#NUM!"},0]
[null,null,null,null,null,null,null,null,null,null,null,null,null,null,null,null,{"$error":"#NUM!"},{"$error":"#NUM!"},{"$error":"#NUM!"},0]
[null,null,null,null,null,null,null,null,null,null,null,null,null,null,null,null,{"$error":"#NUM!"},{"$error":"#NUM!"},{"$error":"#NUM!"},0]
[null,null,null,null,null,null,null,null,null,null,null,null,null,null,null,null,{"$error":"#NUM!"},{"$error":"#NUM!"},{"$error":"#NUM!"},0]
[null,null,null,null,null,null,null,null,null,null,null,null,null,null,null,null,{"$error":"#NUM!"},{"$error":"#NUM!"},{"$error":"#NUM!"},0]
[null,null,null,null,null,null,null,null,null,null,null,null,null,null,null,null,{"$error":"#NUM!"},{"$error":"#NUM!"},{"$error":"#NUM!"},0]
[null,null,null,null,null,null,null,null,null,null,null,null,null,null,null,null,{"$error":"#NUM!"},{"$error":"#NUM!"},{"$error":"#NUM!"},0]
[null,null,null,null,null,null,null,null,null,null,null,null,null,null,null,null,{"$error":"#NUM!"},{"$error":"#NUM!"},{"$error":"#NUM!"},0]
[null,null,null,null,null,null,null,null,null,null,null,null,null,null,null,null,{"$error":"#NUM!"},{"$error":"#NUM!"},{"$error":"#NUM!"},0]
[null,null,null,null,null,null,null,null,null,null,null,null,null,null,null,null,{"$error":"#NUM!"},{"$error":"#NUM!"},{"$error":"#NUM!"},0]
[null,null,null,null,null,null,null,null,null,null,null,null,null,null,null,null,{"$error":"#NUM!"},{"$error":"#NUM!"},{"$error":"#NUM!"},0]
[null,null,null,null,null,null,null,null,null,null,null,null,null,null,null,null,{"$error":"#NUM!"},{"$error":"#NUM!"},{"$error":"#NUM!"},0]
[null,null,null,null,null,null,null,null,null,null,null,null,null,null,null,null,{"$error":"#NUM!"},{"$error":"#NUM!"},{"$error":"#NUM!"},0]
[null,null,null,null,null,null,null,null,null,null,null,null,null,null,null,null,{"$error":"#NUM!"},{"$error":"#NUM!"},{"$error":"#NUM!"},0]
[null,null,null,null,null,null,null,null,null,null,null,null,null,null,null,null,{"$error":"#NUM!"},{"$error":"#NUM!"},{"$error":"#NUM!"},0]
[null,null,null,null,null,null,null,null,null,null,null,null,null,null,null,null,{"$error":"#NUM!"},{"$error":"#NUM!"},{"$error":"#NUM!"},0]
[null,null,null,null,null,null,null,null,null,null,null,null,null,null,null,null,{"$error":"#NUM!"},{"$error":"#NUM!"},{"$error":"#NUM!"},0]
[null,null,null,null,null,null,null,null,null,null,null,null,null,null,null,null,{"$error":"#NUM!"},{"$error":"#NUM!"},{"$error":"#NUM!"},0]
[null,null,null,null,null,null,null,null,null,null,null,null,null,null,null,null,{"$error":"#NUM!"},{"$error":"#NUM!"},{"$error":"#NUM!"},0]
[null,null,null,null,null,null,null,null,null,null,null,null,null,null,null,null,{"$error":"#NUM!"},{"$error":"#NUM!"},{"$error":"#NUM!"},0]
[null,null,null,null,null,null,null,null,null,null,null,null,null,null,null,null,{"$error":"#NUM!"},{"$error":"#NUM!"},{"$error":"#NUM!"},0]
[null,null,null,null,null,null,null,null,null,null,null,null,null,null,null,null,{"$error":"#NUM!"},{"$error":"#NUM!"},{"$error":"#NUM!"},0]
[null,null,null,null,null,null,null,null,null,null,null,null,null,null,null,null,{"$error":"#NUM!"},{"$error":"#NUM!"},{"$error":"#NUM!"},0]
[null,null,null,null,null,null,null,null,null,null,null,null,null,null,null,null,{"$error":"#NUM!"},{"$error":"#NUM!"},{"$error":"#NUM!"},0]
[null,null,null,null,null,null,null,null,null,null,null,null,null,null,null,null,{"$error":"#NUM!"},{"$error":"#NUM!"},{"$error":"#NUM!"},0]
[null,null,null,null,null,null,null,null,null,null,null,null,null,null,null,null,{"$error":"#NUM!"},{"$error":"#NUM!"},{"$error":"#NUM!"},0]
[null,null,null,null,null,null,null,null,null,null,null,null,null,null,null,null,{"$error":"#NUM!"},{"$error":"#NUM!"},{"$error":"#NUM!"},0]
[null,null,null,null,null,null,null,null,null,null,null,null,null,null,null,null,{"$error":"#NUM!"},{"$error":"#NUM!"},{"$error":"#NUM!"},0]
[null,null,null,null,null,null,null,null,null,null,null,null,null,null,null,null,{"$error":"#NUM!"},{"$error":"#NUM!"},{"$error":"#NUM!"},0]
[null,null,null,null,null,null,null,null,null,null,null,null,null,null,null,null,{"$error":"#NUM!"},{"$error":"#NUM!"},{"$error":"#NUM!"},0]
[null,null,null,null,null,null,null,null,null,null,null,null,null,null,null,null,{"$error":"#NUM!"},{"$error":"#NUM!"},{"$error":"#NUM!"},0]
[null,null,null,null,null,null,null,null,null,null,null,null,null,null,null,null,{"$f":"1/((0.0010295+0.0002391*LOG(I487*1000)+0.0000001568*LOG(I487*1000)^3))","v":{"$error":"#NUM!"}},{"$f":"1/((0.0010295+0.0002391*LOG(J487*1000)+0.0000001568*LOG(J487*1000)^3))","v":{"$error":"#NUM!"}},{"$f":"($O$5*G487)+$O$6*((1*(Q487^4))+($O$11*((Q487^4)-(R487^4))))","v":{"$error":"#NUM!"}},{"$f":"1000*(K487/$O$3)","v":0}]
[null,null,null,null,null,null,null,null,null,null,null,null,null,null,null,null,{"$error":"#NUM!"},{"$error":"#NUM!"},{"$error":"#NUM!"},0]
[null,null,null,null,null,null,null,null,null,null,null,null,null,null,null,null,{"$error":"#NUM!"},{"$error":"#NUM!"},{"$error":"#NUM!"},0]
[null,null,null,null,null,null,null,null,null,null,null,null,null,null,null,null,{"$error":"#NUM!"},{"$error":"#NUM!"},{"$error":"#NUM!"},0]
[null,null,null,null,null,null,null,null,null,null,null,null,null,null,null,null,{"$error":"#NUM!"},{"$error":"#NUM!"},{"$error":"#NUM!"},0]
[null,null,null,null,null,null,null,null,null,null,null,null,null,null,null,null,{"$error":"#NUM!"},{"$error":"#NUM!"},{"$error":"#NUM!"},0]
[null,null,null,null,null,null,null,null,null,null,null,null,null,null,null,null,{"$error":"#NUM!"},{"$error":"#NUM!"},{"$error":"#NUM!"},0]
[null,null,null,null,null,null,null,null,null,null,null,null,null,null,null,null,{"$error":"#NUM!"},{"$error":"#NUM!"},{"$error":"#NUM!"},0]
[null,null,null,null,null,null,null,null,null,null,null,null,null,null,null,null,{"$error":"#NUM!"},{"$error":"#NUM!"},{"$error":"#NUM!"},0]
[null,null,null,null,null,null,null,null,null,null,null,null,null,null,null,null,{"$error":"#NUM!"},{"$error":"#NUM!"},{"$error":"#NUM!"},0]
[null,null,null,null,null,null,null,null,null,null,null,null,null,null,null,null,{"$error":"#NUM!"},{"$error":"#NUM!"},{"$error":"#NUM!"},0]
[null,null,null,null,null,null,null,null,null,null,null,null,null,null,null,null,{"$error":"#NUM!"},{"$error":"#NUM!"},{"$error":"#NUM!"},0]
[null,null,null,null,null,null,null,null,null,null,null,null,null,null,null,null,{"$error":"#NUM!"},{"$error":"#NUM!"},{"$error":"#NUM!"},0]
[null,null,null,null,null,null,null,null,null,null,null,null,null,null,null,null,{"$error":"#NUM!"},{"$error":"#NUM!"},{"$error":"#NUM!"},0]
[null,null,null,null,null,null,null,null,null,null,null,null,null,null,null,null,{"$error":"#NUM!"},{"$error":"#NUM!"},{"$error":"#NUM!"},0]
[null,null,null,null,null,null,null,null,null,null,null,null,null,null,null,null,{"$error":"#NUM!"},{"$error":"#NUM!"},{"$error":"#NUM!"},0]
[null,null,null,null,null,null,null,null,null,null,null,null,null,null,null,null,{"$error":"#NUM!"},{"$error":"#NUM!"},{"$error":"#NUM!"},0]
[null,null,null,null,null,null,null,null,null,null,null,null,null,null,null,null,{"$error":"#NUM!"},{"$error":"#NUM!"},{"$error":"#NUM!"},0]
[null,null,null,null,null,null,null,null,null,null,null,null,null,null,null,null,{"$error":"#NUM!"},{"$error":"#NUM!"},{"$error":"#NUM!"},0]
[null,null,null,null,null,null,null,null,null,null,null,null,null,null,null,null,{"$error":"#NUM!"},{"$error":"#NUM!"},{"$error":"#NUM!"},0]
[null,null,null,null,null,null,null,null,null,null,null,null,null,null,null,null,{"$error":"#NUM!"},{"$error":"#NUM!"},{"$error":"#NUM!"},0]
[null,null,null,null,null,null,null,null,null,null,null,null,null,null,null,null,{"$error":"#NUM!"},{"$error":"#NUM!"},{"$error":"#NUM!"},0]
[null,null,null,null,null,null,null,null,null,null,null,null,null,null,null,null,{"$error":"#NUM!"},{"$error":"#NUM!"},{"$error":"#NUM!"},0]
[null,null,null,null,null,null,null,null,null,null,null,null,null,null,null,null,{"$error":"#NUM!"},{"$error":"#NUM!"},{"$error":"#NUM!"},0]
[null,null,null,null,null,null,null,null,null,null,null,null,null,null,null,null,{"$error":"#NUM!"},{"$error":"#NUM!"},{"$error":"#NUM!"},0]
[null,null,null,null,null,null,null,null,null,null,null,null,null,null,null,null,{"$error":"#NUM!"},{"$error":"#NUM!"},{"$error":"#NUM!"},0]
[null,null,null,null,null,null,null,null,null,null,null,null,null,null,null,null,{"$error":"#NUM!"},{"$error":"#NUM!"},{"$error":"#NUM!"},0]
[null,null,null,null,null,null,null,null,null,null,null,null,null,null,null,null,{"$error":"#NUM!"},{"$error":"#NUM!"},{"$error":"#NUM!"},0]
[null,null,null,null,null,null,null,null,null,null,null,null,null,null,null,null,{"$error":"#NUM!"},{"$error":"#NUM!"},{"$error":"#NUM!"},0]
[null,null,null,null,null,null,null,null,null,null,null,null,null,null,null,null,{"$error":"#NUM!"},{"$error":"#NUM!"},{"$error":"#NUM!"},0]
[null,null,null,null,null,null,null,null,null,null,null,null,null,null,null,null,{"$error":"#NUM!"},{"$error":"#NUM!"},{"$error":"#NUM!"},0]
[null,null,null,null,null,null,null,null,null,null,null,null,null,null,null,null,{"$error":"#NUM!"},{"$error":"#NUM!"},{"$error":"#NUM!"},0]
[null,null,null,null,null,null,null,null,null,null,null,null,null,null,null,null,{"$error":"#NUM!"},{"$error":"#NUM!"},{"$error":"#NUM!"},0]
[null,null,null,null,null,null,null,null,null,null,null,null,null,null,null,null,{"$error":"#NUM!"},{"$error":"#NUM!"},{"$error":"#NUM!"},0]
[null,null,null,null,null,null,null,null,null,null,null,null,null,null,null,null,{"$error":"#NUM!"},{"$error":"#NUM!"},{"$error":"#NUM!"},0]
[null,null,null,null,null,null,null,null,null,null,null,null,null,null,null,null,{"$error":"#NUM!"},{"$error":"#NUM!"},{"$error":"#NUM!"},0]
[null,null,null,null,null,null,null,null,null,null,null,null,null,null,null,null,{"$error":"#NUM!"},{"$error":"#NUM!"},{"$error":"#NUM!"},0]
[null,null,null,null,null,null,null,null,null,null,null,null,null,null,null,null,{"$error":"#NUM!"},{"$error":"#NUM!"},{"$error":"#NUM!"},0]
[null,null,null,null,null,null,null,null,null,null,null,null,null,null,null,null,{"$error":"#NUM!"},{"$error":"#NUM!"},{"$error":"#NUM!"},0]
[null,null,null,null,null,null,null,null,null,null,null,null,null,null,null,null,{"$error":"#NUM!"},{"$error":"#NUM!"},{"$error":"#NUM!"},0]
[null,null,null,null,null,null,null,null,null,null,null,null,null,null,null,null,{"$error":"#NUM!"},{"$error":"#NUM!"},{"$error":"#NUM!"},0]
[null,null,null,null,null,null,null,null,null,null,null,null,null,null,null,null,{"$error":"#NUM!"},{"$error":"#NUM!"},{"$error":"#NUM!"},0]
[null,null,null,null,null,null,null,null,null,null,null,null,null,null,null,null,{"$error":"#NUM!"},{"$error":"#NUM!"},{"$error":"#NUM!"},0]
[null,null,null,null,null,null,null,null,null,null,null,null,null,null,null,null,{"$error":"#NUM!"},{"$error":"#NUM!"},{"$error":"#NUM!"},0]
[null,null,null,null,null,null,null,null,null,null,null,null,null,null,null,null,{"$error":"#NUM!"},{"$error":"#NUM!"},{"$error":"#NUM!"},0]
[null,null,null,null,null,null,null,null,null,null,null,null,null,null,null,null,{"$error":"#NUM!"},{"$error":"#NUM!"},{"$error":"#NUM!"},0]
[null,null,null,null,null,null,null,null,null,null,null,null,null,null,null,null,{"$error":"#NUM!"},{"$error":"#NUM!"},{"$error":"#NUM!"},0]
[null,null,null,null,null,null,null,null,null,null,null,null,null,null,null,null,{"$error":"#NUM!"},{"$error":"#NUM!"},{"$error":"#NUM!"},0]
[null,null,null,null,null,null,null,null,null,null,null,null,null,null,null,null,{"$error":"#NUM!"},{"$error":"#NUM!"},{"$error":"#NUM!"},0]
[null,null,null,null,null,null,null,null,null,null,null,null,null,null,null,null,{"$error":"#NUM!"},{"$error":"#NUM!"},{"$error":"#NUM!"},0]
[null,null,null,null,null,null,null,null,null,null,null,null,null,null,null,null,{"$error":"#NUM!"},{"$error":"#NUM!"},{"$error":"#NUM!"},0]
[null,null,null,null,null,null,null,null,null,null,null,null,null,null,null,null,{"$error":"#NUM!"},{"$error":"#NUM!"},{"$error":"#NUM!"},0]
[null,null,null,null,null,null,null,null,null,null,null,null,null,null,null,null,{"$error":"#NUM!"},{"$error":"#NUM!"},{"$error":"#NUM!"},0]
[null,null,null,null,null,null,null,null,null,null,null,null,null,null,null,null,{"$error":"#NUM!"},{"$error":"#NUM!"},{"$error":"#NUM!"},0]
[null,null,null,null,null,null,null,null,null,null,null,null,null,null,null,null,{"$error":"#NUM!"},{"$error":"#NUM!"},{"$error":"#NUM!"},0]
[null,null,null,null,null,null,null,null,null,null,null,null,null,null,null,null,{"$error":"#NUM!"},{"$error":"#NUM!"},{"$error":"#NUM!"},0]
[null,null,null,null,null,null,null,null,null,null,null,null,null,null,null,null,{"$error":"#NUM!"},{"$error":"#NUM!"},{"$error":"#NUM!"},0]
[null,null,null,null,null,null,null,null,null,null,null,null,null,null,null,null,{"$error":"#NUM!"},{"$error":"#NUM!"},{"$error":"#NUM!"},0]
[null,null,null,null,null,null,null,null,null,null,null,null,null,null,null,null,{"$error":"#NUM!"},{"$error":"#NUM!"},{"$error":"#NUM!"},0]
[null,null,null,null,null,null,null,null,null,null,null,null,null,null,null,null,{"$error":"#NUM!"},{"$error":"#NUM!"},{"$error":"#NUM!"},0]
[null,null,null,null,null,null,null,null,null,null,null,null,null,null,null,null,{"$error":"#NUM!"},{"$error":"#NUM!"},{"$error":"#NUM!"},0]
[null,null,null,null,null,null,null,null,null,null,null,null,null,null,null,null,{"$error":"#NUM!"},{"$error":"#NUM!"},{"$error":"#NUM!"},0]
[null,null,null,null,null,null,null,null,null,null,null,null,null,null,null,null,{"$error":"#NUM!"},{"$error":"#NUM!"},{"$error":"#NUM!"},0]
[null,null,null,null,null,null,null,null,null,null,null,null,null,null,null,null,{"$error":"#NUM!"},{"$error":"#NUM!"},{"$error":"#NUM!"},0]
[null,null,null,null,null,null,null,null,null,null,null,null,null,null,null,null,{"$f":"1/((0.0010295+0.0002391*LOG(I551*1000)+0.0000001568*LOG(I551*1000)^3))","v":{"$error":"#NUM!"}},{"$f":"1/((0.0010295+0.0002391*LOG(J551*1000)+0.0000001568*LOG(J551*1000)^3))","v":{"$error":"#NUM!"}},{"$f":"($O$5*G551)+$O$6*((1*(Q551^4))+($O$11*((Q551^4)-(R551^4))))","v":{"$error":"#NUM!"}},{"$f":"1000*(K551/$O$3)","v":0}]
[null,null,null,null,null,null,null,null,null,null,null,null,null,null,null,null,{"$error":"#NUM!"},{"$error":"#NUM!"},{"$error":"#NUM!"},0]
[null,null,null,null,null,null,null,null,null,null,null,null,null,null,null,null,{"$error":"#NUM!"},{"$error":"#NUM!"},{"$error":"#NUM!"},0]
[null,null,null,null,null,null,null,null,null,null,null,null,null,null,null,null,{"$error":"#NUM!"},{"$error":"#NUM!"},{"$error":"#NUM!"},0]
[null,null,null,null,null,null,null,null,null,null,null,null,null,null,null,null,{"$error":"#NUM!"},{"$error":"#NUM!"},{"$error":"#NUM!"},0]
[null,null,null,null,null,null,null,null,null,null,null,null,null,null,null,null,{"$error":"#NUM!"},{"$error":"#NUM!"},{"$error":"#NUM!"},0]
[null,null,null,null,null,null,null,null,null,null,null,null,null,null,null,null,{"$error":"#NUM!"},{"$error":"#NUM!"},{"$error":"#NUM!"},0]
[null,null,null,null,null,null,null,null,null,null,null,null,null,null,null,null,{"$error":"#NUM!"},{"$error":"#NUM!"},{"$error":"#NUM!"},0]
[null,null,null,null,null,null,null,null,null,null,null,null,null,null,null,null,{"$error":"#NUM!"},{"$error":"#NUM!"},{"$error":"#NUM!"},0]
[null,null,null,null,null,null,null,null,null,null,null,null,null,null,null,null,{"$error":"#NUM!"},{"$error":"#NUM!"},{"$error":"#NUM!"},0]
[null,null,null,null,null,null,null,null,null,null,null,null,null,null,null,null,{"$error":"#NUM!"},{"$error":"#NUM!"},{"$error":"#NUM!"},0]
[null,null,null,null,null,null,null,null,null,null,null,null,null,null,null,null,{"$error":"#NUM!"},{"$error":"#NUM!"},{"$error":"#NUM!"},0]
[null,null,null,null,null,null,null,null,null,null,null,null,null,null,null,null,{"$error":"#NUM!"},{"$error":"#NUM!"},{"$error":"#NUM!"},0]
[null,null,null,null,null,null,null,null,null,null,null,null,null,null,null,null,{"$error":"#NUM!"},{"$error":"#NUM!"},{"$error":"#NUM!"},0]
[null,null,null,null,null,null,null,null,null,null,null,null,null,null,null,null,{"$error":"#NUM!"},{"$error":"#NUM!"},{"$error":"#NUM!"},0]
[null,null,null,null,null,null,null,null,null,null,null,null,null,null,null,null,{"$error":"#NUM!"},{"$error":"#NUM!"},{"$error":"#NUM!"},0]
[null,null,null,null,null,null,null,null,null,null,null,null,null,null,null,null,{"$error":"#NUM!"},{"$error":"#NUM!"},{"$error":"#NUM!"},0]
[null,null,null,null,null,null,null,null,null,null,null,null,null,null,null,null,{"$error":"#NUM!"},{"$error":"#NUM!"},{"$error":"#NUM!"},0]
[null,null,null,null,null,null,null,null,null,null,null,null,null,null,null,null,{"$error":"#NUM!"},{"$error":"#NUM!"},{"$error":"#NUM!"},0]
[null,null,null,null,null,null,null,null,null,null,null,null,null,null,null,null,{"$error":"#NUM!"},{"$error":"#NUM!"},{"$error":"#NUM!"},0]
[null,null,null,null,null,null,null,null,null,null,null,null,null,null,null,null,{"$error":"#NUM!"},{"$error":"#NUM!"},{"$error":"#NUM!"},0]
[null,null,null,null,null,null,null,null,null,null,null,null,null,null,null,null,{"$error":"#NUM!"},{"$error":"#NUM!"},{"$error":"#NUM!"},0]
[null,null,null,null,null,null,null,null,null,null,null,null,null,null,null,null,{"$error":"#NUM!"},{"$error":"#NUM!"},{"$error":"#NUM!"},0]
[null,null,null,null,null,null,null,null,null,null,null,null,null,null,null,null,{"$error":"#NUM!"},{"$error":"#NUM!"},{"$error":"#NUM!"},0]
[null,null,null,null,null,null,null,null,null,null,null,null,null,null,null,null,{"$error":"#NUM!"},{"$error":"#NUM!"},{"$error":"#NUM!"},0]
[null,null,null,null,null,null,null,null,null,null,null,null,null,null,null,null,{"$error":"#NUM!"},{"$error":"#NUM!"},{"$error":"#NUM!"},0]
[null,null,null,null,null,null,null,null,null,null,null,null,null,null,null,null,{"$error":"#NUM!"},{"$error":"#NUM!"},{"$error":"#NUM!"},0]
[null,null,null,null,null,null,null,null,null,null,null,null,null,null,null,null,{"$error":"#NUM!"},{"$error":"#NUM!"},{"$error":"#NUM!"},0]
[null,null,null,null,null,null,null,null,null,null,null,null,null,null,null,null,{"$error":"#NUM!"},{"$error":"#NUM!"},{"$error":"#NUM!"},0]
[null,null,null,null,null,null,null,null,null,null,null,null,null,null,null,null,{"$error":"#NUM!"},{"$error":"#NUM!"},{"$error":"#NUM!"},0]
[null,null,null,null,null,null,null,null,null,null,null,null,null,null,null,null,{"$error":"#NUM!"},{"$error":"#NUM!"},{"$error":"#NUM!"},0]
[null,null,null,null,null,null,null,null,null,null,null,null,null,null,null,null,{"$error":"#NUM!"},{"$error":"#NUM!"},{"$error":"#NUM!"},0]
[null,null,null,null,null,null,null,null,null,null,null,null,null,null,null,null,{"$error":"#NUM!"},{"$error":"#NUM!"},{"$error":"#NUM!"},0]
[null,null,null,null,null,null,null,null,null,null,null,null,null,null,null,null,{"$error":"#NUM!"},{"$error":"#NUM!"},{"$error":"#NUM!"},0]
[null,null,null,null,null,null,null,null,null,null,null,null,null,null,null,null,{"$error":"#NUM!"},{"$error":"#NUM!"},{"$error":"#NUM!"},0]
[null,null,null,null,null,null,null,null,null,null,null,null,null,null,null,null,{"$error":"#NUM!"},{"$error":"#NUM!"},{"$error":"#NUM!"},0]
[null,null,null,null,null,null,null,null,null,null,null,null,null,null,null,null,{"$error":"#NUM!"},{"$error":"#NUM!"},{"$error":"#NUM!"},0]
[null,null,null,null,null,null,null,null,null,null,null,null,null,null,null,null,{"$error":"#NUM!"},{"$error":"#NUM!"},{"$error":"#NUM!"},0]
[null,null,null,null,null,null,null,null,null,null,null,null,null,null,null,null,{"$error":"#NUM!"},{"$error":"#NUM!"},{"$error":"#NUM!"},0]
[null,null,null,null,null,null,null,null,null,null,null,null,null,null,null,null,{"$error":"#NUM!"},{"$error":"#NUM!"},{"$error":"#NUM!"},0]
[null,null,null,null,null,null,null,null,null,null,null,null,null,null,null,null,{"$error":"#NUM!"},{"$error":"#NUM!"},{"$error":"#NUM!"},0]
[null,null,null,null,null,null,null,null,null,null,null,null,null,null,null,null,{"$error":"#NUM!"},{"$error":"#NUM!"},{"$error":"#NUM!"},0]
[null,null,null,null,null,null,null,null,null,null,null,null,null,null,null,null,{"$error":"#NUM!"},{"$error":"#NUM!"},{"$error":"#NUM!"},0]
[null,null,null,null,null,null,null,null,null,null,null,null,null,null,null,null,{"$error":"#NUM!"},{"$error":"#NUM!"},{"$error":"#NUM!"},0]
[null,null,null,null,null,null,null,null,null,null,null,null,null,null,null,null,{"$error":"#NUM!"},{"$error":"#NUM!"},{"$error":"#NUM!"},0]
[null,null,null,null,null,null,null,null,null,null,null,null,null,null,null,null,{"$error":"#NUM!"},{"$error":"#NUM!"},{"$error":"#NUM!"},0]
[null,null,null,null,null,null,null,null,null,null,null,null,null,null,null,null,{"$error":"#NUM!"},{"$error":"#NUM!"},{"$error":"#NUM!"},0]
[null,null,null,null,null,null,null,null,null,null,null,null,null,null,null,null,{"$error":"#NUM!"},{"$error":"#NUM!"},{"$error":"#NUM!"},0]
[null,null,null,null,null,null,null,null,null,null,null,null,null,null,null,null,{"$error":"#NUM!"},{"$error":"#NUM!"},{"$error":"#NUM!"},0]
[null,null,null,null,null,null,null,null,null,null,null,null,null,null,null,null,{"$error":"#NUM!"},{"$error":"#NUM!"},{"$error":"#NUM!"},0]
[null,null,null,null,null,null,null,null,null,null,null,null,null,null,null,null,{"$error":"#NUM!"},{"$error":"#NUM!"},{"$error":"#NUM!"},0]
[null,null,null,null,null,null,null,null,null,null,null,null,null,null,null,null,{"$error":"#NUM!"},{"$error":"#NUM!"},{"$error":"#NUM!"},0]
[null,null,null,null,null,null,null,null,null,null,null,null,null,null,null,null,{"$error":"#NUM!"},{"$error":"#NUM!"},{"$error":"#NUM!"},0]
[null,null,null,null,null,null,null,null,null,null,null,null,null,null,null,null,{"$error":"#NUM!"},{"$error":"#NUM!"},{"$error":"#NUM!"},0]
[null,null,null,null,null,null,null,null,null,null,null,null,null,null,null,null,{"$error":"#NUM!"},{"$error":"#NUM!"},{"$error":"#NUM!"},0]
[null,null,null,null,null,null,null,null,null,null,null,null,null,null,null,null,{"$error":"#NUM!"},{"$error":"#NUM!"},{"$error":"#NUM!"},0]
[null,null,null,null,null,null,null,null,null,null,null,null,null,null,null,null,{"$error":"#NUM!"},{"$error":"#NUM!"},{"$error":"#NUM!"},0]
[null,null,null,null,null,null,null,null,null,null,null,null,null,null,null,null,{"$error":"#NUM!"},{"$error":"#NUM!"},{"$error":"#NUM!"},0]
[null,null,null,null,null,null,null,null,null,null,null,null,null,null,null,null,{"$error":"#NUM!"},{"$error":"#NUM!"},{"$error":"#NUM!"},0]
[null,null,null,null,null,null,null,null,null,null,null,null,null,null,null,null,{"$error":"#NUM!"},{"$error":"#NUM!"},{"$error":"#NUM!"},0]
[null,null,null,null,null,null,null,null,null,null,null,null,null,null,null,null,{"$error":"#NUM!"},{"$error":"#NUM!"},{"$error":"#NUM!"},0]
[null,null,null,null,null,null,null,null,null,null,null,null,null,null,null,null,{"$error":"#NUM!"},{"$error":"#NUM!"},{"$error":"#NUM!"},0]
[null,null,null,null,null,null,null,null,null,null,null,null,null,null,null,null,{"$error":"#NUM!"},{"$error":"#NUM!"},{"$error":"#NUM!"},0]
[null,null,null,null,null,null,null,null,null,null,null,null,null,null,null,null,{"$error":"#NUM!"},{"$error":"#NUM!"},{"$error":"#NUM!"},0]
[null,null,null,null,null,null,null,null,null,null,null,null,null,null,null,null,{"$f":"1/((0.0010295+0.0002391*LOG(I615*1000)+0.0000001568*LOG(I615*1000)^3))","v":{"$error":"#NUM!"}},{"$f":"1/((0.0010295+0.0002391*LOG(J615*1000)+0.0000001568*LOG(J615*1000)^3))","v":{"$error":"#NUM!"}},{"$f":"($O$5*G615)+$O$6*((1*(Q615^4))+($O$11*((Q615^4)-(R615^4))))","v":{"$error":"#NUM!"}},{"$f":"1000*(K615/$O$3)","v":0}]
[null,null,null,null,null,null,null,null,null,null,null,null,null,null,null,null,{"$error":"#NUM!"},{"$error":"#NUM!"},{"$error":"#NUM!"},0]
[null,null,null,null,null,null,null,null,null,null,null,null,null,null,null,null,{"$error":"#NUM!"},{"$error":"#NUM!"},{"$error":"#NUM!"},0]
[null,null,null,null,null,null,null,null,null,null,null,null,null,null,null,null,{"$error":"#NUM!"},{"$error":"#NUM!"},{"$error":"#NUM!"},0]
[null,null,null,null,null,null,null,null,null,null,null,null,null,null,null,null,{"$error":"#NUM!"},{"$error":"#NUM!"},{"$error":"#NUM!"},0]
[null,null,null,null,null,null,null,null,null,null,null,null,null,null,null,null,{"$error":"#NUM!"},{"$error":"#NUM!"},{"$error":"#NUM!"},0]
[null,null,null,null,null,null,null,null,null,null,null,null,null,null,null,null,{"$error":"#NUM!"},{"$error":"#NUM!"},{"$error":"#NUM!"},0]
[null,null,null,null,null,null,null,null,null,null,null,null,null,null,null,null,{"$error":"#NUM!"},{"$error":"#NUM!"},{"$error":"#NUM!"},0]
[null,null,null,null,null,null,null,null,null,null,null,null,null,null,null,null,{"$error":"#NUM!"},{"$error":"#NUM!"},{"$error":"#NUM!"},0]
[null,null,null,null,null,null,null,null,null,null,null,null,null,null,null,null,{"$error":"#NUM!"},{"$error":"#NUM!"},{"$error":"#NUM!"},0]
[null,null,null,null,null,null,null,null,null,null,null,null,null,null,null,null,{"$error":"#NUM!"},{"$error":"#NUM!"},{"$error":"#NUM!"},0]
[null,null,null,null,null,null,null,null,null,null,null,null,null,null,null,null,{"$error":"#NUM!"},{"$error":"#NUM!"},{"$error":"#NUM!"},0]
[null,null,null,null,null,null,null,null,null,null,null,null,null,null,null,null,{"$error":"#NUM!"},{"$error":"#NUM!"},{"$error":"#NUM!"},0]
[null,null,null,null,null,null,null,null,null,null,null,null,null,null,null,null,{"$error":"#NUM!"},{"$error":"#NUM!"},{"$error":"#NUM!"},0]
[null,null,null,null,null,null,null,null,null,null,null,null,null,null,null,null,{"$error":"#NUM!"},{"$error":"#NUM!"},{"$error":"#NUM!"},0]
[null,null,null,null,null,null,null,null,null,null,null,null,null,null,null,null,{"$error":"#NUM!"},{"$error":"#NUM!"},{"$error":"#NUM!"},0]
[null,null,null,null,null,null,null,null,null,null,null,null,null,null,null,null,{"$error":"#NUM!"},{"$error":"#NUM!"},{"$error":"#NUM!"},0]
[null,null,null,null,null,null,null,null,null,null,null,null,null,null,null,null,{"$error":"#NUM!"},{"$error":"#NUM!"},{"$error":"#NUM!"},0]
[null,null,null,null,null,null,null,null,null,null,null,null,null,null,null,null,{"$error":"#NUM!"},{"$error":"#NUM!"},{"$error":"#NUM!"},0]
[null,null,null,null,null,null,null,null,null,null,null,null,null,null,null,null,{"$error":"#NUM!"},{"$error":"#NUM!"},{"$error":"#NUM!"},0]
[null,null,null,null,null,null,null,null,null,null,null,null,null,null,null,null,{"$error":"#NUM!"},{"$error":"#NUM!"},{"$error":"#NUM!"},0]
[null,null,null,null,null,null,null,null,null,null,null,null,null,null,null,null,{"$error":"#NUM!"},{"$error":"#NUM!"},{"$error":"#NUM!"},0]
[null,null,null,null,null,null,null,null,null,null,null,null,null,null,null,null,{"$error":"#NUM!"},{"$error":"#NUM!"},{"$error":"#NUM!"},0]
[null,null,null,null,null,null,null,null,null,null,null,null,null,null,null,null,{"$error":"#NUM!"},{"$error":"#NUM!"},{"$error":"#NUM!"},0]
[null,null,null,null,null,null,null,null,null,null,null,null,null,null,null,null,{"$error":"#NUM!"},{"$error":"#NUM!"},{"$error":"#NUM!"},0]
[null,null,null,null,null,null,null,null,null,null,null,null,null,null,null,null,{"$error":"#NUM!"},{"$error":"#NUM!"},{"$error":"#NUM!"},0]
[null,null,null,null,null,null,null,null,null,null,null,null,null,null,null,null,{"$error":"#NUM!"},{"$error":"#NUM!"},{"$error":"#NUM!"},0]
[null,null,null,null,null,null,null,null,null,null,null,null,null,null,null,null,{"$error":"#NUM!"},{"$error":"#NUM!"},{"$error":"#NUM!"},0]
[null,null,null,null,null,null,null,null,null,null,null,null,null,null,null,null,{"$error":"#NUM!"},{"$error":"#NUM!"},{"$error":"#NUM!"},0]
[null,null,null,null,null,null,null,null,null,null,null,null,null,null,null,null,{"$error":"#NUM!"},{"$error":"#NUM!"},{"$error":"#NUM!"},0]
[null,null,null,null,null,null,null,null,null,null,null,null,null,null,null,null,{"$error":"#NUM!"},{"$error":"#NUM!"},{"$error":"#NUM!"},0]
[null,null,null,null,null,null,null,null,null,null,null,null,null,null,null,null,{"$error":"#NUM!"},{"$error":"#NUM!"},{"$error":"#NUM!"},0]
[null,null,null,null,null,null,null,null,null,null,null,null,null,null,null,null,{"$error":"#NUM!"},{"$error":"#NUM!"},{"$error":"#NUM!"},0]
[null,null,null,null,null,null,null,null,null,null,null,null,null,null,null,null,{"$error":"#NUM!"},{"$error":"#NUM!"},{"$error":"#NUM!"},0]
[null,null,null,null,null,null,null,null,null,null,null,null,null,null,null,null,{"$error":"#NUM!"},{"$error":"#NUM!"},{"$error":"#NUM!"},0]
[null,null,null,null,null,null,null,null,null,null,null,null,null,null,null,null,{"$error":"#NUM!"},{"$error":"#NUM!"},{"$error":"#NUM!"},0]
[null,null,null,null,null,null,null,null,null,null,null,null,null,null,null,null,{"$error":"#NUM!"},{"$error":"#NUM!"},{"$error":"#NUM!"},0]
[null,null,null,null,null,null,null,null,null,null,null,null,null,null,null,null,{"$error":"#NUM!"},{"$error":"#NUM!"},{"$error":"#NUM!"},0]
[null,null,null,null,null,null,null,null,null,null,null,null,null,null,null,null,{"$error":"#NUM!"},{"$error":"#NUM!"},{"$error":"#NUM!"},0]
[null,null,null,null,null,null,null,null,null,null,null,null,null,null,null,null,{"$error":"#NUM!"},{"$error":"#NUM!"},{"$error":"#NUM!"},0]
[null,null,null,null,null,null,null,null,null,null,null,null,null,null,null,null,{"$error":"#NUM!"},{"$error":"#NUM!"},{"$error":"#NUM!"},0]
[null,null,null,null,null,null,null,null,null,null,null,null,null,null,null,null,{"$error":"#NUM!"},{"$error":"#NUM!"},{"$error":"#NUM!"},0]
[null,null,null,null,null,null,null,null,null,null,null,null,null,null,null,null,{"$error":"#NUM!"},{"$error":"#NUM!"},{"$error":"#NUM!"},0]
[null,null,null,null,null,null,null,null,null,null,null,null,null,null,null,null,{"$error":"#NUM!"},{"$error":"#NUM!"},{"$error":"#NUM!"},0]
[null,null,null,null,null,null,null,null,null,null,null,null,null,null,null,null,{"$error":"#NUM!"},{"$error":"#NUM!"},{"$error":"#NUM!"},0]
[null,null,null,null,null,null,null,null,null,null,null,null,null,null,null,null,{"$error":"#NUM!"},{"$error":"#NUM!"},{"$error":"#NUM!"},0]
[null,null,null,null,null,null,null,null,null,null,null,null,null,null,null,null,{"$error":"#NUM!"},{"$error":"#NUM!"},{"$error":"#NUM!"},0]
[null,null,null,null,null,null,null,null,null,null,null,null,null,null,null,null,{"$error":"#NUM!"},{"$error":"#NUM!"},{"$error":"#NUM!"},0]
[null,null,null,null,null,null,null,null,null,null,null,null,null,null,null,null,{"$error":"#NUM!"},{"$error":"#NUM!"},{"$error":"#NUM!"},0]
[null,null,null,null,null,null,null,null,null,null,null,null,null,null,null,null,{"$error":"#NUM!"},{"$error":"#NUM!"},{"$error":"#NUM!"},0]
[null,null,null,null,null,null,null,null,null,null,null,null,null,null,null,null,{"$error":"#NUM!"},{"$error":"#NUM!"},{"$error":"#NUM!"},0]
[null,null,null,null,null,null,null,null,null,null,null,null,null,null,null,null,{"$error":"#NUM!"},{"$error":"#NUM!"},{"$error":"#NUM!"},0]
[null,null,null,null,null,null,null,null,null,null,null,null,null,null,null,null,{"$error":"#NUM!"},{"$error":"#NUM!"},{"$error":"#NUM!"},0]
[null,null,null,null,null,null,null,null,null,null,null,null,null,null,null,null,{"$error":"#NUM!"},{"$error":"#NUM!"},{"$error":"#NUM!"},0]
[null,null,null,null,null,null,null,null,null,null,null,null,null,null,null,null,{"$error":"#NUM!"},{"$error":"#NUM!"},{"$error":"#NUM!"},0]
[null,null,null,null,null,null,null,null,null,null,null,null,null,null,null,null,{"$error":"#NUM!"},{"$error":"#NUM!"},{"$error":"#NUM!"},0]
[null,null,null,null,null,null,null,null,null,null,null,null,null,null,null,null,{"$error":"#NUM!"},{"$error":"#NUM!"},{"$error":"#NUM!"},0]
[null,null,null,null,null,null,null,null,null,null,null,null,null,null,null,null,{"$error":"#NUM!"},{"$error":"#NUM!"},{"$error":"#NUM!"},0]
[null,null,null,null,null,null,null,null,null,null,null,null,null,null,null,null,{"$error":"#NUM!"},{"$error":"#NUM!"},{"$error":"#NUM!"},0]
[null,null,null,null,null,null,null,null,null,null,null,null,null,null,null,null,{"$error":"#NUM!"},{"$error":"#NUM!"},{"$error":"#NUM!"},0]
[null,null,null,null,null,null,null,null,null,null,null,null,null,null,null,null,{"$error":"#NUM!"},{"$error":"#NUM!"},{"$error":"#NUM!"},0]
[null,null,null,null,null,null,null,null,null,null,null,null,null,null,null,null,{"$error":"#NUM!"},{"$error":"#NUM!"},{"$error":"#NUM!"},0]
[null,null,null,null,null,null,null,null,null,null,null,null,null,null,null,null,{"$error":"#NUM!"},{"$error":"#NUM!"},{"$error":"#NUM!"},0]
[null,null,null,null,null,null,null,null,null,null,null,null,null,null,null,null,{"$error":"#NUM!"},{"$error":"#NUM!"},{"$error":"#NUM!"},0]
[null,null,null,null,null,null,null,null,null,null,null,null,null,null,null,null,{"$f":"1/((0.0010295+0.0002391*LOG(I679*1000)+0.0000001568*LOG(I679*1000)^3))","v":{"$error":"#NUM!"}},{"$f":"1/((0.0010295+0.0002391*LOG(J679*1000)+0.0000001568*LOG(J679*1000)^3))","v":{"$error":"#NUM!"}},{"$f":"($O$5*G679)+$O$6*((1*(Q679^4))+($O$11*((Q679^4)-(R679^4))))","v":{"$error":"#NUM!"}},{"$f":"1000*(K679/$O$3)","v":0}]
[null,null,null,null,null,null,null,null,null,null,null,null,null,null,null,null,{"$error":"#NUM!"},{"$error":"#NUM!"},{"$error":"#NUM!"},0]
[null,null,null,null,null,null,null,null,null,null,null,null,null,null,null,null,{"$error":"#NUM!"},{"$error":"#NUM!"},{"$error":"#NUM!"},0]
[null,null,null,null,null,null,null,null,null,null,null,null,null,null,null,null,{"$error":"#NUM!"},{"$error":"#NUM!"},{"$error":"#NUM!"},0]
[null,null,null,null,null,null,null,null,null,null,null,null,null,null,null,null,{"$error":"#NUM!"},{"$error":"#NUM!"},{"$error":"#NUM!"},0]
[null,null,null,null,null,null,null,null,null,null,null,null,null,null,null,null,{"$error":"#NUM!"},{"$error":"#NUM!"},{"$error":"#NUM!"},0]
[null,null,null,null,null,null,null,null,null,null,null,null,null,null,null,null,{"$error":"#NUM!"},{"$error":"#NUM!"},{"$error":"#NUM!"},0]
[null,null,null,null,null,null,null,null,null,null,null,null,null,null,null,null,{"$error":"#NUM!"},{"$error":"#NUM!"},{"$error":"#NUM!"},0]
[null,null,null,null,null,null,null,null,null,null,null,null,null,null,null,null,{"$error":"#NUM!"},{"$error":"#NUM!"},{"$error":"#NUM!"},0]
[null,null,null,null,null,null,null,null,null,null,null,null,null,null,null,null,{"$error":"#NUM!"},{"$error":"#NUM!"},{"$error":"#NUM!"},0]
[null,null,null,null,null,null,null,null,null,null,null,null,null,null,null,null,{"$error":"#NUM!"},{"$error":"#NUM!"},{"$error":"#NUM!"},0]
[null,null,null,null,null,null,null,null,null,null,null,null,null,null,null,null,{"$error":"#NUM!"},{"$error":"#NUM!"},{"$error":"#NUM!"},0]
[null,null,null,null,null,null,null,null,null,null,null,null,null,null,null,null,{"$error":"#NUM!"},{"$error":"#NUM!"},{"$error":"#NUM!"},0]
[null,null,null,null,null,null,null,null,null,null,null,null,null,null,null,null,{"$error":"#NUM!"},{"$error":"#NUM!"},{"$error":"#NUM!"},0]
[null,null,null,null,null,null,null,null,null,null,null,null,null,null,null,null,{"$error":"#NUM!"},{"$error":"#NUM!"},{"$error":"#NUM!"},0]
[null,null,null,null,null,null,null,null,null,null,null,null,null,null,null,null,{"$error":"#NUM!"},{"$error":"#NUM!"},{"$error":"#NUM!"},0]
[null,null,null,null,null,null,null,null,null,null,null,null,null,null,null,null,{"$error":"#NUM!"},{"$error":"#NUM!"},{"$error":"#NUM!"},0]
[null,null,null,null,null,null,null,null,null,null,null,null,null,null,null,null,{"$error":"#NUM!"},{"$error":"#NUM!"},{"$error":"#NUM!"},0]
[null,null,null,null,null,null,null,null,null,null,null,null,null,null,null,null,{"$error":"#NUM!"},{"$error":"#NUM!"},{"$error":"#NUM!"},0]
[null,null,null,null,null,null,null,null,null,null,null,null,null,null,null,null,{"$error":"#NUM!"},{"$error":"#NUM!"},{"$error":"#NUM!"},0]
[null,null,null,null,null,null,null,null,null,null,null,null,null,null,null,null,{"$error":"#NUM!"},{"$error":"#NUM!"},{"$error":"#NUM!"},0]
[null,null,null,null,null,null,null,null,null,null,null,null,null,null,null,null,{"$error":"#NUM!"},{"$error":"#NUM!"},{"$error":"#NUM!"},0]
[null,null,null,null,null,null,null,null,null,null,null,null,null,null,null,null,{"$error":"#NUM!"},{"$error":"#NUM!"},{"$error":"#NUM!"},0]
[null,null,null,null,null,null,null,null,null,null,null,null,null,null,null,null,{"$error":"#NUM!"},{"$error":"#NUM!"},{"$error":"#NUM!"},0]
[null,null,null,null,null,null,null,null,null,null,null,null,null,null,null,null,{"$error":"#NUM!"},{"$error":"#NUM!"},{"$error":"#NUM!"},0]
[null,null,null,null,null,null,null,null,null,null,null,null,null,null,null,null,{"$error":"#NUM!"},{"$error":"#NUM!"},{"$error":"#NUM!"},0]
[null,null,null,null,null,null,null,null,null,null,null,null,null,null,null,null,{"$error":"#NUM!"},{"$error":"#NUM!"},{"$error":"#NUM!"},0]
[null,null,null,null,null,null,null,null,null,null,null,null,null,null,null,null,{"$error":"#NUM!"},{"$error":"#NUM!"},{"$error":"#NUM!"},0]
[null,null,null,null,null,null,null,null,null,null,null,null,null,null,null,null,{"$error":"#NUM!"},{"$error":"#NUM!"},{"$error":"#NUM!"},0]
[null,null,null,null,null,null,null,null,null,null,null,null,null,null,null,null,{"$error":"#NUM!"},{"$error":"#NUM!"},{"$error":"#NUM!"},0]
[null,null,null,null,null,null,null,null,null,null,null,null,null,null,null,null,{"$error":"#NUM!"},{"$error":"#NUM!"},{"$error":"#NUM!"},0]
[null,null,null,null,null,null,null,null,null,null,null,null,null,null,null,null,{"$error":"#NUM!"},{"$error":"#NUM!"},{"$error":"#NUM!"},0]
[null,null,null,null,null,null,null,null,null,null,null,null,null,null,null,null,{"$error":"#NUM!"},{"$error":"#NUM!"},{"$error":"#NUM!"},0]
[null,null,null,null,null,null,null,null,null,null,null,null,null,null,null,null,{"$error":"#NUM!"},{"$error":"#NUM!"},{"$error":"#NUM!"},0]
[null,null,null,null,null,null,null,null,null,null,null,null,null,null,null,null,{"$error":"#NUM!"},{"$error":"#NUM!"},{"$error":"#NUM!"},0]
[null,null,null,null,null,null,null,null,null,null,null,null,null,null,null,null,{"$error":"#NUM!"},{"$error":"#NUM!"},{"$error":"#NUM!"},0]
[null,null,null,null,null,null,null,null,null,null,null,null,null,null,null,null,{"$error":"#NUM!"},{"$error":"#NUM!"},{"$error":"#NUM!"},0]
[null,null,null,null,null,null,null,null,null,null,null,null,null,null,null,null,{"$error":"#NUM!"},{"$error":"#NUM!"},{"$error":"#NUM!"},0]
[null,null,null,null,null,null,null,null,null,null,null,null,null,null,null,null,{"$error":"#NUM!"},{"$error":"#NUM!"},{"$error":"#NUM!"},0]
[null,null,null,null,null,null,null,null,null,null,null,null,null,null,null,null,{"$error":"#NUM!"},{"$error":"#NUM!"},{"$error":"#NUM!"},0]
[null,null,null,null,null,null,null,null,null,null,null,null,null,null,null,null,{"$error":"#NUM!"},{"$error":"#NUM!"},{"$error":"#NUM!"},0]
[null,null,null,null,null,null,null,null,null,null,null,null,null,null,null,null,{"$error":"#NUM!"},{"$error":"#NUM!"},{"$error":"#NUM!"},0]
[null,null,null,null,null,null,null,null,null,null,null,null,null,null,null,null,{"$error":"#NUM!"},{"$error":"#NUM!"},{"$error":"#NUM!"},0]
[null,null,null,null,null,null,null,null,null,null,null,null,null,null,null,null,{"$error":"#NUM!"},{"$error":"#NUM!"},{"$error":"#NUM!"},0]
[null,null,null,null,null,null,null,null,null,null,null,null,null,null,null,null,{"$error":"#NUM!"},{"$error":"#NUM!"},{"$error":"#NUM!"},0]
[null,null,null,null,null,null,null,null,null,null,null,null,null,null,null,null,{"$error":"#NUM!"},{"$error":"#NUM!"},{"$error":"#NUM!"},0]
[null,null,null,null,null,null,null,null,null,null,null,null,null,null,null,null,{"$error":"#NUM!"},{"$error":"#NUM!"},{"$error":"#NUM!"},0]
[null,null,null,null,null,null,null,null,null,null,null,null,null,null,null,null,{"$error":"#NUM!"},{"$error":"#NUM!"},{"$error":"#NUM!"},0]
[null,null,null,null,null,null,null,null,null,null,null,null,null,null,null,null,{"$error":"#NUM!"},{"$error":"#NUM!"},{"$error":"#NUM!"},0]
[null,null,null,null,null,null,null,null,null,null,null,null,null,null,null,null,{"$error":"#NUM!"},{"$error":"#NUM!"},{"$error":"#NUM!"},0]
[null,null,null,null,null,null,null,null,null,null,null,null,null,null,null,null,{"$error":"#NUM!"},{"$error":"#NUM!"},{"$error":"#NUM!"},0]
[null,null,null,null,null,null,null,null,null,null,null,null,null,null,null,null,{"$error":"#NUM!"},{"$error":"#NUM!"},{"$error":"#NUM!"},0]
[null,null,null,null,null,null,null,null,null,null,null,null,null,null,null,null,{"$error":"#NUM!"},{"$error":"#NUM!"},{"$error":"#NUM!"},0]
[null,null,null,null,null,null,null,null,null,null,null,null,null,null,null,null,{"$error":"#NUM!"},{"$error":"#NUM!"},{"$error":"#NUM!"},0]
[null,null,null,null,null,null,null,null,null,null,null,null,null,null,null,null,{"$error":"#NUM!"},{"$error":"#NUM!"},{"$error":"#NUM!"},0]
[null,null,null,null,null,null,null,null,null,null,null,null,null,null,null,null,{"$error":"#NUM!"},{"$error":"#NUM!"},{"$error":"#NUM!"},0]
[null,null,null,null,null,null,null,null,null,null,null,null,null,null,null,null,{"$error":"#NUM!"},{"$error":"#NUM!"},{"$error":"#NUM!"},0]
[null,null,null,null,null,null,null,null,null,null,null,null,null,null,null,null,{"$error":"#NUM!"},{"$error":"#NUM!"},{"$error":"#NUM!"},0]

{"sheet":"daily plot_rad2","index":3,"n_rows":0,"n_cols":0,"rows_kept":0,"cut":false,"hidden":false,"merged":[]}